Workbook

Sheet Instructions
B1: General Instructions to Complete the Annual Financial Statement Workbook
A3: a) | B3: This workbook is composed of several individual worksheets to complete the Annual Financial Statement.
A4: b) | B4: It is designed to automatically calculate linked schedules from each of the data entry points.
A5: c) | B5: The individual spreadsheets containing formulas are locked to protect the formulas.
A6: d) | B6: Fill in only the gray sections of the worksheet.
A7: e) | B7: Begin by navigating to the "Key Inputs" tab.
A8: f) | B8: Select the Municipality or County by clicking on the arrow on the right side of cell D8. This will populate the municipality/county and dates throughout the workbook. Continue to complete each of the fields in order to populate throughout the workbook. Enter the exact number of utilities and the utility types. Do not skip sets of utility pages.
A9: g) | B9: In all applicable signature lines insert the email address of the applicable official.
A10: h) | B10: The completed AFS must be submitted to the Division via the FAST portal with a file name of: xxxx_afs_20xx.xlsm (provide 4 digits municode and year). It must be saved as a Macro-Enabled Workbook.
A11: i) | B11: Only the Chief Financial Officer has access to the "Submit for Review" tab within the FAST portal.
A12: j) | B12: If copying data from a prior workbook, copy and use Paste Values to preserve formatting.
A13: k) | B13: On the Key Inputs tab, users can select "Standard" or "Expanded" for a variety of sections to reduce the number of unused pages throughout the document. The following sheets can be adjusted: 6, 6b, 9a, 10, 11, 12, 17a, 20, 35, and 37. All sections are preset to "Standard" and should only be switched to "Expanded" if more pages are needed.
B14: Quick Guide:
B15: https://www.nj.gov/dca/divisions/dlgs/pdf/FAST%20AFS%20Quick%20User%20Guide.pdf

Sheet 69 - Instructions (hidden)
B2: INSTRUCTIONS IN PREPARATION OF
B3: ="ANNUAL FINANCIAL STATEMENT OF "&TEXT('KEY INPUTS'!D34,"0") -> ANNUAL FINANCIAL STATEMENT OF 2022
C5: The arrangement of the schedules is shown by the index appearing at the bottom hereof. The statement is prepared
B6: on a full cash basis. Any variations from a full cash basis must be taken up with the Division in advance of the preparation
B7: of the statement and the budget.
C9: Summary statements only of debt service are required. The use of summarized forms is permitted to conserve time.
B10: Responsibility for the supporting detail is placed on the Chief Financial Officer who must be in a position to support the
B11: summarized figures.
C13: No sheets should be eliminated, except utility fund sheets under the conditions stipulated on sheet 2. Those sheets
B14: not filled in should be marked "Not Applicable".
B17: INDEX
B19: 1, 1a, & 1b. | D19: Certification and Affidavit
B20: 1c. | D20: Municipal Budget Local Examination Certification
B21: 1d. | D21: Report of Federal and State Financial Assistance Expenditures of Awards
B22: 2. | D22: Instructions and Certification
B23: 3 & 3a | D23: Trial Balance-Current Fund
B24: 4. | D24: Trial Balance-Public Assistance Fund
B25: 5. | D25: Trial Balance-Federal and State Funds
B26: 6 & 6b. | D26: Trial Balance-Trust Funds/ Schedule of Trust Fund Deposits and Reserves
B27: 6a. | D27: Municipal Public Defender -- P.L. 1998, C. 256
B28: 7. | D28: Analysis of Trust Assessment Cash and Investments Pledged to Liabilities and Surplus
B29: 8. | D29: Trial Balance-Capital Fund
B30: 9 & 9a. | D30: Cash Reconciliation
B31: 10. | D31: Federal and State Grants Receivable
B32: 11 & 11a. | D32: Appropriated Reserves for Federal and State Grants
B33: 12. | D33: Unappropriated Reserves for Federal and State Grants
B34: 13. | D34: Local District School Tax-Municipal Open Space Tax
B35: 14. | D35: Regional School Tax-Regional High School Tax
B36: 15. | D36: County Taxes Payable-Special District Taxes
B37: 17 & 17a. | D37: General Budget Revenues
B38: 17. | D38: Allocation of Current Tax Collections
B39: 18. | D39: General Budget Appropriations
B40: 18. | D40: Emergency Appropriations for Local District School Purposes
B41: 19. | D41: ="Results of "&TEXT('KEY INPUTS'!D34,"0")&" Operation-Current Fund" -> Results of 2022 Operation-Current Fund
B42: 20. | D42: Schedule of Miscellaneous Revenues Not Anticipated
B43: 21. | D43: Surplus Account and Analysis of Balance
B44: 22. | D44: Current Tax Levy
B45: 22a. | D45: ="Accelerated Tax Sale/Tax Levy Sale Chapter 99 To Calculate Underlying Tax Collection Rate for "&TEXT('KEY INPUTS'!D34,"0") -> Accelerated Tax Sale/Tax Levy Sale Chapter 99 To Calculate Underlying Tax Collection Rate for 2022
B46: 23. | D46: Due from/to State of New Jersey for Senior Citizens and Veterans Deductions
B47: 24. | D47: Reserve for Tax Appeals Pending-N.J. Division of Tax Appeals (N.J.S.A. 54:3-37)
B48: 25. | D48: Municipal Budget-Computation of "Reserve for Uncollected Taxes" and "Amount to be Raised by Taxation"
B49: 25a. | D49: Accelerated Tax Sale - Chapter 99. Calculation to Utilize Proceeds in Current Budget as Deduction to Reserve
D50: for Uncollected Taxes Appropriation
B51: 26. | D51: Delinquent Taxes and Tax Title Liens
B52: 27. | D52: Foreclosed Property; Contract Sales; Mortgage Sales
B53: 28. | D53: Deferred Charges and List of Judgments-Current
B54: 29. | D54: Emergency-Tax Map; Revaluation; Master Plan; Revisions and Codification of Ordinance; Drainage Maps for
D55: Flood Control; Preliminary Studies, etc. for Sanitary Sewer Systems, Municipal Consolidation Act; Flood or
D56: Hurricane Damage
B57: 30. | D57: Emergency - Damage to Roads and Bridges by Snow, Ice, etc.; Public Exigencies Caused by Civil Disturbances
B58: 31 &31a. | D58: Summary Statement of Debt Service Requirements-Municipal (or County)
B59: 32. | D59: Summary Statement of Debt Service Requirements-School-Type I and Current
B60: 33. | D60: Debt Service for Notes (Other than Assessment Notes)
B61: 34 & 34a. | D61: Debt Service for Assessment Notes/ Schedule of Capital Lease Program Obligations
B62: 35 & 35a. | D62: Improvement Authorizations
B63: 36. | D63: Capital Improvement Fund
B64: 37. | D64: Down Payment
B65: 37. | D65: ="Capital Improvements Authorized in "&TEXT('KEY INPUTS'!D34,"0") -> Capital Improvements Authorized in 2022
B66: 38. | D66: General Capital Surplus, Bond Covenants
B67: 39. | D67: Required Information (N.J.S.A. 52:27BB-55 as amended by Chap. 211, P.L. 1981)
B69: UTILITIES ONLY
B70: 40. | D70: Instructions
B71: 41 & 55. | D71: Trial Balance-Utility Fund
B72: 42 & 56. | D72: Trial Balance-Utility Assessment Trust Funds
B73: 43 & 57. | D73: Analysis of Utility Assessment Trust Cash and Investments Pledged to Liabilities and Surplus
B74: 44 & 58. | D74: Utility Revenues and Appropriations
B75: 45 & 59. | D75: =TEXT('KEY INPUTS'!D34,"0")&" Utility Operations" -> 2022 Utility Operations
B76: 46 & 60. | D76: Results of Operation, Operating Surplus and Analysis
B77: 47 & 61. | D77: Utility Accounts Receivable; Utility Liens
B78: 48 & 62. | D78: Deferred Charges and List of Judgments-Utility
B79: 49 & 63. | D79: Summary Statement of Debt Service Requirements
B80: 49a & 63a. | D80: Summary Statement of Loan Requirements
B81: 50 & 64. | D81: Debt Service for Utility Notes (Other than Utility Assessment Notes)
B82: 51 & 65. | D82: Debt Service for Utility Assessment Notes
B83: 51a & 65a. | D83: Schedule of Capital Lease Program Obligations
B84: 52 & 66. | D84: Improvement Authorizations (Utility Capital)
B85: 53 & 67. | D85: Capital Improvement Fund and Down Payments
B86: 54 & 68. | D86: ="Utility Capital Improvements Authorized in "&TEXT('KEY INPUTS'!D34,"0")&"; Utility Capital Surplus" -> Utility Capital Improvements Authorized in 2022; Utility Capital Surplus
B87: Sheet 69

Sheet KEY INPUTS
C2: Annual Financial Statement - Key Inputs
C3: Municipal and County AFS Version 2022.1 | AB3: DLGS
C4: **PLEASE NOTE: Many of the features on this page rely on the use of macros. Because of the nature of this functionality, using the options available on this tab will
C5: cause the screen to "shake" or "flash" momentarily. This is a byproduct of such functionality being run across all pages of the document.**
C6: Required Information | D6: Responses and Data | F6: Select Local Government Entity Type (Muni or County): | R6: Muncode | S6: Town | T6: County | U6: Town Name | V6: Name of Municipality | W6: Muniname | X6: Type of Government | Y6: Governing Body Members | Z6: Governing Body Type | AA6: 2020 Census Population
F7: Municipality | Q7: 1 | R7: 0000 | S7: MUNICIPALITY | T7: COUNTY | U7: PLEASE SELECT A MUNICIPALITY/COUNTY | V7: MUNICIPALITY/COUNTY | W7: MUNICIPALITY
C8: Name and County of Municipality | D8: 339 | E8: *Counties will be listed after all Municipalities in the dropdown menu in cell D8. | Q8: 2 | R8: 1330 | S8: Aberdeen Township | T8: Monmouth | U8: Aberdeen Township, Monmouth County | V8: Aberdeen Township | W8: Aberdeen | X8: Township | Y8: Council Members | Z8: Mayor-6 Council Members | AA8: 19329
C9: Full Name of Municipality/County | D9: =UPPER(VLOOKUP($D$8,$Q$7:$X$593,8,FALSE)&" Of "&VLOOKUP($D$8,$Q$7:$X$593,7,FALSE)) -> TOWNSHIP OF NEPTUNE | Q9: =Q8+1 -> 3 | R9: 0101 | S9: Absecon City | T9: Atlantic | U9: Absecon City, Atlantic County | V9: Absecon | W9: Absecon | X9: City | Y9: Council Members | Z9: Mayor-7 Council Members | AA9: 9137
C10: County of Municipality / County | D10: =UPPER(VLOOKUP($D$8,$Q$7:$X$593,4,FALSE)) -> MONMOUTH | Q10: =Q9+1 -> 4 | R10: 1001 | S10: Alexandria Township | T10: Hunterdon | U10: =S10&", "&T10&" County" -> Alexandria Township, Hunterdon County | V10: Alexandria Township | W10: Alexandria | X10: Township | Y10: Committeepersons | Z10: 3 Committee Members | AA10: 4809
C11: Name of Municipality / County | D11: =UPPER(VLOOKUP($D$8,$Q$7:$X$593,7,FALSE)) -> NEPTUNE | Q11: 5 | R11: 2101 | S11: Allamuchy Township | T11: Warren | U11: =S11&", "&T11&" County" -> Allamuchy Township, Warren County | V11: Allamuchy Township | W11: Allamuchy | X11: Township | Y11: Council Members | Z11: Mayor-4 Council Members | AA11: 5335
C12: Type | D12: =UPPER(VLOOKUP($D$8,$Q$7:$X$593,8,FALSE)) -> TOWNSHIP | Q12: 6 | R12: 0201 | S12: Allendale Borough | T12: Bergen | U12: Allendale Borough, Bergen County | V12: Allendale | W12: Allendale | X12: Borough | Y12: Council Members | Z12: Mayor-6 Council Members | AA12: 6848
C13: Federal ID # | D13: 21-6000916 | Q13: 7 | R13: 1301 | S13: Allenhurst Borough | T13: Monmouth | U13: Allenhurst Borough, Monmouth County | V13: Allenhurst | W13: Allenhurst | X13: Borough | Y13: Commissioners | Z13: 3 Commissioners | AA13: 472
C14: Governing Body Type | D14: =UPPER(VLOOKUP($D$8,$Q$7:$Z$593,9,FALSE)) -> COMMITTEEPERSONS | Q14: 8 | R14: 1302 | S14: Allentown Borough | T14: Monmouth | U14: Allentown Borough, Monmouth County | V14: Allentown | W14: Allentown | X14: Borough | Y14: Council Members | Z14: Mayor-6 Council Members | AA14: 1734
Q15: 9 | R15: 1701 | S15: Alloway Township | T15: Salem | U15: Alloway Township, Salem County | V15: Alloway Township | W15: Alloway | X15: Township | Y15: Committeepersons | Z15: 3 Committee Members | AA15: 3283
C16: Address | D16: 25 Neptune Boulevard | Q16: 10 | R16: 2102 | S16: Alpha Borough | T16: Warren | U16: Alpha Borough, Warren County | V16: Alpha | W16: Alpha | X16: Borough | Y16: Council Members | Z16: Mayor-6 Council Members | AA16: 2328
C17: Address | D17: Neptune, New Jersey 07753 | Q17: 11 | R17: 0202 | S17: Alpine Borough | T17: Bergen | U17: Alpine Borough, Bergen County | V17: Alpine | W17: Alpine | X17: Borough | Y17: Council Members | Z17: Mayor-6 Council Members | AA17: 1762
C18: Phone | D18: 732-888-5200 Ext. 241 | Q18: 12 | R18: 1901 | S18: Andover Borough | T18: Sussex | U18: Andover Borough, Sussex County | V18: Andover | W18: Andover | X18: Borough | Y18: Council Members | Z18: Mayor-6 Council Members | AA18: 595
C19: Fax | D19: 732-775-7600 | Q19: 13 | R19: 1902 | S19: Andover Township | T19: Sussex | U19: Andover Township, Sussex County | V19: Andover Township | W19: Andover | X19: Township | Y19: Committeepersons | Z19: 5 Committee Members | AA19: 5996
E20: Certificate # | Q20: 14 | R20: 1303 | S20: Asbury Park City | T20: Monmouth | U20: Asbury Park City, Monmouth County | V20: Asbury Park | W20: Asbury Park | X20: City | Y20: Council Members | Z20: 5 Council Members | AA20: 15188
C21: Chief Financial Officer | D21: Michael J. Bascom | E21: 174 | Q21: 15 | R21: 0102 | S21: Atlantic City City | T21: Atlantic | U21: Atlantic City City, Atlantic County | V21: Atlantic City | W21: Atlantic City | X21: City | Y21: Council Members | Z21: Mayor-9 Council Members | AA21: 38497
C22: Registered Municipal Accountant | D22: Charles J. Fallon | F22: Leave blank if CFO prepared | Q22: 16 | R22: 1304 | S22: Atlantic Highlands Borough | T22: Monmouth | U22: Atlantic Highlands Borough, Monmouth County | V22: Atlantic Highlands | W22: Atlantic Highlands | X22: Borough | Y22: Council Members | Z22: Mayor-6 Council Members | AA22: 4414
C23: Year Ending | D23: 2022-12-31 | Q23: 17 | R23: 0401 | S23: Audubon Borough | T23: Camden | U23: Audubon Borough, Camden County | V23: Audubon | W23: Audubon | X23: Borough | Y23: Commissioners | Z23: 3 Commissioners | AA23: 8707
Q24: 18 | R24: 0402 | S24: Audubon Park Borough | T24: Camden | U24: Audubon Park Borough, Camden County | V24: Audubon Park | W24: Audubon Park | X24: Borough | Y24: Council Members | Z24: Mayor-6 Council Members | AA24: 991
C25: DATES | D25: ="Balance - January 1, "&D34 -> Balance - January 1, 2022 | F25: ="Balance - July 1, "&D34&"" -> Balance - July 1, 2022 | Q25: 19 | R25: 0501 | S25: Avalon Borough | T25: Cape May | U25: Avalon Borough, Cape May County | V25: Avalon | W25: Avalon | X25: Borough | Y25: Council Members | Z25: Mayor-5 Council Members | AA25: 1243
D26: ="Balance - December 31, "&D34 -> Balance - December 31, 2022 | F26: ="Balance - June 30, "&D33&"" -> Balance - June 30, 2023 | Q26: 20 | R26: 1305 | S26: Avon-by-the-Sea Borough | T26: Monmouth | U26: Avon-by-the-Sea Borough, Monmouth County | V26: Avon-by-the-Sea | W26: Avon-by-the-Sea | X26: Borough | Y26: Commissioners | Z26: 3 Commissioners | AA26: 1933
D27: ="Outstanding - January 1, "&D34 -> Outstanding - January 1, 2022 | F27: ="Outstanding - July 1, "&D34&"" -> Outstanding - July 1, 2022 | Q27: 21 | R27: 1501 | S27: Barnegat Light Borough | T27: Ocean | U27: Barnegat Light Borough, Ocean County | V27: Barnegat Light | W27: Barnegat Light | X27: Borough | Y27: Council Members | Z27: Mayor-6 Council Members | AA27: 640
D28: ="Outstanding - December 31, "&D34 -> Outstanding - December 31, 2022 | F28: ="Outstanding - June 30, "&D33&"" -> Outstanding - June 30, 2023 | Q28: 22 | R28: 1533 | S28: Barnegat Township | T28: Ocean | U28: Barnegat Township, Ocean County | V28: Barnegat Township | W28: Barnegat | X28: Township | Y28: Committeepersons | Z28: 5 Committee Members | AA28: 24296
C29: Year End | D29: =DATE(D34,12,31) -> 2022-12-31 | F29: =DATE(D33,6,30) -> 2023-06-30 | Q29: 23 | R29: 0403 | S29: Barrington Borough | T29: Camden | U29: Barrington Borough, Camden County | V29: Barrington | W29: Barrington | X29: Borough | Y29: Council Members | Z29: Mayor-6 Council Members | AA29: 7075
C30: Next Year End | D30: =DATE(D33,12,31) -> 2023-12-31 | F30: =DATE(D33+1,6,30) -> 2024-06-30 | Q30: 24 | R30: 0301 | S30: Bass River Township | T30: Burlington | U30: Bass River Township, Burlington County | V30: Bass River Township | W30: Bass River | X30: Township | Y30: Commissioners | Z30: 3 Commissioners | AA30: 1355
Q31: 25 | R31: 1502 | S31: Bay Head Borough | T31: Ocean | U31: Bay Head Borough, Ocean County | V31: Bay Head | W31: Bay Head | X31: Borough | Y31: Council Members | Z31: Mayor-6 Council Members | AA31: 930
Q32: 26 | R32: 0901 | S32: Bayonne City | T32: Hudson | U32: Bayonne City, Hudson County | V32: Bayonne | W32: Bayonne | X32: City | Y32: Council Members | Z32: Mayor-5 Council Members | AA32: 71686
C33: Budget Year | D33: 2023 | Q33: 27 | R33: 1503 | S33: Beach Haven Borough | T33: Ocean | U33: Beach Haven Borough, Ocean County | V33: Beach Haven | W33: Beach Haven | X33: Borough | Y33: Council Members | Z33: 5 Council Members | AA33: 1027
C34: AFS Year | D34: =D33-1 -> 2022 | Q34: 28 | R34: 1504 | S34: Beachwood Borough | T34: Ocean | U34: Beachwood Borough, Ocean County | V34: Beachwood | W34: Beachwood | X34: Borough | Y34: Council Members | Z34: Mayor-6 Council Members | AA34: 10859
C35: PY | D35: =D34-1 -> 2021 | Q35: 29 | R35: 1801 | S35: Bedminster Township | T35: Somerset | U35: Bedminster Township, Somerset County | V35: Bedminster Township | W35: Bedminster | X35: Township | Y35: Committeepersons | Z35: 5 Committee Members | AA35: 8272
Q36: 30 | R36: 0701 | S36: Belleville Township | T36: Essex | U36: Belleville Township, Essex County | V36: Belleville Township | W36: Belleville | X36: Township | Y36: Council Members | Z36: 7 Council Members | AA36: 38222
C37: Population Last Census (2020) | D37: =VLOOKUP(D8,$Q$7:$AA$593,11,FALSE) -> 28061 | Q37: 31 | R37: 0404 | S37: Bellmawr Borough | T37: Camden | U37: Bellmawr Borough, Camden County | V37: Bellmawr | W37: Bellmawr | X37: Borough | Y37: Council Members | Z37: Mayor-6 Council Members | AA37: 11707
C38: ="Net Valuation Taxable "&D34 -> Net Valuation Taxable 2022 | D38: 5068182700 | Q38: 32 | R38: 1306 | S38: Belmar Borough | T38: Monmouth | U38: Belmar Borough, Monmouth County | V38: Belmar | W38: Belmar | X38: Borough | Y38: Council Members | Z38: Mayor-4 Council Members | AA38: 5907
C39: Muni Code | D39: =VLOOKUP($D$8,$Q$7:$R$593,2,FALSE) -> 1334 | Q39: 33 | R39: 2103 | S39: Belvidere Town | T39: Warren | U39: Belvidere Town, Warren County | V39: Belvidere | W39: Belvidere | X39: Town | Y39: Council Members | Z39: Mayor-6 Council Members | AA39: 2520
Q40: 34 | R40: 0203 | S40: Bergenfield Borough | T40: Bergen | U40: Bergenfield Borough, Bergen County | V40: Bergenfield | W40: Bergenfield | X40: Borough | Y40: Council Members | Z40: Mayor-6 Council Members | AA40: 28321
C41: SELECT FISCAL YEAR TYPE: | D41: CALENDAR YEAR MUNICIPALITIES | F41: STATE FISCAL YEAR MUNICIPALITIES | Q41: 35 | R41: 2001 | S41: Berkeley Heights Township | T41: Union | U41: Berkeley Heights Township, Union County | V41: Berkeley Heights Township | W41: Berkeley Heights | X41: Township | Y41: Council Members | Z41: Mayor-6 Council Members | AA41: 13285
C42: Calendar | D42: ="ANNUAL FINANCIAL STATEMENT FOR THE YEAR "&D34&"" -> ANNUAL FINANCIAL STATEMENT FOR THE YEAR 2022 | F42: ="ANNUAL FINANCIAL STATEMENT FOR THE YEAR "&D33&"" -> ANNUAL FINANCIAL STATEMENT FOR THE YEAR 2023 | Q42: 36 | R42: 1505 | S42: Berkeley Township | T42: Ocean | U42: Berkeley Township, Ocean County | V42: Berkeley Township | W42: Berkeley | X42: Township | Y42: Council Members | Z42: Mayor-7 Council Members | AA42: 43754
D43: ="COUNTIES - JANUARY 26, "&D33&"" -> COUNTIES - JANUARY 26, 2023 | Q43: 37 | R43: 0405 | S43: Berlin Borough | T43: Camden | U43: Berlin Borough, Camden County | V43: Berlin | W43: Berlin | X43: Borough | Y43: Council Members | Z43: Mayor-6 Council Members | AA43: 7489
D44: ="MUNICIPALITIES - FEBRUARY 10, "&D33 -> MUNICIPALITIES - FEBRUARY 10, 2023 | F44: ="MUNICIPALITIES - AUGUST 10, "&D33&"" -> MUNICIPALITIES - AUGUST 10, 2023 | Q44: 38 | R44: 0406 | S44: Berlin Township | T44: Camden | U44: Berlin Township, Camden County | V44: Berlin Township | W44: Berlin | X44: Township | Y44: Council Members | Z44: Mayor-4 Council Members | AA44: 5867
D45: ="AS AT DECEMBER 31, "&D34 -> AS AT DECEMBER 31, 2022 | F45: ="AS AT JUNE 30, "&D33&"" -> AS AT JUNE 30, 2023 | Q45: 39 | R45: 1802 | S45: Bernards Township | T45: Somerset | U45: Bernards Township, Somerset County | V45: Bernards Township | W45: Bernards | X45: Township | Y45: Committeepersons | Z45: 5 Committee Members | AA45: 27830
D46: ="Dec. 31, "&D35 -> Dec. 31, 2021 | F46: ="June 30, "&D34&"" -> June 30, 2022 | Q46: 40 | R46: 1803 | S46: Bernardsville Borough | T46: Somerset | U46: Bernardsville Borough, Somerset County | V46: Bernardsville | W46: Bernardsville | X46: Borough | Y46: Council Members | Z46: Mayor-6 Council Members | AA46: 7893
D47: ="Dec. 31, "&D34 -> Dec. 31, 2022 | F47: ="June 30, "&D33&"" -> June 30, 2023 | Q47: 41 | R47: 1002 | S47: Bethlehem Township | T47: Hunterdon | U47: Bethlehem Township, Hunterdon County | V47: Bethlehem Township | W47: Bethlehem | X47: Township | Y47: Committeepersons | Z47: 5 Committee Members | AA47: 3745
D48: ="Jan. 1, "&D34 -> Jan. 1, 2022 | F48: ="July 1, "&D34&"" -> July 1, 2022 | Q48: 42 | R48: 0302 | S48: Beverly City | T48: Burlington | U48: Beverly City, Burlington County | V48: Beverly | W48: Beverly | X48: City | Y48: Council Members | Z48: Mayor-9 Council Members | AA48: 2499
D49: ="YEAR - "&D35 -> YEAR - 2021 | F49: ="YEAR - "&D35 -> YEAR - 2021 | Q49: 43 | R49: 2104 | S49: Blairstown Township | T49: Warren | U49: Blairstown Township, Warren County | V49: Blairstown Township | W49: Blairstown | X49: Township | Y49: Committeepersons | Z49: 5 Committee Members | AA49: 5704
D50: ="YEAR - "&D34 -> YEAR - 2022 | F50: ="YEAR - "&D34 -> YEAR - 2022 | Q50: 44 | R50: 0702 | S50: Bloomfield Township | T50: Essex | U50: Bloomfield Township, Essex County | V50: Bloomfield Township | W50: Bloomfield | X50: Township | Y50: Council Members | Z50: Mayor-6 Council Members | AA50: 53105
Q51: 45 | R51: 1601 | S51: Bloomingdale Borough | T51: Passaic | U51: Bloomingdale Borough, Passaic County | V51: Bloomingdale | W51: Bloomingdale | X51: Borough | Y51: Council Members | Z51: Mayor-6 Council Members | AA51: 7777
D52: HOW MANY UTILITIES DOES THE ENTITY HAVE: | E52: 2 | F52: Select "0" if you do not have any utilities. | Q52: 46 | R52: 1003 | S52: Bloomsbury Borough | T52: Hunterdon | U52: Bloomsbury Borough, Hunterdon County | V52: Bloomsbury | W52: Bloomsbury | X52: Borough | Y52: Council Members | Z52: Mayor-6 Council Members | AA52: 792
D53: UTILITY NAME(S) | Q53: 47 | R53: 0204 | S53: Bogota Borough | T53: Bergen | U53: Bogota Borough, Bergen County | V53: Bogota | W53: Bogota | X53: Borough | Y53: Council Members | Z53: Mayor-6 Council Members | AA53: 8778
C54: UTILITY 1 | D54: Sewer | Q54: 48 | R54: 1401 | S54: Boonton Town | T54: Morris | U54: Boonton Town, Morris County | V54: Boonton | W54: Boonton | X54: Town | Y54: Alderpersons | Z54: Mayor-8 Alder Persons | AA54: 8815
C55: UTILITY 2 | D55: Marina | Q55: 49 | R55: 1402 | S55: Boonton Township | T55: Morris | U55: Boonton Township, Morris County | V55: Boonton Township | W55: Boonton | X55: Township | Y55: Committeepersons | Z55: 5 Committee Members | AA55: 4380
C56: UTILITY 3 | Q56: 50 | R56: 0303 | S56: Bordentown City | T56: Burlington | U56: Bordentown City, Burlington County | V56: Bordentown | W56: Bordentown | X56: City | Y56: Commissioners | Z56: 3 Commissioners | AA56: 3993
C57: UTILITY 4 | Q57: 51 | R57: 0304 | S57: Bordentown Township | T57: Burlington | U57: Bordentown Township, Burlington County | V57: Bordentown Township | W57: Bordentown | X57: Township | Y57: Committeepersons | Z57: 5 Committee Members | AA57: 11791
C58: UTILITY 5 | Q58: 52 | R58: 1804 | S58: Bound Brook Borough | T58: Somerset | U58: Bound Brook Borough, Somerset County | V58: Bound Brook | W58: Bound Brook | X58: Borough | Y58: Council Members | Z58: Mayor-6 Council Members | AA58: 11988
C59: UTILITY 6 | Q59: 53 | R59: 1307 | S59: Bradley Beach Borough | T59: Monmouth | U59: Bradley Beach Borough, Monmouth County | V59: Bradley Beach | W59: Bradley Beach | X59: Borough | Y59: Council Members | Z59: Mayor-4 Council Members | AA59: 4282
Q60: 54 | R60: 1805 | S60: Branchburg Township | T60: Somerset | U60: Branchburg Township, Somerset County | V60: Branchburg Township | W60: Branchburg | X60: Township | Y60: Committeepersons | Z60: 5 Committee Members | AA60: 14940
D61: PAGE COUNT - SELECT STANDARD OR EXPANDED: | F61: Start with "Standard" and move to "Expanded" only as needed: | Q61: 55 | R61: 1903 | S61: Branchville Borough | T61: Sussex | U61: Branchville Borough, Sussex County | V61: Branchville | W61: Branchville | X61: Borough | Y61: Council Members | Z61: Mayor-6 Council Members | AA61: 791
D62: SHEET 6 (Trust Fund Trial Balance) | E62: Standard | F62: "Standard" provides four (4) sheets for Trust Fund Trial Balance. | Q62: 56 | R62: 1506 | S62: Brick Township | T62: Ocean | U62: Brick Township, Ocean County | V62: Brick Township | W62: Brick | X62: Township | Y62: Council Members | Z62: Mayor-7 Council Members | AA62: 73620
D63: SHEET 6B (Schedule of Trust Fund Deposits and Reserves) | E63: Standard | F63: "Standard" provides two (2) sheets for Schedule of Trust Reserves. | Q63: 57 | R63: 0601 | S63: Bridgeton City | T63: Cumberland | U63: Bridgeton City, Cumberland County | V63: Bridgeton | W63: Bridgeton | X63: City | Y63: Council Members | Z63: Mayor-5 Council Members | AA63: 27263
D64: SHEET 9A (List of Banks Supporting 'Cash On Deposit') | E64: Standard | F64: "Standard" provides two (2) sheets for List of Banks. | Q64: 58 | R64: 1806 | S64: Bridgewater Township | T64: Somerset | U64: Bridgewater Township, Somerset County | V64: Bridgewater Township | W64: Bridgewater | X64: Township | Y64: Council Members | Z64: Mayor-5 Council Members | AA64: 45977
D65: SHEET 10 (Grants Receivable) | E65: Standard | F65: "Standard" provides three (3) sheets for Grants Receivable. | Q65: 59 | R65: 1308 | S65: Brielle Borough | T65: Monmouth | U65: Brielle Borough, Monmouth County | V65: Brielle | W65: Brielle | X65: Borough | Y65: Council Members | Z65: Mayor-6 Council Members | AA65: 4982
D66: SHEET 11 (Grants Appropriated) | E66: Standard | F66: "Standard" provides four (4) sheets Grants Appropriated. | Q66: 60 | R66: 0103 | S66: Brigantine City | T66: Atlantic | U66: Brigantine City, Atlantic County | V66: Brigantine | W66: Brigantine | X66: City | Y66: Council Members | Z66: 7 Council Members | AA66: 7716
D67: SHEET 12 (Grants Unappropriated) | E67: Standard | F67: "Standard" provides one (1) sheet, "12 Total-Grants Unappropriated". | G67: For sections where "Standard" only displays one (1) sheet, if you originally selected "Expanded" and want to revert to "Standard", data must be entered on the last page of the "Expanded" section, not the first page, as the last page contains the total amounts. | Q67: 61 | R67: 0407 | S67: Brooklawn Borough | T67: Camden | U67: Brooklawn Borough, Camden County | V67: Brooklawn | W67: Brooklawn | X67: Borough | Y67: Council Members | Z67: Mayor-6 Council Members | AA67: 1815
D68: SHEET 17A (Chapter 159) | E68: Standard | F68: "Standard" provides two (2) sheets for Chapter 159s. | Q68: 62 | R68: 0104 | S68: Buena Borough | T68: Atlantic | U68: Buena Borough, Atlantic County | V68: Buena | W68: Buena | X68: Borough | Y68: Council Members | Z68: Mayor-6 Council Members | AA68: 4501
D69: SHEET 20 (Miscellaneous Revenues Not Anticipated) | E69: Standard | F69: "Standard" provides one (1) sheet, "20 Total-Misc Rev Not Ant". | Q69: 63 | R69: 0105 | S69: Buena Vista Township | T69: Atlantic | U69: Buena Vista Township, Atlantic County | V69: Buena Vista Township | W69: Buena Vista | X69: Township | Y69: Committeepersons | Z69: 5 Committee Members | AA69: 7033
D70: SHEET 35 (Improvement Authorizations) | E70: Expanded | F70: "Standard" provides four (4) sheets for Improvement Authorizations. | Q70: 64 | R70: 0305 | S70: Burlington City | T70: Burlington | U70: Burlington City, Burlington County | V70: Burlington | W70: Burlington | X70: City | Y70: Council Members | Z70: Mayor-7 Council Members | AA70: 9743
D71: SHEET 37 (Capital Improvements Authorized) | E71: Standard | F71: "Standard" provides twenty (20) lines for listing improvements. | Q71: 65 | R71: 0306 | S71: Burlington Township | T71: Burlington | U71: Burlington Township, Burlington County | V71: Burlington Township | W71: Burlington | X71: Township | Y71: Council Members | Z71: Mayor-7 Council Members | AA71: 23983
Q72: 66 | R72: 1403 | S72: Butler Borough | T72: Morris | U72: Butler Borough, Morris County | V72: Butler | W72: Butler | X72: Borough | Y72: Council Members | Z72: Mayor-6 Council Members | AA72: 8047
Q73: 67 | R73: 1904 | S73: Byram Township | T73: Sussex | U73: Byram Township, Sussex County | V73: Byram Township | W73: Byram | X73: Township | Y73: Council Members | Z73: Mayor-4 Council Members | AA73: 8028
Q74: 68 | R74: 0703 | S74: Caldwell Borough | T74: Essex | U74: Caldwell Borough, Essex County | V74: Caldwell Borough | W74: Caldwell | X74: Borough | Y74: Council Members | Z74: Mayor-6 Council Members | AA74: 9027
Q75: =Q74+1 -> 69 | R75: 1004 | S75: Califon Borough | T75: Hunterdon | U75: Califon Borough, Hunterdon County | V75: Califon | W75: Califon | X75: Borough | Y75: Council Members | Z75: Mayor-6 Council Members | AA75: 1005
Q76: 70 | R76: 0408 | S76: Camden City | T76: Camden | U76: Camden City, Camden County | V76: Camden | W76: Camden | X76: City | Y76: Council Members | Z76: Mayor-7 Council Members | AA76: 71791
Q77: 71 | R77: 0502 | S77: Cape May City | T77: Cape May | U77: Cape May City, Cape May County | V77: Cape May | W77: Cape May | X77: City | Y77: Council Members | Z77: 5 Council Members | AA77: 2768
Q78: 72 | R78: 0503 | S78: Cape May Point Borough | T78: Cape May | U78: Cape May Point Borough, Cape May County | V78: Cape May Point | W78: Cape May Point | X78: Borough | Y78: Commissioners | Z78: 3 Commissioners | AA78: 305
Q79: 73 | R79: 0205 | S79: Carlstadt Borough | T79: Bergen | U79: Carlstadt Borough, Bergen County | V79: Carlstadt | W79: Carlstadt | X79: Borough | Y79: Council Members | Z79: Mayor-6 Council Members | AA79: 6372
Q80: 74 | R80: 1713 | S80: Carneys Point Township | T80: Salem | U80: Carneys Point Township, Salem County | V80: Carneys Point Township | W80: Carneys Point | X80: Township | Y80: Committeepersons | Z80: 5 Committee Members | AA80: 8637
Q81: 75 | R81: 1201 | S81: Carteret Borough | T81: Middlesex | U81: Carteret Borough, Middlesex County | V81: Carteret | W81: Carteret | X81: Borough | Y81: Council Members | Z81: Mayor-6 Council Members | AA81: 25326
Q82: 76 | R82: 0704 | S82: Cedar Grove Township | T82: Essex | U82: Cedar Grove Township, Essex County | V82: Cedar Grove Township | W82: Cedar Grove | X82: Township | Y82: Council Members | Z82: 5 Council Members | AA82: 12980
Q83: 77 | R83: 1404 | S83: Chatham Borough | T83: Morris | U83: Chatham Borough, Morris County | V83: Chatham | W83: Chatham | X83: Borough | Y83: Council Members | Z83: Mayor-6 Council Members | AA83: 9212
Q84: 78 | R84: 1405 | S84: Chatham Township | T84: Morris | U84: Chatham Township, Morris County | V84: Chatham Township | W84: Chatham | X84: Township | Y84: Committeepersons | Z84: 5 Committee Members | AA84: 10983
Q85: 79 | R85: 0409 | S85: Cherry Hill Township | T85: Camden | U85: Cherry Hill Township, Camden County | V85: Cherry Hill Township | W85: Cherry Hill | X85: Township | Y85: Council Members | Z85: Mayor-7 Council Members | AA85: 74553
Q86: 80 | R86: 0410 | S86: Chesilhurst Borough | T86: Camden | U86: Chesilhurst Borough, Camden County | V86: Chesilhurst | W86: Chesilhurst | X86: Borough | Y86: Council Members | Z86: Mayor-6 Council Members | AA86: 1536
Q87: 81 | R87: 1406 | S87: Chester Borough | T87: Morris | U87: Chester Borough, Morris County | V87: Chester | W87: Chester | X87: Borough | Y87: Council Members | Z87: Mayor-6 Council Members | AA87: 1681
Q88: 82 | R88: 1407 | S88: Chester Township | T88: Morris | U88: Chester Township, Morris County | V88: Chester Township | W88: Chester | X88: Township | Y88: Council Members | Z88: Mayor-4 Council Members | AA88: 7713
Q89: 83 | R89: 0307 | S89: Chesterfield Township | T89: Burlington | U89: Chesterfield Township, Burlington County | V89: Chesterfield Township | W89: Chesterfield | X89: Township | Y89: Committeepersons | Z89: 3 Committee Members | AA89: 9422
Q90: 84 | R90: 0308 | S90: Cinnaminson Township | T90: Burlington | U90: Cinnaminson Township, Burlington County | V90: Cinnaminson Township | W90: Cinnaminson | X90: Township | Y90: Committeepersons | Z90: 5 Committee Members | AA90: 17064
Q91: 85 | R91: 2002 | S91: Clark Township | T91: Union | U91: Clark Township, Union County | V91: Clark Township | W91: Clark | X91: Township | Y91: Council Members | Z91: Mayor-6 Council Members | AA91: 15544
Q92: 86 | R92: 0801 | S92: Clayton Borough | T92: Gloucester | U92: Clayton Borough, Gloucester County | V92: Clayton | W92: Clayton | X92: Borough | Y92: Council Members | Z92: Mayor-6 Council Members | AA92: 8807
Q93: 87 | R93: 0411 | S93: Clementon Borough | T93: Camden | U93: Clementon Borough, Camden County | V93: Clementon | W93: Clementon | X93: Borough | Y93: Council Members | Z93: Mayor-6 Council Members | AA93: 5338
Q94: 88 | R94: 0206 | S94: Cliffside Park Borough | T94: Bergen | U94: Cliffside Park Borough, Bergen County | V94: Cliffside Park | W94: Cliffside Park | X94: Borough | Y94: Council Members | Z94: Mayor-6 Council Members | AA94: 25693
Q95: 89 | R95: 1602 | S95: Clifton City | T95: Passaic | U95: Clifton City, Passaic County | V95: Clifton | W95: Clifton | X95: City | Y95: Council Members | Z95: 7 Council Members | AA95: 90296
Q96: 90 | R96: 1005 | S96: Clinton Town | T96: Hunterdon | U96: Clinton Town, Hunterdon County | V96: Clinton | W96: Clinton | X96: Town | Y96: Council Members | Z96: Mayor-6 Council Members | AA96: 2773
Q97: 91 | R97: 1006 | S97: Clinton Township | T97: Hunterdon | U97: Clinton Township, Hunterdon County | V97: Clinton Township | W97: Clinton | X97: Township | Y97: Council Members | Z97: Mayor-4 Council Members | AA97: 13505
Q98: 92 | R98: 0207 | S98: Closter Borough | T98: Bergen | U98: Closter Borough, Bergen County | V98: Closter | W98: Closter | X98: Borough | Y98: Council Members | Z98: Mayor-6 Council Members | AA98: 8594
Q99: 93 | R99: 0412 | S99: Collingswood Borough | T99: Camden | U99: Collingswood Borough, Camden County | V99: Collingswood | W99: Collingswood | X99: Borough | Y99: Commissioners | Z99: 3 Commissioners | AA99: 14186
Q100: 94 | R100: 1309 | S100: Colts Neck Township | T100: Monmouth | U100: Colts Neck Township, Monmouth County | V100: Colts Neck Township | W100: Colts Neck | X100: Township | Y100: Committeepersons | Z100: 5 Committee Members | AA100: 9957
Q101: 95 | R101: 0602 | S101: Commercial Township | T101: Cumberland | U101: Commercial Township, Cumberland County | V101: Commercial Township | W101: Commercial | X101: Township | Y101: Committeepersons | Z101: 3 Committee Members | AA101: 4669
Q102: 96 | R102: 0106 | S102: Corbin City | T102: Atlantic | U102: Corbin City, Atlantic County | V102: Corbin City | W102: Corbin City | X102: City | Y102: Council Members | Z102: Mayor-3 Council Members | AA102: 471
Q103: 97 | R103: 1202 | S103: Cranbury Township | T103: Middlesex | U103: Cranbury Township, Middlesex County | V103: Cranbury Township | W103: Cranbury | X103: Township | Y103: Committeepersons | Z103: 5 Committee Members | AA103: 3842
Q104: 98 | R104: 2003 | S104: Cranford Township | T104: Union | U104: Cranford Township, Union County | V104: Cranford Township | W104: Cranford | X104: Township | Y104: Committeepersons | Z104: 5 Committee Members | AA104: 23847
Q105: 99 | R105: 0208 | S105: Cresskill Borough | T105: Bergen | U105: Cresskill Borough, Bergen County | V105: Cresskill | W105: Cresskill | X105: Borough | Y105: Council Members | Z105: Mayor-6 Council Members | AA105: 9155
Q106: 100 | R106: 1310 | S106: Deal Borough | T106: Monmouth | U106: Deal Borough, Monmouth County | V106: Deal | W106: Deal | X106: Borough | Y106: Commissioners | Z106: 3 Commissioners | AA106: 900
Q107: 101 | R107: 0603 | S107: Deerfield Township | T107: Cumberland | U107: Deerfield Township, Cumberland County | V107: Deerfield Township | W107: Deerfield | X107: Township | Y107: Committeepersons | Z107: 5 Committee Members | AA107: 3136
Q108: 102 | R108: 0309 | S108: Delanco Township | T108: Burlington | U108: Delanco Township, Burlington County | V108: Delanco Township | W108: Delanco | X108: Township | Y108: Committeepersons | Z108: 5 Committee Members | AA108: 4824
Q109: 103 | R109: 1007 | S109: Delaware Township | T109: Hunterdon | U109: Delaware Township, Hunterdon County | V109: Delaware Township | W109: Delaware | X109: Township | Y109: Committeepersons | Z109: 5 Committee Members | AA109: 4560
Q110: 104 | R110: 0310 | S110: Delran Township | T110: Burlington | U110: Delran Township, Burlington County | V110: Delran Township | W110: Delran | X110: Township | Y110: Council Members | Z110: Mayor-5 Council Members | AA110: 17882
Q111: 105 | R111: 0209 | S111: Demarest Borough | T111: Bergen | U111: Demarest Borough, Bergen County | V111: Demarest | W111: Demarest | X111: Borough | Y111: Council Members | Z111: Mayor-6 Council Members | AA111: 4981
Q112: 106 | R112: 0504 | S112: Dennis Township | T112: Cape May | U112: Dennis Township, Cape May County | V112: Dennis Township | W112: Dennis | X112: Township | Y112: Committeepersons | Z112: 5 Committee Members | AA112: 6285
Q113: 107 | R113: 1408 | S113: Denville Township | T113: Morris | U113: Denville Township, Morris County | V113: Denville Township | W113: Denville | X113: Township | Y113: Council Members | Z113: Mayor-7 Council Members | AA113: 17107
Q114: 108 | R114: 0802 | S114: Deptford Township | T114: Gloucester | U114: Deptford Township, Gloucester County | V114: Deptford Township | W114: Deptford | X114: Township | Y114: Council Members | Z114: 7 Council Members | AA114: 31977
Q115: 109 | R115: 1409 | S115: Dover Town | T115: Morris | U115: Dover Town, Morris County | V115: Dover | W115: Dover | X115: Town | Y115: Alderpersons | Z115: Mayor-8 Alder Persons | AA115: 18460
Q116: 110 | R116: 0604 | S116: Downe Township | T116: Cumberland | U116: Downe Township, Cumberland County | V116: Downe Township | W116: Downe | X116: Township | Y116: Committeepersons | Z116: 3 Committee Members | AA116: 1399
Q117: 111 | R117: 0210 | S117: Dumont Borough | T117: Bergen | U117: Dumont Borough, Bergen County | V117: Dumont | W117: Dumont | X117: Borough | Y117: Council Members | Z117: Mayor-6 Council Members | AA117: 17863
Q118: 112 | R118: 1203 | S118: Dunellen Borough | T118: Middlesex | U118: Dunellen Borough, Middlesex County | V118: Dunellen | W118: Dunellen | X118: Borough | Y118: Council Members | Z118: Mayor-6 Council Members | AA118: 7637
Q119: 113 | R119: 1508 | S119: Eagleswood Township | T119: Ocean | U119: Eagleswood Township, Ocean County | V119: Eagleswood Township | W119: Eagleswood | X119: Township | Y119: Committeepersons | Z119: 3 Committee Members | AA119: 1722
Q120: 114 | R120: 1008 | S120: East Amwell Township | T120: Hunterdon | U120: East Amwell Township, Hunterdon County | V120: East Amwell Township | W120: East Amwell | X120: Township | Y120: Committeepersons | Z120: 5 Committee Members | AA120: 3917
Q121: 115 | R121: 1204 | S121: East Brunswick Township | T121: Middlesex | U121: East Brunswick Township, Middlesex County | V121: East Brunswick Township | W121: East Brunswick | X121: Township | Y121: Council Members | Z121: Mayor-5 Council Members | AA121: 49715
Q122: 116 | R122: 0803 | S122: East Greenwich Township | T122: Gloucester | U122: East Greenwich Township, Gloucester County | V122: East Greenwich Township | W122: East Greenwich | X122: Township | Y122: Committeepersons | Z122: 5 Committee Members | AA122: 11706
Q123: 117 | R123: 1410 | S123: East Hanover Township | T123: Morris | U123: East Hanover Township, Morris County | V123: East Hanover Township | W123: East Hanover | X123: Township | Y123: Council Members | Z123: Mayor-4 Council Members | AA123: 11105
Q124: 118 | R124: 0902 | S124: East Newark Borough | T124: Hudson | U124: East Newark Borough, Hudson County | V124: East Newark | W124: East Newark | X124: Borough | Y124: Council Members | Z124: Mayor-6 Council Members | AA124: 2594
Q125: 119 | R125: 0705 | S125: East Orange City | T125: Essex | U125: East Orange City, Essex County | V125: East Orange | W125: East Orange | X125: City | Y125: Council Members | Z125: Mayor-10 Council Members | AA125: 69612
Q126: 120 | R126: 0212 | S126: East Rutherford Borough | T126: Bergen | U126: East Rutherford Borough, Bergen County | V126: East Rutherford | W126: East Rutherford | X126: Borough | Y126: Council Members | Z126: Mayor-6 Council Members | AA126: 10022
Q127: 121 | R127: 1101 | S127: East Windsor Township | T127: Mercer | U127: East Windsor Township, Mercer County | V127: East Windsor Township | W127: East Windsor | X127: Township | Y127: Council Members | Z127: 7 Council Members | AA127: 30045
Q128: 122 | R128: 0311 | S128: Eastampton Township | T128: Burlington | U128: Eastampton Township, Burlington County | V128: Eastampton Township | W128: Eastampton | X128: Township | Y128: Council Members | Z128: 5 Council Members | AA128: 6191
Q129: 123 | R129: 1311 | S129: Eatontown Borough | T129: Monmouth | U129: Eatontown Borough, Monmouth County | V129: Eatontown | W129: Eatontown | X129: Borough | Y129: Council Members | Z129: Mayor-6 Council Members | AA129: 13597
Q130: 124 | R130: 0213 | S130: Edgewater Borough | T130: Bergen | U130: Edgewater Borough, Bergen County | V130: Edgewater | W130: Edgewater | X130: Borough | Y130: Council Members | Z130: Mayor-6 Council Members | AA130: 14336
Q131: 125 | R131: 0312 | S131: Edgewater Park Township | T131: Burlington | U131: Edgewater Park Township, Burlington County | V131: Edgewater Park Township | W131: Edgewater Park | X131: Township | Y131: Committeepersons | Z131: 5 Committee Members | AA131: 8930
Q132: 126 | R132: 1205 | S132: Edison Township | T132: Middlesex | U132: Edison Township, Middlesex County | V132: Edison Township | W132: Edison | X132: Township | Y132: Council Members | Z132: Mayor-7 Council Members | AA132: 107588
Q133: 127 | R133: 0107 | S133: Egg Harbor City | T133: Atlantic | U133: Egg Harbor City, Atlantic County | V133: Egg Harbor City | W133: Egg Harbor City | X133: City | Y133: Council Members | Z133: Mayor-9 Council Members | AA133: 4396
Q134: 128 | R134: 0108 | S134: Egg Harbor Township | T134: Atlantic | U134: Egg Harbor Township, Atlantic County | V134: Egg Harbor Township | W134: Egg Harbor | X134: Township | Y134: Committeepersons | Z134: 5 Committee Members | AA134: 47842
Q135: 129 | R135: 2004 | S135: Elizabeth City | T135: Union | U135: Elizabeth City, Union County | V135: Elizabeth | W135: Elizabeth | X135: City | Y135: Council Members | Z135: Mayor-9 Council Members | AA135: 137298
Q136: 130 | R136: 0804 | S136: Elk Township | T136: Gloucester | U136: Elk Township, Gloucester County | V136: Elk Township | W136: Elk | X136: Township | Y136: Committeepersons | Z136: 5 Committee Members | AA136: 4424
Q137: 131 | R137: 1702 | S137: Elmer Borough | T137: Salem | U137: Elmer Borough, Salem County | V137: Elmer | W137: Elmer | X137: Borough | Y137: Council Members | Z137: Mayor-6 Council Members | AA137: 1347
Q138: 132 | R138: 0211 | S138: Elmwood Park Borough | T138: Bergen | U138: Elmwood Park Borough, Bergen County | V138: Elmwood Park | W138: Elmwood Park | X138: Borough | Y138: Council Members | Z138: Mayor-6 Council Members | AA138: 21422
Q139: =Q138+1 -> 133 | R139: 1703 | S139: Elsinboro Township | T139: Salem | U139: Elsinboro Township, Salem County | V139: Elsinboro Township | W139: Elsinboro | X139: Township | Y139: Committeepersons | Z139: 3 Committee Members | AA139: 1001
Q140: 134 | R140: 0214 | S140: Emerson Borough | T140: Bergen | U140: Emerson Borough, Bergen County | V140: Emerson | W140: Emerson | X140: Borough | Y140: Council Members | Z140: Mayor-6 Council Members | AA140: 7290
Q141: 135 | R141: 0215 | S141: Englewood City | T141: Bergen | U141: Englewood City, Bergen County | V141: Englewood | W141: Englewood | X141: City | Y141: Council Members | Z141: Mayor-5 Council Members | AA141: 29308
Q142: 136 | R142: 0216 | S142: Englewood Cliffs Borough | T142: Bergen | U142: Englewood Cliffs Borough, Bergen County | V142: Englewood Cliffs | W142: Englewood Cliffs | X142: Borough | Y142: Council Members | Z142: Mayor-6 Council Members | AA142: 5342
Q143: 137 | R143: 1312 | S143: Englishtown Borough | T143: Monmouth | U143: Englishtown Borough, Monmouth County | V143: Englishtown | W143: Englishtown | X143: Borough | Y143: Council Members | Z143: Mayor-6 Council Members | AA143: 2346
Q144: 138 | R144: 0706 | S144: Essex Fells Township | T144: Essex | U144: Essex Fells Township, Essex County | V144: Essex Fells Township | W144: Essex Fells | X144: Township | Y144: Council Members | Z144: Mayor-6 Council Members | AA144: 2244
Q145: 139 | R145: 0109 | S145: Estell Manor City | T145: Atlantic | U145: Estell Manor City, Atlantic County | V145: Estell Manor | W145: Estell Manor | X145: City | Y145: Council Members | Z145: 5 Council Members | AA145: 1668
Q146: 140 | R146: 0313 | S146: Evesham Township | T146: Burlington | U146: Evesham Township, Burlington County | V146: Evesham Township | W146: Evesham | X146: Township | Y146: Council Members | Z146: Mayor-4 Council Members | AA146: 46826
Q147: 141 | R147: 1102 | S147: Ewing Township | T147: Mercer | U147: Ewing Township, Mercer County | V147: Ewing Township | W147: Ewing | X147: Township | Y147: Council Members | Z147: Mayor-5 Council Members | AA147: 37264
Q148: 142 | R148: 1313 | S148: Fair Haven Borough | T148: Monmouth | U148: Fair Haven Borough, Monmouth County | V148: Fair Haven | W148: Fair Haven | X148: Borough | Y148: Council Members | Z148: Mayor-6 Council Members | AA148: 6269
Q149: 143 | R149: 0217 | S149: Fair Lawn Borough | T149: Bergen | U149: Fair Lawn Borough, Bergen County | V149: Fair Lawn | W149: Fair Lawn | X149: Borough | Y149: Council Members | Z149: 5 Council Members | AA149: 34927
Q150: 144 | R150: 0605 | S150: Fairfield Township | T150: Cumberland | U150: Fairfield Township, Cumberland County | V150: Fairfield Township | W150: Fairfield | X150: Township | Y150: Committeepersons | Z150: 5 Committee Members | AA150: 5546
Q151: 145 | R151: 0707 | S151: Fairfield Township | T151: Essex | U151: Fairfield Township, Essex County | V151: Fairfield Township | W151: Fairfield | X151: Township | Y151: Council Members | Z151: Mayor-4 Council Members | AA151: 7872
Q152: 146 | R152: 0218 | S152: Fairview Borough | T152: Bergen | U152: Fairview Borough, Bergen County | V152: Fairview | W152: Fairview | X152: Borough | Y152: Council Members | Z152: Mayor-6 Council Members | AA152: 15025
Q153: 147 | R153: 2005 | S153: Fanwood Borough | T153: Union | U153: Fanwood Borough, Union County | V153: Fanwood | W153: Fanwood | X153: Borough | Y153: Council Members | Z153: Mayor-6 Council Members | AA153: 7774
Q154: 148 | R154: 1807 | S154: Far Hills Borough | T154: Somerset | U154: Far Hills Borough, Somerset County | V154: Far Hills | W154: Far Hills | X154: Borough | Y154: Council Members | Z154: Mayor-6 Council Members | AA154: 924
Q155: 149 | R155: 1314 | S155: Farmingdale Borough | T155: Monmouth | U155: Farmingdale Borough, Monmouth County | V155: Farmingdale | W155: Farmingdale | X155: Borough | Y155: Council Members | Z155: Mayor-6 Council Members | AA155: 1504
Q156: 150 | R156: 0314 | S156: Fieldsboro Borough | T156: Burlington | U156: Fieldsboro Borough, Burlington County | V156: Fieldsboro | W156: Fieldsboro | X156: Borough | Y156: Council Members | Z156: Mayor-6 Council Members | AA156: 526
Q157: 151 | R157: 1009 | S157: Flemington Borough | T157: Hunterdon | U157: Flemington Borough, Hunterdon County | V157: Flemington | W157: Flemington | X157: Borough | Y157: Council Members | Z157: Mayor-6 Council Members | AA157: 4876
Q158: 152 | R158: 0315 | S158: Florence Township | T158: Burlington | U158: Florence Township, Burlington County | V158: Florence Township | W158: Florence | X158: Township | Y158: Council Members | Z158: Mayor-5 Council Members | AA158: 12812
Q159: 153 | R159: 1411 | S159: Florham Park Borough | T159: Morris | U159: Florham Park Borough, Morris County | V159: Florham Park | W159: Florham Park | X159: Borough | Y159: Council Members | Z159: Mayor-6 Council Members | AA159: 12585
Q160: 154 | R160: 0110 | S160: Folsom Borough | T160: Atlantic | U160: Folsom Borough, Atlantic County | V160: Folsom | W160: Folsom | X160: Borough | Y160: Council Members | Z160: Mayor-6 Council Members | AA160: 1811
Q161: 155 | R161: 0219 | S161: Fort Lee Borough | T161: Bergen | U161: Fort Lee Borough, Bergen County | V161: Fort Lee | W161: Fort Lee | X161: Borough | Y161: Council Members | Z161: Mayor-6 Council Members | AA161: 40191
Q162: 156 | R162: 1905 | S162: Frankford Township | T162: Sussex | U162: Frankford Township, Sussex County | V162: Frankford Township | W162: Frankford | X162: Township | Y162: Committeepersons | Z162: 3 Committee Members | AA162: 5302
Q163: 157 | R163: 1906 | S163: Franklin Borough | T163: Sussex | U163: Franklin Borough, Sussex County | V163: Franklin | W163: Franklin | X163: Borough | Y163: Council Members | Z163: Mayor-6 Council Members | AA163: 4912
Q164: 158 | R164: 0220 | S164: Franklin Lakes Borough | T164: Bergen | U164: Franklin Lakes Borough, Bergen County | V164: Franklin Lakes | W164: Franklin Lakes | X164: Borough | Y164: Council Members | Z164: Mayor-6 Council Members | AA164: 11079
Q165: 159 | R165: 0805 | S165: Franklin Township | T165: Gloucester | U165: Franklin Township, Gloucester County | V165: Franklin Township | W165: Franklin | X165: Township | Y165: Committeepersons | Z165: 5 Committee Members | AA165: 16380
Q166: 160 | R166: 1010 | S166: Franklin Township | T166: Hunterdon | U166: Franklin Township, Hunterdon County | V166: Franklin Township | W166: Franklin | X166: Township | Y166: Committeepersons | Z166: 5 Committee Members | AA166: 3267
Q167: 161 | R167: 1808 | S167: Franklin Township | T167: Somerset | U167: Franklin Township, Somerset County | V167: Franklin Township | W167: Franklin | X167: Township | Y167: Council Members | Z167: Mayor-8 Council Members | AA167: 68364
Q168: 162 | R168: 2105 | S168: Franklin Township | T168: Warren | U168: Franklin Township, Warren County | V168: Franklin Township | W168: Franklin | X168: Township | Y168: Committeepersons | Z168: 5 Committee Members | AA168: 2968
Q169: 163 | R169: 1907 | S169: Fredon Township | T169: Sussex | U169: Fredon Township, Sussex County | V169: Fredon Township | W169: Fredon | X169: Township | Y169: Committeepersons | Z169: 5 Committee Members | AA169: 3235
Q170: 164 | R170: 1315 | S170: Freehold Borough | T170: Monmouth | U170: Freehold Borough, Monmouth County | V170: Freehold | W170: Freehold | X170: Borough | Y170: Council Members | Z170: Mayor-6 Council Members | AA170: 12538
Q171: 165 | R171: 1316 | S171: Freehold Township | T171: Monmouth | U171: Freehold Township, Monmouth County | V171: Freehold Township | W171: Freehold | X171: Township | Y171: Committeepersons | Z171: 5 Committee Members | AA171: 35369
Q172: 166 | R172: 2106 | S172: Frelinghuysen Township | T172: Warren | U172: Frelinghuysen Township, Warren County | V172: Frelinghuysen Township | W172: Frelinghuysen | X172: Township | Y172: Committeepersons | Z172: 3 Committee Members | AA172: 2199
Q173: 167 | R173: 1011 | S173: Frenchtown Borough | T173: Hunterdon | U173: Frenchtown Borough, Hunterdon County | V173: Frenchtown | W173: Frenchtown | X173: Borough | Y173: Council Members | Z173: Mayor-6 Council Members | AA173: 1370
Q174: 168 | R174: 0111 | S174: Galloway Township | T174: Atlantic | U174: Galloway Township, Atlantic County | V174: Galloway Township | W174: Galloway | X174: Township | Y174: Council Members | Z174: 7 Council Members | AA174: 37813
Q175: 169 | R175: 0221 | S175: Garfield City | T175: Bergen | U175: Garfield City, Bergen County | V175: Garfield | W175: Garfield | X175: City | Y175: Council Members | Z175: 5 Council Members | AA175: 32655
Q176: 170 | R176: 2006 | S176: Garwood Borough | T176: Union | U176: Garwood Borough, Union County | V176: Garwood | W176: Garwood | X176: Borough | Y176: Council Members | Z176: Mayor-6 Council Members | AA176: 4454
Q177: 171 | R177: 0413 | S177: Gibbsboro Borough | T177: Camden | U177: Gibbsboro Borough, Camden County | V177: Gibbsboro | W177: Gibbsboro | X177: Borough | Y177: Council Members | Z177: Mayor-6 Council Members | AA177: 2189
Q178: 172 | R178: 0806 | S178: Glassboro Borough | T178: Gloucester | U178: Glassboro Borough, Gloucester County | V178: Glassboro | W178: Glassboro | X178: Borough | Y178: Council Members | Z178: Mayor-6 Council Members | AA178: 23149
Q179: 173 | R179: 1012 | S179: Glen Gardner Borough | T179: Hunterdon | U179: Glen Gardner Borough, Hunterdon County | V179: Glen Gardner | W179: Glen Gardner | X179: Borough | Y179: Council Members | Z179: Mayor-6 Council Members | AA179: 1682
Q180: 174 | R180: 0708 | S180: Glen Ridge Borough | T180: Essex | U180: Glen Ridge Borough, Essex County | V180: Glen Ridge | W180: Glen Ridge | X180: Borough | Y180: Council Members | Z180: Mayor-6 Council Members | AA180: 7802
Q181: 175 | R181: 0222 | S181: Glen Rock Borough | T181: Bergen | U181: Glen Rock Borough, Bergen County | V181: Glen Rock | W181: Glen Rock | X181: Borough | Y181: Council Members | Z181: Mayor-6 Council Members | AA181: 12133
Q182: 176 | R182: 0414 | S182: Gloucester City City | T182: Camden | U182: Gloucester City City, Camden County | V182: Gloucester City | W182: Gloucester City | X182: City | Y182: Council Members | Z182: Mayor-6 Council Members | AA182: 11484
Q183: 177 | R183: 0415 | S183: Gloucester Township | T183: Camden | U183: Gloucester Township, Camden County | V183: Gloucester Township | W183: Gloucester | X183: Township | Y183: Council Members | Z183: Mayor-7 Council Members | AA183: 66034
Q184: 178 | R184: 1809 | S184: Green Brook Township | T184: Somerset | U184: Green Brook Township, Somerset County | V184: Green Brook Township | W184: Green Brook | X184: Township | Y184: Committeepersons | Z184: 5 Committee Members | AA184: 7281
Q185: 179 | R185: 1908 | S185: Green Township | T185: Sussex | U185: Green Township, Sussex County | V185: Green Township | W185: Green | X185: Township | Y185: Committeepersons | Z185: 5 Committee Members | AA185: 3627
Q186: 180 | R186: 0606 | S186: Greenwich Township | T186: Cumberland | U186: Greenwich Township, Cumberland County | V186: Greenwich Township | W186: Greenwich | X186: Township | Y186: Committeepersons | Z186: 3 Committee Members | AA186: 771
Q187: 181 | R187: 0807 | S187: Greenwich Township | T187: Gloucester | U187: Greenwich Township, Gloucester County | V187: Greenwich Township | W187: Greenwich | X187: Township | Y187: Council Members | Z187: Mayor-4 Council Members | AA187: 4917
Q188: 182 | R188: 2107 | S188: Greenwich Township | T188: Warren | U188: Greenwich Township, Warren County | V188: Greenwich Township | W188: Greenwich | X188: Township | Y188: Committeepersons | Z188: 5 Committee Members | AA188: 5473
Q189: 183 | R189: 0903 | S189: Guttenberg Town | T189: Hudson | U189: Guttenberg Town, Hudson County | V189: Guttenberg | W189: Guttenberg | X189: Town | Y189: Council Members | Z189: Mayor-5 Council Members | AA189: 12017
Q190: 184 | R190: 0223 | S190: Hackensack City | T190: Bergen | U190: Hackensack City, Bergen County | V190: Hackensack | W190: Hackensack | X190: City | Y190: Council Members | Z190: 5 Council Members | AA190: 46030
Q191: 185 | R191: 2108 | S191: Hackettstown Town | T191: Warren | U191: Hackettstown Town, Warren County | V191: Hackettstown | W191: Hackettstown | X191: Town | Y191: Council Members | Z191: Mayor-6 Council Members | AA191: 10248
Q192: 186 | R192: 0418 | S192: Haddon Heights Borough | T192: Camden | U192: Haddon Heights Borough, Camden County | V192: Haddon Heights | W192: Haddon Heights | X192: Borough | Y192: Council Members | Z192: Mayor-6 Council Members | AA192: 7495
Q193: 187 | R193: 0416 | S193: Haddon Township | T193: Camden | U193: Haddon Township, Camden County | V193: Haddon Township | W193: Haddon | X193: Township | Y193: Commissioners | Z193: 3 Commissioners | AA193: 15407
Q194: 188 | R194: 0417 | S194: Haddonfield Borough | T194: Camden | U194: Haddonfield Borough, Camden County | V194: Haddonfield | W194: Haddonfield | X194: Borough | Y194: Commissioners | Z194: 3 Commissioners | AA194: 12550
Q195: 189 | R195: 0316 | S195: Hainesport Township | T195: Burlington | U195: Hainesport Township, Burlington County | V195: Hainesport Township | W195: Hainesport | X195: Township | Y195: Committeepersons | Z195: 5 Committee Members | AA195: 6035
Q196: 190 | R196: 1603 | S196: Haledon Borough | T196: Passaic | U196: Haledon Borough, Passaic County | V196: Haledon | W196: Haledon | X196: Borough | Y196: Council Members | Z196: Mayor-6 Council Members | AA196: 9052
Q197: 191 | R197: 1909 | S197: Hamburg Borough | T197: Sussex | U197: Hamburg Borough, Sussex County | V197: Hamburg | W197: Hamburg | X197: Borough | Y197: Council Members | Z197: Mayor-6 Council Members | AA197: 3266
Q198: 192 | R198: 0112 | S198: Hamilton Township | T198: Atlantic | U198: Hamilton Township, Atlantic County | V198: Hamilton Township | W198: Hamilton | X198: Township | Y198: Committeepersons | Z198: 5 Committee Members | AA198: 27484
Q199: 193 | R199: 1103 | S199: Hamilton Township | T199: Mercer | U199: Hamilton Township, Mercer County | V199: Hamilton Township | W199: Hamilton | X199: Township | Y199: Council Members | Z199: Mayor-5 Council Members | AA199: 92297
Q200: 194 | R200: 0113 | S200: Hammonton Township | T200: Atlantic | U200: Hammonton Township, Atlantic County | V200: Hammonton Township | W200: Hammonton | X200: Township | Y200: Council Members | Z200: Mayor-6 Council Members | AA200: 14711
Q201: 195 | R201: 1013 | S201: Hampton Borough | T201: Hunterdon | U201: Hampton Borough, Hunterdon County | V201: Hampton | W201: Hampton | X201: Borough | Y201: Council Members | Z201: Mayor-6 Council Members | AA201: 1438
... 392 more rows

Sheet KEY METRICS (hidden)
B1: Municipality | C1: County | D1: Municode
B2: ='KEY INPUTS'!D9 -> TOWNSHIP OF NEPTUNE | C2: ='KEY INPUTS'!D10 -> MONMOUTH | D2: ='KEY INPUTS'!D39 -> 1334
A4: Balance Sheet
B5: Current Fund - Beginning Fund Balance | C5: ='21-Current Fund Surplus'!L7 -> 8999316.69
B7: Current Fund - Ending Fund Balance | C7: ='21-Current Fund Surplus'!K14 -> 11026299.14
B9: Current Fund - Result of Operation | C9: ='19-Results of Op-Cur Fnd'!H45 -> 23298987.16
B11: Current Fund - Cash | C11: ='21-Current Fund Surplus'!L23 -> 13353384.74
B13: Current Fund - Cash Surplus | C13: ='21-Current Fund Surplus'!L28 -> 11021138.18
B15: Current Fund - Investments | C15: ='21-Current Fund Surplus'!L24 -> 9510547.56
B17: Current Fund - Cash Liabilities | C17: ='21-Current Fund Surplus'!L27 -> 11842794.12
B19: Foreclosure Sales Starting Balance | C19: ='27-Foreclosed Property'!K6 -> 5242800
B21: Foreclosure Sales Ending Balance | C21: ='27-Foreclosed Property'!L20 -> 5242800
A23: Revenues
B24: Total General Budget Revenues | C24: ='17-Budget Revenues'!I22 -> 51887872.38
B26: Surplus Anticipated | C26: ='17-Budget Revenues'!I6 -> 3335961.15
B28: Surplus Anticipated with Consent of Dir. of Local Gov't Services | C28: ='17-Budget Revenues'!I8 -> 0
B30: Total Amount to be Raised by Taxation | C30: ='17-Budget Revenues'!I21 -> 36067911.37
B32: Total Miscellaneous Revenue Anticipated | C32: ='17-Budget Revenues'!I14 -> 11600339.72
B34: Receipts from Delinquent Taxes | C34: ='17-Budget Revenues'!I15 -> 883660.14
B36: Levy Tax Collection Rate | C36: =IFERROR('22-CY Levy'!H38,"-") -> 0.9905
B38: Delinquent Taxes | C38: ='26-Delinquent Taxes and Liens'!M28 -> 863736.36
A40: Appropriations
B41: Total Expenditures - General Budget Appropriation | C41: ='18-Budget Appropriations'!J17 -> 49644817.99
B43: Utility Operating Surplus Appropriated in Budget | C43: ='46-Utility1'!K23+'46-Utility1'!K24+'46-Utility2'!K23+'46-Utility2'!K24+'46-Utility3'!K23+'46-Utility3'!K24+'46-Utility4'!K23+'46-Utility4'!K24+'46-Utility5'!K23+'46-Utility5'!K24+'46-Utility6'!K23+'46-Utility6'!K24 -> 894000
B45: Deferred Charges | C45: ='28-Deferred Charges'!N25 -> 0
A47: Outstanding Debt
B48: Outstanding General Bonded Debt | C48: ='31-Capital Bond Schedule'!G12+'31-Capital Bond Schedule'!G23+'32-Bond Schedule'!G11+'32-Bond Schedule'!G22 -> 24990000
B50: Outstanding General Loan Debt | C50: ='31A-Loan Schedule'!G12+'31A-Loan Schedule'!G23+'31A.1-Loan Schedule'!G12+'31A.1-Loan Schedule'!G23+'31A.2-Loan Schedule'!G12+'31A.2-Loan Schedule'!G23 -> 371100.56
B52: Outstanding General Note Debt | C52: ='33 Totals-Note Debt Service'!G23+'34-Assmt Note Debt Service'!G23 -> 866466
B54: Outstanding Capital Lease Obligations | C54: ='34a-Cap Lease Program Oblg'!G23 -> 2884080.9
B56: Type 1 School District Bonded Debt | C56: ='32-Bond Schedule'!G11+'32-Bond Schedule'!G22 -> 0

Sheet 1- Cover
B2: ="ANNUAL FINANCIAL STATEMENT FOR THE YEAR "&TEXT(IF('KEY INPUTS'!C42 = "State Fiscal Year", 'KEY INPUTS'!D33,'KEY INPUTS'!D34),"0") -> ANNUAL FINANCIAL STATEMENT FOR THE YEAR 2022
B3: (UNAUDITED)
J5: POPULATION LAST CENSUS | K5: ='KEY INPUTS'!D37 -> 28061
J6: =UPPER('KEY INPUTS'!C38) -> NET VALUATION TAXABLE 2022 | K6: ='KEY INPUTS'!D38 -> 5068182700
J7: MUNICODE | K7: ='KEY INPUTS'!D39 -> 1334
B8: FIVE DOLLARS PER DAY PENALTY IF NOT FILED BY:
B9: =IF('KEY INPUTS'!C42 = "State Fiscal Year","",'KEY INPUTS'!D43) -> COUNTIES - JANUARY 26, 2023
B10: =IF('KEY INPUTS'!C42 = "State Fiscal Year", 'KEY INPUTS'!F44,'KEY INPUTS'!D44) -> MUNICIPALITIES - FEBRUARY 10, 2023
B12: ANNUAL FINANCIAL STATEMENT REQUIRED TO BE FILED UNDER NEW JERSEY STATUTES
B13: ANNOTATED 40A:5-12, AS AMENDED, COMBINED WITH INFORMATION REQUIRED PRIOR TO
B14: CERTIFICATION OF BUDGETS BY THE DIRECTOR OF THE DIVISION OF LOCAL GOVERNMENT
B15: SERVICES.
B17: =+'KEY INPUTS'!D12 -> TOWNSHIP | G17: of | H17: =+'KEY INPUTS'!D11 -> NEPTUNE | L17: , County of | M17: =+'KEY INPUTS'!D10 -> MONMOUTH
B20: DO NOT USE THESE SPACES
F22: Date | G22: Examined By:
E23: 1 | K23: Preliminary Check
E24: 2 | K24: Examined
B26: I hereby certify that the debt shown on Sheets 31 to 34, 49 to 51 and 63 to 65a are
B27: complete, were computed by me and can be supported upon demand by a register or
B28: other detailed analysis.
K29: Signature | L29: chuckfallon@falloncpa.com
K30: Title | L30: Auditor
B32: (This MUST be signed by Chief Financial Officer, Comptroller, Auditor or Registered Municipal Accountant.)
B35: REQUIRED CERTIFICATION BY THE CHIEF FINANCIAL OFFICER:
B38: ="I hereby certify that I am responsible for filing this verified Annual Financial Statement," -> I hereby certify that I am responsible for filing this verified Annual Financial Statement, | L38: =Y43 -> (which I have prepared) | N38: or
B39: =Y44 -> (which I have not prepared) | F39: =Y45 -> [eliminate one] | H39: =" and information required also included herein and that this Statement is an" -> and information required also included herein and that this Statement is an | R39: Need to be able to choose if completed or not.User needs to strike out "Which I have prepared " or "Which I have not prepared" Default to "NOT"
B40: exact copy of the original on file with the clerk of the governing body, that all calculations, extensions and additions
B41: are correct, that no transfers have been made to or from emergency appropriations and all statements contained herein | Q41: As the CFO, did you prepare this annual financial statement? Type Y/N in the grey box below.
B42: are in proof; I further certify that this statement is correct insofar as I can determine from all the books and records | Q42: n
B43: kept and maintained in the Local Unit. | Y43: (which I have prepared)
Y44: (which I have not prepared)
B45: Further, I do hereby certify that I, | G45: =IF('KEY INPUTS'!D21=0,"NO ENTRY",'KEY INPUTS'!D21) -> Michael J. Bascom | M45: , am the Chief Financial | Y45: [eliminate one]
B46: Officer, License # | E46: =IF('KEY INPUTS'!E21=0,"NO ENTRY",'KEY INPUTS'!E21) -> 174 | G46: , of the | H46: =+'KEY INPUTS'!D12 -> TOWNSHIP | N46: of
B47: =+'KEY INPUTS'!D11 -> NEPTUNE | G47: , County of | I47: =+'KEY INPUTS'!D10 -> MONMOUTH | N47: and that the
B48: statements annexed hereto and made a part hereof are true statements of the financial condition of the Local Unit as at
B49: =IF('KEY INPUTS'!C42="State Fiscal Year",'KEY INPUTS'!F47,"December 31, "&'KEY INPUTS'!D34&"")&", completely in compliance with N.J.S.A. 40A:5-12, as amended. I also give complete assurance as" -> December 31, 2022, completely in compliance with N.J.S.A. 40A:5-12, as amended. I also give complete assurance as
B50: to the veracity of required information included herein, needed prior to certification by the Director of Local Government
B51: ="Services, including the verification of cash balances as of "&IF('KEY INPUTS'!C42="State Fiscal Year",""&'KEY INPUTS'!F47&".","December 31, "&'KEY INPUTS'!D34&"")&"." -> Services, including the verification of cash balances as of December 31, 2022.
D53: Signature | F53: mbascom@neptunetownship.org
D54: Title | F54: Chief Financial Officer
D55: Address | F55: =IF('KEY INPUTS'!D16=0,"NO ENTRY",'KEY INPUTS'!D16) -> 25 Neptune Boulevard
D56: Phone Number | H56: =IF('KEY INPUTS'!D18=0,"NO ENTRY",'KEY INPUTS'!D18) -> 732-888-5200 Ext. 241
D57: Fax Number | H57: =IF('KEY INPUTS'!D19=0,"NO ENTRY",'KEY INPUTS'!D19) -> 732-775-7600
D59: IT IS HEREBY INCUMBENT UPON THE CHIEF FINANCIAL OFFICER, WHEN NOT PREPARED
D60: BY SAID, AT A MINIMUM MUST REVIEW THE CONTENTS OF THIS ANNUAL FINANCIAL
D61: STATEMENT WITH THE PREPARER, SO AS TO BE FAMILIAR WITH THE REPRESENTATIONS
D62: AND ASSERTIONS MADE HEREIN.
B63: Sheet 1

Sheet 1a - RMA Certification
B3: THE REQUIRED CERTIFICATION BY AN RMA IS AS FOLLOWS:
B5: Preparation by Registered Municipal Account (Statement of Statutory Auditor Only)
B8: I have prepared the post-closing trial balances, related statement and analyses included in the
B9: accompanying Annual Financial Statement from the books of account and records made
B10: available to me by the | F10: =+'KEY INPUTS'!D12 -> TOWNSHIP | H10: of | I10: =+'KEY INPUTS'!D11 -> NEPTUNE
B11: ="as of "&IF('KEY INPUTS'!C42 = "State Fiscal Year",'KEY INPUTS'!F47,"as of December 31, "&'KEY INPUTS'!D34&"")&" and have applied certain agreed-upon procedures thereon as" -> as of as of December 31, 2022 and have applied certain agreed-upon procedures thereon as
B12: promulgated by the Division of Local Government Services, solely to assist the Chief Financial
B13: Officer in connection with the filing of the Annual Financial Statement for the year then
B14: ended as required by N.J.S.A. 40A:5-12, as amended.
B17: Because the agreed-upon procedures do not constitute an examination of accounts made in
B18: accordance with generally accepted auditing standards, I do not express an opinion on any of
B19: the post-closing trial balances, related statements and analyses. In connection with the
B20: agreed-upon procedures, | G20: (except for circumstances as set forth below, no matters) | M20: or | Q20: Need to be able to choose if completed or not.User needs to strike out ""except for circumstances as set forth below, no matters" " or " No matters" Default to "no matters"
B21: (no matters) | E21: [eliminate one] | G21: came to my attention that caused me to believe that the Annual | P21: As the RMA, did you list any circumstances below that caused you to believe that this Annual Financial
B22: ="Financial Statement for the year ended "&IF('KEY INPUTS'!C42 = "State Fiscal Year", 'KEY INPUTS'!F47, "December 31, "&'KEY INPUTS'!D34&"")&" is not in substantial compliance with the" -> Financial Statement for the year ended December 31, 2022 is not in substantial compliance with the | P22: Statement is not in substantial compliance? Type Y/N in the grey box below. | Y22: (except for circumstances as set forth below, no matters)
B23: requirements of the State of New Jersey, Department of Community Affairs, Division of Local | P23: n | Y23: (no matters)
B24: Government Services. Had I performed additional procedures or had I made an examination | Y24: [eliminate one]
B25: of the financial statements in accordance with generally accepted auditing standards, other
B26: matters might have come to my attention that would have been reported to the governing
B27: body and Division. This Annual Financial Statement relates only to the accounts and
B28: items prescribed by the Division and does not extend to the financial statements of the
B29: municipality/county taken as a whole.
B31: Listing of agreed-upon procedures not performed and/or matters coming to my attention of
B32: which the Director should be informed:
I50: =IF('KEY INPUTS'!D22=0,"NO ENTRY",'KEY INPUTS'!D22) -> Charles J. Fallon
I51: (Registered Municipal Accountant)
I53: Fallon & Company
I54: (Firm Name)
I56: 1340 Route 36, Suite 102
I57: (Address)
B59: Certified by me | I59: Hazlet, NJ 07730
I60: (Address)
B61: this | C61: 23 | D61: day of | E61: February | H61: =", "&TEXT('KEY INPUTS'!D33,"0") -> , 2023
J62: 732-888-2070
I63: (Phone Number)
J65: 732-888-6245
I66: (Fax Number)
A70: Sheet 1a

Sheet 1b - Local Exam Qual Cert
C4: MUNICIPAL BUDGET LOCAL EXAMINATION QUALIFICATION CERTIFICATION
C5: BY
C6: CHIEF FINANCIAL OFFICER
D9: One of the following Certifications must be signed by the Chief Financial Officer if
D10: your municipality is eligible for local examination.
D13: CERTIFICATION OF QUALIFYING MUNICIPALITY
D15: 1. | F15: The outstanding indebtedness of the previous fiscal year is not in excess of 3.5%;
D17: 2. | F17: All emergencies approved for the previous fiscal year did not exceed 3% of total
F18: appropriations;
D20: 3. | F20: The tax collection rate exceeded 90%;
D22: 4. | F22: Total deferred charges did not equal or exceed 4% of the total tax levy;
D24: 5. | F24: There were no "procedural deficiencies" noted by the registered municipal
F25: accountant on Sheet 1a of the Annual Financial Statement; and
D27: 6. | F27: There was no operating deficit for the previous fiscal year.
D29: 7. | F29: The municipality did not conduct an accelerated tax sale for less than 3 consecutive
F30: years.
D32: 8. | F32: The municipality did not conduct a tax levy sale the previous fiscal year and does
F33: not plan to conduct one in the current year.
D35: 9. | F35: The current year budget does not contain a Levy or Appropriation "CAP" waiver.
D37: 10. | F37: ="The municipality has not applied for Transitional Aid for "&IF('KEY INPUTS'!C42="State Fiscal Year","Fiscal Year "&TEXT('KEY INPUTS'!D33+1,"0")&"",'KEY INPUTS'!D33)&"." -> The municipality has not applied for Transitional Aid for 2023.
D39: 11. | F39: The municipality did not adopt a Special Emergency ordinance for COVID-related
F40: expenses or loss of revenue (N.J.S.A. 40A:4-53 (l) and (m)).
D42: The undersigned certifies that this municipality has complied in full in meeting ALL of the
D43: above criteria in determining its qualification for local examination of its Budget in accordance
D44: with N.J.A.C. 5:30-7.5.
D46: Municipality: | H46: ='KEY INPUTS'!D9 -> TOWNSHIP OF NEPTUNE
D47: Chief Financial Officer: | H47: Michael J. Bascom
D48: Signature: | H48: mbascom@neptunetownship.org
D49: Certificate #: | H49: 174
D50: Date: | H50: 2023-02-23
D54: CERTIFICATION OF NON-QUALIFYING MUNICIPALITY
D56: The undersigned certifies that this municipality does not meet item(s)
D57: Group 2 Ineligible | G57: of the criteria above and therefore does not qualify for local
D58: examination of its Budget in accordance with N.J.A.C. 5:30-7.5.
D61: Municipality: | H61: =+'KEY INPUTS'!D9 -> TOWNSHIP OF NEPTUNE
D62: Chief Financial Officer: | H62: Michael J. Bascom
D63: Signature:
D64: Certificate #: | H64: 174
D65: Date:
C67: Sheet 1b

Sheet 1c - Fed & State Finan Asst.
B4: =IF('KEY INPUTS'!D13=0,"NO ENTRY",'KEY INPUTS'!D13) -> 21-6000916
B5: Fed I.D. #
B8: =+'KEY INPUTS'!D9 -> TOWNSHIP OF NEPTUNE
B9: Municipality
B12: =+'KEY INPUTS'!D10 -> MONMOUTH
B13: County
B16: Report of Federal and State Financial Assistance
B17: Expenditures of Awards
G20: Fiscal Year Ending: | I20: =IF('KEY INPUTS'!C42 = "State Fiscal Year", 'KEY INPUTS'!F47, 'KEY INPUTS'!D29) -> 2022-12-31
E23: (1) | G23: (2) | K23: (3)
E24: Federal programs
E25: Expended | G25: State | K25: Other Federal
E26: (administered by | G26: Programs | K26: Programs
E27: the state) | G27: Expended | K27: Expended
B29: TOTAL | D29: $ | E29: 156109.26 | F29: $ | G29: 1751401.79 | J29: $ | K29: 521567.19 | P29: =+#REF!-G29 -> 
G32: Type of Audit required by Title 2 U.S. Code of Federal Regulations
G33: (CFR) (Uniform Requirements) and OMB 15-08.
G34: x | H34: Single Audit
H35: Program Specific Audit
G36: x | H36: Financial Statement Audit Performed in Accordance
H37: With Government Auditing Standards (Yellow Book)
B40: Note: | D40: All local governments, who are recipients of federal and state awards (financial assistance), must
D41: report the total amount of federal and state funds expended during its fiscal year and the type of audit
D42: required to comply with Title 2 U.S. Code of Federal Regulations (CFR) OMB 15-08. (Uniform
D43: Guidance) and OMB 15-08. The single audit threshold has been been increased to $750,000
D44: beginning with Fiscal Year ending after 1/1/15. Expenditures are defined in Title 2 U.S. Code of
D45: Federal Regulations (CFR) (Uniform Guidance).
B47: (1) | D47: Report expenditures from federal pass-through programs received directly from state government.
D48: Federal pass-through funds can be identified by the Catalog of Federal Domestic Assistance
D49: (CFDA) number reported in the State's grant/contract agreements.
B51: (2) | D51: Report expenditures from state programs received directly from state government or indirectly from
D52: pass-through entities. Exclude state aid (I.e., CMPTRA, Energy Receipts tax, etc.) since there
D53: are no compliance requirements.
B55: (3) | D55: Report expenditures from federal programs received directly from the federal government or indirectly
D56: from entities other than state government.
C60: mbascom@neptunetownship.org | K60: 2023-02-23
C61: Signature of Chief Financial Officer | K61: Date
B71: Sheet 1c

Sheet 2 - No Utility Fund Cert
B2: IMPORTANT !
B4: READ INSTRUCTIONS
B7: INSTRUCTIONS
C9: The following certification is to be used ONLY in the event there is NO municipality
B10: operated utility.
C13: If there is a utility operated by the municipality of if a "utility fund" existed on the books of
B14: account, do not sign this statement and do not remove any of the UTILITY sheets from the
B15: document.
B17: CERTIFICATION
C19: I hereby certify that there was no "utility fund" on the books of account and there was no
B20: utility owned and operated by the | F20: =+'KEY INPUTS'!D12 -> TOWNSHIP | I20: of | J20: =+'KEY INPUTS'!D11 -> NEPTUNE | M20: ,
B21: County of | D21: =+'KEY INPUTS'!D10 -> MONMOUTH | F21: ="during the "&IF('KEY INPUTS'!C42 = "State Fiscal Year", "Fiscal Year "&'KEY INPUTS'!D33&"","year "&'KEY INPUTS'!D34&"")&" and that sheets 40 to 68 are unnecessary." -> during the year 2022 and that sheets 40 to 68 are unnecessary.
C23: I have therefore removed from this statement the sheets pertaining only to utilities.
H25: Name
H26: Title
C28: (This must be signed by the Chief Financial Officer, Comptroller, Auditor or Registered
B29: Municipal Accountant.)
B43: ="MUNICIPAL CERTIFICATION OF TAXABLE PROPERTY AS OF OCTOBER 1, "&TEXT('KEY INPUTS'!D34,"0") -> MUNICIPAL CERTIFICATION OF TAXABLE PROPERTY AS OF OCTOBER 1, 2022
D45: Certification is hereby made that the Net Valuation Taxable of property liable to taxation for
C46: ="the tax year "&TEXT('KEY INPUTS'!D33,"0")&" and filed with the County Board of Taxation on January 10, "&TEXT('KEY INPUTS'!D33,"0")&" in accordance" -> the tax year 2023 and filed with the County Board of Taxation on January 10, 2023 in accordance
C47: with the requirement of N.J.S.A. 54:4-35, was in the amount of $ | J47: 5704937100
I50: bhaney@neptunetownship.org
I51: SIGNATURE OF TAX ASSESSOR
I53: =+'KEY INPUTS'!D9 -> TOWNSHIP OF NEPTUNE
I54: MUNICIPALITY
I56: =+'KEY INPUTS'!D10 -> MONMOUTH
I57: COUNTY
B59: Sheet 2

Sheet 3-Trial Bal-Current Fund
B2: NOTE THAT A TRIAL BALANCE IS REQUIRED AND NOT A BALANCE SHEET
B4: POST CLOSING
B5: TRIAL BALANCE - CURRENT FUND
B6: =IF('KEY INPUTS'!C42 = "State Fiscal Year", 'KEY INPUTS'!F45,'KEY INPUTS'!D45) -> AS AT DECEMBER 31, 2022
B8: Cash Liabilities Must Be Subtotaled and Subtotal Must Be Marked With "C" -- Taxes Receivable Must Be Subtotaled
B9: Title of Account | G9: Debit | H9: Credit
C11: CASH | G11: =+'9-Cash Reconciliation'!I6 -> 13353384.74
C12: INVESTMENTS | G12: 9510547.56
C13: DUE FROM/TO STATE - VETERANS AND SENIOR CITIZENS | G13: ='23-SCVet Deductions'!J21 -> 5160.96 | H13: ='23-SCVet Deductions'!I22 -> 0
B16: Receivables with Full Reserves:
C17: TAXES RECEIVABLE:
C18: PRIOR | F18: =+'26-Delinquent Taxes and Liens'!I29-'3-Trial Bal-Current Fund'!F19 -> 54097.75
C19: CURRENT | F19: =+'22-CY Levy'!N35 -> 748042.66
D20: SUBTOTAL | G20: =+F19+F18 -> 802140.41
C21: TAX TITLE LIENS RECEIVABLE | G21: =+'26-Delinquent Taxes and Liens'!I30 -> 61595.95
C22: PROPERTY ACQUIRED FOR TAXES | G22: =+'27-Foreclosed Property'!L20 -> 5242800
C23: CONTRACT SALES RECEIVABLE | G23: ='27-Foreclosed Property'!L30 -> 0
C24: MORTGAGE SALES RECEIVABLE | G24: ='27-Foreclosed Property'!L40 -> 0
C25: REVENUE ACCOUNTS RECEIVABLE | G25: 23278.13
C26: ABATING COST RECEIVABLE | G26: 7922.34
C27: COMMERCIAL REFUSE COLLECTION RECEIVABLE | G27: 17307.11
C28: MORTGAGE RECEIVABLE | G28: 220000
C29: INTERFUND RECEIVABLE | G29: 352175.85
C30: PILOT PROGRAM | G30: 15191.57
C37: DEFERRED CHARGES:
D38: EMERGENCY
D39: SPECIAL EMERGENCY (40A:4-55) | G39: =+'29-Special Emergency'!L$24+'30-Special Emergency'!L24 -> 0
D40: DEFICIT | G40: ='19-Results of Op-Cur Fnd'!I43 -> 0
E46: Page Totals: | G46: =SUM(G10:G45) -> 29611504.62 | H46: =SUM(H10:H45) -> 0
B47: (Do not crowd - add additional sheets)
B48: Sheet 3

Sheet 3a-Trial Bal-Current Fund
B2: NOTE THAT A TRIAL BALANCE IS REQUIRED AND NOT A BALANCE SHEET
B4: POST CLOSING
B5: TRIAL BALANCE - CURRENT FUND (CONT'D)
B6: =IF('KEY INPUTS'!C42 = "State Fiscal Year", 'KEY INPUTS'!F45,'KEY INPUTS'!D45) -> AS AT DECEMBER 31, 2022
B8: Cash Liabilities Must Be Subtotaled and Subtotal Must Be Marked With "C" -- Taxes Receivable Must Be Subtotaled
B9: Title of Account | G9: Debit | H9: Credit
B10: TOTALS FROM PAGE 3 | G10: =+'3-Trial Bal-Current Fund'!G46 -> 29611504.62 | H10: =+'3-Trial Bal-Current Fund'!H46 -> 0
B11: APPROPRIATION RESERVES | H11: ='18-Budget Appropriations'!I16 -> 2149942.79
B12: ENCUMBRANCES PAYABLE | H12: 1481616.23
B13: CONTRACTS PAYABLE
B14: TAX OVERPAYMENTS | H14: 131585.8
B15: PREPAID TAXES | H15: 1055818.84
B18: DUE TO STATE:
B19: MARRIAGE LICENCE | H19: 150
B20: DCA TRAINING FEES | H20: 18780
B22: LOCAL SCHOOL TAX PAYABLE | H22: =MAX(0,'13-Other Taxes'!G16) -> 6218387.5
B23: REGIONAL SCHOOL TAX PAYABLE | H23: =MAX(0,'14-Other Taxes'!G17) -> 0
B24: REGIONAL H.S.TAX PAYABLE | H24: =MAX(0,'14-Other Taxes'!G38) -> 0
B25: COUNTY TAX PAYABLE | H25: =MAX(0,'15-Other Taxes'!I18) -> 0
B26: DUE COUNTY - ADDED & OMMITTED | H26: =MAX(0,'15-Other Taxes'!I19) -> 70090.78
B27: SPECIAL DISTRICT TAX PAYABLE | H27: =MAX(0,'15-Other Taxes'!I38) -> 0
B28: RESERVE FOR TAX APPEAL | H28: =MAX(0,'24-Reserves for Tax Appeals'!I17) -> 0
B29: RESERVE FOR LIBRARY STATE AID | H29: 20816.44
B30: RESERVE FOR INSURANCE REFUNDS | H30: 175864.13
B31: RESERVE FOR ELECTION EXPENSES | H31: 8987.65
B32: RESERVE FOR NJ MUNICIPAL RELIEF FUND | H32: 260686.6
B33: RESERVE FOR REVALUATION | H33: 4717.35
B34: RESERVE FOR EMPLOYEE HEALTH CO-PAY | H34: 72952.76
B35: ACCOUNTS PAYABLE | H35: 172397.25
F44: PAGE TOTAL | G44: =SUM(G10:G43) -> 29611504.62 | H44: =SUM(H10:H43) -> 11842794.12
B47: (Do not crowd - add additional sheets)
B48: Sheet 3a

Sheet 3a.1-Trial Bal-Current Fund
B2: NOTE THAT A TRIAL BALANCE IS REQUIRED AND NOT A BALANCE SHEET
B4: POST CLOSING
B5: TRIAL BALANCE - CURRENT FUND (CONT'D)
B6: =IF('KEY INPUTS'!C42 = "State Fiscal Year", 'KEY INPUTS'!F45,'KEY INPUTS'!D45) -> AS AT DECEMBER 31, 2022
B8: Cash Liabilities Must Be Subtotaled and Subtotal Must Be Marked With "C" -- Taxes Receivable Must Be Subtotaled
B9: Title of Account | G9: Debit | H9: Credit
B10: TOTALS FROM PAGE 3a | G10: ='3a-Trial Bal-Current Fund'!G44 -> 29611504.62 | H10: ='3a-Trial Bal-Current Fund'!H44 -> 11842794.12
F25: SUBTOTAL | G25: =SUM(G10:G24) -> 29611504.62 | H25: =SUM(H10:H24) -> 11842794.12 | I25: "C"
C39: RESERVE FOR RECEIVABLES | H39: =SUM('3-Trial Bal-Current Fund'!G17:G35) -> 6742411.36
C40: DEFERRED SCHOOL TAX | G40: =+'13-Other Taxes'!G18+'14-Other Taxes'!G40+'14-Other Taxes'!G19 -> 17265725
C41: DEFERRED SCHOOL TAX PAYABLE | H41: =+G40 -> 17265725
C42: FUND BALANCE | H42: =+'21-Current Fund Surplus'!K14 -> 11026299.14
F44: TOTALS | G44: =SUM(G25:G43) -> 46877229.62 | H44: =SUM(H25:H42) -> 46877229.62
B47: (Do not crowd - add additional sheets)
B48: Sheet 3a.1

Sheet 4-Trial Bal-Pub Assist Fnd
B3: POST CLOSING
B4: TRIAL BALANCE - PUBLIC ASSISTANCE FUND
B5: ACCOUNTS #1 AND #2 *
B6: =IF('KEY INPUTS'!C42 = "State Fiscal Year", 'KEY INPUTS'!F45,'KEY INPUTS'!D45) -> AS AT DECEMBER 31, 2022
B8: Title of Account | G8: Debit | H8: Credit
B10: Cash | G10: 18485.58
C11: Reserve for Public Assistance | H11: 18485.58
D40: TOTALS | G40: =SUM(G9:G39) -> 18485.58 | H40: =SUM(H9:H39) -> 18485.58
B41: (Do not crowd - add additional sheets)
B42: *To be prepared in compliance with Department of Human Services Municipal Audit Guide,
C43: Public Welfare, General Assistance Program.
B46: Sheet 4

Sheet 5-Trial Bal-Grants
B3: POST CLOSING TRIAL BALANCE
B4: FEDERAL AND STATE GRANTS
B6: =IF('KEY INPUTS'!C42 = "State Fiscal Year", 'KEY INPUTS'!F45,'KEY INPUTS'!D45) -> AS AT DECEMBER 31, 2022
B8: Title of Account | G8: Debit | H8: Credit
C10: CASH | G10: =+'9-Cash Reconciliation'!I7 -> 1157505.62
C11: GRANTS RECEIVABLE | G11: ='10 Totals Grants Receivable'!K27 -> 747620.29
C12: Investments | G12: 1001000.03
C13: Urban Development Action Loan and Grant Fund Cash | G13: 747962.7
C14: Urban Development Action Loan and Grant Fund Note Receivable
D15: Reciprocial Loans | G15: 61775.26
D16: Façade Loans Receivable | G16: 4157.45
C21: DUE FROM/TO CURRENT FUND
C24: ENCUMBRANCES PAYABLE | H24: 819196.65
C27: Urban Development Action Loan and Grant Encumbrances Pay | H27: 1024.88
C28: Urban Development Action Loan and Grant Reserve for Note Rec
D29: Reciprocal Loans | H29: 61775.26
D30: Façade Loans | H30: 4157.45
C31: Reserve for Loan And Grant Fund Expenditures | H31: 746937.82
C33: APPROPRIATED RESERVES | H33: =+'11- Totals Grants Approp Rsrv'!L27 -> 595234.44
C34: UNAPPROPRIATED RESERVES | H34: =+'12 Total-Grants Unappropriated'!K27 -> 1491694.85
D36: TOTALS | G36: =SUM(G9:G35) -> 3720021.35 | H36: =SUM(H9:H35) -> 3720021.35
B45: (Do not crowd - add additional sheets)
B48: Sheet 5

Sheet 6-Trial Bal-Trust Fnds
B3: POST CLOSING
B4: TRIAL BALANCE - TRUST FUNDS
B5: (Assessment Section Must Be Separately Stated)
B6: =IF('KEY INPUTS'!C42 = "State Fiscal Year", 'KEY INPUTS'!F45,'KEY INPUTS'!D45) -> AS AT DECEMBER 31, 2022
B8: Title of Account | G8: Debit | H8: Credit
B10: ANIMAL CONTROL TRUST FUND
C11: CASH | G11: =+'9-Cash Reconciliation'!I8 -> 41247.05
C12: DUE TO -
C13: DUE TO STATE OF NJ | H13: 17.8
C14: RESERVE FOR ANIMAL CONTROL TRUST FUND | H14: 41229.25
C17: FUND TOTALS | G17: =SUM(G9:G16) -> 41247.05 | H17: =SUM(H9:H16) -> 41247.05
B19: ASSESSMENT TRUST FUND
C20: CASH | G20: =+'9-Cash Reconciliation'!I9 -> 0
C21: DUE TO -
C24: RESERVE FOR:
C28: FUND TOTALS | G28: =SUM(G20:G27) -> 0 | H28: =SUM(H20:H27) -> 0
B30: MUNICIPAL OPEN SPACE TRUST FUND
C31: CASH | G31: =+'9-Cash Reconciliation'!I10 -> 0
C38: FUND TOTALS | G38: =SUM(G31:G37) -> 0 | H38: =SUM(H31:H37) -> 0
B40: LOSAP TRUST FUND
C41: CASH | G41: =+'9-Cash Reconciliation'!I11 -> 0
C45: FUND TOTALS | G45: =SUM(G41:G44) -> 0 | H45: =SUM(H41:H44) -> 0
B46: (Do not crowd - add additional sheets)
B47: Sheet 6

Sheet 6.1-Trial Bal-Trust Fnds
B3: POST CLOSING
B4: TRIAL BALANCE - TRUST FUNDS (CONT'D)
B5: (Assessment Section Must Be Separately Stated)
B6: =IF('KEY INPUTS'!C42 = "State Fiscal Year", 'KEY INPUTS'!F45,'KEY INPUTS'!D45) -> AS AT DECEMBER 31, 2022
B8: Title of Account | G8: Debit | H8: Credit
B10: CDBG TRUST FUND
C11: CASH | G11: =+'9-Cash Reconciliation'!I12 -> 0
C12: DUE TO -
C20: FUND TOTALS | G20: =SUM(G9:G19) -> 0 | H20: =SUM(H9:H19) -> 0
B22: ARTS AND CULTURAL TRUST FUND
C23: CASH | G23: ='9-Cash Reconciliation'!I14 -> 0
C30: FUND TOTALS | G30: =SUM(G23:G29) -> 0 | H30: =SUM(H23:H29) -> 0
B32: OTHER TRUST FUNDS
C33: CASH | G33: ='9-Cash Reconciliation'!I13 -> 5233327.16
C34: Investments | G34: 1511510.05
C35: Interfund - General Capital Fund | G35: 6444.44
C36: Interfund - Current Fund | H36: 3225
C37: ENCUMBRANCE PAYABLE | H37: 264778.48
C38: RESERVES FOR:
D39: Fire Prevention Services | H39: 474
D40: POAA | H40: 5182.96
D41: Veterans Memorial Park | H41: 23393.08
D42: Fuel Agencies | H42: 14530.04
D43: Emergency Management | H43: 32673.05
B44: OTHER TRUST FUNDS PAGE TOTAL | G44: =SUM(G33:G43) -> 6751281.65 | H44: =SUM(H33:H43) -> 344256.61
B45: (Do not crowd - add additional sheets)
B48: Sheet 6.1

Sheet 6.2-Trial Bal-Trust Fnds
B3: POST CLOSING
B4: TRIAL BALANCE - TRUST FUNDS (CONT'D)
B5: (Assessment Section Must Be Separately Stated)
B6: =IF('KEY INPUTS'!C42 = "State Fiscal Year", 'KEY INPUTS'!F45,'KEY INPUTS'!D45) -> AS AT DECEMBER 31, 2022
B8: Title of Account | G8: Debit | H8: Credit
B9: Previous Totals | G9: =+'6.1-Trial Bal-Trust Fnds'!G44 -> 6751281.65 | H9: =+'6.1-Trial Bal-Trust Fnds'!H44 -> 344256.61
B10: OTHER TRUST FUNDS (continued)
C11: Public Defender | H11: 11680.59
C12: Senior Citizen Donations | H12: 49200.38
C13: Storm Recovery Trust Fund | H13: 201042.1
C14: Senior Citizen Building Donations | H14: 1141.07
C15: Law Enforcement Trust | H15: 56500.9
C16: Unemployment Trust | H16: 190388.24
C17: Municipal Alliance | H17: 6195.82
C18: Older Americans | H18: 4.63
C19: Special Police | H19: 66970.56
C20: Police Vest | H20: 7321.67
C21: Recreation Trust | H21: 169507.08
C22: Wesley Lake Trust | H22: 264.47
C23: Open Space | H23: 3204.17
C24: Tree Preservation | H24: 117678.59
C25: Tax Collector's Trust | H25: 1764449.87
C26: Affordable Housing | H26: 2102473.64
C27: Federal LETF | H27: 26009.72
C28: Accumulated Leave | H28: 222266.36
C29: Developer Application and Review Escrow (DARE) | H29: 255203.88
C30: Cash Guarantee | H30: 1094949.88
C31: Unclaimed Monies | H31: 60571.42
B44: TOTALS | G44: =SUM(G9:G43) -> 6751281.65 | H44: =SUM(H9:H43) -> 6751281.65
B45: (Do not crowd - add additional sheets)
B48: Sheet 6.2

Sheet 6.3-Trial Bal-Trust Fnds (hidden)
B3: POST CLOSING
B4: TRIAL BALANCE - TRUST FUNDS (CONT'D)
B5: (Assessment Section Must Be Separately Stated)
B6: =IF('KEY INPUTS'!C42 = "State Fiscal Year", 'KEY INPUTS'!F45,'KEY INPUTS'!D45) -> AS AT DECEMBER 31, 2022
B8: Title of Account | G8: Debit | H8: Credit
B9: Previous Totals | G9: =+'6.2-Trial Bal-Trust Fnds'!G44 -> 6751281.65 | H9: =+'6.2-Trial Bal-Trust Fnds'!H44 -> 6751281.65
B10: OTHER TRUST FUNDS (continued)
B44: TOTALS | G44: =SUM(G9:G43) -> 6751281.65 | H44: =SUM(H9:H43) -> 6751281.65
B45: (Do not crowd - add additional sheets)
B48: Sheet 6.3

Sheet 6.4-Trial Bal-Trust Fnds (hidden)
B3: POST CLOSING
B4: TRIAL BALANCE - TRUST FUNDS (CONT'D)
B5: (Assessment Section Must Be Separately Stated)
B6: =IF('KEY INPUTS'!C42 = "State Fiscal Year", 'KEY INPUTS'!F45,'KEY INPUTS'!D45) -> AS AT DECEMBER 31, 2022
B8: Title of Account | G8: Debit | H8: Credit
B9: Previous Totals | G9: =+'6.3-Trial Bal-Trust Fnds'!G44 -> 6751281.65 | H9: =+'6.3-Trial Bal-Trust Fnds'!H44 -> 6751281.65
B10: OTHER TRUST FUNDS (continued)
B44: TOTALS | G44: =SUM(G9:G43) -> 6751281.65 | H44: =SUM(H9:H43) -> 6751281.65
B45: (Do not crowd - add additional sheets)
B48: Sheet 6.4

Sheet 6.TOTAL-Trial Bal-Trust Fnds
B3: POST CLOSING
B4: TRIAL BALANCE - TRUST FUNDS (CONT'D)
B5: (Assessment Section Must Be Separately Stated)
B6: =IF('KEY INPUTS'!C42 = "State Fiscal Year", 'KEY INPUTS'!F45,'KEY INPUTS'!D45) -> AS AT DECEMBER 31, 2022
B8: Title of Account | G8: Debit | H8: Credit
B9: Previous Totals | G9: =+'6.4-Trial Bal-Trust Fnds'!G44 -> 6751281.65 | H9: =+'6.4-Trial Bal-Trust Fnds'!H44 -> 6751281.65
B10: OTHER TRUST FUNDS (continued)
B44: TOTALS | G44: =SUM(G9:G43) -> 6751281.65 | H44: =SUM(H9:H43) -> 6751281.65
B45: (Do not crowd - add additional sheets)
B48: Sheet 6. TOTALS
I55: =+G44-H44 -> 0

Sheet 6b-Trust Fund Reserves
B2: SCHEDULE OF TRUST FUND RESERVES
G5: Amount
G6: =IF('KEY INPUTS'!C42 = "State Fiscal Year", 'KEY INPUTS'!F46,'KEY INPUTS'!D46) -> Dec. 31, 2021 | M6: Balance
G7: per Audit | M7: as at
B8: Purpose | G8: Report | I8: Receipts | K8: Disbursements | M8: =IF('KEY INPUTS'!C42 = "State Fiscal Year", 'KEY INPUTS'!F47,'KEY INPUTS'!D47) -> Dec. 31, 2022
B10: Fire Prevention Services | G10: 474 | M10: =+G10+I10-K10 -> 474
B11: POAA | G11: 4588.96 | I11: 594 | M11: 5182.96
B12: Veterans Memorial Park | G12: 26315.09 | I12: 1231 | K12: 4153.01 | M12: 23393.08
B13: Fuel Agencies | G13: 44628.67 | I13: 116577.75 | K13: 146676.38 | M13: 14530.04
B14: Emergency Management | G14: 25571.77 | I14: 12689.89 | K14: 5588.61 | M14: 32673.05
B15: Public Defender | G15: 18743.09 | I15: 4237.5 | K15: 11300 | M15: 11680.59
B16: Senior Citizen Donations | G16: 45947.73 | I16: 34368.6 | K16: 31115.95 | M16: =+G16+I16-K16 -> 49200.38
B17: Storm Recovery Trust Fund | G17: 163902.1 | I17: 54800 | K17: 17660 | M17: 201042.1
B18: Senior Citizen Building Donations | G18: 2641.07 | I18: 1844.5 | K18: 3344.5 | M18: 1141.07
B19: Law Enforcement | G19: 70095.13 | I19: 12154.89 | K19: 25749.12 | M19: 56500.9
B20: Unclaimed Monies | G20: 59102.88 | I20: 1774.54 | K20: 306 | M20: 60571.42
B21: Unemployment Trust | G21: 135672.24 | I21: 86937.69 | K21: 32221.69 | M21: 190388.24
B22: Municipal Alliance | G22: 5073.91 | I22: 1471.91 | K22: 350 | M22: 6195.82
B23: Older Americans | G23: 254.49 | I23: 250.14 | K23: 500 | M23: 4.63
B24: Special Police | G24: 75547.94 | I24: 42559.93 | K24: 51137.31 | M24: 66970.56
B25: Police Vest | G25: 6493.95 | I25: 827.72 | M25: 7321.67
B26: Recreation Trust | G26: 166493.65 | I26: 59802.58 | K26: 56789.15 | M26: 169507.08
B27: Wesley Lake Trust | G27: 264.47 | M27: 264.47
B28: Open Space | G28: 3189.89 | I28: 14.28 | M28: 3204.17
B29: Tree Preservation | G29: 115903.01 | I29: 23214.72 | K29: 21439.14 | M29: 117678.59
B30: Tax Collector's Trust | G30: 1307724.63 | I30: 5749146.11 | K30: 5292420.87 | M30: 1764449.87
B31: Affordable Housing | G31: 1614497.71 | I31: 624482.03 | K31: 136506.1 | M31: 2102473.64
B32: Federal LETF | G32: 4960.39 | I32: 25400.35 | K32: 4351.02 | M32: 26009.72
B33: Accumulated Leave | G33: 108266.36 | I33: 114000 | M33: 222266.36
B34: Developers Escrow Review Escrow | G34: 232963.91 | I34: 294569.79 | K34: 272329.82 | M34: 255203.88
B35: Cash Guarantee | G35: 934391.33 | I35: 304700.33 | K35: 144141.78 | M35: 1094949.88
M36: 0
M37: 0
M38: 0
M39: 0
M40: 0
M41: 0
M42: 0
M43: 0
M44: 0
M45: 0
M46: 0
M47: 0
D48: PAGE TOTAL | F48: $ | G48: =SUM(G10:G47) -> 5173708.37 | H48: $ | I48: =SUM(I10:I47) -> 7567650.25 | J48: $ | K48: =SUM(K10:K47) -> 6258080.45 | L48: $ | M48: =SUM(M10:M47) -> 6483278.17
B50: Sheet 6b

Sheet 6b.1-Trust Fund Reserves (hidden)
B2: SCHEDULE OF TRUST FUND RESERVES (CONT'D)
G5: Amount
G6: ='6b-Trust Fund Reserves'!G6 -> Dec. 31, 2021 | M6: Balance
G7: per Audit | M7: as at
B8: Purpose | G8: Report | I8: Receipts | K8: Disbursements | M8: ='6b-Trust Fund Reserves'!M8 -> Dec. 31, 2022
B10: PREVIOUS PAGE TOTAL | G10: =+'6b-Trust Fund Reserves'!G48 -> 5173708.37 | I10: =+'6b-Trust Fund Reserves'!I48 -> 7567650.25 | K10: =+'6b-Trust Fund Reserves'!K48 -> 6258080.45 | M10: =+'6b-Trust Fund Reserves'!M48 -> 6483278.17
M11: =+G11+I11-K11 -> 0
M12: 0
M13: 0
M14: 0
M15: 0
M16: 0
M17: 0
M18: 0
M19: 0
M20: 0
M21: 0
M22: 0
M23: 0
M24: 0
M25: 0
M26: 0
M27: 0
M28: 0
M29: 0
M30: 0
M31: 0
M32: 0
M33: 0
M34: 0
M35: 0
M36: 0
M37: 0
M38: 0
M39: 0
M40: 0
M41: 0
M42: 0
M43: 0
M44: 0
M45: 0
M46: 0
M47: 0
D48: PAGE TOTAL | F48: $ | G48: =SUM(G10:G47) -> 5173708.37 | H48: $ | I48: =SUM(I10:I47) -> 7567650.25 | J48: $ | K48: =SUM(K10:K47) -> 6258080.45 | L48: $ | M48: =SUM(M10:M47) -> 6483278.17
B50: Sheet 6b.1

Sheet 6b.2-Trust Fund Reserves (hidden)
B2: SCHEDULE OF TRUST FUND RESERVES (CONT'D)
G5: Amount
G6: ='6b.1-Trust Fund Reserves'!G6 -> Dec. 31, 2021 | M6: Balance
G7: per Audit | M7: as at
B8: Purpose | G8: Report | I8: Receipts | K8: Disbursements | M8: ='6b.1-Trust Fund Reserves'!M8 -> Dec. 31, 2022
B10: PREVIOUS PAGE TOTAL | G10: =+'6b.1-Trust Fund Reserves'!G48 -> 5173708.37 | I10: =+'6b.1-Trust Fund Reserves'!I48 -> 7567650.25 | K10: =+'6b.1-Trust Fund Reserves'!K48 -> 6258080.45 | M10: =+'6b.1-Trust Fund Reserves'!M48 -> 6483278.17
M11: =+G11+I11-K11 -> 0
M12: 0
M13: 0
M14: 0
M15: 0
M16: 0
M17: 0
M18: 0
M19: 0
M20: 0
M21: 0
M22: 0
M23: 0
M24: 0
M25: 0
M26: 0
M27: 0
M28: 0
M29: 0
M30: 0
M31: 0
M32: 0
M33: 0
M34: 0
M35: 0
M36: 0
M37: 0
M38: 0
M39: 0
M40: 0
M41: 0
M42: 0
M43: 0
M44: 0
M45: 0
M46: 0
M47: 0
D48: PAGE TOTAL | F48: $ | G48: =SUM(G10:G47) -> 5173708.37 | H48: $ | I48: =SUM(I10:I47) -> 7567650.25 | J48: $ | K48: =SUM(K10:K47) -> 6258080.45 | L48: $ | M48: =SUM(M10:M47) -> 6483278.17
B50: Sheet 6b.2

Sheet 6b.3-Trust Fund Reserves (hidden)
B2: SCHEDULE OF TRUST FUND RESERVES (CONT'D)
G5: Amount
G6: ='6b.2-Trust Fund Reserves'!G6 -> Dec. 31, 2021 | M6: Balance
G7: per Audit | M7: as at
B8: Purpose | G8: Report | I8: Receipts | K8: Disbursements | M8: ='6b.2-Trust Fund Reserves'!M8 -> Dec. 31, 2022
B10: PREVIOUS PAGE TOTAL | G10: =+'6b.2-Trust Fund Reserves'!G48 -> 5173708.37 | I10: =+'6b.2-Trust Fund Reserves'!I48 -> 7567650.25 | K10: =+'6b.2-Trust Fund Reserves'!K48 -> 6258080.45 | M10: =+'6b.2-Trust Fund Reserves'!M48 -> 6483278.17
M11: =+G11+I11-K11 -> 0
M12: 0
M13: 0
M14: 0
M15: 0
M16: 0
M17: 0
M18: 0
M19: 0
M20: 0
M21: 0
M22: 0
M23: 0
M24: 0
M25: 0
M26: 0
M27: 0
M28: 0
M29: 0
M30: 0
M31: 0
M32: 0
M33: 0
M34: 0
M35: 0
M36: 0
M37: 0
M38: 0
M39: 0
M40: 0
M41: 0
M42: 0
M43: 0
M44: 0
M45: 0
M46: 0
M47: 0
D48: PAGE TOTAL | F48: $ | G48: =SUM(G10:G47) -> 5173708.37 | H48: $ | I48: =SUM(I10:I47) -> 7567650.25 | J48: $ | K48: =SUM(K10:K47) -> 6258080.45 | L48: $ | M48: =SUM(M10:M47) -> 6483278.17
B50: Sheet 6b.3

Sheet 6b-Total Trust Fund Reserves
B2: SCHEDULE OF TRUST FUND RESERVES (CONT'D)
G5: Amount
G6: ='6b.3-Trust Fund Reserves'!G6 -> Dec. 31, 2021 | M6: Balance
G7: per Audit | M7: as at
B8: Purpose | G8: Report | I8: Receipts | K8: Disbursements | M8: ='6b.3-Trust Fund Reserves'!M8 -> Dec. 31, 2022
B10: PREVIOUS PAGE TOTAL | G10: =+'6b.3-Trust Fund Reserves'!G48 -> 5173708.37 | I10: =+'6b.3-Trust Fund Reserves'!I48 -> 7567650.25 | K10: =+'6b.3-Trust Fund Reserves'!K48 -> 6258080.45 | M10: =+'6b.3-Trust Fund Reserves'!M48 -> 6483278.17
M11: =+G11+I11-K11 -> 0
M12: 0
M13: 0
M14: 0
M15: 0
M16: 0
M17: 0
M18: 0
M19: 0
M20: 0
M21: 0
M22: 0
M23: 0
M24: 0
M25: 0
M26: 0
M27: 0
M28: 0
M29: 0
M30: 0
M31: 0
M32: 0
M33: 0
M34: 0
M35: 0
M36: 0
M37: 0
M38: 0
M39: 0
M40: 0
M41: 0
M42: 0
M43: 0
M44: 0
M45: 0
M46: 0
M47: 0
D48: PAGE TOTAL | F48: $ | G48: =SUM(G10:G47) -> 5173708.37 | H48: $ | I48: =SUM(I10:I47) -> 7567650.25 | J48: $ | K48: =SUM(K10:K47) -> 6258080.45 | L48: $ | M48: =SUM(M10:M47) -> 6483278.17
B50: Sheet 6b TOTAL

Sheet 7-Trust Asm Cash & Investments
B2: ANALYSIS OF TRUST ASSESSMENT CASH AND INVESTMENTS PLEDGED TO
B3: LIABILITIES AND SURPLUS
E4: Audit
C5: Title of Liability to which Cash | E5: Balance | F5: RECEIPTS | L5: Balance
C6: and Investments are Pledged | E6: ='6b-Total Trust Fund Reserves'!G6 -> Dec. 31, 2021 | F6: Assessments | G6: Current | K6: Disbursements | L6: ='6b-Total Trust Fund Reserves'!M8 -> Dec. 31, 2022
F7: and Liens | G7: Budget
B8: Assessment Serial Bond Issues: | E8: xxxxxxxxx | F8: xxxxxxxxx | G8: xxxxxxxxx | H8: xxxxxxxxx | I8: xxxxxxxxx | J8: xxxxxxxxx | K8: xxxxxxxxx | L8: xxxxxxxxx
L9: =+E9+F9+G9+H9+I9-J9-K9 -> 0
L10: =+E10+F10+G10+H10+I10-J10-K10 -> 0
L11: 0
L12: 0
L13: 0
B14: Assessment Bond Anticipation Note Issues: | E14: xxxxxxxxx | F14: xxxxxxxxx | G14: xxxxxxxxx | H14: xxxxxxxxx | I14: xxxxxxxxx | J14: xxxxxxxxx | K14: xxxxxxxxx | L14: xxxxxxxxx
A15: Sheet 7 | L15: =+E15+F15+G15+H15+I15-J15-K15 -> 0
L16: =+E16+F16+G16+H16+I16-J16-K16 -> 0
L17: 0
L18: 0
B19: Other Liabilities | L19: 0
B20: Trust Surplus | L20: 0
B21: *Less Assets "Unfinanced" | E21: xxxxxxxxx | F21: xxxxxxxxx | G21: xxxxxxxxx | H21: xxxxxxxxx | I21: xxxxxxxxx | J21: xxxxxxxxx | K21: xxxxxxxxx | L21: xxxxxxxxx
L22: 0
L23: 0
L24: 0
L25: 0
E26: =SUM(E9:E25) -> 0 | F26: =SUM(F9:F25) -> 0 | G26: 0 | H26: 0 | I26: 0 | J26: 0 | K26: 0 | L26: =SUM(L9:L25) -> 0
B27: *Show as red figure

Sheet 8-Trial Bal-Gen Cap Fund
B3: POST CLOSING
B4: TRIAL BALANCE -- GENERAL CAPITAL FUND
B6: =IF('KEY INPUTS'!C42 = "State Fiscal Year", 'KEY INPUTS'!F45,'KEY INPUTS'!D45) -> AS AT DECEMBER 31, 2022
B8: Title of Account | G8: Debit | H8: Credit
B9: Estimated Proceeds Bonds and Notes Authorized | G9: =+H10 -> 0 | H9: xxxxxxxxx
B10: Bonds and Notes Authorized but Not Issued | G10: xxxxxxxxx
C12: CASH | G12: =+'9-Cash Reconciliation'!I15 -> 3650322.88
C13: INVESTMENTS | G13: 1032839.51
C14: DUE FROM -
C15: DUE FROM -
C16: FEDERAL AND STATE GRANTS RECEIVABLE | G16: 3949247.51
C17: DEFERRED CHARGES TO FUTURE TAXATION:
D18: FUNDED | G18: 25361100.56
D19: UNFUNDED | G19: 3662853.83
C21: DUE TO -
C22: Capital Lease Receivable | G22: =+'8.1-Trial Bal-Gen Cap Fund'!H25 -> 2884080.9
C44: PAGE TOTALS | G44: =SUM(G9:G43) -> 40540445.19 | H44: =SUM(H9:H43) -> 0
B45: (Do not crowd - add additional sheets)
B48: Sheet 8

Sheet 8.1-Trial Bal-Gen Cap Fund
B3: POST CLOSING
B4: TRIAL BALANCE -- GENERAL CAPITAL FUND
B6: =IF('KEY INPUTS'!C42 = "State Fiscal Year", 'KEY INPUTS'!F45,'KEY INPUTS'!D45) -> AS AT DECEMBER 31, 2022
B8: Title of Account | G8: Debit | H8: Credit
B9: PREVIOUS PAGE TOTALS | G9: =+'8-Trial Bal-Gen Cap Fund'!G44 -> 40540445.19 | H9: =+'8-Trial Bal-Gen Cap Fund'!H44 -> 0
C21: BOND ANTICIPATION NOTES PAYABLE | H21: =+'33 Totals-Note Debt Service'!G23 -> 866466
C22: GENERAL SERIAL BONDS | H22: ='31-Capital Bond Schedule'!G12 -> 24990000
C23: TYPE 1 SCHOOL BONDS | H23: ='32-Bond Schedule'!G11+'32-Bond Schedule'!G22 -> 0
C24: LOANS PAYABLE | H24: =+'31A-Loan Schedule'!G12+'31A-Loan Schedule'!G23+'31A.1-Loan Schedule'!G12+'31A.1-Loan Schedule'!G23+'31A.2-Loan Schedule'!G12+'31A.2-Loan Schedule'!G23 -> 371100.56
C25: CAPITAL LEASES PAYABLE | H25: ='34a-Cap Lease Program Oblg'!G23 -> 2884080.9
C26: Interfund - Current Fund | H26: 348950.85
C27: Interfund - Trust Fund | H27: 6444.44
C28: RESERVE FOR CAPITAL PROJECTS
C29: Reserve for Preliminary Expenses | H29: 2380.99
C30: Reserve to Pay Debt Service | H30: 143986.49
C31: Reserve for COI 2022 Issue | H31: 7297.75
C32: IMPROVEMENT AUTHORIZATIONS:
D33: FUNDED | H33: =+'35 Totals- Cap Fund Imprv Auth'!K28 -> 3899598.34
D34: UNFUNDED | H34: =+'35 Totals- Cap Fund Imprv Auth'!L28 -> 2341784.62
C35: Reserve for Bond Issuance Costs | H35: 31012.15
C36: ENCUMBRANCES PAYABLE | H36: 4088991.79
C38: RESERVE TO PAY BANS
C39: CAPITAL IMPROVEMENT FUND | H39: =+'36- Capital Improvement Fund'!I31 -> 281565.2
C40: DOWN PAYMENTS ON IMPROVEMENTS | H40: ='37- Cap Fund Down Pymts'!I15 -> 0
C43: CAPITAL FUND BALANCE | H43: =+'38- Capital Surplus'!I17 -> 276785.11
G44: =SUM(G9:G43) -> 40540445.19 | H44: =SUM(H9:H43) -> 40540445.19
B45: (Do not crowd - add additional sheets)
B48: Sheet 8.1

Sheet 9-Cash Reconciliation
B3: ="CASH RECONCILIATION "&IF('KEY INPUTS'!C42="State Fiscal Year"," JUNE 30, "&'KEY INPUTS'!D33&""," DECEMBER 31, "&'KEY INPUTS'!D34&"")&"" -> CASH RECONCILIATION DECEMBER 31, 2022
F4: Cash | H4: Less Checks | I4: Cash Book
F5: *On Hand | G5: On Deposit | H5: Outstanding | I5: Balance
B6: Current | F6: =105172.86+880 -> 106052.86 | G6: =14011619.56 -> 14011619.56 | H6: =285325.31+478962.37 -> 764287.68 | I6: =+F6+G6-H6 -> 13353384.74
B7: Grant Fund | F7: 50352.78 | G7: =757861.87+396245.99 -> 1154107.86 | H7: =35568.68+11386.34 -> 46955.02 | I7: =+F7+G7-H7 -> 1157505.62
B8: Trust - Animal Control | G8: 41247.05 | I8: 41247.05
B9: Trust - Assessment | I9: 0
B10: Trust - Municipal Open Space | I10: 0
B11: Trust - LOSAP | I11: 0
B12: Trust - CDBG | I12: 0
B13: Trust - Other | G13: =3517820.75+1802706.05 -> 5320526.8 | H13: =48943.46+38256.18 -> 87199.64 | I13: 5233327.16
B14: Trust - Arts and Culture | I14: =+F14+G14-H14 -> 0
B15: General Capital | F15: 429613.36 | G15: =4046013.83 -> 4046013.83 | H15: =466675.84+358628.47 -> 825304.31 | I15: =+F15+G15-H15 -> 3650322.88
B16: Loan and Grant Fund | G16: 745524.31 | I16: 745524.31
B17: UTILITIES: | K17: ADD YOUR UTILITIES AS NEEDED
B18: Sewer Operating Fund | F18: =200+11869.81 -> 12069.81 | G18: =6399187.75 -> 6399187.75 | H18: =-394766.56+26348.72 -> -368417.84 | I18: 6779675.4
B19: Sewer Capital Fund | G19: =5335254.83 -> 5335254.83 | H19: 17367.21 | I19: 5317887.62
B20: Marina Operating Fund | F20: =50+5999.34 -> 6049.34 | G20: =248676.34 -> 248676.34 | H20: =2721.49 -> 2721.49 | I20: 252004.19
B21: Marina Capital Fund | G21: =134906.63 -> 134906.63 | H21: 4119.34 | I21: 130787.29
B22: Public Assistance | G22: 18485.58 | I22: 18485.58
B23: Total Investments | G23: =+'9a-Cash Reconciliation'!F8+'9a-Cash Reconciliation'!F12+'9a-Cash Reconciliation'!F32+'9a TOTAL-Cash Reconciliation'!F8+'9a TOTAL-Cash Reconciliation'!F12+'9a TOTAL-Cash Reconciliation'!F16+'9a TOTAL-Cash Reconciliation'!F20+'9a TOTAL-Cash Reconciliation'!F26 -> 17078509.18 | I23: 17078509.18
I24: 0
I25: 0
I26: 0
I27: 0
I28: 0
I29: 0
I30: 0
I31: 0
I32: 0
I33: 0
I34: 0
E35: Total | F35: =SUM(F6:F34) -> 604138.15 | G35: =SUM(G6:G34) -> 54534059.72 | H35: =SUM(H6:H34) -> 1379536.85 | I35: =SUM(I6:I34) -> 53758661.02
B36: * Include Deposits In Transit
B37: ** Be sure to include a Public Assistance Account reconciliation and trial balance if the municipality maintains such a bank account.
B39: REQUIRED CERTIFICATION
C40: I hereby certify that all amounts shown in the "Cash on Deposit" column on Sheet 9 and 9(a) have been verified with the
B41: =IF('KEY INPUTS'!C42="State Fiscal Year","applicable bank statements, certificates, agreements or passbooks at "&'KEY INPUTS'!F47&".","applicable bank statements, certificates, agreements or passbooks at December 31, "&TEXT('KEY INPUTS'!D34,"0")&".") -> applicable bank statements, certificates, agreements or passbooks at December 31, 2022.
C42: I also certify that all amounts, if any, shown for Investments in Savings and Loan Associations on any trial balance have
B43: =IF('KEY INPUTS'!C42="State Fiscal Year","been verified with the applicable passbook at "&'KEY INPUTS'!F47&".","been verified with the applicable passbook at December 31, "&TEXT('KEY INPUTS'!D34,"0")&".") -> been verified with the applicable passbook at December 31, 2022.
C44: All "Certificates of Deposits", Repurchase Agreements" and other investments must be reported as cash and included in
B45: this certification.
C46: (THIS MUST BE SIGNED BY THE REGISTERED MUNICIPAL ACCOUNTANT (STATUTORY AUDITOR) OR
B47: CHIEF FINANCIAL OFFICER) depending on who prepared this Annual Financial Statement as certified to on Sheet 1 or 1(a).
B50: Signature: | D50: mbascom@neptunetownship.org | G50: Title: | H50: Chief Financial Officer
B52: Sheet 9

Sheet 9a-Cash Reconciliation
B2: ="CASH RECONCILIATION "&IF('KEY INPUTS'!C42="State Fiscal Year"," JUNE 30, "&'KEY INPUTS'!D33&" (cont'd) "," DECEMBER 31, "&'KEY INPUTS'!D34&" (cont'd) ")&"" -> CASH RECONCILIATION DECEMBER 31, 2022 (cont'd)
B4: LIST BANKS AND AMOUNTS SUPPORTING "CASH ON DEPOSIT"
B6: Current Fund:
C7: Two River #1011571422 | F7: 14011619.56
C8: State Street Bank and Trust #0000156558-171 | F8: 9510547.56
B10: General Capital:
C11: Two River #1011571430 | F11: 4046013.83
C12: State Street Bank and Trust #0000156566-171 | F12: 1032839.51
B14: Trust Other:
C15: Trust Other Account Two River #1011571489 | F15: 587294.61
C16: Developer Application Review Escrow Acct Two River #1011571497 | F16: 399099.77
C17: Municipal Escrow Cash Guarantee Acct Two River #1011571505 | F17: 867462.64
C18: Municipal Escrow Inspection Fee Acct Two River #1011571513 | F18: 271692.89
C19: Law Enforcement Trust Two River #1011571521 | F19: 66189.99
C20: Unclaimed Monies Trust Acct Two River #1011571539 | F20: 60571.42
C21: Unemployment Trust Acct Two River #1011571547 | F21: 190388.24
C22: Municipal Alliance Two River #1011571554 | F22: 6195.82
C23: Older American Act Program Contributions Two River #1011571562 | F23: 4.63
C24: Outside Employment Police Fund Two River #1011571570 | F24: 90259.38
C25: Neptune Police Vest Fund Two River #1011571588 | F25: 7321.67
C26: Recreation Trust Acct Two River #1011571596 | F26: 176447.43
C27: Open Space Two River #1011571604 | F27: 3204.17
C28: Tree Preservation Trust Acct Two River #1011571612 | F28: 118595.59
C29: Tax Collector Trust Two River #1011571463 | F29: 1802706.05
C30: Federal Law Enforcement Trust Two River #1011571638 | F30: 26009.72
C31: Affordable Housing Trust Two River #1011571620 | F31: 647082.78
C32: Affordable Housing Trust State Street Bank Trust #000156620-171 | F32: 1511510.05
B34: Loan and Grant Fund
C35: Two River | E35: #1011571653 | F35: 745524.31
B37: Animal Control Fund
C38: Two River | E38: #1011571471 | F38: 41247.05
B40: Public Assistance Fund
C41: Two River | E41: #1011571646 | F41: 18485.58
C43: PAGE TOTAL | F43: =SUM(F5:F42) -> 36238314.25
B45: Note: Sections N.J.S. 40A:4-61, 40A:4-62 and 40A:4-63 of the Local Budget Law require that
B46: separate bank accounts be maintained for each allocated fund.
B49: Sheet 9a

Sheet 9a.1-Cash Reconciliation (hidden)
B2: ='9a-Cash Reconciliation'!B2:F2 -> CASH RECONCILIATION DECEMBER 31, 2022 (cont'd)
B4: LIST BANKS AND AMOUNTS SUPPORTING "CASH ON DEPOSIT"
B5: PREVIOUS PAGE TOTAL | F5: =+'9a-Cash Reconciliation'!F43 -> 36238314.25
B43: PAGE TOTAL | F43: =SUM(F5:F42) -> 36238314.25
B45: Note: Sections N.J.S. 40A:4-61, 40A:4-62 and 40A:4-63 of the Local Budget Law require that
B46: separate bank accounts be maintained for each allocated fund.
B49: Sheet 9a.1

Sheet 9a.2-Cash Reconciliation (hidden)
B2: ='9a-Cash Reconciliation'!B2:F2 -> CASH RECONCILIATION DECEMBER 31, 2022 (cont'd)
B4: LIST BANKS AND AMOUNTS SUPPORTING "CASH ON DEPOSIT"
B5: PREVIOUS PAGE TOTAL | F5: =+'9a.1-Cash Reconciliation'!F43 -> 36238314.25
B43: PAGE TOTAL | F43: =SUM(F5:F42) -> 36238314.25
B45: Note: Sections N.J.S. 40A:4-61, 40A:4-62 and 40A:4-63 of the Local Budget Law require that
B46: separate bank accounts be maintained for each allocated fund.
B49: Sheet 9a.2

Sheet 9a.3-Cash Reconciliation (hidden)
B2: ='9a-Cash Reconciliation'!B2:F2 -> CASH RECONCILIATION DECEMBER 31, 2022 (cont'd)
B4: LIST BANKS AND AMOUNTS SUPPORTING "CASH ON DEPOSIT"
B5: PREVIOUS PAGE TOTAL | F5: =+'9a.2-Cash Reconciliation'!F43 -> 36238314.25
B43: PAGE TOTAL | F43: =SUM(F5:F42) -> 36238314.25
B45: Note: Sections N.J.S. 40A:4-61, 40A:4-62 and 40A:4-63 of the Local Budget Law require that
B46: separate bank accounts be maintained for each allocated fund.
B49: Sheet 9a.3

Sheet 9a TOTAL-Cash Reconciliation
B2: ='9a-Cash Reconciliation'!B2:F2 -> CASH RECONCILIATION DECEMBER 31, 2022 (cont'd)
B4: LIST BANKS AND AMOUNTS SUPPORTING "CASH ON DEPOSIT"
B5: PREVIOUS PAGE TOTAL | F5: =+'9a.3-Cash Reconciliation'!F43 -> 36238314.25
B6: Sewer Operating Fund
C7: Two River #1011571703 | F7: 6399187.75
C8: State Street Bank and Trust #0000156582-171 | F8: 2002220.54
B10: Sewer Capital Fund
C11: Two River #1011571711 | F11: 5335254.83
C12: State Street Bank and Trust #0000156590-171 | F12: 842381.83
B14: Marina Operating Fund
C15: Two River #1011571729 | F15: 248676.34
C16: State Street Bank and Trust #0000156612-171 | F16: 440488.52
B18: Marina Capital Fund
C19: Two River #1011571737 | F19: 134906.63
C20: State Street Bank and Trust #0000156612-171 | F20: 737521.14
B23: Federal and State Grant Fund
C24: Two River #1011571448 | F24: 757861.87
C25: Two River #1011570979 | F25: 396245.99
C26: State Street Bank and Trust #0000156574-171 | F26: 1001000.03
B43: TOTAL PAGE | F43: =SUM(F5:F42) -> 54534059.72
B45: Note: Sections N.J.S. 40A:4-61, 40A:4-62 and 40A:4-63 of the Local Budget Law require that
B46: separate bank accounts be maintained for each allocated fund.
B49: Sheet 9a TOTAL

Sheet 10-Grants Receivable
B2: MUNICIPALITIES AND COUNTIES
B3: FEDERAL AND STATE GRANTS RECEIVABLE
G4: =IF('KEY INPUTS'!C42="State Fiscal Year","Fiscal Year "&'KEY INPUTS'!D33&"",'KEY INPUTS'!D34) -> 2022
B5: Grant | F5: Balance | G5: Budget | H5: Received | I5: Other | J5: Cancelled | K5: Balance
F6: =IF('KEY INPUTS'!C42 = "State Fiscal Year", 'KEY INPUTS'!F48,'KEY INPUTS'!D48) -> Jan. 1, 2022 | G6: Revenue | K6: =IF('KEY INPUTS'!C42 = "State Fiscal Year", 'KEY INPUTS'!F47,'KEY INPUTS'!D47) -> Dec. 31, 2022
G7: Realized
B8: Bulletproof Vest Partnership Grant | F8: 26033.7 | H8: 19126.8 | I8: 1657.86 | K8: =+F8+G8-H8+I8-J8 -> 8564.76
B9: Edward Byrne Memorial Justice Assistance Grant | F9: 12053 | H9: 12053 | K9: =+F9+G9-H9+I9-J9 -> 0
B10: Senior Citizens - COVID-19 - CARES Act | F10: 55119 | H10: 55119 | K10: 0
B11: Senior Citizens - Title III (Older Americans Act) | F11: 82546 | H11: 37000 | J11: 45546 | K11: 0
B12: US EPA - Brownfields Hazardous Assessment | F12: 4583.96 | K12: 4583.96
B13: US EPA - Brownfields Petroleum Assessment | F13: 2748.61 | K13: 2748.61
B14: Drunk Driving Enforcement Fund | F14: 20325.95 | K14: 20325.95
A15: Sheet 10 | B15: Micro-Grid Project | F15: 131416.88 | I15: 108.12 | K15: 131525
B16: Hazardous Discharge Site Remediation | F16: 39183.62 | K16: 39183.62
B17: Municipal Alliance on Alcoholism and Drug Abuse - State (DEDR) | F17: 72990 | H17: 699.03 | J17: 55820 | K17: 16470.97
B18: The Association of NJ Environmental Commissions (ANJEC) | F18: 333 | K18: 333
B19: State Local Cooperative Housing Inspection Program (SLCHIP) | K19: 0
C20: (Code Enforcement) S & W | F20: 2 | K20: 2
B21: Statewide Insurance Fund - Safety Grant | F21: 15004.38 | K21: 15004.38
B22: 2022 Bulletproof Vest Partnership Grant | G22: 11157.3 | K22: 11157.3
B23: Edward Byrne Memorial Justice Assistance Grant - 2019 | G23: 447 | I23: -447 | K23: 0
B24: Edward Byrne Memorial Justice Assistance Grant - 2022 | G24: 53600 | K24: 53600
B25: 2022 Click It or Ticket Seat Belt Mobilization | G25: 7000 | H25: 5880 | K25: 1120
B26: American Rescue Plan - Local Fiscal Recovery Fund | G26: 200000 | I26: -200000 | K26: 0
C27: PAGE TOTALS | F27: =SUM(F8:F26) -> 462340.1 | G27: 272204.3 | H27: 129877.83 | I27: -198681.02 | J27: 101366 | K27: =SUM(K8:K26) -> 304619.55

Sheet 10.1-Grants Receivable
B2: MUNICIPALITIES AND COUNTIES
B3: FEDERAL AND STATE GRANTS RECEIVABLE (cont'd)
G4: =IF('KEY INPUTS'!C42="State Fiscal Year","Fiscal Year "&'KEY INPUTS'!D33&"",'KEY INPUTS'!D34) -> 2022
B5: Grant | F5: Balance | G5: Budget | H5: Received | I5: Other | J5: Cancelled | K5: Balance
F6: ='10-Grants Receivable'!F6 -> Jan. 1, 2022 | G6: Revenue | K6: ='10-Grants Receivable'!K6 -> Dec. 31, 2022
G7: Realized
B8: PREVIOUS PAGE TOTALS | F8: =+'10-Grants Receivable'!F27 -> 462340.1 | G8: =+'10-Grants Receivable'!G27 -> 272204.3 | H8: =+'10-Grants Receivable'!H27 -> 129877.83 | I8: =+'10-Grants Receivable'!I27 -> -198681.02 | J8: =+'10-Grants Receivable'!J27 -> 101366 | K8: =+'10-Grants Receivable'!K27 -> 304619.55
B9: Assistance to Firefighters Grant | G9: 84425.69 | K9: =+F9+G9-H9+I9-J9 -> 84425.69
B10: Hazardous Materials Emergency Planning Grant | G10: 29700 | K10: =+F10+G10-H10+I10-J10 -> 29700
B11: FY 2021 Federal Emergency Management Assistance | G11: 10000 | H11: 10000 | K11: 0
B12: SFY 22 Senior Citizens - Title IIIB (Older Americans Act) | G12: 10578 | K12: 10578
B13: SFY 22 Senior Citizens - Title IIIB (Older Americans Act) | G13: 36000 | K13: 36000
B14: 2021 Body Armor Replacement Fund | G14: 3223.18 | H14: 3223.18 | K14: 0
A15: Sheet 10.1 | B15: Clean Energy Electric Vehicle Tourism Grant | G15: 150000 | K15: 150000
B16: Alcohol Education Rehabilitation and Enforcement Fund (AEREF) | G16: 4737.97 | H16: 4737.97 | K16: 0
B17: Clean Communities Program | G17: 69169.02 | H17: 69169.02 | K17: 0
B18: It Pays to Plug In - NJ Electric Vehicle Charging Grant Program | G18: 75000 | K18: 75000
B19: 2018 Recycling Tonnage Grant | G19: 49997.43 | H19: 49997.43 | K19: 0
B20: Hazardous Discharge Site Remediation - Welsh Farms | G20: 49405 | K20: 49405
B21: Municipal Alliance on Alcoholism and Drug Abuse DMHASY 2022 | G21: 7251.05 | K21: 7251.05
B22: Municipal Alliance on Alcoholism and Drug Abuse (DEDR) 2022 | G22: 21290 | H22: 21290 | K22: 0
B23: Interfaith Neighbors Senior Meal Program | G23: 24449 | H23: 23808 | K23: 641
K24: 0
K25: 0
K26: 0
C27: PAGE TOTALS | F27: =SUM(F8:F26) -> 462340.1 | G27: 897430.64 | H27: 312103.43 | I27: -198681.02 | J27: 101366 | K27: =SUM(K8:K26) -> 747620.29

Sheet 10.2-Grants Receivable (hidden)
B2: MUNICIPALITIES AND COUNTIES
B3: FEDERAL AND STATE GRANTS RECEIVABLE (cont'd)
G4: =IF('KEY INPUTS'!C42="State Fiscal Year","Fiscal Year "&'KEY INPUTS'!D33&"",'KEY INPUTS'!D34) -> 2022
B5: Grant | F5: Balance | G5: Budget | H5: Received | I5: Other | J5: Cancelled | K5: Balance
F6: ='10-Grants Receivable'!F6 -> Jan. 1, 2022 | G6: Revenue | K6: ='10-Grants Receivable'!K6 -> Dec. 31, 2022
G7: Realized
B8: PREVIOUS PAGE TOTALS | F8: =+'10.1-Grants Receivable'!F27 -> 462340.1 | G8: =+'10.1-Grants Receivable'!G27 -> 897430.64 | H8: =+'10.1-Grants Receivable'!H27 -> 312103.43 | I8: =+'10.1-Grants Receivable'!I27 -> -198681.02 | J8: =+'10.1-Grants Receivable'!J27 -> 101366 | K8: =+'10.1-Grants Receivable'!K27 -> 747620.29
K9: =+F9+G9-H9+I9-J9 -> 0
K10: =+F10+G10-H10+I10-J10 -> 0
K11: 0
K12: 0
K13: 0
K14: 0
A15: Sheet 10.2 | K15: 0
K16: 0
K17: 0
K18: 0
K19: 0
K20: 0
K21: 0
K22: 0
K23: 0
K24: 0
K25: 0
K26: 0
C27: PAGE TOTALS | F27: =SUM(F8:F26) -> 462340.1 | G27: 897430.64 | H27: 312103.43 | I27: -198681.02 | J27: 101366 | K27: 747620.29
K29: =F27+G27-H27+I27-K27-J27 -> 0
K31: =+F27+G27-H27-I27-J27-K27 -> 397362.04

Sheet 10.3-Grants Receivable (hidden)
B2: MUNICIPALITIES AND COUNTIES
B3: FEDERAL AND STATE GRANTS RECEIVABLE (cont'd)
G4: =IF('KEY INPUTS'!C42="State Fiscal Year","Fiscal Year "&'KEY INPUTS'!D33&"",'KEY INPUTS'!D34) -> 2022
B5: Grant | F5: Balance | G5: Budget | H5: Received | I5: Other | J5: Cancelled | K5: Balance
F6: ='10-Grants Receivable'!F6 -> Jan. 1, 2022 | G6: Revenue | K6: ='10-Grants Receivable'!K6 -> Dec. 31, 2022
G7: Realized
B8: PREVIOUS PAGE TOTALS | F8: =+'10.2-Grants Receivable'!F27 -> 462340.1 | G8: =+'10.2-Grants Receivable'!G27 -> 897430.64 | H8: =+'10.2-Grants Receivable'!H27 -> 312103.43 | I8: =+'10.2-Grants Receivable'!I27 -> -198681.02 | J8: =+'10.2-Grants Receivable'!J27 -> 101366 | K8: =+'10.2-Grants Receivable'!K27 -> 747620.29
K9: =+F9+G9-H9+I9-J9 -> 0
K10: =+F10+G10-H10+I10-J10 -> 0
K11: 0
K12: 0
K13: 0
K14: 0
A15: Sheet 10.3 | K15: 0
K16: 0
K17: 0
K18: 0
K19: 0
K20: 0
K21: 0
K22: 0
K23: 0
K24: 0
K25: 0
K26: 0
C27: PAGE TOTALS | F27: =SUM(F8:F26) -> 462340.1 | G27: 897430.64 | H27: 312103.43 | I27: -198681.02 | J27: 101366 | K27: 747620.29
K29: =F27+G27-H27+I27-K27-J27 -> 0
K31: =+F27+G27-H27-I27-J27-K27 -> 397362.04

Sheet 10.4-Grants Receivable (hidden)
B2: MUNICIPALITIES AND COUNTIES
B3: FEDERAL AND STATE GRANTS RECEIVABLE (cont'd)
G4: =IF('KEY INPUTS'!C42="State Fiscal Year","Fiscal Year "&'KEY INPUTS'!D33&"",'KEY INPUTS'!D34) -> 2022
B5: Grant | F5: Balance | G5: Budget | H5: Received | I5: Other | J5: Cancelled | K5: Balance
F6: ='10-Grants Receivable'!F6 -> Jan. 1, 2022 | G6: Revenue | K6: ='10-Grants Receivable'!K6 -> Dec. 31, 2022
G7: Realized
B8: PREVIOUS PAGE TOTALS | F8: =+'10.3-Grants Receivable'!F27 -> 462340.1 | G8: =+'10.3-Grants Receivable'!G27 -> 897430.64 | H8: =+'10.3-Grants Receivable'!H27 -> 312103.43 | I8: =+'10.3-Grants Receivable'!I27 -> -198681.02 | J8: =+'10.3-Grants Receivable'!J27 -> 101366 | K8: =+'10.3-Grants Receivable'!K27 -> 747620.29
K9: =+F9+G9-H9+I9-J9 -> 0
K10: =+F10+G10-H10+I10-J10 -> 0
K11: 0
K12: 0
K13: 0
K14: 0
A15: Sheet 10.4 | K15: 0
K16: 0
K17: 0
K18: 0
K19: 0
K20: 0
K21: 0
K22: 0
K23: 0
K24: 0
K25: 0
K26: 0
C27: PAGE TOTALS | F27: =SUM(F8:F26) -> 462340.1 | G27: 897430.64 | H27: 312103.43 | I27: -198681.02 | J27: 101366 | K27: 747620.29
K29: =F27+G27-H27+I27-K27-J27 -> 0
K31: =+F27+G27-H27-I27-J27-K27 -> 397362.04

Sheet 10.5-Grants Receivable (hidden)
B2: MUNICIPALITIES AND COUNTIES
B3: FEDERAL AND STATE GRANTS RECEIVABLE (cont'd)
G4: =IF('KEY INPUTS'!C42="State Fiscal Year","Fiscal Year "&'KEY INPUTS'!D33&"",'KEY INPUTS'!D34) -> 2022
B5: Grant | F5: Balance | G5: Budget | H5: Received | I5: Other | J5: Cancelled | K5: Balance
F6: ='10-Grants Receivable'!F6 -> Jan. 1, 2022 | G6: Revenue | K6: ='10-Grants Receivable'!K6 -> Dec. 31, 2022
G7: Realized
B8: PREVIOUS PAGE TOTALS | F8: =+'10.4-Grants Receivable'!F27 -> 462340.1 | G8: =+'10.4-Grants Receivable'!G27 -> 897430.64 | H8: =+'10.4-Grants Receivable'!H27 -> 312103.43 | I8: =+'10.4-Grants Receivable'!I27 -> -198681.02 | J8: =+'10.4-Grants Receivable'!J27 -> 101366 | K8: =+'10.4-Grants Receivable'!K27 -> 747620.29
K9: =+F9+G9-H9+I9-J9 -> 0
K10: =+F10+G10-H10+I10-J10 -> 0
K11: 0
K12: 0
K13: 0
K14: 0
A15: Sheet 10.5 | K15: 0
K16: 0
K17: 0
K18: 0
K19: 0
K20: 0
K21: 0
K22: 0
K23: 0
K24: 0
K25: 0
K26: 0
C27: PAGE TOTALS | F27: =SUM(F8:F26) -> 462340.1 | G27: 897430.64 | H27: 312103.43 | I27: -198681.02 | J27: 101366 | K27: 747620.29
K29: =F27+G27-H27+I27-K27-J27 -> 0
K31: =+F27+G27-H27-I27-J27-K27 -> 397362.04

Sheet 10.6-Grants Receivable (hidden)
B2: MUNICIPALITIES AND COUNTIES
B3: FEDERAL AND STATE GRANTS RECEIVABLE (cont'd)
G4: =IF('KEY INPUTS'!C42="State Fiscal Year","Fiscal Year "&'KEY INPUTS'!D33&"",'KEY INPUTS'!D34) -> 2022
B5: Grant | F5: Balance | G5: Budget | H5: Received | I5: Other | J5: Cancelled | K5: Balance
F6: ='10-Grants Receivable'!F6 -> Jan. 1, 2022 | G6: Revenue | K6: ='10-Grants Receivable'!K6 -> Dec. 31, 2022
G7: Realized
B8: PREVIOUS PAGE TOTALS | F8: =+'10.5-Grants Receivable'!F27 -> 462340.1 | G8: =+'10.5-Grants Receivable'!G27 -> 897430.64 | H8: =+'10.5-Grants Receivable'!H27 -> 312103.43 | I8: =+'10.5-Grants Receivable'!I27 -> -198681.02 | J8: =+'10.5-Grants Receivable'!J27 -> 101366 | K8: =+'10.5-Grants Receivable'!K27 -> 747620.29
K9: =+F9+G9-H9+I9-J9 -> 0
K10: =+F10+G10-H10+I10-J10 -> 0
K11: 0
K12: 0
K13: 0
K14: 0
A15: Sheet 10.6 | K15: 0
K16: 0
K17: 0
K18: 0
K19: 0
K20: 0
K21: 0
K22: 0
K23: 0
K24: 0
K25: 0
K26: 0
C27: PAGE TOTALS | F27: =SUM(F8:F26) -> 462340.1 | G27: 897430.64 | H27: 312103.43 | I27: -198681.02 | J27: 101366 | K27: 747620.29
K29: =F27+G27-H27+I27-K27-J27 -> 0
K31: =+F27+G27-H27-I27-J27-K27 -> 397362.04

Sheet 10.7-Grants Receivable (hidden)
B2: MUNICIPALITIES AND COUNTIES
B3: FEDERAL AND STATE GRANTS RECEIVABLE (cont'd)
G4: =IF('KEY INPUTS'!C42="State Fiscal Year","Fiscal Year "&'KEY INPUTS'!D33&"",'KEY INPUTS'!D34) -> 2022
B5: Grant | F5: Balance | G5: Budget | H5: Received | I5: Other | J5: Cancelled | K5: Balance
F6: ='10-Grants Receivable'!F6 -> Jan. 1, 2022 | G6: Revenue | K6: ='10-Grants Receivable'!K6 -> Dec. 31, 2022
G7: Realized
B8: PREVIOUS PAGE TOTALS | F8: =+'10.6-Grants Receivable'!F27 -> 462340.1 | G8: =+'10.6-Grants Receivable'!G27 -> 897430.64 | H8: =+'10.6-Grants Receivable'!H27 -> 312103.43 | I8: =+'10.6-Grants Receivable'!I27 -> -198681.02 | J8: =+'10.6-Grants Receivable'!J27 -> 101366 | K8: =+'10.6-Grants Receivable'!K27 -> 747620.29
K9: =+F9+G9-H9+I9-J9 -> 0
K10: =+F10+G10-H10+I10-J10 -> 0
K11: 0
K12: 0
K13: 0
K14: 0
A15: Sheet 10.7 | K15: 0
K16: 0
K17: 0
K18: 0
K19: 0
K20: 0
K21: 0
K22: 0
K23: 0
K24: 0
K25: 0
K26: 0
C27: PAGE TOTALS | F27: =SUM(F8:F26) -> 462340.1 | G27: 897430.64 | H27: 312103.43 | I27: -198681.02 | J27: 101366 | K27: 747620.29
K29: =F27+G27-H27+I27-K27-J27 -> 0
K31: =+F27+G27-H27-I27-J27-K27 -> 397362.04

Sheet 10.8-Grants Receivable (hidden)
B2: MUNICIPALITIES AND COUNTIES
B3: FEDERAL AND STATE GRANTS RECEIVABLE (cont'd)
G4: =IF('KEY INPUTS'!C42="State Fiscal Year","Fiscal Year "&'KEY INPUTS'!D33&"",'KEY INPUTS'!D34) -> 2022
B5: Grant | F5: Balance | G5: Budget | H5: Received | I5: Other | J5: Cancelled | K5: Balance
F6: ='10-Grants Receivable'!F6 -> Jan. 1, 2022 | G6: Revenue | K6: ='10-Grants Receivable'!K6 -> Dec. 31, 2022
G7: Realized
B8: PREVIOUS PAGE TOTALS | F8: =+'10.7-Grants Receivable'!F27 -> 462340.1 | G8: =+'10.7-Grants Receivable'!G27 -> 897430.64 | H8: =+'10.7-Grants Receivable'!H27 -> 312103.43 | I8: =+'10.7-Grants Receivable'!I27 -> -198681.02 | J8: =+'10.7-Grants Receivable'!J27 -> 101366 | K8: =+'10.7-Grants Receivable'!K27 -> 747620.29
K9: =+F9+G9-H9+I9-J9 -> 0
K10: =+F10+G10-H10+I10-J10 -> 0
K11: 0
K12: 0
K13: 0
K14: 0
A15: Sheet 10.8 | K15: 0
K16: 0
K17: 0
K18: 0
K19: 0
K20: 0
K21: 0
K22: 0
K23: 0
K24: 0
K25: 0
K26: 0
C27: PAGE TOTALS | F27: =SUM(F8:F26) -> 462340.1 | G27: 897430.64 | H27: 312103.43 | I27: -198681.02 | J27: 101366 | K27: 747620.29
K29: =F27+G27-H27+I27-K27-J27 -> 0
K31: =+F27+G27-H27-I27-J27-K27 -> 397362.04

Sheet 10.9-Grants Receivable (hidden)
B2: MUNICIPALITIES AND COUNTIES
B3: FEDERAL AND STATE GRANTS RECEIVABLE (cont'd)
G4: =IF('KEY INPUTS'!C42="State Fiscal Year","Fiscal Year "&'KEY INPUTS'!D33&"",'KEY INPUTS'!D34) -> 2022
B5: Grant | F5: Balance | G5: Budget | H5: Received | I5: Other | J5: Cancelled | K5: Balance
F6: ='10-Grants Receivable'!F6 -> Jan. 1, 2022 | G6: Revenue | K6: ='10-Grants Receivable'!K6 -> Dec. 31, 2022
G7: Realized
B8: PREVIOUS PAGE TOTALS | F8: =+'10.8-Grants Receivable'!F27 -> 462340.1 | G8: =+'10.8-Grants Receivable'!G27 -> 897430.64 | H8: =+'10.8-Grants Receivable'!H27 -> 312103.43 | I8: =+'10.8-Grants Receivable'!I27 -> -198681.02 | J8: =+'10.8-Grants Receivable'!J27 -> 101366 | K8: =+'10.8-Grants Receivable'!K27 -> 747620.29
K9: =+F9+G9-H9+I9-J9 -> 0
K10: 0
K11: 0
K12: 0
K13: 0
K14: 0
A15: Sheet 10.9 | K15: 0
K16: 0
K17: 0
K18: 0
K19: 0
K20: 0
K21: 0
K22: 0
K23: 0
K24: 0
K25: 0
K26: 0
C27: PAGE TOTALS | F27: =SUM(F8:F26) -> 462340.1 | G27: 897430.64 | H27: 312103.43 | I27: -198681.02 | J27: 101366 | K27: 747620.29
K29: =F27+G27-H27+I27-K27-J27 -> 0
K31: =+F27+G27-H27-I27-J27-K27 -> 397362.04

Sheet 10.10-Grants Receivable (hidden)
B2: MUNICIPALITIES AND COUNTIES
B3: FEDERAL AND STATE GRANTS RECEIVABLE (cont'd)
G4: =IF('KEY INPUTS'!C42="State Fiscal Year","Fiscal Year "&'KEY INPUTS'!D33&"",'KEY INPUTS'!D34) -> 2022
B5: Grant | F5: Balance | G5: Budget | H5: Received | I5: Other | J5: Cancelled | K5: Balance
F6: ='10-Grants Receivable'!F6 -> Jan. 1, 2022 | G6: Revenue | K6: ='10-Grants Receivable'!K6 -> Dec. 31, 2022
G7: Realized
B8: PREVIOUS PAGE TOTALS | F8: =+'10.9-Grants Receivable'!F27 -> 462340.1 | G8: =+'10.9-Grants Receivable'!G27 -> 897430.64 | H8: =+'10.9-Grants Receivable'!H27 -> 312103.43 | I8: =+'10.9-Grants Receivable'!I27 -> -198681.02 | J8: =+'10.9-Grants Receivable'!J27 -> 101366 | K8: =+'10.9-Grants Receivable'!K27 -> 747620.29
K9: =+F9+G9-H9+I9-J9 -> 0
K10: 0
K11: 0
K12: 0
K13: 0
K14: 0
A15: Sheet 10.10 | K15: 0
K16: 0
K17: 0
K18: 0
K19: 0
K20: 0
K21: 0
K22: 0
K23: 0
K24: 0
K25: 0
K26: 0
C27: PAGE TOTALS | F27: =SUM(F8:F26) -> 462340.1 | G27: 897430.64 | H27: 312103.43 | I27: -198681.02 | J27: 101366 | K27: 747620.29
K29: =F27+G27-H27+I27-K27-J27 -> 0
K31: =+F27+G27-H27-I27-J27-K27 -> 397362.04

Sheet 10.11-Grants Receivable (hidden)
B2: MUNICIPALITIES AND COUNTIES
B3: FEDERAL AND STATE GRANTS RECEIVABLE (cont'd)
G4: =IF('KEY INPUTS'!C42="State Fiscal Year","Fiscal Year "&'KEY INPUTS'!D33&"",'KEY INPUTS'!D34) -> 2022
B5: Grant | F5: Balance | G5: Budget | H5: Received | I5: Other | J5: Cancelled | K5: Balance
F6: ='10-Grants Receivable'!F6 -> Jan. 1, 2022 | G6: Revenue | K6: ='10-Grants Receivable'!K6 -> Dec. 31, 2022
G7: Realized
B8: PREVIOUS PAGE TOTALS | F8: =+'10.10-Grants Receivable'!F27 -> 462340.1 | G8: =+'10.10-Grants Receivable'!G27 -> 897430.64 | H8: =+'10.10-Grants Receivable'!H27 -> 312103.43 | I8: =+'10.10-Grants Receivable'!I27 -> -198681.02 | J8: =+'10.10-Grants Receivable'!J27 -> 101366 | K8: =+'10.10-Grants Receivable'!K27 -> 747620.29
K9: =+F9+G9-H9+I9-J9 -> 0
K10: 0
K11: 0
K12: 0
K13: 0
K14: 0
A15: Sheet 10.11 | K15: 0
K16: 0
K17: 0
K18: 0
K19: 0
K20: 0
K21: 0
K22: 0
K23: 0
K24: 0
K25: 0
K26: 0
C27: PAGE TOTALS | F27: =SUM(F8:F26) -> 462340.1 | G27: 897430.64 | H27: 312103.43 | I27: -198681.02 | J27: 101366 | K27: 747620.29
K29: =F27+G27-H27+I27-K27-J27 -> 0
K31: =+F27+G27-H27-I27-J27-K27 -> 397362.04

Sheet 10.12-Grants Receivable (hidden)
B2: MUNICIPALITIES AND COUNTIES
B3: FEDERAL AND STATE GRANTS RECEIVABLE (cont'd)
G4: =IF('KEY INPUTS'!C42="State Fiscal Year","Fiscal Year "&'KEY INPUTS'!D33&"",'KEY INPUTS'!D34) -> 2022
B5: Grant | F5: Balance | G5: Budget | H5: Received | I5: Other | J5: Cancelled | K5: Balance
F6: ='10-Grants Receivable'!F6 -> Jan. 1, 2022 | G6: Revenue | K6: ='10-Grants Receivable'!K6 -> Dec. 31, 2022
G7: Realized
B8: PREVIOUS PAGE TOTALS | F8: ='10.11-Grants Receivable'!F27 -> 462340.1 | G8: =+'10.11-Grants Receivable'!G27 -> 897430.64 | H8: =+'10.11-Grants Receivable'!H27 -> 312103.43 | I8: =+'10.11-Grants Receivable'!I27 -> -198681.02 | J8: =+'10.11-Grants Receivable'!J27 -> 101366 | K8: =+'10.11-Grants Receivable'!K27 -> 747620.29
K9: =+F9+G9-H9+I9-J9 -> 0
K10: 0
K11: 0
K12: 0
K13: 0
K14: 0
A15: Sheet 10.12 | K15: 0
K16: 0
K17: 0
K18: 0
K19: 0
K20: 0
K21: 0
K22: 0
K23: 0
K24: 0
K25: 0
K26: 0
C27: PAGE TOTALS | F27: =SUM(F8:F26) -> 462340.1 | G27: 897430.64 | H27: 312103.43 | I27: -198681.02 | J27: 101366 | K27: 747620.29
K29: =F27+G27-H27+I27-K27-J27 -> 0
K31: =+F27+G27-H27-I27-J27-K27 -> 397362.04

Sheet 10.13-Grants Receivable (hidden)
B2: MUNICIPALITIES AND COUNTIES
B3: FEDERAL AND STATE GRANTS RECEIVABLE (cont'd)
G4: =IF('KEY INPUTS'!C42="State Fiscal Year","Fiscal Year "&'KEY INPUTS'!D33&"",'KEY INPUTS'!D34) -> 2022
B5: Grant | F5: Balance | G5: Budget | H5: Received | I5: Other | J5: Cancelled | K5: Balance
F6: ='10-Grants Receivable'!F6 -> Jan. 1, 2022 | G6: Revenue | K6: ='10-Grants Receivable'!K6 -> Dec. 31, 2022
G7: Realized
B8: PREVIOUS PAGE TOTALS | F8: =+'10.12-Grants Receivable'!F27 -> 462340.1 | G8: =+'10.12-Grants Receivable'!G27 -> 897430.64 | H8: =+'10.12-Grants Receivable'!H27 -> 312103.43 | I8: =+'10.12-Grants Receivable'!I27 -> -198681.02 | J8: =+'10.12-Grants Receivable'!J27 -> 101366 | K8: =+'10.12-Grants Receivable'!K27 -> 747620.29
K9: =+F9+G9-H9+I9-J9 -> 0
K10: 0
K11: 0
K12: 0
K13: 0
K14: 0
A15: Sheet 10.13 | K15: 0
K16: 0
K17: 0
K18: 0
K19: 0
K20: 0
K21: 0
K22: 0
K23: 0
K24: 0
K25: 0
K26: 0
C27: PAGE TOTALS | F27: =SUM(F8:F26) -> 462340.1 | G27: 897430.64 | H27: 312103.43 | I27: -198681.02 | J27: 101366 | K27: 747620.29
K29: =F27+G27-H27+I27-K27-J27 -> 0
K31: =+F27+G27-H27-I27-J27-K27 -> 397362.04

Sheet 10.14-Grants Receivable (hidden)
B2: MUNICIPALITIES AND COUNTIES
B3: FEDERAL AND STATE GRANTS RECEIVABLE (cont'd)
G4: =IF('KEY INPUTS'!C42="State Fiscal Year","Fiscal Year "&'KEY INPUTS'!D33&"",'KEY INPUTS'!D34) -> 2022
B5: Grant | F5: Balance | G5: Budget | H5: Received | I5: Other | J5: Cancelled | K5: Balance
F6: ='10-Grants Receivable'!F6 -> Jan. 1, 2022 | G6: Revenue | K6: ='10-Grants Receivable'!K6 -> Dec. 31, 2022
G7: Realized
B8: PREVIOUS PAGE TOTALS | F8: =+'10.13-Grants Receivable'!F27 -> 462340.1 | G8: =+'10.13-Grants Receivable'!G27 -> 897430.64 | H8: =+'10.13-Grants Receivable'!H27 -> 312103.43 | I8: =+'10.13-Grants Receivable'!I27 -> -198681.02 | J8: =+'10.13-Grants Receivable'!J27 -> 101366 | K8: =+'10.13-Grants Receivable'!K27 -> 747620.29
K9: =+F9+G9-H9+I9-J9 -> 0
K10: 0
K11: 0
K12: 0
K13: 0
K14: 0
A15: Sheet 10.14 | K15: 0
K16: 0
K17: 0
K18: 0
K19: 0
K20: 0
K21: 0
K22: 0
K23: 0
K24: 0
K25: 0
K26: 0
C27: PAGE TOTALS | F27: =SUM(F8:F26) -> 462340.1 | G27: 897430.64 | H27: 312103.43 | I27: -198681.02 | J27: 101366 | K27: 747620.29
K29: =F27+G27-H27+I27-K27-J27 -> 0
K31: =+F27+G27-H27-I27-J27-K27 -> 397362.04

Sheet 10.15-Grants Receivable (hidden)
B2: MUNICIPALITIES AND COUNTIES
B3: FEDERAL AND STATE GRANTS RECEIVABLE (cont'd)
G4: =IF('KEY INPUTS'!C42="State Fiscal Year","Fiscal Year "&'KEY INPUTS'!D33&"",'KEY INPUTS'!D34) -> 2022
B5: Grant | F5: Balance | G5: Budget | H5: Received | I5: Other | J5: Cancelled | K5: Balance
F6: ='10-Grants Receivable'!F6 -> Jan. 1, 2022 | G6: Revenue | K6: ='10-Grants Receivable'!K6 -> Dec. 31, 2022
G7: Realized
B8: PREVIOUS PAGE TOTALS | F8: =+'10.14-Grants Receivable'!F27 -> 462340.1 | G8: =+'10.14-Grants Receivable'!G27 -> 897430.64 | H8: =+'10.14-Grants Receivable'!H27 -> 312103.43 | I8: =+'10.14-Grants Receivable'!I27 -> -198681.02 | J8: =+'10.14-Grants Receivable'!J27 -> 101366 | K8: =+'10.14-Grants Receivable'!K27 -> 747620.29
K9: =+F9+G9-H9+I9-J9 -> 0
K10: 0
K11: 0
K12: 0
K13: 0
K14: 0
A15: Sheet 10.15 | K15: 0
K16: 0
K17: 0
K18: 0
K19: 0
K20: 0
K21: 0
K22: 0
K23: 0
K24: 0
K25: 0
K26: 0
C27: PAGE TOTALS | F27: =SUM(F8:F26) -> 462340.1 | G27: 897430.64 | H27: 312103.43 | I27: -198681.02 | J27: 101366 | K27: 747620.29
K29: =F27+G27-H27+I27-K27-J27 -> 0
K31: =+F27+G27-H27-I27-J27-K27 -> 397362.04

Sheet 10.16-Grants Receivable (hidden)
B2: MUNICIPALITIES AND COUNTIES
B3: FEDERAL AND STATE GRANTS RECEIVABLE (cont'd)
G4: =IF('KEY INPUTS'!C42="State Fiscal Year","Fiscal Year "&'KEY INPUTS'!D33&"",'KEY INPUTS'!D34) -> 2022
B5: Grant | F5: Balance | G5: Budget | H5: Received | I5: Other | J5: Cancelled | K5: Balance
F6: ='10-Grants Receivable'!F6 -> Jan. 1, 2022 | G6: Revenue | K6: ='10-Grants Receivable'!K6 -> Dec. 31, 2022
G7: Realized
B8: PREVIOUS PAGE TOTALS | F8: =+'10.15-Grants Receivable'!F27 -> 462340.1 | G8: =+'10.15-Grants Receivable'!G27 -> 897430.64 | H8: =+'10.15-Grants Receivable'!H27 -> 312103.43 | I8: =+'10.15-Grants Receivable'!I27 -> -198681.02 | J8: =+'10.15-Grants Receivable'!J27 -> 101366 | K8: =+'10.15-Grants Receivable'!K27 -> 747620.29
K9: =+F9+G9-H9+I9-J9 -> 0
K10: 0
K11: 0
K12: 0
K13: 0
K14: 0
A15: Sheet 10.16 | K15: 0
K16: 0
K17: 0
K18: 0
K19: 0
K20: 0
K21: 0
K22: 0
K23: 0
K24: 0
K25: 0
K26: 0
C27: PAGE TOTALS | F27: =SUM(F8:F26) -> 462340.1 | G27: 897430.64 | H27: 312103.43 | I27: -198681.02 | J27: 101366 | K27: 747620.29
K29: =F27+G27-H27+I27-K27-J27 -> 0
K31: =+F27+G27-H27-I27-J27-K27 -> 397362.04

Sheet 10.17-Grants Receivable (hidden)
B2: MUNICIPALITIES AND COUNTIES
B3: FEDERAL AND STATE GRANTS RECEIVABLE (cont'd)
G4: =IF('KEY INPUTS'!C42="State Fiscal Year","Fiscal Year "&'KEY INPUTS'!D33&"",'KEY INPUTS'!D34) -> 2022
B5: Grant | F5: Balance | G5: Budget | H5: Received | I5: Other | J5: Cancelled | K5: Balance
F6: ='10-Grants Receivable'!F6 -> Jan. 1, 2022 | G6: Revenue | K6: ='10-Grants Receivable'!K6 -> Dec. 31, 2022
G7: Realized
B8: PREVIOUS PAGE TOTALS | F8: =+'10.16-Grants Receivable'!F27 -> 462340.1 | G8: =+'10.16-Grants Receivable'!G27 -> 897430.64 | H8: =+'10.16-Grants Receivable'!H27 -> 312103.43 | I8: =+'10.16-Grants Receivable'!I27 -> -198681.02 | J8: =+'10.16-Grants Receivable'!J27 -> 101366 | K8: =+'10.16-Grants Receivable'!K27 -> 747620.29
K9: =+F9+G9-H9+I9-J9 -> 0
K10: 0
K11: 0
K12: 0
K13: 0
K14: 0
A15: Sheet 10.17 | K15: 0
K16: 0
K17: 0
K18: 0
K19: 0
K20: 0
K21: 0
K22: 0
K23: 0
K24: 0
K25: 0
K26: 0
C27: PAGE TOTALS | F27: =SUM(F8:F26) -> 462340.1 | G27: 897430.64 | H27: 312103.43 | I27: -198681.02 | J27: 101366 | K27: 747620.29
K29: =F27+G27-H27+I27-K27-J27 -> 0
K31: =+F27+G27-H27-I27-J27-K27 -> 397362.04

Sheet 10.18-Grants Receivable (hidden)
B2: MUNICIPALITIES AND COUNTIES
B3: FEDERAL AND STATE GRANTS RECEIVABLE (cont'd)
G4: =IF('KEY INPUTS'!C42="State Fiscal Year","Fiscal Year "&'KEY INPUTS'!D33&"",'KEY INPUTS'!D34) -> 2022
B5: Grant | F5: Balance | G5: Budget | H5: Received | I5: Other | J5: Cancelled | K5: Balance
F6: ='10-Grants Receivable'!F6 -> Jan. 1, 2022 | G6: Revenue | K6: ='10-Grants Receivable'!K6 -> Dec. 31, 2022
G7: Realized
B8: PREVIOUS PAGE TOTALS | F8: =+'10.17-Grants Receivable'!F27 -> 462340.1 | G8: =+'10.17-Grants Receivable'!G27 -> 897430.64 | H8: =+'10.17-Grants Receivable'!H27 -> 312103.43 | I8: =+'10.17-Grants Receivable'!I27 -> -198681.02 | J8: =+'10.17-Grants Receivable'!J27 -> 101366 | K8: =+'10.17-Grants Receivable'!K27 -> 747620.29
K9: =+F9+G9-H9+I9-J9 -> 0
K10: 0
K11: 0
K12: 0
K13: 0
K14: 0
A15: Sheet 10.18 | K15: 0
K16: 0
K17: 0
K18: 0
K19: 0
K20: 0
K21: 0
K22: 0
K23: 0
K24: 0
K25: 0
K26: 0
C27: PAGE TOTALS | F27: =SUM(F8:F26) -> 462340.1 | G27: 897430.64 | H27: 312103.43 | I27: -198681.02 | J27: 101366 | K27: 747620.29
K29: =F27+G27-H27+I27-K27-J27 -> 0
K31: =+F27+G27-H27-I27-J27-K27 -> 397362.04

Sheet 10.19-Grants Receivable (hidden)
B2: MUNICIPALITIES AND COUNTIES
B3: FEDERAL AND STATE GRANTS RECEIVABLE (cont'd)
G4: =IF('KEY INPUTS'!C42="State Fiscal Year","Fiscal Year "&'KEY INPUTS'!D33&"",'KEY INPUTS'!D34) -> 2022
B5: Grant | F5: Balance | G5: Budget | H5: Received | I5: Other | J5: Cancelled | K5: Balance
F6: ='10-Grants Receivable'!F6 -> Jan. 1, 2022 | G6: Revenue | K6: ='10-Grants Receivable'!K6 -> Dec. 31, 2022
G7: Realized
B8: PREVIOUS PAGE TOTALS | F8: =+'10.18-Grants Receivable'!F27 -> 462340.1 | G8: =+'10.18-Grants Receivable'!G27 -> 897430.64 | H8: =+'10.18-Grants Receivable'!H27 -> 312103.43 | I8: =+'10.18-Grants Receivable'!I27 -> -198681.02 | J8: =+'10.18-Grants Receivable'!J27 -> 101366 | K8: =+'10.18-Grants Receivable'!K27 -> 747620.29
K9: =+F9+G9-H9+I9-J9 -> 0
K10: 0
K11: 0
K12: 0
K13: 0
K14: 0
A15: Sheet 10.19 | K15: 0
K16: 0
K17: 0
K18: 0
K19: 0
K20: 0
K21: 0
K22: 0
K23: 0
K24: 0
K25: 0
K26: 0
C27: PAGE TOTALS | F27: =SUM(F8:F26) -> 462340.1 | G27: 897430.64 | H27: 312103.43 | I27: -198681.02 | J27: 101366 | K27: 747620.29
K29: =F27+G27-H27+I27-K27-J27 -> 0
K31: =+F27+G27-H27-I27-J27-K27 -> 397362.04

Sheet 10.20-Grants Receivable (hidden)
B2: MUNICIPALITIES AND COUNTIES
B3: FEDERAL AND STATE GRANTS RECEIVABLE (cont'd)
G4: =IF('KEY INPUTS'!C42="State Fiscal Year","Fiscal Year "&'KEY INPUTS'!D33&"",'KEY INPUTS'!D34) -> 2022
B5: Grant | F5: Balance | G5: Budget | H5: Received | I5: Other | J5: Cancelled | K5: Balance
F6: ='10-Grants Receivable'!F6 -> Jan. 1, 2022 | G6: Revenue | K6: ='10-Grants Receivable'!K6 -> Dec. 31, 2022
G7: Realized
B8: PREVIOUS PAGE TOTALS | F8: =+'10.19-Grants Receivable'!F27 -> 462340.1 | G8: =+'10.19-Grants Receivable'!G27 -> 897430.64 | H8: =+'10.19-Grants Receivable'!H27 -> 312103.43 | I8: =+'10.19-Grants Receivable'!I27 -> -198681.02 | J8: =+'10.19-Grants Receivable'!J27 -> 101366 | K8: =+'10.19-Grants Receivable'!K27 -> 747620.29
K9: =+F9+G9-H9+I9-J9 -> 0
K10: 0
K11: 0
K12: 0
K13: 0
K14: 0
A15: Sheet 10.20 | K15: 0
K16: 0
K17: 0
K18: 0
K19: 0
K20: 0
K21: 0
K22: 0
K23: 0
K24: 0
K25: 0
K26: 0
C27: PAGE TOTALS | F27: =SUM(F8:F26) -> 462340.1 | G27: 897430.64 | H27: 312103.43 | I27: -198681.02 | J27: 101366 | K27: 747620.29
K29: =F27+G27-H27+I27-K27-J27 -> 0
K31: =+F27+G27-H27-I27-J27-K27 -> 397362.04

Sheet 10.21-Grants Receivable (hidden)
B2: MUNICIPALITIES AND COUNTIES
B3: FEDERAL AND STATE GRANTS RECEIVABLE (cont'd)
G4: =IF('KEY INPUTS'!C42="State Fiscal Year","Fiscal Year "&'KEY INPUTS'!D33&"",'KEY INPUTS'!D34) -> 2022
B5: Grant | F5: Balance | G5: Budget | H5: Received | I5: Other | J5: Cancelled | K5: Balance
F6: ='10-Grants Receivable'!F6 -> Jan. 1, 2022 | G6: Revenue | K6: ='10-Grants Receivable'!K6 -> Dec. 31, 2022
G7: Realized
B8: PREVIOUS PAGE TOTALS | F8: =+'10.20-Grants Receivable'!F27 -> 462340.1 | G8: =+'10.20-Grants Receivable'!G27 -> 897430.64 | H8: =+'10.20-Grants Receivable'!H27 -> 312103.43 | I8: =+'10.20-Grants Receivable'!I27 -> -198681.02 | J8: =+'10.20-Grants Receivable'!J27 -> 101366 | K8: =+'10.20-Grants Receivable'!K27 -> 747620.29
K9: =+F9+G9-H9+I9-J9 -> 0
K10: 0
K11: 0
K12: 0
K13: 0
K14: 0
A15: Sheet 10.21 | K15: 0
K16: 0
K17: 0
K18: 0
K19: 0
K20: 0
K21: 0
K22: 0
K23: 0
K24: 0
K25: 0
K26: 0
C27: PAGE TOTALS | F27: =SUM(F8:F26) -> 462340.1 | G27: 897430.64 | H27: 312103.43 | I27: -198681.02 | J27: 101366 | K27: 747620.29

Sheet 10.22-Grants Receivable (hidden)
B2: MUNICIPALITIES AND COUNTIES
B3: FEDERAL AND STATE GRANTS RECEIVABLE (cont'd)
G4: =IF('KEY INPUTS'!C42="State Fiscal Year","Fiscal Year "&'KEY INPUTS'!D33&"",'KEY INPUTS'!D34) -> 2022
B5: Grant | F5: Balance | G5: Budget | H5: Received | I5: Other | J5: Cancelled | K5: Balance
F6: ='10-Grants Receivable'!F6 -> Jan. 1, 2022 | G6: Revenue | K6: ='10-Grants Receivable'!K6 -> Dec. 31, 2022
G7: Realized
B8: PREVIOUS PAGE TOTALS | F8: =+'10.21-Grants Receivable'!F27 -> 462340.1 | G8: =+'10.21-Grants Receivable'!G27 -> 897430.64 | H8: =+'10.21-Grants Receivable'!H27 -> 312103.43 | I8: =+'10.21-Grants Receivable'!I27 -> -198681.02 | J8: =+'10.21-Grants Receivable'!J27 -> 101366 | K8: =+'10.21-Grants Receivable'!K27 -> 747620.29
K9: =+F9+G9-H9+I9-J9 -> 0
K10: 0
K11: 0
K12: 0
K13: 0
K14: 0
A15: Sheet 10.22 | K15: 0
K16: 0
K17: 0
K18: 0
K19: 0
K20: 0
K21: 0
K22: 0
K23: 0
K24: 0
K25: 0
K26: 0
C27: PAGE TOTALS | F27: =SUM(F8:F26) -> 462340.1 | G27: 897430.64 | H27: 312103.43 | I27: -198681.02 | J27: 101366 | K27: 747620.29

Sheet 10.23-Grants Receivable (hidden)
B2: MUNICIPALITIES AND COUNTIES
B3: FEDERAL AND STATE GRANTS RECEIVABLE (cont'd)
G4: =IF('KEY INPUTS'!C42="State Fiscal Year","Fiscal Year "&'KEY INPUTS'!D33&"",'KEY INPUTS'!D34) -> 2022
B5: Grant | F5: Balance | G5: Budget | H5: Received | I5: Other | J5: Cancelled | K5: Balance
F6: ='10-Grants Receivable'!F6 -> Jan. 1, 2022 | G6: Revenue | K6: ='10-Grants Receivable'!K6 -> Dec. 31, 2022
G7: Realized
B8: PREVIOUS PAGE TOTALS | F8: =+'10.22-Grants Receivable'!F27 -> 462340.1 | G8: =+'10.22-Grants Receivable'!G27 -> 897430.64 | H8: =+'10.22-Grants Receivable'!H27 -> 312103.43 | I8: =+'10.22-Grants Receivable'!I27 -> -198681.02 | J8: =+'10.22-Grants Receivable'!J27 -> 101366 | K8: =+'10.22-Grants Receivable'!K27 -> 747620.29
K9: =+F9+G9-H9+I9-J9 -> 0
K10: 0
K11: 0
K12: 0
K13: 0
K14: 0
A15: Sheet 10.23 | K15: 0
K16: 0
K17: 0
K18: 0
K19: 0
K20: 0
K21: 0
K22: 0
K23: 0
K24: 0
K25: 0
K26: 0
C27: PAGE TOTALS | F27: =SUM(F8:F26) -> 462340.1 | G27: 897430.64 | H27: 312103.43 | I27: -198681.02 | J27: 101366 | K27: 747620.29

Sheet 10.24-Grants Receivable (hidden)
B2: MUNICIPALITIES AND COUNTIES
B3: FEDERAL AND STATE GRANTS RECEIVABLE (cont'd)
G4: =IF('KEY INPUTS'!C42="State Fiscal Year","Fiscal Year "&'KEY INPUTS'!D33&"",'KEY INPUTS'!D34) -> 2022
B5: Grant | F5: Balance | G5: Budget | H5: Received | I5: Other | J5: Cancelled | K5: Balance
F6: ='10-Grants Receivable'!F6 -> Jan. 1, 2022 | G6: Revenue | K6: ='10-Grants Receivable'!K6 -> Dec. 31, 2022
G7: Realized
B8: PREVIOUS PAGE TOTALS | F8: =+'10.23-Grants Receivable'!F27 -> 462340.1 | G8: =+'10.23-Grants Receivable'!G27 -> 897430.64 | H8: =+'10.23-Grants Receivable'!H27 -> 312103.43 | I8: =+'10.23-Grants Receivable'!I27 -> -198681.02 | J8: =+'10.23-Grants Receivable'!J27 -> 101366 | K8: =+'10.23-Grants Receivable'!K27 -> 747620.29
K9: =+F9+G9-H9+I9-J9 -> 0
K10: 0
K11: 0
K12: 0
K13: 0
K14: 0
A15: Sheet 10.24 | K15: 0
K16: 0
K17: 0
K18: 0
K19: 0
K20: 0
K21: 0
K22: 0
K23: 0
K24: 0
K25: 0
K26: 0
C27: PAGE TOTALS | F27: =SUM(F8:F26) -> 462340.1 | G27: 897430.64 | H27: 312103.43 | I27: -198681.02 | J27: 101366 | K27: 747620.29

Sheet 10 Totals Grants Receivable
B2: MUNICIPALITIES AND COUNTIES
B3: FEDERAL AND STATE GRANTS RECEIVABLE (cont'd)
G4: =IF('KEY INPUTS'!C42="State Fiscal Year","Fiscal Year "&'KEY INPUTS'!D33&"",'KEY INPUTS'!D34) -> 2022
B5: Grant | F5: Balance | G5: Budget | H5: Received | I5: Other | J5: Cancelled | K5: Balance
F6: ='10-Grants Receivable'!F6 -> Jan. 1, 2022 | G6: Revenue | K6: ='10-Grants Receivable'!K6 -> Dec. 31, 2022
G7: Realized
B8: PREVIOUS PAGE TOTALS | F8: =+'10.24-Grants Receivable'!F27 -> 462340.1 | G8: =+'10.24-Grants Receivable'!G27 -> 897430.64 | H8: =+'10.24-Grants Receivable'!H27 -> 312103.43 | I8: =+'10.24-Grants Receivable'!I27 -> -198681.02 | J8: =+'10.24-Grants Receivable'!J27 -> 101366 | K8: =+'10.24-Grants Receivable'!K27 -> 747620.29
K9: =+F9+G9-H9+I9-J9 -> 0
K10: 0
K11: 0
K12: 0
K13: 0
K14: 0
A15: Sheet 10 Totals | K15: 0
K16: 0
K17: 0
K18: 0
K19: 0
K20: 0
K21: 0
K22: 0
K23: 0
K24: 0
K25: 0
K26: 0
C27: TOTALS | F27: =SUM(F8:F26) -> 462340.1 | G27: 897430.64 | H27: 312103.43 | I27: -198681.02 | J27: 101366 | K27: 747620.29

Sheet 11 Grants Approp Rsrv
B2: SCHEDULE OF APPROPRIATED RESERVES FOR
B3: FEDERAL AND STATE GRANTS
G4: =IF('KEY INPUTS'!C42="State Fiscal Year","Transferred from Fiscal Year "&'KEY INPUTS'!D33&"","Transferred from "&'KEY INPUTS'!D34&"") -> Transferred from 2022
B5: Grant | F5: Balance | G5: Budget Appropriations | I5: Expended | J5: Other | K5: Cancelled | L5: Balance
F6: =IF('KEY INPUTS'!C42 = "State Fiscal Year", 'KEY INPUTS'!F48,'KEY INPUTS'!D48) -> Jan. 1, 2022 | G6: Budget | H6: Appropriation | L6: =IF('KEY INPUTS'!C42 = "State Fiscal Year", 'KEY INPUTS'!F47,'KEY INPUTS'!D47) -> Dec. 31, 2022
H7: By 40A:4-87
B8: Sandy/Community Resiliency North Island | F8: 18025 | K8: 18025 | L8: =+F8+G8+H8-I8+J8-K8 -> 0
B9: American Rescue Plan - State and Local Fiscal Recovery Fund | L9: =+F9+G9+H9-I9+J9-K9 -> 0
C10: Covid-19 Testing Kits | F10: 5000 | J10: 4525 | L10: 9525
C11: Digital Documentation | G11: 200000 | I11: 93575.28 | J11: -106424.72 | L11: 0
B12: 2020 Bulletproof Vest Partnership Grant | F12: 6906.9 | I12: 6906.9 | L12: 0
B13: 2021 Bulletproof Vest Partnership Grant | F13: 3187.8 | I13: 18675.25 | J13: 15939 | L13: 451.55
B14: 2022 Bulletproof Vest Partnership Grant | H14: 11157.3 | J14: -1173.7 | L14: 9983.6
A15: Sheet 11 | B15: Edward Byrne Memorial Justice Assistance Grant - 2022 | H15: 53600 | J15: -19422 | L15: 34178
B16: Edward Byrne Memorial Justice Assistance Grant - 2021 | F16: 12053 | G16: 447 | I16: 12053 | L16: 447
B17: Edward Byrne Memorial Justice Assistance Grant - 2020 | I17: 18703 | J17: 18703 | L17: 0
B18: Click It or Ticket Seat Belt Mobilization | H18: 7000 | I18: 5880 | L18: 1120
B19: Assistance to Firefighters Grants | H19: 84425.69 | L19: 84425.69
B20: Hazardous Material Emergency Planning Grant | G20: 29700 | I20: 29700 | L20: 0
B21: FY 2018 Federal Emergency Management Assistance | I21: 9068.25 | J21: 9068.25 | L21: 0
B22: FY 2020 Federal Emergency Management Assistance | F22: 8085.73 | I22: 8085.73 | L22: 0
B23: FY 2021 Federal Emergency Management Assistance | F23: 10000 | I23: 9800 | L23: 200
B24: FY 2022 Federal Emergency Management Assistance | G24: 10000 | J24: -4198.5 | L24: 5801.5
B25: CARES ACT - Title III Older Americans Act - 2021 | F25: 1615.92 | I25: 26291.65 | J25: 24675.73 | L25: -3.637978807e-12
B26: CARES ACT - Title III Older Americans Act - 2020 | F26: 45546 | K26: 45546 | L26: 0
C27: PAGE TOTALS | F27: =SUM(F8:F26) -> 110420.35 | G27: =SUM(G8:G26) -> 240147 | H27: 156182.99 | I27: 238739.06 | J27: -58307.94 | K27: 63571 | L27: =SUM(L8:L26) -> 146132.34

Sheet 11.1 Grants Approp Rsrv
B2: SCHEDULE OF APPROPRIATED RESERVES FOR
B3: FEDERAL AND STATE GRANTS
G4: =IF('KEY INPUTS'!C42="State Fiscal Year","Transferred from Fiscal Year "&'KEY INPUTS'!D33&"","Transferred from "&'KEY INPUTS'!D34&"") -> Transferred from 2022
B5: Grant | F5: Balance | G5: Budget Appropriations | I5: Expended | J5: Other | K5: Cancelled | L5: Balance
F6: ='11 Grants Approp Rsrv'!F6 -> Jan. 1, 2022 | G6: Budget | H6: Appropriation | L6: ='11 Grants Approp Rsrv'!L6 -> Dec. 31, 2022
H7: By 40A:4-87
B8: PREVIOUS PAGE TOTALS | F8: =+'11 Grants Approp Rsrv'!F27 -> 110420.35 | G8: =+'11 Grants Approp Rsrv'!G27 -> 240147 | H8: =+'11 Grants Approp Rsrv'!H27 -> 156182.99 | I8: =+'11 Grants Approp Rsrv'!I27 -> 238739.06 | J8: =+'11 Grants Approp Rsrv'!J27 -> -58307.94 | K8: =+'11 Grants Approp Rsrv'!K27 -> 63571 | L8: =+'11 Grants Approp Rsrv'!L27 -> 146132.34
B9: Senior Citizens - Title IIIB - 2022 | G9: 36000 | I9: 36000 | L9: =+F9+G9+H9-I9+J9-K9 -> 0
B10: Senior Citizens - Title IIIB - 2022 (Senior Center) | G10: 10578 | J10: -10264.98 | L10: 313.02
B11: Senior Citizens - Title IIIB - 2021 | F11: 1000 | J11: -415 | L11: 585
B12: Senior Citizens - Title IIIB - 2020 | F12: 10568.01 | I12: 5484.54 | J12: 905.42 | L12: 5988.89
B13: US EPA - Brownfields Hazardous Assessment | F13: 4433.96 | L13: 4433.96
B14: US EPA - Brownfields Petroleum Assessment | F14: 2598.61 | L14: 2598.61
A15: Sheet 11.1 | B15: Body Armor Replacement Fund - N.J. - 2018 | I15: 4979.31 | J15: 4979.31 | L15: 0
B16: Body Armor Replacement Fund - N.J. - 2019 | I16: 7046.89 | J16: 7046.89 | L16: 0
B17: Body Armor Replacement Fund - N.J. - 2020 | F17: 1375.06 | I17: 5287.86 | J17: 3912.8 | L17: 4.547473509e-13
B18: Body Armor Replacement Fund - N.J. - 2021 | G18: 3223.48 | I18: 3223.48 | L18: 0
B19: 2021 Drunk Driving Enforcement Fund | F19: 7701.06 | I19: 6612.08 | J19: -877 | L19: 211.98
B20: 2018-2020 Drunk Driving Enforcement Fund | F20: 13933.92 | I20: 14112.92 | J20: 179 | L20: 0
B21: Alcohol Education Rehabilitation and Enforcement Fund (AEREF) | F21: 65115.76 | H21: 4737.97 | L21: 69853.73
B22: Clean Communities | F22: 171751.41 | H22: 69169.02 | I22: 47121.44 | J22: =7251.2-71694.41 -> -64443.21 | L22: 129355.78
B23: It Pays to Plug In | H23: 75000 | J23: -75000 | L23: 0
B24: 2022 - Recycling Tonnage Grant | G24: 49997.43 | L24: 49997.43
B25: 2018 - Recycling Tonnage Grant | F25: 68804.38 | J25: -17346.88 | L25: 51457.5
B26: 2017 - Recycling Tonnage Grant | F26: 50333.81 | J26: -50333.81 | L26: 0
C27: PAGE TOTALS | F27: =SUM(F8:F26) -> 508036.33 | G27: =SUM(G8:G26) -> 339945.91 | H27: 305089.98 | I27: 368607.58 | J27: -259965.4 | K27: 63571 | L27: =SUM(L8:L26) -> 460928.24

Sheet 11.2 Grants Approp Rsrv
B2: SCHEDULE OF APPROPRIATED RESERVES FOR
B3: FEDERAL AND STATE GRANTS
G4: =IF('KEY INPUTS'!C42="State Fiscal Year","Transferred from Fiscal Year "&'KEY INPUTS'!D33&"","Transferred from "&'KEY INPUTS'!D34&"") -> Transferred from 2022
B5: Grant | F5: Balance | G5: Budget Appropriations | I5: Expended | J5: Other | K5: Cancelled | L5: Balance
F6: ='11 Grants Approp Rsrv'!F6 -> Jan. 1, 2022 | G6: Budget | H6: Appropriation | L6: ='11 Grants Approp Rsrv'!L6 -> Dec. 31, 2022
H7: By 40A:4-87
B8: PREVIOUS PAGE TOTALS | F8: =+'11.1 Grants Approp Rsrv'!F27 -> 508036.33 | G8: =+'11.1 Grants Approp Rsrv'!G27 -> 339945.91 | H8: =+'11.1 Grants Approp Rsrv'!H27 -> 305089.98 | I8: =+'11.1 Grants Approp Rsrv'!I27 -> 368607.58 | J8: =+'11.1 Grants Approp Rsrv'!J27 -> -259965.4 | K8: =+'11.1 Grants Approp Rsrv'!K27 -> 63571 | L8: =+'11.1 Grants Approp Rsrv'!L27 -> 460928.24
B9: 2016 - Recycling Tonnage Grant | F9: 24236.41 | I9: 46577.66 | J9: =24192.66-1851.41 -> 22341.25 | L9: =+F9+G9+H9-I9+J9-K9 -> -3.637978807e-12
B10: 2015 - Recycling Tonnage Grant | I10: 3802.77 | J10: 3802.77 | L10: 0
B11: Hazardous Discharge Site Remediation - Shark River Marina | F11: 28800.15 | L11: 28800.15
B12: Hazardous Discharge Site Remediation - Chidnese Property | F12: 47444.61 | L12: 47444.61
B13: Hazardous Discharge Site Remediation - Shark River Marina | F13: 48467.75 | I13: 16876.62 | J13: -14994.2 | L13: 16596.93
B14: Hazardous Discharge Site Remediation Program - Welsh Farms | H14: 49405 | J14: =2985.35-52390.35 -> -49405 | L14: 0
A15: Sheet 11.2 | B15: Clean Energy Electric Vehicle Tourism Grant | H15: 150000 | J15: -150000 | L15: 0
B16: Micro-Grid Project | F16: 526100 | I16: 321505.58 | J16: =-204594.42+1670.99 -> -202923.43 | L16: 1670.99
B17: Municipal Alliance on Alcoholism and Drug Abuse (DEDR) - 2022 (YLG) | H17: 7251.05 | J17: -6888.5 | L17: 362.55
B18: Municipal Alliance on Alcoholism and Drug Abuse (DEDR) - 2022 | G18: 21290 | I18: 5218.98 | J18: -12576.77 | L18: 3494.25
B19: Municipal Alliance on Alcoholism and Drug Abuse (DEDR) 2021 | F19: 5397 | I19: 5397 | L19: 0
B20: Municipal Alliance on Alcoholism and Drug Abuse (DEDR) 2020 | F20: 47060.66 | I20: 6860.24 | J20: 4955.04 | K20: 35943.5 | L20: 9211.96
B21: Municipal Alliance on Alcoholism and Drug Abuse (DEDR) 2019 | F21: 19876.5 | K21: 19876.5 | L21: 0
B22: Interfaith Neighbors Senior Meal Program | G22: 24449 | I22: 24449 | L22: 0
B23: Interfaith Neighbors Senior Meal Program - Local Match | G23: 55551 | I23: 55551 | L23: 0
B24: The Association of NJ Environmental Commissions (ANJEC) | F24: 1000 | I24: 1000 | L24: 0
B25: Senior Citizens - Title III | G25: 188000 | I25: 188000 | L25: 0
B26: Assistance to Fire Fighter | G26: 8442.57 | L26: 8442.57
C27: PAGE TOTALS | F27: =SUM(F8:F26) -> 1256419.41 | G27: =SUM(G8:G26) -> 637678.48 | H27: 511746.03 | I27: 1043846.43 | J27: -665654.24 | K27: 119391 | L27: =SUM(L8:L26) -> 576952.25

Sheet 11.3 Grants Approp Rsrv (hidden)
B2: SCHEDULE OF APPROPRIATED RESERVES FOR
B3: FEDERAL AND STATE GRANTS
G4: =IF('KEY INPUTS'!C42="State Fiscal Year","Transferred from Fiscal Year "&'KEY INPUTS'!D33&"","Transferred from "&'KEY INPUTS'!D34&"") -> Transferred from 2022
B5: Grant | F5: Balance | G5: Budget Appropriations | I5: Expended | J5: Other | K5: Cancelled | L5: Balance
F6: ='11 Grants Approp Rsrv'!F6 -> Jan. 1, 2022 | G6: Budget | H6: Appropriation | L6: ='11 Grants Approp Rsrv'!L6 -> Dec. 31, 2022
H7: By 40A:4-87
B8: PREVIOUS PAGE TOTALS | F8: =+'11.2 Grants Approp Rsrv'!F27 -> 1256419.41 | G8: =+'11.2 Grants Approp Rsrv'!G27 -> 637678.48 | H8: =+'11.2 Grants Approp Rsrv'!H27 -> 511746.03 | I8: =+'11.2 Grants Approp Rsrv'!I27 -> 1043846.43 | J8: =+'11.2 Grants Approp Rsrv'!J27 -> -665654.24 | K8: =+'11.2 Grants Approp Rsrv'!K27 -> 119391 | L8: =+'11.2 Grants Approp Rsrv'!L27 -> 576952.25
L9: =+F9+G9+H9-I9+J9-K9 -> 0
L10: 0
L11: 0
L12: 0
L13: 0
L14: 0
A15: Sheet 11.3 | L15: 0
L16: 0
L17: 0
L18: 0
L19: 0
L20: 0
L21: 0
L22: 0
L23: 0
L24: 0
L25: 0
L26: 0
C27: PAGE TOTALS | F27: =SUM(F8:F26) -> 1256419.41 | G27: =SUM(G8:G26) -> 637678.48 | H27: 511746.03 | I27: 1043846.43 | J27: -665654.24 | K27: 119391 | L27: =SUM(L8:L26) -> 576952.25

Sheet 11.4 Grants Approp Rsrv (hidden)
B2: SCHEDULE OF APPROPRIATED RESERVES FOR
B3: FEDERAL AND STATE GRANTS
G4: =IF('KEY INPUTS'!C42="State Fiscal Year","Transferred from Fiscal Year "&'KEY INPUTS'!D33&"","Transferred from "&'KEY INPUTS'!D34&"") -> Transferred from 2022
B5: Grant | F5: Balance | G5: Budget Appropriations | I5: Expended | J5: Other | K5: Cancelled | L5: Balance
F6: ='11 Grants Approp Rsrv'!F6 -> Jan. 1, 2022 | G6: Budget | H6: Appropriation | L6: ='11 Grants Approp Rsrv'!L6 -> Dec. 31, 2022
H7: By 40A:4-87
B8: PREVIOUS PAGE TOTALS | F8: =+'11.3 Grants Approp Rsrv'!F27 -> 1256419.41 | G8: =+'11.3 Grants Approp Rsrv'!G27 -> 637678.48 | H8: =+'11.3 Grants Approp Rsrv'!H27 -> 511746.03 | I8: =+'11.3 Grants Approp Rsrv'!I27 -> 1043846.43 | J8: =+'11.3 Grants Approp Rsrv'!J27 -> -665654.24 | K8: =+'11.3 Grants Approp Rsrv'!K27 -> 119391 | L8: =+'11.3 Grants Approp Rsrv'!L27 -> 576952.25
L9: =+F9+G9+H9-I9+J9-K9 -> 0
L10: 0
L11: 0
L12: 0
L13: 0
L14: 0
A15: Sheet 11.4 | L15: 0
L16: 0
L17: 0
L18: 0
L19: 0
L20: 0
L21: 0
L22: 0
L23: 0
L24: 0
L25: 0
L26: 0
C27: PAGE TOTALS | F27: =SUM(F8:F26) -> 1256419.41 | G27: =SUM(G8:G26) -> 637678.48 | H27: 511746.03 | I27: 1043846.43 | J27: -665654.24 | K27: 119391 | L27: =SUM(L8:L26) -> 576952.25

Sheet 11.5 Grants Approp Rsrv (hidden)
B2: SCHEDULE OF APPROPRIATED RESERVES FOR
B3: FEDERAL AND STATE GRANTS
G4: =IF('KEY INPUTS'!C42="State Fiscal Year","Transferred from Fiscal Year "&'KEY INPUTS'!D33&"","Transferred from "&'KEY INPUTS'!D34&"") -> Transferred from 2022
B5: Grant | F5: Balance | G5: Budget Appropriations | I5: Expended | J5: Other | K5: Cancelled | L5: Balance
F6: ='11 Grants Approp Rsrv'!F6 -> Jan. 1, 2022 | G6: Budget | H6: Appropriation | L6: ='11 Grants Approp Rsrv'!L6 -> Dec. 31, 2022
H7: By 40A:4-87
B8: PREVIOUS PAGE TOTALS | F8: =+'11.4 Grants Approp Rsrv'!F27 -> 1256419.41 | G8: =+'11.4 Grants Approp Rsrv'!G27 -> 637678.48 | H8: =+'11.4 Grants Approp Rsrv'!H27 -> 511746.03 | I8: =+'11.4 Grants Approp Rsrv'!I27 -> 1043846.43 | J8: =+'11.4 Grants Approp Rsrv'!J27 -> -665654.24 | K8: =+'11.4 Grants Approp Rsrv'!K27 -> 119391 | L8: =+'11.4 Grants Approp Rsrv'!L27 -> 576952.25
L9: =+F9+G9+H9-I9+J9-K9 -> 0
L10: 0
L11: 0
L12: 0
L13: 0
L14: 0
A15: Sheet 11.5 | L15: 0
L16: 0
L17: 0
L18: 0
L19: 0
L20: 0
L21: 0
L22: 0
L23: 0
L24: 0
L25: 0
L26: 0
C27: PAGE TOTALS | F27: =SUM(F8:F26) -> 1256419.41 | G27: =SUM(G8:G26) -> 637678.48 | H27: 511746.03 | I27: 1043846.43 | J27: -665654.24 | K27: 119391 | L27: =SUM(L8:L26) -> 576952.25

Sheet 11.6 Grants Approp Rsrv (hidden)
B2: SCHEDULE OF APPROPRIATED RESERVES FOR
B3: FEDERAL AND STATE GRANTS
G4: =IF('KEY INPUTS'!C42="State Fiscal Year","Transferred from Fiscal Year "&'KEY INPUTS'!D33&"","Transferred from "&'KEY INPUTS'!D34&"") -> Transferred from 2022
B5: Grant | F5: Balance | G5: Budget Appropriations | I5: Expended | J5: Other | K5: Cancelled | L5: Balance
F6: ='11 Grants Approp Rsrv'!F6 -> Jan. 1, 2022 | G6: Budget | H6: Appropriation | L6: ='11 Grants Approp Rsrv'!L6 -> Dec. 31, 2022
H7: By 40A:4-87
B8: PREVIOUS PAGE TOTALS | F8: =+'11.5 Grants Approp Rsrv'!F27 -> 1256419.41 | G8: =+'11.5 Grants Approp Rsrv'!G27 -> 637678.48 | H8: =+'11.5 Grants Approp Rsrv'!H27 -> 511746.03 | I8: =+'11.5 Grants Approp Rsrv'!I27 -> 1043846.43 | J8: =+'11.5 Grants Approp Rsrv'!J27 -> -665654.24 | K8: =+'11.5 Grants Approp Rsrv'!K27 -> 119391 | L8: =+'11.5 Grants Approp Rsrv'!L27 -> 576952.25
L9: =+F9+G9+H9-I9+J9-K9 -> 0
L10: 0
L11: 0
L12: 0
L13: 0
L14: 0
A15: Sheet 11.6 | L15: 0
L16: 0
L17: 0
L18: 0
L19: 0
L20: 0
L21: 0
L22: 0
L23: 0
L24: 0
L25: 0
L26: 0
C27: PAGE TOTALS | F27: =SUM(F8:F26) -> 1256419.41 | G27: =SUM(G8:G26) -> 637678.48 | H27: 511746.03 | I27: 1043846.43 | J27: -665654.24 | K27: 119391 | L27: =SUM(L8:L26) -> 576952.25

Sheet 11.7 Grants Approp Rsrv (hidden)
B2: SCHEDULE OF APPROPRIATED RESERVES FOR
B3: FEDERAL AND STATE GRANTS
G4: =IF('KEY INPUTS'!C42="State Fiscal Year","Transferred from Fiscal Year "&'KEY INPUTS'!D33&"","Transferred from "&'KEY INPUTS'!D34&"") -> Transferred from 2022
B5: Grant | F5: Balance | G5: Budget Appropriations | I5: Expended | J5: Other | K5: Cancelled | L5: Balance
F6: ='11 Grants Approp Rsrv'!F6 -> Jan. 1, 2022 | G6: Budget | H6: Appropriation | L6: ='11 Grants Approp Rsrv'!L6 -> Dec. 31, 2022
H7: By 40A:4-87
B8: PREVIOUS PAGE TOTALS | F8: =+'11.6 Grants Approp Rsrv'!F27 -> 1256419.41 | G8: =+'11.6 Grants Approp Rsrv'!G27 -> 637678.48 | H8: =+'11.6 Grants Approp Rsrv'!H27 -> 511746.03 | I8: =+'11.6 Grants Approp Rsrv'!I27 -> 1043846.43 | J8: =+'11.6 Grants Approp Rsrv'!J27 -> -665654.24 | K8: =+'11.6 Grants Approp Rsrv'!K27 -> 119391 | L8: =+'11.6 Grants Approp Rsrv'!L27 -> 576952.25
L9: =+F9+G9+H9-I9+J9-K9 -> 0
L10: 0
L11: 0
L12: 0
L13: 0
L14: 0
A15: Sheet 11.7 | L15: 0
L16: 0
L17: 0
L18: 0
L19: 0
L20: 0
L21: 0
L22: 0
L23: 0
L24: 0
L25: 0
L26: 0
C27: PAGE TOTALS | F27: =SUM(F8:F26) -> 1256419.41 | G27: =SUM(G8:G26) -> 637678.48 | H27: 511746.03 | I27: 1043846.43 | J27: -665654.24 | K27: 119391 | L27: =SUM(L8:L26) -> 576952.25

Sheet 11.8 Grants Approp Rsrv (hidden)
B2: SCHEDULE OF APPROPRIATED RESERVES FOR
B3: FEDERAL AND STATE GRANTS
G4: =IF('KEY INPUTS'!C42="State Fiscal Year","Transferred from Fiscal Year "&'KEY INPUTS'!D33&"","Transferred from "&'KEY INPUTS'!D34&"") -> Transferred from 2022
B5: Grant | F5: Balance | G5: Budget Appropriations | I5: Expended | J5: Other | K5: Cancelled | L5: Balance
F6: ='11 Grants Approp Rsrv'!F6 -> Jan. 1, 2022 | G6: Budget | H6: Appropriation | L6: ='11 Grants Approp Rsrv'!L6 -> Dec. 31, 2022
H7: By 40A:4-87
B8: PREVIOUS PAGE TOTALS | F8: =+'11.7 Grants Approp Rsrv'!F27 -> 1256419.41 | G8: =+'11.7 Grants Approp Rsrv'!G27 -> 637678.48 | H8: =+'11.7 Grants Approp Rsrv'!H27 -> 511746.03 | I8: =+'11.7 Grants Approp Rsrv'!I27 -> 1043846.43 | J8: =+'11.7 Grants Approp Rsrv'!J27 -> -665654.24 | K8: =+'11.7 Grants Approp Rsrv'!K27 -> 119391 | L8: =+'11.7 Grants Approp Rsrv'!L27 -> 576952.25
L9: =+F9+G9+H9-I9+J9-K9 -> 0
L10: 0
L11: 0
L12: 0
L13: 0
L14: 0
A15: Sheet 11.8 | L15: 0
L16: 0
L17: 0
L18: 0
L19: 0
L20: 0
L21: 0
L22: 0
L23: 0
L24: 0
L25: 0
L26: 0
C27: PAGE TOTALS | F27: =SUM(F8:F26) -> 1256419.41 | G27: =SUM(G8:G26) -> 637678.48 | H27: 511746.03 | I27: 1043846.43 | J27: -665654.24 | K27: 119391 | L27: =SUM(L8:L26) -> 576952.25

Sheet 11.9 Grants Approp Rsrv (hidden)
B2: SCHEDULE OF APPROPRIATED RESERVES FOR
B3: FEDERAL AND STATE GRANTS
G4: =IF('KEY INPUTS'!C42="State Fiscal Year","Transferred from Fiscal Year "&'KEY INPUTS'!D33&"","Transferred from "&'KEY INPUTS'!D34&"") -> Transferred from 2022
B5: Grant | F5: Balance | G5: Budget Appropriations | I5: Expended | J5: Other | K5: Cancelled | L5: Balance
F6: ='11 Grants Approp Rsrv'!F6 -> Jan. 1, 2022 | G6: Budget | H6: Appropriation | L6: ='11 Grants Approp Rsrv'!L6 -> Dec. 31, 2022
H7: By 40A:4-87
B8: PREVIOUS PAGE TOTALS | F8: =+'11.8 Grants Approp Rsrv'!F27 -> 1256419.41 | G8: =+'11.8 Grants Approp Rsrv'!G27 -> 637678.48 | H8: =+'11.8 Grants Approp Rsrv'!H27 -> 511746.03 | I8: =+'11.8 Grants Approp Rsrv'!I27 -> 1043846.43 | J8: =+'11.8 Grants Approp Rsrv'!J27 -> -665654.24 | K8: =+'11.8 Grants Approp Rsrv'!K27 -> 119391 | L8: =+'11.8 Grants Approp Rsrv'!L27 -> 576952.25
L9: =+F9+G9+H9-I9+J9-K9 -> 0
L10: 0
L11: 0
L12: 0
L13: 0
L14: 0
A15: Sheet 11.9 | L15: 0
L16: 0
L17: 0
L18: 0
L19: 0
L20: 0
L21: 0
L22: 0
L23: 0
L24: 0
L25: 0
L26: 0
C27: PAGE TOTALS | F27: =SUM(F8:F26) -> 1256419.41 | G27: =SUM(G8:G26) -> 637678.48 | H27: 511746.03 | I27: 1043846.43 | J27: -665654.24 | K27: 119391 | L27: =SUM(L8:L26) -> 576952.25

Sheet 11.10 Grants Approp Rsrv (hidden)
B2: SCHEDULE OF APPROPRIATED RESERVES FOR
B3: FEDERAL AND STATE GRANTS
G4: =IF('KEY INPUTS'!C42="State Fiscal Year","Transferred from Fiscal Year "&'KEY INPUTS'!D33&"","Transferred from "&'KEY INPUTS'!D34&"") -> Transferred from 2022
B5: Grant | F5: Balance | G5: Budget Appropriations | I5: Expended | J5: Other | K5: Cancelled | L5: Balance
F6: ='11 Grants Approp Rsrv'!F6 -> Jan. 1, 2022 | G6: Budget | H6: Appropriation | L6: ='11 Grants Approp Rsrv'!L6 -> Dec. 31, 2022
H7: By 40A:4-87
B8: PREVIOUS PAGE TOTALS | F8: =+'11.9 Grants Approp Rsrv'!F27 -> 1256419.41 | G8: =+'11.9 Grants Approp Rsrv'!G27 -> 637678.48 | H8: =+'11.9 Grants Approp Rsrv'!H27 -> 511746.03 | I8: =+'11.9 Grants Approp Rsrv'!I27 -> 1043846.43 | J8: =+'11.9 Grants Approp Rsrv'!J27 -> -665654.24 | K8: =+'11.9 Grants Approp Rsrv'!K27 -> 119391 | L8: =+'11.9 Grants Approp Rsrv'!L27 -> 576952.25
L9: =+F9+G9+H9-I9+J9-K9 -> 0
L10: 0
L11: 0
L12: 0
L13: 0
L14: 0
A15: Sheet 11.10 | L15: 0
L16: 0
L17: 0
L18: 0
L19: 0
L20: 0
L21: 0
L22: 0
L23: 0
L24: 0
L25: 0
L26: 0
C27: PAGE TOTALS | F27: =SUM(F8:F26) -> 1256419.41 | G27: =SUM(G8:G26) -> 637678.48 | H27: 511746.03 | I27: 1043846.43 | J27: -665654.24 | K27: 119391 | L27: =SUM(L8:L26) -> 576952.25

Sheet 11.11 Grants Approp Rsrv (hidden)
B2: SCHEDULE OF APPROPRIATED RESERVES FOR
B3: FEDERAL AND STATE GRANTS
G4: =IF('KEY INPUTS'!C42="State Fiscal Year","Transferred from Fiscal Year "&'KEY INPUTS'!D33&"","Transferred from "&'KEY INPUTS'!D34&"") -> Transferred from 2022
B5: Grant | F5: Balance | G5: Budget Appropriations | I5: Expended | J5: Other | K5: Cancelled | L5: Balance
F6: ='11 Grants Approp Rsrv'!F6 -> Jan. 1, 2022 | G6: Budget | H6: Appropriation | L6: ='11 Grants Approp Rsrv'!L6 -> Dec. 31, 2022
H7: By 40A:4-87
B8: PREVIOUS PAGE TOTALS | F8: =+'11.10 Grants Approp Rsrv'!F27 -> 1256419.41 | G8: =+'11.10 Grants Approp Rsrv'!G27 -> 637678.48 | H8: =+'11.10 Grants Approp Rsrv'!H27 -> 511746.03 | I8: =+'11.10 Grants Approp Rsrv'!I27 -> 1043846.43 | J8: =+'11.10 Grants Approp Rsrv'!J27 -> -665654.24 | K8: =+'11.10 Grants Approp Rsrv'!K27 -> 119391 | L8: =+'11.10 Grants Approp Rsrv'!L27 -> 576952.25
L9: =+F9+G9+H9-I9+J9-K9 -> 0
L10: 0
L11: 0
L12: 0
L13: 0
L14: 0
A15: Sheet 11.11 | L15: 0
L16: 0
L17: 0
L18: 0
L19: 0
L20: 0
L21: 0
L22: 0
L23: 0
L24: 0
L25: 0
L26: 0
C27: PAGE TOTALS | F27: =SUM(F8:F26) -> 1256419.41 | G27: =SUM(G8:G26) -> 637678.48 | H27: 511746.03 | I27: 1043846.43 | J27: -665654.24 | K27: 119391 | L27: =SUM(L8:L26) -> 576952.25

Sheet 11.12 Grants Approp Rsrv (hidden)
B2: SCHEDULE OF APPROPRIATED RESERVES FOR
B3: FEDERAL AND STATE GRANTS
G4: =IF('KEY INPUTS'!C42="State Fiscal Year","Transferred from Fiscal Year "&'KEY INPUTS'!D33&"","Transferred from "&'KEY INPUTS'!D34&"") -> Transferred from 2022
B5: Grant | F5: Balance | G5: Budget Appropriations | I5: Expended | J5: Other | K5: Cancelled | L5: Balance
F6: ='11 Grants Approp Rsrv'!F6 -> Jan. 1, 2022 | G6: Budget | H6: Appropriation | L6: ='11 Grants Approp Rsrv'!L6 -> Dec. 31, 2022
H7: By 40A:4-87
B8: PREVIOUS PAGE TOTALS | F8: =+'11.11 Grants Approp Rsrv'!F27 -> 1256419.41 | G8: =+'11.11 Grants Approp Rsrv'!G27 -> 637678.48 | H8: =+'11.11 Grants Approp Rsrv'!H27 -> 511746.03 | I8: =+'11.11 Grants Approp Rsrv'!I27 -> 1043846.43 | J8: =+'11.11 Grants Approp Rsrv'!J27 -> -665654.24 | K8: =+'11.11 Grants Approp Rsrv'!K27 -> 119391 | L8: =+'11.11 Grants Approp Rsrv'!L27 -> 576952.25
L9: =+F9+G9+H9-I9+J9-K9 -> 0
L10: 0
L11: 0
L12: 0
L13: 0
L14: 0
A15: Sheet 11.12 | L15: 0
L16: 0
L17: 0
L18: 0
L19: 0
L20: 0
L21: 0
L22: 0
L23: 0
L24: 0
L25: 0
L26: 0
C27: PAGE TOTALS | F27: =SUM(F8:F26) -> 1256419.41 | G27: =SUM(G8:G26) -> 637678.48 | H27: 511746.03 | I27: 1043846.43 | J27: -665654.24 | K27: 119391 | L27: =SUM(L8:L26) -> 576952.25

Sheet 11.13 Grants Approp Rsrv (hidden)
B2: SCHEDULE OF APPROPRIATED RESERVES FOR
B3: FEDERAL AND STATE GRANTS
G4: =IF('KEY INPUTS'!C42="State Fiscal Year","Transferred from Fiscal Year "&'KEY INPUTS'!D33&"","Transferred from "&'KEY INPUTS'!D34&"") -> Transferred from 2022
B5: Grant | F5: Balance | G5: Budget Appropriations | I5: Expended | J5: Other | K5: Cancelled | L5: Balance
F6: ='11 Grants Approp Rsrv'!F6 -> Jan. 1, 2022 | G6: Budget | H6: Appropriation | L6: ='11 Grants Approp Rsrv'!L6 -> Dec. 31, 2022
H7: By 40A:4-87
B8: PREVIOUS PAGE TOTALS | F8: =+'11.12 Grants Approp Rsrv'!F27 -> 1256419.41 | G8: =+'11.12 Grants Approp Rsrv'!G27 -> 637678.48 | H8: =+'11.12 Grants Approp Rsrv'!H27 -> 511746.03 | I8: =+'11.12 Grants Approp Rsrv'!I27 -> 1043846.43 | J8: =+'11.12 Grants Approp Rsrv'!J27 -> -665654.24 | K8: =+'11.12 Grants Approp Rsrv'!K27 -> 119391 | L8: =+'11.12 Grants Approp Rsrv'!L27 -> 576952.25
L9: =+F9+G9+H9-I9+J9-K9 -> 0
L10: 0
L11: 0
L12: 0
L13: 0
L14: 0
A15: Sheet 11.13 | L15: 0
L16: 0
L17: 0
L18: 0
L19: 0
L20: 0
L21: 0
L22: 0
L23: 0
L24: 0
L25: 0
L26: 0
C27: PAGE TOTALS | F27: =SUM(F8:F26) -> 1256419.41 | G27: =SUM(G8:G26) -> 637678.48 | H27: 511746.03 | I27: 1043846.43 | J27: -665654.24 | K27: 119391 | L27: =SUM(L8:L26) -> 576952.25

Sheet 11.14 Grants Approp Rsrv (hidden)
B2: SCHEDULE OF APPROPRIATED RESERVES FOR
B3: FEDERAL AND STATE GRANTS
G4: =IF('KEY INPUTS'!C42="State Fiscal Year","Transferred from Fiscal Year "&'KEY INPUTS'!D33&"","Transferred from "&'KEY INPUTS'!D34&"") -> Transferred from 2022
B5: Grant | F5: Balance | G5: Budget Appropriations | I5: Expended | J5: Other | K5: Cancelled | L5: Balance
F6: ='11 Grants Approp Rsrv'!F6 -> Jan. 1, 2022 | G6: Budget | H6: Appropriation | L6: ='11 Grants Approp Rsrv'!L6 -> Dec. 31, 2022
H7: By 40A:4-87
B8: PREVIOUS PAGE TOTALS | F8: =+'11.13 Grants Approp Rsrv'!F27 -> 1256419.41 | G8: =+'11.13 Grants Approp Rsrv'!G27 -> 637678.48 | H8: =+'11.13 Grants Approp Rsrv'!H27 -> 511746.03 | I8: =+'11.13 Grants Approp Rsrv'!I27 -> 1043846.43 | J8: =+'11.13 Grants Approp Rsrv'!J27 -> -665654.24 | K8: =+'11.13 Grants Approp Rsrv'!K27 -> 119391 | L8: =+'11.13 Grants Approp Rsrv'!L27 -> 576952.25
L9: =+F9+G9+H9-I9+J9-K9 -> 0
L10: 0
L11: 0
L12: 0
L13: 0
L14: 0
A15: Sheet 11.14 | L15: 0
L16: 0
L17: 0
L18: 0
L19: 0
L20: 0
L21: 0
L22: 0
L23: 0
L24: 0
L25: 0
L26: 0
C27: PAGE TOTALS | F27: =SUM(F8:F26) -> 1256419.41 | G27: =SUM(G8:G26) -> 637678.48 | H27: 511746.03 | I27: 1043846.43 | J27: -665654.24 | K27: 119391 | L27: =SUM(L8:L26) -> 576952.25

Sheet 11.15 Grants Approp Rsrv (hidden)
B2: SCHEDULE OF APPROPRIATED RESERVES FOR
B3: FEDERAL AND STATE GRANTS
G4: =IF('KEY INPUTS'!C42="State Fiscal Year","Transferred from Fiscal Year "&'KEY INPUTS'!D33&"","Transferred from "&'KEY INPUTS'!D34&"") -> Transferred from 2022
B5: Grant | F5: Balance | G5: Budget Appropriations | I5: Expended | J5: Other | K5: Cancelled | L5: Balance
F6: ='11 Grants Approp Rsrv'!F6 -> Jan. 1, 2022 | G6: Budget | H6: Appropriation | L6: ='11 Grants Approp Rsrv'!L6 -> Dec. 31, 2022
H7: By 40A:4-87
B8: PREVIOUS PAGE TOTALS | F8: =+'11.14 Grants Approp Rsrv'!F27 -> 1256419.41 | G8: =+'11.14 Grants Approp Rsrv'!G27 -> 637678.48 | H8: =+'11.14 Grants Approp Rsrv'!H27 -> 511746.03 | I8: =+'11.14 Grants Approp Rsrv'!I27 -> 1043846.43 | J8: =+'11.14 Grants Approp Rsrv'!J27 -> -665654.24 | K8: =+'11.14 Grants Approp Rsrv'!K27 -> 119391 | L8: =+'11.14 Grants Approp Rsrv'!L27 -> 576952.25
L9: =+F9+G9+H9-I9+J9-K9 -> 0
L10: 0
L11: 0
L12: 0
L13: 0
L14: 0
A15: Sheet 11.15 | L15: 0
L16: 0
L17: 0
L18: 0
L19: 0
L20: 0
L21: 0
L22: 0
L23: 0
L24: 0
L25: 0
L26: 0
C27: PAGE TOTALS | F27: =SUM(F8:F26) -> 1256419.41 | G27: =SUM(G8:G26) -> 637678.48 | H27: 511746.03 | I27: 1043846.43 | J27: -665654.24 | K27: 119391 | L27: =SUM(L8:L26) -> 576952.25

Sheet 11.16 Grants Approp Rsrv (hidden)
B2: SCHEDULE OF APPROPRIATED RESERVES FOR
B3: FEDERAL AND STATE GRANTS
G4: =IF('KEY INPUTS'!C42="State Fiscal Year","Transferred from Fiscal Year "&'KEY INPUTS'!D33&"","Transferred from "&'KEY INPUTS'!D34&"") -> Transferred from 2022
B5: Grant | F5: Balance | G5: Budget Appropriations | I5: Expended | J5: Other | K5: Cancelled | L5: Balance
F6: ='11 Grants Approp Rsrv'!F6 -> Jan. 1, 2022 | G6: Budget | H6: Appropriation | L6: ='11 Grants Approp Rsrv'!L6 -> Dec. 31, 2022
H7: By 40A:4-87
B8: PREVIOUS PAGE TOTALS | F8: =+'11.15 Grants Approp Rsrv'!F27 -> 1256419.41 | G8: =+'11.15 Grants Approp Rsrv'!G27 -> 637678.48 | H8: =+'11.15 Grants Approp Rsrv'!H27 -> 511746.03 | I8: =+'11.15 Grants Approp Rsrv'!I27 -> 1043846.43 | J8: =+'11.15 Grants Approp Rsrv'!J27 -> -665654.24 | K8: =+'11.15 Grants Approp Rsrv'!K27 -> 119391 | L8: =+'11.15 Grants Approp Rsrv'!L27 -> 576952.25
L9: =+F9+G9+H9-I9+J9-K9 -> 0
L10: 0
L11: 0
L12: 0
L13: 0
L14: 0
A15: Sheet 11.16 | L15: 0
L16: 0
L17: 0
L18: 0
L19: 0
L20: 0
L21: 0
L22: 0
L23: 0
L24: 0
L25: 0
L26: 0
C27: PAGE TOTALS | F27: =SUM(F8:F26) -> 1256419.41 | G27: =SUM(G8:G26) -> 637678.48 | H27: 511746.03 | I27: 1043846.43 | J27: -665654.24 | K27: 119391 | L27: =SUM(L8:L26) -> 576952.25

Sheet 11.17 Grants Approp Rsrv (hidden)
B2: SCHEDULE OF APPROPRIATED RESERVES FOR
B3: FEDERAL AND STATE GRANTS
G4: =IF('KEY INPUTS'!C42="State Fiscal Year","Transferred from Fiscal Year "&'KEY INPUTS'!D33&"","Transferred from "&'KEY INPUTS'!D34&"") -> Transferred from 2022
B5: Grant | F5: Balance | G5: Budget Appropriations | I5: Expended | J5: Other | K5: Cancelled | L5: Balance
F6: ='11 Grants Approp Rsrv'!F6 -> Jan. 1, 2022 | G6: Budget | H6: Appropriation | L6: ='11 Grants Approp Rsrv'!L6 -> Dec. 31, 2022
H7: By 40A:4-87
B8: PREVIOUS PAGE TOTALS | F8: =+'11.16 Grants Approp Rsrv'!F27 -> 1256419.41 | G8: =+'11.16 Grants Approp Rsrv'!G27 -> 637678.48 | H8: =+'11.16 Grants Approp Rsrv'!H27 -> 511746.03 | I8: =+'11.16 Grants Approp Rsrv'!I27 -> 1043846.43 | J8: =+'11.16 Grants Approp Rsrv'!J27 -> -665654.24 | K8: =+'11.16 Grants Approp Rsrv'!K27 -> 119391 | L8: =+'11.16 Grants Approp Rsrv'!L27 -> 576952.25
L9: =+F9+G9+H9-I9+J9-K9 -> 0
L10: 0
L11: 0
L12: 0
L13: 0
L14: 0
A15: Sheet 11.17 | L15: 0
L16: 0
L17: 0
L18: 0
L19: 0
L20: 0
L21: 0
L22: 0
L23: 0
L24: 0
L25: 0
L26: 0
C27: PAGE TOTALS | F27: =SUM(F8:F26) -> 1256419.41 | G27: =SUM(G8:G26) -> 637678.48 | H27: 511746.03 | I27: 1043846.43 | J27: -665654.24 | K27: 119391 | L27: =SUM(L8:L26) -> 576952.25

Sheet 11.18 Grants Approp Rsrv (hidden)
B2: SCHEDULE OF APPROPRIATED RESERVES FOR
B3: FEDERAL AND STATE GRANTS
G4: =IF('KEY INPUTS'!C42="State Fiscal Year","Transferred from Fiscal Year "&'KEY INPUTS'!D33&"","Transferred from "&'KEY INPUTS'!D34&"") -> Transferred from 2022
B5: Grant | F5: Balance | G5: Budget Appropriations | I5: Expended | J5: Other | K5: Cancelled | L5: Balance
F6: ='11 Grants Approp Rsrv'!F6 -> Jan. 1, 2022 | G6: Budget | H6: Appropriation | L6: ='11 Grants Approp Rsrv'!L6 -> Dec. 31, 2022
H7: By 40A:4-87
B8: PREVIOUS PAGE TOTALS | F8: =+'11.17 Grants Approp Rsrv'!F27 -> 1256419.41 | G8: =+'11.17 Grants Approp Rsrv'!G27 -> 637678.48 | H8: =+'11.17 Grants Approp Rsrv'!H27 -> 511746.03 | I8: =+'11.17 Grants Approp Rsrv'!I27 -> 1043846.43 | J8: =+'11.17 Grants Approp Rsrv'!J27 -> -665654.24 | K8: =+'11.17 Grants Approp Rsrv'!K27 -> 119391 | L8: =+'11.17 Grants Approp Rsrv'!L27 -> 576952.25
L9: =+F9+G9+H9-I9+J9-K9 -> 0
L10: 0
L11: 0
L12: 0
L13: 0
L14: 0
A15: Sheet 11.18 | L15: 0
L16: 0
L17: 0
L18: 0
L19: 0
L20: 0
L21: 0
L22: 0
L23: 0
L24: 0
L25: 0
L26: 0
C27: PAGE TOTALS | F27: =SUM(F8:F26) -> 1256419.41 | G27: =SUM(G8:G26) -> 637678.48 | H27: 511746.03 | I27: 1043846.43 | J27: -665654.24 | K27: 119391 | L27: =SUM(L8:L26) -> 576952.25

Sheet 11.19 Grants Approp Rsrv (hidden)
B2: SCHEDULE OF APPROPRIATED RESERVES FOR
B3: FEDERAL AND STATE GRANTS
G4: =IF('KEY INPUTS'!C42="State Fiscal Year","Transferred from Fiscal Year "&'KEY INPUTS'!D33&"","Transferred from "&'KEY INPUTS'!D34&"") -> Transferred from 2022
B5: Grant | F5: Balance | G5: Budget Appropriations | I5: Expended | J5: Other | K5: Cancelled | L5: Balance
F6: ='11 Grants Approp Rsrv'!F6 -> Jan. 1, 2022 | G6: Budget | H6: Appropriation | L6: ='11 Grants Approp Rsrv'!L6 -> Dec. 31, 2022
H7: By 40A:4-87
B8: PREVIOUS PAGE TOTALS | F8: =+'11.18 Grants Approp Rsrv'!F27 -> 1256419.41 | G8: =+'11.18 Grants Approp Rsrv'!G27 -> 637678.48 | H8: =+'11.18 Grants Approp Rsrv'!H27 -> 511746.03 | I8: =+'11.18 Grants Approp Rsrv'!I27 -> 1043846.43 | J8: =+'11.18 Grants Approp Rsrv'!J27 -> -665654.24 | K8: =+'11.18 Grants Approp Rsrv'!K27 -> 119391 | L8: =+'11.18 Grants Approp Rsrv'!L27 -> 576952.25
L9: =+F9+G9+H9-I9+J9-K9 -> 0
L10: 0
L11: 0
L12: 0
L13: 0
L14: 0
A15: Sheet 11.19 | L15: 0
L16: 0
L17: 0
L18: 0
L19: 0
L20: 0
L21: 0
L22: 0
L23: 0
L24: 0
L25: 0
L26: 0
C27: PAGE TOTALS | F27: =SUM(F8:F26) -> 1256419.41 | G27: =SUM(G8:G26) -> 637678.48 | H27: 511746.03 | I27: 1043846.43 | J27: -665654.24 | K27: 119391 | L27: =SUM(L8:L26) -> 576952.25

Sheet 11.20 Grants Approp Rsrv (hidden)
B2: SCHEDULE OF APPROPRIATED RESERVES FOR
B3: FEDERAL AND STATE GRANTS
G4: =IF('KEY INPUTS'!C42="State Fiscal Year","Transferred from Fiscal Year "&'KEY INPUTS'!D33&"","Transferred from "&'KEY INPUTS'!D34&"") -> Transferred from 2022
B5: Grant | F5: Balance | G5: Budget Appropriations | I5: Expended | J5: Other | K5: Cancelled | L5: Balance
F6: ='11 Grants Approp Rsrv'!F6 -> Jan. 1, 2022 | G6: Budget | H6: Appropriation | L6: ='11 Grants Approp Rsrv'!L6 -> Dec. 31, 2022
H7: By 40A:4-87
B8: PREVIOUS PAGE TOTALS | F8: =+'11.19 Grants Approp Rsrv'!F27 -> 1256419.41 | G8: =+'11.19 Grants Approp Rsrv'!G27 -> 637678.48 | H8: =+'11.19 Grants Approp Rsrv'!H27 -> 511746.03 | I8: =+'11.19 Grants Approp Rsrv'!I27 -> 1043846.43 | J8: =+'11.19 Grants Approp Rsrv'!J27 -> -665654.24 | K8: =+'11.19 Grants Approp Rsrv'!K27 -> 119391 | L8: =+'11.19 Grants Approp Rsrv'!L27 -> 576952.25
L9: =+F9+G9+H9-I9+J9-K9 -> 0
L10: 0
L11: 0
L12: 0
L13: 0
L14: 0
A15: Sheet 11.20 | L15: 0
L16: 0
L17: 0
L18: 0
L19: 0
L20: 0
L21: 0
L22: 0
L23: 0
L24: 0
L25: 0
L26: 0
C27: PAGE TOTALS | F27: =SUM(F8:F26) -> 1256419.41 | G27: =SUM(G8:G26) -> 637678.48 | H27: 511746.03 | I27: 1043846.43 | J27: -665654.24 | K27: 119391 | L27: =SUM(L8:L26) -> 576952.25

Sheet 11.21 Grants Approp Rsrv (hidden)
B2: SCHEDULE OF APPROPRIATED RESERVES FOR
B3: FEDERAL AND STATE GRANTS
G4: =IF('KEY INPUTS'!C42="State Fiscal Year","Transferred from Fiscal Year "&'KEY INPUTS'!D33&"","Transferred from "&'KEY INPUTS'!D34&"") -> Transferred from 2022
B5: Grant | F5: Balance | G5: Budget Appropriations | I5: Expended | J5: Other | K5: Cancelled | L5: Balance
F6: ='11 Grants Approp Rsrv'!F6 -> Jan. 1, 2022 | G6: Budget | H6: Appropriation | L6: ='11 Grants Approp Rsrv'!L6 -> Dec. 31, 2022
H7: By 40A:4-87
B8: PREVIOUS PAGE TOTALS | F8: =+'11.20 Grants Approp Rsrv'!F27 -> 1256419.41 | G8: =+'11.20 Grants Approp Rsrv'!G27 -> 637678.48 | H8: =+'11.20 Grants Approp Rsrv'!H27 -> 511746.03 | I8: =+'11.20 Grants Approp Rsrv'!I27 -> 1043846.43 | J8: =+'11.20 Grants Approp Rsrv'!J27 -> -665654.24 | K8: =+'11.20 Grants Approp Rsrv'!K27 -> 119391 | L8: =+'11.20 Grants Approp Rsrv'!L27 -> 576952.25
L9: =+F9+G9+H9-I9+J9-K9 -> 0
L10: 0
L11: 0
L12: 0
L13: 0
L14: 0
A15: Sheet 11.21 | L15: 0
L16: 0
L17: 0
L18: 0
L19: 0
L20: 0
L21: 0
L22: 0
L23: 0
L24: 0
L25: 0
L26: 0
C27: PAGE TOTALS | F27: =SUM(F8:F26) -> 1256419.41 | G27: =SUM(G8:G26) -> 637678.48 | H27: 511746.03 | I27: 1043846.43 | J27: -665654.24 | K27: 119391 | L27: =SUM(L8:L26) -> 576952.25

Sheet 11.22 Grants Approp Rsrv (hidden)
B2: SCHEDULE OF APPROPRIATED RESERVES FOR
B3: FEDERAL AND STATE GRANTS
G4: =IF('KEY INPUTS'!C42="State Fiscal Year","Transferred from Fiscal Year "&'KEY INPUTS'!D33&"","Transferred from "&'KEY INPUTS'!D34&"") -> Transferred from 2022
B5: Grant | F5: Balance | G5: Budget Appropriations | I5: Expended | J5: Other | K5: Cancelled | L5: Balance
F6: ='11 Grants Approp Rsrv'!F6 -> Jan. 1, 2022 | G6: Budget | H6: Appropriation | L6: ='11 Grants Approp Rsrv'!L6 -> Dec. 31, 2022
H7: By 40A:4-87
B8: PREVIOUS PAGE TOTALS | F8: =+'11.21 Grants Approp Rsrv'!F27 -> 1256419.41 | G8: =+'11.21 Grants Approp Rsrv'!G27 -> 637678.48 | H8: =+'11.21 Grants Approp Rsrv'!H27 -> 511746.03 | I8: =+'11.21 Grants Approp Rsrv'!I27 -> 1043846.43 | J8: =+'11.21 Grants Approp Rsrv'!J27 -> -665654.24 | K8: =+'11.21 Grants Approp Rsrv'!K27 -> 119391 | L8: =+'11.21 Grants Approp Rsrv'!L27 -> 576952.25
L9: =+F9+G9+H9-I9+J9-K9 -> 0
L10: 0
L11: 0
L12: 0
L13: 0
L14: 0
A15: Sheet 11.22 | L15: 0
L16: 0
L17: 0
L18: 0
L19: 0
L20: 0
L21: 0
L22: 0
L23: 0
L24: 0
L25: 0
L26: 0
C27: PAGE TOTALS | F27: =SUM(F8:F26) -> 1256419.41 | G27: =SUM(G8:G26) -> 637678.48 | H27: 511746.03 | I27: 1043846.43 | J27: -665654.24 | K27: 119391 | L27: =SUM(L8:L26) -> 576952.25

Sheet 11.23 Grants Approp Rsrv (hidden)
B2: SCHEDULE OF APPROPRIATED RESERVES FOR
B3: FEDERAL AND STATE GRANTS
G4: =IF('KEY INPUTS'!C42="State Fiscal Year","Transferred from Fiscal Year "&'KEY INPUTS'!D33&"","Transferred from "&'KEY INPUTS'!D34&"") -> Transferred from 2022
B5: Grant | F5: Balance | G5: Budget Appropriations | I5: Expended | J5: Other | K5: Cancelled | L5: Balance
F6: ='11 Grants Approp Rsrv'!F6 -> Jan. 1, 2022 | G6: Budget | H6: Appropriation | L6: ='11 Grants Approp Rsrv'!L6 -> Dec. 31, 2022
H7: By 40A:4-87
B8: PREVIOUS PAGE TOTALS | F8: =+'11.22 Grants Approp Rsrv'!F27 -> 1256419.41 | G8: =+'11.22 Grants Approp Rsrv'!G27 -> 637678.48 | H8: =+'11.22 Grants Approp Rsrv'!H27 -> 511746.03 | I8: =+'11.22 Grants Approp Rsrv'!I27 -> 1043846.43 | J8: =+'11.22 Grants Approp Rsrv'!J27 -> -665654.24 | K8: =+'11.22 Grants Approp Rsrv'!K27 -> 119391 | L8: =+'11.22 Grants Approp Rsrv'!L27 -> 576952.25
L9: =+F9+G9+H9-I9+J9-K9 -> 0
L10: 0
L11: 0
L12: 0
L13: 0
L14: 0
A15: Sheet 11.23 | L15: 0
L16: 0
L17: 0
L18: 0
L19: 0
L20: 0
L21: 0
L22: 0
L23: 0
L24: 0
L25: 0
L26: 0
C27: PAGE TOTALS | F27: =SUM(F8:F26) -> 1256419.41 | G27: =SUM(G8:G26) -> 637678.48 | H27: 511746.03 | I27: 1043846.43 | J27: -665654.24 | K27: 119391 | L27: =SUM(L8:L26) -> 576952.25

Sheet 11.24 Grants Approp Rsrv (hidden)
B2: SCHEDULE OF APPROPRIATED RESERVES FOR
B3: FEDERAL AND STATE GRANTS
G4: =IF('KEY INPUTS'!C42="State Fiscal Year","Transferred from Fiscal Year "&'KEY INPUTS'!D33&"","Transferred from "&'KEY INPUTS'!D34&"") -> Transferred from 2022
B5: Grant | F5: Balance | G5: Budget Appropriations | I5: Expended | J5: Other | K5: Cancelled | L5: Balance
F6: ='11 Grants Approp Rsrv'!F6 -> Jan. 1, 2022 | G6: Budget | H6: Appropriation | L6: ='11 Grants Approp Rsrv'!L6 -> Dec. 31, 2022
H7: By 40A:4-87
B8: PREVIOUS PAGE TOTALS | F8: =+'11.23 Grants Approp Rsrv'!F27 -> 1256419.41 | G8: =+'11.23 Grants Approp Rsrv'!G27 -> 637678.48 | H8: =+'11.23 Grants Approp Rsrv'!H27 -> 511746.03 | I8: =+'11.23 Grants Approp Rsrv'!I27 -> 1043846.43 | J8: =+'11.23 Grants Approp Rsrv'!J27 -> -665654.24 | K8: =+'11.23 Grants Approp Rsrv'!K27 -> 119391 | L8: =+'11.23 Grants Approp Rsrv'!L27 -> 576952.25
L9: =+F9+G9+H9-I9+J9-K9 -> 0
L10: 0
L11: 0
L12: 0
L13: 0
L14: 0
A15: Sheet 11.24 | L15: 0
L16: 0
L17: 0
L18: 0
L19: 0
L20: 0
L21: 0
L22: 0
L23: 0
L24: 0
L25: 0
L26: 0
C27: PAGE TOTALS | F27: =SUM(F8:F26) -> 1256419.41 | G27: =SUM(G8:G26) -> 637678.48 | H27: 511746.03 | I27: 1043846.43 | J27: -665654.24 | K27: 119391 | L27: =SUM(L8:L26) -> 576952.25

Sheet 11.25 Grants Approp Rsrv (hidden)
B2: SCHEDULE OF APPROPRIATED RESERVES FOR
B3: FEDERAL AND STATE GRANTS
G4: =IF('KEY INPUTS'!C42="State Fiscal Year","Transferred from Fiscal Year "&'KEY INPUTS'!D33&"","Transferred from "&'KEY INPUTS'!D34&"") -> Transferred from 2022
B5: Grant | F5: Balance | G5: Budget Appropriations | I5: Expended | J5: Other | K5: Cancelled | L5: Balance
F6: ='11 Grants Approp Rsrv'!F6 -> Jan. 1, 2022 | G6: Budget | H6: Appropriation | L6: ='11 Grants Approp Rsrv'!L6 -> Dec. 31, 2022
H7: By 40A:4-87
B8: PREVIOUS PAGE TOTALS | F8: =+'11.24 Grants Approp Rsrv'!F27 -> 1256419.41 | G8: =+'11.24 Grants Approp Rsrv'!G27 -> 637678.48 | H8: =+'11.24 Grants Approp Rsrv'!H27 -> 511746.03 | I8: =+'11.24 Grants Approp Rsrv'!I27 -> 1043846.43 | J8: =+'11.24 Grants Approp Rsrv'!J27 -> -665654.24 | K8: =+'11.24 Grants Approp Rsrv'!K27 -> 119391 | L8: =+'11.24 Grants Approp Rsrv'!L27 -> 576952.25
L9: =+F9+G9+H9-I9+J9-K9 -> 0
L10: 0
L11: 0
L12: 0
L13: 0
L14: 0
A15: Sheet 11.25 | L15: 0
L16: 0
L17: 0
L18: 0
L19: 0
L20: 0
L21: 0
L22: 0
L23: 0
L24: 0
L25: 0
L26: 0
C27: PAGE TOTALS | F27: =SUM(F8:F26) -> 1256419.41 | G27: =SUM(G8:G26) -> 637678.48 | H27: 511746.03 | I27: 1043846.43 | J27: -665654.24 | K27: 119391 | L27: =SUM(L8:L26) -> 576952.25

Sheet 11.26 Grants Approp Rsrv (hidden)
B2: SCHEDULE OF APPROPRIATED RESERVES FOR
B3: FEDERAL AND STATE GRANTS
G4: =IF('KEY INPUTS'!C42="State Fiscal Year","Transferred from Fiscal Year "&'KEY INPUTS'!D33&"","Transferred from "&'KEY INPUTS'!D34&"") -> Transferred from 2022
B5: Grant | F5: Balance | G5: Budget Appropriations | I5: Expended | J5: Other | K5: Cancelled | L5: Balance
F6: ='11 Grants Approp Rsrv'!F6 -> Jan. 1, 2022 | G6: Budget | H6: Appropriation | L6: ='11 Grants Approp Rsrv'!L6 -> Dec. 31, 2022
H7: By 40A:4-87
B8: PREVIOUS PAGE TOTALS | F8: =+'11.25 Grants Approp Rsrv'!F27 -> 1256419.41 | G8: =+'11.25 Grants Approp Rsrv'!G27 -> 637678.48 | H8: =+'11.25 Grants Approp Rsrv'!H27 -> 511746.03 | I8: =+'11.25 Grants Approp Rsrv'!I27 -> 1043846.43 | J8: =+'11.25 Grants Approp Rsrv'!J27 -> -665654.24 | K8: =+'11.25 Grants Approp Rsrv'!K27 -> 119391 | L8: =+'11.25 Grants Approp Rsrv'!L27 -> 576952.25
L9: =+F9+G9+H9-I9+J9-K9 -> 0
L10: 0
L11: 0
L12: 0
L13: 0
L14: 0
A15: Sheet 11.26 | L15: 0
L16: 0
L17: 0
L18: 0
L19: 0
L20: 0
L21: 0
L22: 0
L23: 0
L24: 0
L25: 0
L26: 0
C27: PAGE TOTALS | F27: =SUM(F8:F26) -> 1256419.41 | G27: =SUM(G8:G26) -> 637678.48 | H27: 511746.03 | I27: 1043846.43 | J27: -665654.24 | K27: 119391 | L27: =SUM(L8:L26) -> 576952.25

Sheet 11.27 Grants Approp Rsrv (hidden)
B2: SCHEDULE OF APPROPRIATED RESERVES FOR
B3: FEDERAL AND STATE GRANTS
G4: =IF('KEY INPUTS'!C42="State Fiscal Year","Transferred from Fiscal Year "&'KEY INPUTS'!D33&"","Transferred from "&'KEY INPUTS'!D34&"") -> Transferred from 2022
B5: Grant | F5: Balance | G5: Budget Appropriations | I5: Expended | J5: Other | K5: Cancelled | L5: Balance
F6: ='11 Grants Approp Rsrv'!F6 -> Jan. 1, 2022 | G6: Budget | H6: Appropriation | L6: ='11 Grants Approp Rsrv'!L6 -> Dec. 31, 2022
H7: By 40A:4-87
B8: PREVIOUS PAGE TOTALS | F8: =+'11.26 Grants Approp Rsrv'!F27 -> 1256419.41 | G8: =+'11.26 Grants Approp Rsrv'!G27 -> 637678.48 | H8: =+'11.26 Grants Approp Rsrv'!H27 -> 511746.03 | I8: =+'11.26 Grants Approp Rsrv'!I27 -> 1043846.43 | J8: =+'11.26 Grants Approp Rsrv'!J27 -> -665654.24 | K8: =+'11.26 Grants Approp Rsrv'!K27 -> 119391 | L8: =+'11.26 Grants Approp Rsrv'!L27 -> 576952.25
L9: =+F9+G9+H9-I9+J9-K9 -> 0
L10: 0
L11: 0
L12: 0
L13: 0
L14: 0
A15: Sheet 11.27 | L15: 0
L16: 0
L17: 0
L18: 0
L19: 0
L20: 0
L21: 0
L22: 0
L23: 0
L24: 0
L25: 0
L26: 0
C27: PAGE TOTALS | F27: =SUM(F8:F26) -> 1256419.41 | G27: =SUM(G8:G26) -> 637678.48 | H27: 511746.03 | I27: 1043846.43 | J27: -665654.24 | K27: 119391 | L27: =SUM(L8:L26) -> 576952.25

Sheet 11.28 Grants Approp Rsrv (hidden)
B2: SCHEDULE OF APPROPRIATED RESERVES FOR
B3: FEDERAL AND STATE GRANTS
G4: =IF('KEY INPUTS'!C42="State Fiscal Year","Transferred from Fiscal Year "&'KEY INPUTS'!D33&"","Transferred from "&'KEY INPUTS'!D34&"") -> Transferred from 2022
B5: Grant | F5: Balance | G5: Budget Appropriations | I5: Expended | J5: Other | K5: Cancelled | L5: Balance
F6: ='11 Grants Approp Rsrv'!F6 -> Jan. 1, 2022 | G6: Budget | H6: Appropriation | L6: ='11 Grants Approp Rsrv'!L6 -> Dec. 31, 2022
H7: By 40A:4-87
B8: PREVIOUS PAGE TOTALS | F8: =+'11.27 Grants Approp Rsrv'!F27 -> 1256419.41 | G8: =+'11.27 Grants Approp Rsrv'!G27 -> 637678.48 | H8: =+'11.27 Grants Approp Rsrv'!H27 -> 511746.03 | I8: =+'11.27 Grants Approp Rsrv'!I27 -> 1043846.43 | J8: =+'11.27 Grants Approp Rsrv'!J27 -> -665654.24 | K8: =+'11.27 Grants Approp Rsrv'!K27 -> 119391 | L8: =+'11.27 Grants Approp Rsrv'!L27 -> 576952.25
L9: =+F9+G9+H9-I9+J9-K9 -> 0
L10: 0
L11: 0
L12: 0
L13: 0
L14: 0
A15: Sheet 11.28 | L15: 0
L16: 0
L17: 0
L18: 0
L19: 0
L20: 0
L21: 0
L22: 0
L23: 0
L24: 0
L25: 0
L26: 0
C27: PAGE TOTALS | F27: =SUM(F8:F26) -> 1256419.41 | G27: =SUM(G8:G26) -> 637678.48 | H27: 511746.03 | I27: 1043846.43 | J27: -665654.24 | K27: 119391 | L27: =SUM(L8:L26) -> 576952.25

Sheet 11.29 Grants Approp Rsrv (hidden)
B2: SCHEDULE OF APPROPRIATED RESERVES FOR
B3: FEDERAL AND STATE GRANTS
G4: =IF('KEY INPUTS'!C42="State Fiscal Year","Transferred from Fiscal Year "&'KEY INPUTS'!D33&"","Transferred from "&'KEY INPUTS'!D34&"") -> Transferred from 2022
B5: Grant | F5: Balance | G5: Budget Appropriations | I5: Expended | J5: Other | K5: Cancelled | L5: Balance
F6: ='11 Grants Approp Rsrv'!F6 -> Jan. 1, 2022 | G6: Budget | H6: Appropriation | L6: ='11 Grants Approp Rsrv'!L6 -> Dec. 31, 2022
H7: By 40A:4-87
B8: PREVIOUS PAGE TOTALS | F8: =+'11.28 Grants Approp Rsrv'!F27 -> 1256419.41 | G8: =+'11.28 Grants Approp Rsrv'!G27 -> 637678.48 | H8: =+'11.28 Grants Approp Rsrv'!H27 -> 511746.03 | I8: =+'11.28 Grants Approp Rsrv'!I27 -> 1043846.43 | J8: =+'11.28 Grants Approp Rsrv'!J27 -> -665654.24 | K8: =+'11.28 Grants Approp Rsrv'!K27 -> 119391 | L8: =+'11.28 Grants Approp Rsrv'!L27 -> 576952.25
L9: =+F9+G9+H9-I9+J9-K9 -> 0
L10: 0
L11: 0
L12: 0
L13: 0
L14: 0
A15: Sheet 11.29 | L15: 0
L16: 0
L17: 0
L18: 0
L19: 0
L20: 0
L21: 0
L22: 0
L23: 0
L24: 0
L25: 0
L26: 0
C27: PAGE TOTALS | F27: =SUM(F8:F26) -> 1256419.41 | G27: =SUM(G8:G26) -> 637678.48 | H27: 511746.03 | I27: 1043846.43 | J27: -665654.24 | K27: 119391 | L27: =SUM(L8:L26) -> 576952.25

Sheet 11.30 Grants Approp Rsrv (hidden)
B2: SCHEDULE OF APPROPRIATED RESERVES FOR
B3: FEDERAL AND STATE GRANTS
G4: =IF('KEY INPUTS'!C42="State Fiscal Year","Transferred from Fiscal Year "&'KEY INPUTS'!D33&"","Transferred from "&'KEY INPUTS'!D34&"") -> Transferred from 2022
B5: Grant | F5: Balance | G5: Budget Appropriations | I5: Expended | J5: Other | K5: Cancelled | L5: Balance
F6: ='11 Grants Approp Rsrv'!F6 -> Jan. 1, 2022 | G6: Budget | H6: Appropriation | L6: ='11 Grants Approp Rsrv'!L6 -> Dec. 31, 2022
H7: By 40A:4-87
B8: PREVIOUS PAGE TOTALS | F8: =+'11.29 Grants Approp Rsrv'!F27 -> 1256419.41 | G8: =+'11.29 Grants Approp Rsrv'!G27 -> 637678.48 | H8: =+'11.29 Grants Approp Rsrv'!H27 -> 511746.03 | I8: =+'11.29 Grants Approp Rsrv'!I27 -> 1043846.43 | J8: =+'11.29 Grants Approp Rsrv'!J27 -> -665654.24 | K8: =+'11.29 Grants Approp Rsrv'!K27 -> 119391 | L8: =+'11.29 Grants Approp Rsrv'!L27 -> 576952.25
L9: =+F9+G9+H9-I9+J9-K9 -> 0
L10: 0
L11: 0
L12: 0
L13: 0
L14: 0
A15: Sheet 11.30 | L15: 0
L16: 0
L17: 0
L18: 0
L19: 0
L20: 0
L21: 0
L22: 0
L23: 0
L24: 0
L25: 0
L26: 0
C27: PAGE TOTALS | F27: =SUM(F8:F26) -> 1256419.41 | G27: =SUM(G8:G26) -> 637678.48 | H27: 511746.03 | I27: 1043846.43 | J27: -665654.24 | K27: 119391 | L27: =SUM(L8:L26) -> 576952.25

Sheet 11.31 Grants Approp Rsrv (hidden)
B2: SCHEDULE OF APPROPRIATED RESERVES FOR
B3: FEDERAL AND STATE GRANTS
G4: =IF('KEY INPUTS'!C42="State Fiscal Year","Transferred from Fiscal Year "&'KEY INPUTS'!D33&"","Transferred from "&'KEY INPUTS'!D34&"") -> Transferred from 2022
B5: Grant | F5: Balance | G5: Budget Appropriations | I5: Expended | J5: Other | K5: Cancelled | L5: Balance
F6: ='11 Grants Approp Rsrv'!F6 -> Jan. 1, 2022 | G6: Budget | H6: Appropriation | L6: ='11 Grants Approp Rsrv'!L6 -> Dec. 31, 2022
H7: By 40A:4-87
B8: PREVIOUS PAGE TOTALS | F8: =+'11.30 Grants Approp Rsrv'!F27 -> 1256419.41 | G8: =+'11.30 Grants Approp Rsrv'!G27 -> 637678.48 | H8: =+'11.30 Grants Approp Rsrv'!H27 -> 511746.03 | I8: =+'11.30 Grants Approp Rsrv'!I27 -> 1043846.43 | J8: =+'11.30 Grants Approp Rsrv'!J27 -> -665654.24 | K8: =+'11.30 Grants Approp Rsrv'!K27 -> 119391 | L8: =+'11.30 Grants Approp Rsrv'!L27 -> 576952.25
L9: =+F9+G9+H9-I9+J9-K9 -> 0
L10: 0
L11: 0
L12: 0
L13: 0
L14: 0
A15: Sheet 11.31 | L15: 0
L16: 0
L17: 0
L18: 0
L19: 0
L20: 0
L21: 0
L22: 0
L23: 0
L24: 0
L25: 0
L26: 0
C27: PAGE TOTALS | F27: =SUM(F8:F26) -> 1256419.41 | G27: =SUM(G8:G26) -> 637678.48 | H27: 511746.03 | I27: 1043846.43 | J27: -665654.24 | K27: 119391 | L27: =SUM(L8:L26) -> 576952.25

Sheet 11.32 Grants Approp Rsrv (hidden)
B2: SCHEDULE OF APPROPRIATED RESERVES FOR
B3: FEDERAL AND STATE GRANTS
G4: =IF('KEY INPUTS'!C42="State Fiscal Year","Transferred from Fiscal Year "&'KEY INPUTS'!D33&"","Transferred from "&'KEY INPUTS'!D34&"") -> Transferred from 2022
B5: Grant | F5: Balance | G5: Budget Appropriations | I5: Expended | J5: Other | K5: Cancelled | L5: Balance
F6: ='11 Grants Approp Rsrv'!F6 -> Jan. 1, 2022 | G6: Budget | H6: Appropriation | L6: ='11 Grants Approp Rsrv'!L6 -> Dec. 31, 2022
H7: By 40A:4-87
B8: PREVIOUS PAGE TOTALS | F8: =+'11.31 Grants Approp Rsrv'!F27 -> 1256419.41 | G8: =+'11.31 Grants Approp Rsrv'!G27 -> 637678.48 | H8: =+'11.31 Grants Approp Rsrv'!H27 -> 511746.03 | I8: =+'11.31 Grants Approp Rsrv'!I27 -> 1043846.43 | J8: =+'11.31 Grants Approp Rsrv'!J27 -> -665654.24 | K8: =+'11.31 Grants Approp Rsrv'!K27 -> 119391 | L8: =+'11.31 Grants Approp Rsrv'!L27 -> 576952.25
L9: =+F9+G9+H9-I9+J9-K9 -> 0
L10: 0
L11: 0
L12: 0
L13: 0
L14: 0
A15: Sheet 11.32 | L15: 0
L16: 0
L17: 0
L18: 0
L19: 0
L20: 0
L21: 0
L22: 0
L23: 0
L24: 0
L25: 0
L26: 0
C27: PAGE TOTALS | F27: =SUM(F8:F26) -> 1256419.41 | G27: =SUM(G8:G26) -> 637678.48 | H27: 511746.03 | I27: 1043846.43 | J27: -665654.24 | K27: 119391 | L27: =SUM(L8:L26) -> 576952.25

Sheet 11.33 Grants Approp Rsrv (hidden)
B2: SCHEDULE OF APPROPRIATED RESERVES FOR
B3: FEDERAL AND STATE GRANTS
G4: =IF('KEY INPUTS'!C42="State Fiscal Year","Transferred from Fiscal Year "&'KEY INPUTS'!D33&"","Transferred from "&'KEY INPUTS'!D34&"") -> Transferred from 2022
B5: Grant | F5: Balance | G5: Budget Appropriations | I5: Expended | J5: Other | K5: Cancelled | L5: Balance
F6: ='11 Grants Approp Rsrv'!F6 -> Jan. 1, 2022 | G6: Budget | H6: Appropriation | L6: ='11 Grants Approp Rsrv'!L6 -> Dec. 31, 2022
H7: By 40A:4-87
B8: PREVIOUS PAGE TOTALS | F8: =+'11.32 Grants Approp Rsrv'!F27 -> 1256419.41 | G8: =+'11.32 Grants Approp Rsrv'!G27 -> 637678.48 | H8: =+'11.32 Grants Approp Rsrv'!H27 -> 511746.03 | I8: =+'11.32 Grants Approp Rsrv'!I27 -> 1043846.43 | J8: =+'11.32 Grants Approp Rsrv'!J27 -> -665654.24 | K8: =+'11.32 Grants Approp Rsrv'!K27 -> 119391 | L8: =+'11.32 Grants Approp Rsrv'!L27 -> 576952.25
L9: =+F9+G9+H9-I9+J9-K9 -> 0
L10: 0
L11: 0
L12: 0
L13: 0
L14: 0
A15: Sheet 11.33 | L15: 0
L16: 0
L17: 0
L18: 0
L19: 0
L20: 0
L21: 0
L22: 0
L23: 0
L24: 0
L25: 0
L26: 0
C27: PAGE TOTALS | F27: =SUM(F8:F26) -> 1256419.41 | G27: =SUM(G8:G26) -> 637678.48 | H27: 511746.03 | I27: 1043846.43 | J27: -665654.24 | K27: 119391 | L27: =SUM(L8:L26) -> 576952.25

Sheet 11.34 Grants Approp Rsrv (hidden)
B2: SCHEDULE OF APPROPRIATED RESERVES FOR
B3: FEDERAL AND STATE GRANTS
G4: =IF('KEY INPUTS'!C42="State Fiscal Year","Transferred from Fiscal Year "&'KEY INPUTS'!D33&"","Transferred from "&'KEY INPUTS'!D34&"") -> Transferred from 2022
B5: Grant | F5: Balance | G5: Budget Appropriations | I5: Expended | J5: Other | K5: Cancelled | L5: Balance
F6: ='11 Grants Approp Rsrv'!F6 -> Jan. 1, 2022 | G6: Budget | H6: Appropriation | L6: ='11 Grants Approp Rsrv'!L6 -> Dec. 31, 2022
H7: By 40A:4-87
B8: PREVIOUS PAGE TOTALS | F8: =+'11.33 Grants Approp Rsrv'!F27 -> 1256419.41 | G8: =+'11.33 Grants Approp Rsrv'!G27 -> 637678.48 | H8: =+'11.33 Grants Approp Rsrv'!H27 -> 511746.03 | I8: =+'11.33 Grants Approp Rsrv'!I27 -> 1043846.43 | J8: =+'11.33 Grants Approp Rsrv'!J27 -> -665654.24 | K8: =+'11.33 Grants Approp Rsrv'!K27 -> 119391 | L8: =+'11.33 Grants Approp Rsrv'!L27 -> 576952.25
L9: =+F9+G9+H9-I9+J9-K9 -> 0
L10: 0
L11: 0
L12: 0
L13: 0
L14: 0
A15: Sheet 11.34 | L15: 0
L16: 0
L17: 0
L18: 0
L19: 0
L20: 0
L21: 0
L22: 0
L23: 0
L24: 0
L25: 0
L26: 0
C27: PAGE TOTALS | F27: =SUM(F8:F26) -> 1256419.41 | G27: =SUM(G8:G26) -> 637678.48 | H27: 511746.03 | I27: 1043846.43 | J27: -665654.24 | K27: 119391 | L27: =SUM(L8:L26) -> 576952.25

Sheet 11.35 Grants Approp Rsrv (hidden)
B2: SCHEDULE OF APPROPRIATED RESERVES FOR
B3: FEDERAL AND STATE GRANTS
G4: =IF('KEY INPUTS'!C42="State Fiscal Year","Transferred from Fiscal Year "&'KEY INPUTS'!D33&"","Transferred from "&'KEY INPUTS'!D34&"") -> Transferred from 2022
B5: Grant | F5: Balance | G5: Budget Appropriations | I5: Expended | J5: Other | K5: Cancelled | L5: Balance
F6: ='11 Grants Approp Rsrv'!F6 -> Jan. 1, 2022 | G6: Budget | H6: Appropriation | L6: ='11 Grants Approp Rsrv'!L6 -> Dec. 31, 2022
H7: By 40A:4-87
B8: PREVIOUS PAGE TOTALS | F8: =+'11.34 Grants Approp Rsrv'!F27 -> 1256419.41 | G8: =+'11.34 Grants Approp Rsrv'!G27 -> 637678.48 | H8: =+'11.34 Grants Approp Rsrv'!H27 -> 511746.03 | I8: =+'11.34 Grants Approp Rsrv'!I27 -> 1043846.43 | J8: =+'11.34 Grants Approp Rsrv'!J27 -> -665654.24 | K8: =+'11.34 Grants Approp Rsrv'!K27 -> 119391 | L8: =+'11.34 Grants Approp Rsrv'!L27 -> 576952.25
L9: =+F9+G9+H9-I9+J9-K9 -> 0
L10: 0
L11: 0
L12: 0
L13: 0
L14: 0
A15: Sheet 11.35 | L15: 0
L16: 0
L17: 0
L18: 0
L19: 0
L20: 0
L21: 0
L22: 0
L23: 0
L24: 0
L25: 0
L26: 0
C27: PAGE TOTALS | F27: =SUM(F8:F26) -> 1256419.41 | G27: =SUM(G8:G26) -> 637678.48 | H27: 511746.03 | I27: 1043846.43 | J27: -665654.24 | K27: 119391 | L27: =SUM(L8:L26) -> 576952.25

Sheet 11.36 Grants Approp Rsrv (hidden)
B2: SCHEDULE OF APPROPRIATED RESERVES FOR
B3: FEDERAL AND STATE GRANTS
G4: =IF('KEY INPUTS'!C42="State Fiscal Year","Transferred from Fiscal Year "&'KEY INPUTS'!D33&"","Transferred from "&'KEY INPUTS'!D34&"") -> Transferred from 2022
B5: Grant | F5: Balance | G5: Budget Appropriations | I5: Expended | J5: Other | K5: Cancelled | L5: Balance
F6: ='11 Grants Approp Rsrv'!F6 -> Jan. 1, 2022 | G6: Budget | H6: Appropriation | L6: ='11 Grants Approp Rsrv'!L6 -> Dec. 31, 2022
H7: By 40A:4-87
B8: PREVIOUS PAGE TOTALS | F8: =+'11.35 Grants Approp Rsrv'!F27 -> 1256419.41 | G8: =+'11.35 Grants Approp Rsrv'!G27 -> 637678.48 | H8: =+'11.35 Grants Approp Rsrv'!H27 -> 511746.03 | I8: =+'11.35 Grants Approp Rsrv'!I27 -> 1043846.43 | J8: =+'11.35 Grants Approp Rsrv'!J27 -> -665654.24 | K8: =+'11.35 Grants Approp Rsrv'!K27 -> 119391 | L8: =+'11.35 Grants Approp Rsrv'!L27 -> 576952.25
L9: =+F9+G9+H9-I9+J9-K9 -> 0
L10: 0
L11: 0
L12: 0
L13: 0
L14: 0
A15: Sheet 11.36 | L15: 0
L16: 0
L17: 0
L18: 0
L19: 0
L20: 0
L21: 0
L22: 0
L23: 0
L24: 0
L25: 0
L26: 0
C27: PAGE TOTALS | F27: =SUM(F8:F26) -> 1256419.41 | G27: =SUM(G8:G26) -> 637678.48 | H27: 511746.03 | I27: 1043846.43 | J27: -665654.24 | K27: 119391 | L27: =SUM(L8:L26) -> 576952.25

Sheet 11.37 Grants Approp Rsrv (hidden)
B2: SCHEDULE OF APPROPRIATED RESERVES FOR
B3: FEDERAL AND STATE GRANTS
G4: =IF('KEY INPUTS'!C42="State Fiscal Year","Transferred from Fiscal Year "&'KEY INPUTS'!D33&"","Transferred from "&'KEY INPUTS'!D34&"") -> Transferred from 2022
B5: Grant | F5: Balance | G5: Budget Appropriations | I5: Expended | J5: Other | K5: Cancelled | L5: Balance
F6: ='11 Grants Approp Rsrv'!F6 -> Jan. 1, 2022 | G6: Budget | H6: Appropriation | L6: ='11 Grants Approp Rsrv'!L6 -> Dec. 31, 2022
H7: By 40A:4-87
B8: PREVIOUS PAGE TOTALS | F8: =+'11.36 Grants Approp Rsrv'!F27 -> 1256419.41 | G8: =+'11.36 Grants Approp Rsrv'!G27 -> 637678.48 | H8: =+'11.36 Grants Approp Rsrv'!H27 -> 511746.03 | I8: =+'11.36 Grants Approp Rsrv'!I27 -> 1043846.43 | J8: =+'11.36 Grants Approp Rsrv'!J27 -> -665654.24 | K8: =+'11.36 Grants Approp Rsrv'!K27 -> 119391 | L8: =+'11.36 Grants Approp Rsrv'!L27 -> 576952.25
L9: =+F9+G9+H9-I9+J9-K9 -> 0
L10: 0
L11: 0
L12: 0
L13: 0
L14: 0
A15: Sheet 11.37 | L15: 0
L16: 0
L17: 0
L18: 0
L19: 0
L20: 0
L21: 0
L22: 0
L23: 0
L24: 0
L25: 0
L26: 0
C27: PAGE TOTALS | F27: =SUM(F8:F26) -> 1256419.41 | G27: =SUM(G8:G26) -> 637678.48 | H27: 511746.03 | I27: 1043846.43 | J27: -665654.24 | K27: 119391 | L27: =SUM(L8:L26) -> 576952.25

Sheet 11.38 Grants Approp Rsrv (hidden)
B2: SCHEDULE OF APPROPRIATED RESERVES FOR
B3: FEDERAL AND STATE GRANTS
G4: =IF('KEY INPUTS'!C42="State Fiscal Year","Transferred from Fiscal Year "&'KEY INPUTS'!D33&"","Transferred from "&'KEY INPUTS'!D34&"") -> Transferred from 2022
B5: Grant | F5: Balance | G5: Budget Appropriations | I5: Expended | J5: Other | K5: Cancelled | L5: Balance
F6: ='11 Grants Approp Rsrv'!F6 -> Jan. 1, 2022 | G6: Budget | H6: Appropriation | L6: ='11 Grants Approp Rsrv'!L6 -> Dec. 31, 2022
H7: By 40A:4-87
B8: PREVIOUS PAGE TOTALS | F8: =+'11.37 Grants Approp Rsrv'!F27 -> 1256419.41 | G8: =+'11.37 Grants Approp Rsrv'!G27 -> 637678.48 | H8: =+'11.37 Grants Approp Rsrv'!H27 -> 511746.03 | I8: =+'11.37 Grants Approp Rsrv'!I27 -> 1043846.43 | J8: =+'11.37 Grants Approp Rsrv'!J27 -> -665654.24 | K8: =+'11.37 Grants Approp Rsrv'!K27 -> 119391 | L8: =+'11.37 Grants Approp Rsrv'!L27 -> 576952.25
L9: =+F9+G9+H9-I9+J9-K9 -> 0
L10: 0
L11: 0
L12: 0
L13: 0
L14: 0
A15: Sheet 11.38 | L15: 0
L16: 0
L17: 0
L18: 0
L19: 0
L20: 0
L21: 0
L22: 0
L23: 0
L24: 0
L25: 0
L26: 0
C27: PAGE TOTALS | F27: =SUM(F8:F26) -> 1256419.41 | G27: =SUM(G8:G26) -> 637678.48 | H27: 511746.03 | I27: 1043846.43 | J27: -665654.24 | K27: 119391 | L27: =SUM(L8:L26) -> 576952.25

Sheet 11.39 Grants Approp Rsrv (hidden)
B2: SCHEDULE OF APPROPRIATED RESERVES FOR
B3: FEDERAL AND STATE GRANTS
G4: =IF('KEY INPUTS'!C42="State Fiscal Year","Transferred from Fiscal Year "&'KEY INPUTS'!D33&"","Transferred from "&'KEY INPUTS'!D34&"") -> Transferred from 2022
B5: Grant | F5: Balance | G5: Budget Appropriations | I5: Expended | J5: Other | K5: Cancelled | L5: Balance
F6: ='11 Grants Approp Rsrv'!F6 -> Jan. 1, 2022 | G6: Budget | H6: Appropriation | L6: ='11 Grants Approp Rsrv'!L6 -> Dec. 31, 2022
H7: By 40A:4-87
B8: PREVIOUS PAGE TOTALS | F8: =+'11.38 Grants Approp Rsrv'!F27 -> 1256419.41 | G8: =+'11.38 Grants Approp Rsrv'!G27 -> 637678.48 | H8: =+'11.38 Grants Approp Rsrv'!H27 -> 511746.03 | I8: =+'11.38 Grants Approp Rsrv'!I27 -> 1043846.43 | J8: =+'11.38 Grants Approp Rsrv'!J27 -> -665654.24 | K8: =+'11.38 Grants Approp Rsrv'!K27 -> 119391 | L8: =+'11.38 Grants Approp Rsrv'!L27 -> 576952.25
L9: =+F9+G9+H9-I9+J9-K9 -> 0
L10: 0
L11: 0
L12: 0
L13: 0
L14: 0
A15: Sheet 11.39 | L15: 0
L16: 0
L17: 0
L18: 0
L19: 0
L20: 0
L21: 0
L22: 0
L23: 0
L24: 0
L25: 0
L26: 0
C27: PAGE TOTALS | F27: =SUM(F8:F26) -> 1256419.41 | G27: =SUM(G8:G26) -> 637678.48 | H27: 511746.03 | I27: 1043846.43 | J27: -665654.24 | K27: 119391 | L27: =SUM(L8:L26) -> 576952.25

Sheet 11- Totals Grants Approp Rsrv
B2: SCHEDULE OF APPROPRIATED RESERVES FOR
B3: FEDERAL AND STATE GRANTS
G4: =IF('KEY INPUTS'!C42="State Fiscal Year","Transferred from Fiscal Year "&'KEY INPUTS'!D33&"","Transferred from "&'KEY INPUTS'!D34&"") -> Transferred from 2022
B5: Grant | F5: Balance | G5: Budget Appropriations | I5: Expended | J5: Other | K5: Cancelled | L5: Balance
F6: ='11 Grants Approp Rsrv'!F6 -> Jan. 1, 2022 | G6: Budget | H6: Appropriation | L6: ='11 Grants Approp Rsrv'!L6 -> Dec. 31, 2022
H7: By 40A:4-87
B8: PREVIOUS PAGE TOTALS | F8: =+'11.39 Grants Approp Rsrv'!F27 -> 1256419.41 | G8: =+'11.39 Grants Approp Rsrv'!G27 -> 637678.48 | H8: =+'11.39 Grants Approp Rsrv'!H27 -> 511746.03 | I8: =+'11.39 Grants Approp Rsrv'!I27 -> 1043846.43 | J8: =+'11.39 Grants Approp Rsrv'!J27 -> -665654.24 | K8: =+'11.39 Grants Approp Rsrv'!K27 -> 119391 | L8: =+'11.39 Grants Approp Rsrv'!L27 -> 576952.25
B9: It Pays to Plug In | G9: 18750 | J9: -18750 | L9: =+F9+G9+H9-I9+J9-K9 -> 0
B10: Hazardous Discharge Site Remediation Fund - Childnese Match | F10: 13078.69 | L10: 13078.69
B11: Municipal Alliance on Alcoholism and Drug Abuse - State (DEDR) 2022 | G11: 5322.5 | I11: 241.05 | L11: 5081.45
B12: Municipal Alliance on Alcoholism and Drug Abuse - State (DEDR) 2021 | F12: 2587.5 | I12: 2465.45 | L12: 122.05
B13: Municipal Alliance on Alcoholism and Drug Abuse - State (DEDR) 2019 | I13: 2044.96 | J13: 2044.96 | L13: 0
L14: 0
A15: Sheet 11 Totals | L15: 0
L16: 0
L17: 0
L18: 0
L19: 0
L20: 0
L21: 0
L22: 0
L23: 0
L24: 0
L25: 0
L26: 0
C27: TOTALS | F27: =SUM(F8:F26) -> 1272085.6 | G27: =SUM(G8:G26) -> 661750.98 | H27: 511746.03 | I27: 1048597.89 | J27: -682359.28 | K27: 119391 | L27: =SUM(L8:L26) -> 595234.44

Sheet 12-Grants Unappropriated (hidden)
B2: SCHEDULE OF UNAPPROPRIATED RESERVES FOR
B3: FEDERAL AND STATE GRANTS
G4: =IF('KEY INPUTS'!C42="State Fiscal Year","Transferred from FY "&'KEY INPUTS'!D33&"","Transferred from "&TEXT('KEY INPUTS'!D34,"0")&"") -> Transferred from 2022
B5: Grant | F5: Balance | G5: Budget Appropriations | I5: Received | J5: Other | K5: Balance
F6: =IF('KEY INPUTS'!C42 = "State Fiscal Year", 'KEY INPUTS'!F48,'KEY INPUTS'!D48) -> Jan. 1, 2022 | G6: Budget | H6: Appropriation | K6: =IF('KEY INPUTS'!C42 = "State Fiscal Year", 'KEY INPUTS'!F47,'KEY INPUTS'!D47) -> Dec. 31, 2022
H7: By 40A:4-87
K8: =F8-G8-H8+I8+J8 -> 0
K9: =F9-G9-H9+I9+J9 -> 0
K10: 0
K11: 0
K12: 0
K13: 0
K14: 0
A15: Sheet 12 | K15: 0
K16: 0
K17: 0
K18: 0
K19: 0
K20: 0
K21: 0
K22: 0
K23: 0
K24: 0
K25: 0
K26: 0
C27: PAGE TOTALS | F27: =SUM(F8:F26) -> 0 | G27: =SUM(G8:G26) -> 0 | H27: 0 | I27: =SUM(I8:I26) -> 0 | J27: 0 | K27: 0

Sheet 12.1-Grants Unappropriated (hidden)
B2: SCHEDULE OF UNAPPROPRIATED RESERVES FOR
B3: FEDERAL AND STATE GRANTS
G4: =IF('KEY INPUTS'!C42="State Fiscal Year","Transferred from FY "&'KEY INPUTS'!D33&"","Transferred from "&TEXT('KEY INPUTS'!D34,"0")&"") -> Transferred from 2022
B5: Grant | F5: Balance | G5: Budget Appropriations | I5: Received | J5: Other | K5: Balance
F6: ='12-Grants Unappropriated'!F6 -> Jan. 1, 2022 | G6: Budget | H6: Appropriation | K6: ='12-Grants Unappropriated'!K6 -> Dec. 31, 2022
H7: By 40A:4-87
C8: PREVIOUS PAGE TOTALS | F8: =+'12-Grants Unappropriated'!F27 -> 0 | G8: =+'12-Grants Unappropriated'!G27 -> 0 | H8: =+'12-Grants Unappropriated'!H27 -> 0 | I8: =+'12-Grants Unappropriated'!I27 -> 0 | J8: =+'12-Grants Unappropriated'!J27 -> 0 | K8: =+'12-Grants Unappropriated'!K27 -> 0
K9: =F9-G9-H9+I9+J9 -> 0
K10: 0
K11: 0
K12: 0
K13: 0
K14: 0
A15: Sheet 12.1 | K15: 0
K16: 0
K17: 0
K18: 0
K19: 0
K20: 0
K21: 0
K22: 0
K23: 0
K24: 0
K25: 0
K26: 0
C27: PAGE TOTALS | F27: =SUM(F8:F26) -> 0 | G27: =SUM(G8:G26) -> 0 | H27: 0 | I27: =SUM(I8:I26) -> 0 | J27: 0 | K27: 0

Sheet 12.2-Grants Unappropriated (hidden)
B2: SCHEDULE OF UNAPPROPRIATED RESERVES FOR
B3: FEDERAL AND STATE GRANTS
G4: =IF('KEY INPUTS'!C42="State Fiscal Year","Transferred from FY "&'KEY INPUTS'!D33&"","Transferred from "&TEXT('KEY INPUTS'!D34,"0")&"") -> Transferred from 2022
B5: Grant | F5: Balance | G5: Budget Appropriations | I5: Received | J5: Other | K5: Balance
F6: ='12-Grants Unappropriated'!F6 -> Jan. 1, 2022 | G6: Budget | H6: Appropriation | K6: ='12-Grants Unappropriated'!K6 -> Dec. 31, 2022
H7: By 40A:4-87
C8: PREVIOUS PAGE TOTALS | F8: =+'12.1-Grants Unappropriated'!F27 -> 0 | G8: =+'12.1-Grants Unappropriated'!G27 -> 0 | H8: =+'12.1-Grants Unappropriated'!H27 -> 0 | I8: =+'12.1-Grants Unappropriated'!I27 -> 0 | J8: =+'12.1-Grants Unappropriated'!J27 -> 0 | K8: =+'12.1-Grants Unappropriated'!K27 -> 0
K9: =F9-G9-H9+I9+J9 -> 0
K10: 0
K11: 0
K12: 0
K13: 0
K14: 0
A15: Sheet 12.2 | K15: 0
K16: 0
K17: 0
K18: 0
K19: 0
K20: 0
K21: 0
K22: 0
K23: 0
K24: 0
K25: 0
K26: 0
C27: PAGE TOTALS | F27: =SUM(F8:F26) -> 0 | G27: =SUM(G8:G26) -> 0 | H27: 0 | I27: =SUM(I8:I26) -> 0 | J27: 0 | K27: 0

Sheet 12 Total-Grants Unappropriated
B2: SCHEDULE OF UNAPPROPRIATED RESERVES FOR
B3: FEDERAL AND STATE GRANTS
G4: =IF('KEY INPUTS'!C42="State Fiscal Year","Transferred from FY "&'KEY INPUTS'!D33&"","Transferred from "&TEXT('KEY INPUTS'!D34,"0")&"") -> Transferred from 2022
B5: Grant | F5: Balance | G5: Budget Appropriations | I5: Received | J5: Other | K5: Balance
F6: ='12-Grants Unappropriated'!F6 -> Jan. 1, 2022 | G6: Budget | H6: Appropriation | K6: ='12-Grants Unappropriated'!K6 -> Dec. 31, 2022
H7: By 40A:4-87
C8: PREVIOUS PAGE TOTALS | F8: =+'12.2-Grants Unappropriated'!F27 -> 0 | G8: =+'12.2-Grants Unappropriated'!G27 -> 0 | H8: =+'12.2-Grants Unappropriated'!H27 -> 0 | I8: =+'12.2-Grants Unappropriated'!I27 -> 0 | J8: =+'12.2-Grants Unappropriated'!J27 -> 0 | K8: =+'12.2-Grants Unappropriated'!K27 -> 0
B9: Interfaith Neighbors Senior Meals | F9: 2141 | K9: =F9-G9-H9+I9+J9 -> 2141
B10: American Rescue Plan | F10: 828121.85 | G10: 200000 | I10: 1433121.85 | J10: -628121.85 | K10: 1433121.85
B11: Edward Byrne Memorial Justice Assistance Grant - 2019 | F11: 447 | G11: 447 | K11: 0
B12: NJ Body Armor Replacement Fund | I12: 4421.36 | K12: 4421.36
B13: Opiod Assistance | I13: 50352.78 | K13: 50352.78
B14: USDOJ Bulletproof Vest Partnership Grnat (2019) | J14: 1657.86 | K14: 1657.86
A15: Sheet 12 Totals | K15: 0
K16: 0
K17: 0
K18: 0
K19: 0
K20: 0
K21: 0
K22: 0
K23: 0
K24: 0
K25: 0
K26: 0
C27: TOTALS | F27: =SUM(F8:F26) -> 830709.85 | G27: =SUM(G8:G26) -> 200447 | H27: 0 | I27: =SUM(I8:I26) -> 1487895.99 | J27: -626463.99 | K27: 1491694.85

Sheet 13-Other Taxes
B5: *LOCAL DISTRICT SCHOOL TAX
G7: Debit | H7: Credit
B8: =IF('KEY INPUTS'!C42 = "State Fiscal Year", 'KEY INPUTS'!F25,'KEY INPUTS'!D25) -> Balance - January 1, 2022 | G8: xxxxxxxxxxx | H8: xxxxxxxxxx
C9: School Tax Payable # | G9: xxxxxxxxxxx | H9: 4679243.5
C10: School Tax Deferred
C11: ="(Not in excess of 50% of Levy - "&TEXT('KEY INPUTS'!D35,"0")&" - "&TEXT('KEY INPUTS'!D34,"0")&")" -> (Not in excess of 50% of Levy - 2021 - 2022) | G11: xxxxxxxxxxx | H11: 17265725
B12: ="Levy School Year July 1, "&TEXT('KEY INPUTS'!D34,"0")&" - June 30, "&TEXT('KEY INPUTS'!D33,"0") -> Levy School Year July 1, 2022 - June 30, 2023 | G12: xxxxxxxxxxx | H12: 46992357 | L12: MUST PICK BETWEEN SCHOOL YEAR AND CALENDAR YEAR
B13: ="Levy Calendar Year "&TEXT('KEY INPUTS'!D34,"0") -> Levy Calendar Year 2022 | G13: xxxxxxxxxxx
B14: Paid | G14: 45453213 | H14: xxxxxxxxxx
B15: =IF('KEY INPUTS'!C42 = "State Fiscal Year", 'KEY INPUTS'!F26,'KEY INPUTS'!D26) -> Balance - December 31, 2022 | G15: xxxxxxxxxxx | H15: xxxxxxxxxx
C16: School Tax Payable # | G16: =+H9+H11+H12+H13-G14-G18 -> 6218387.5 | H16: xxxxxxxxxx
C17: School Tax Deferred
C18: ="(Not in excess of 50% of Levy - "&TEXT('KEY INPUTS'!D34,"0")&" - "&TEXT('KEY INPUTS'!D33,"0")&")" -> (Not in excess of 50% of Levy - 2022 - 2023) | G18: 17265725 | H18: xxxxxxxxxx
B19: * Not including Type 1 school debt service, emergency authorizations-schools, transfer to | G19: =SUM(G14:G18) -> 68937325.5 | H19: =SUM(H8:H13) -> 68937325.5
C20: Board of Education for use of local schools.
B21: # Must include unpaid requisitions.
B50: Sheet 13

Sheet 14-Other Taxes
B5: REGIONAL SCHOOL TAX
B6: (Provide a separate statement for each Regional District involved)
G8: Debit | H8: Credit
B9: ='13-Other Taxes'!B8 -> Balance - January 1, 2022 | G9: xxxxxxxxxxx | H9: xxxxxxxxxx
C10: School Tax Payable # | G10: xxxxxxxxxxx
C11: School Tax Deferred
C12: ='13-Other Taxes'!C11 -> (Not in excess of 50% of Levy - 2021 - 2022) | G12: xxxxxxxxxxx
B13: ='13-Other Taxes'!B12 -> Levy School Year July 1, 2022 - June 30, 2023 | G13: xxxxxxxxxxx
B14: ='13-Other Taxes'!B13 -> Levy Calendar Year 2022 | G14: xxxxxxxxxxx | L14: MUST PICK BETWEEN SCHOOL YEAR AND CALENDAR YEAR
B15: Paid | H15: xxxxxxxxxx
B16: ='13-Other Taxes'!B15 -> Balance - December 31, 2022 | G16: xxxxxxxxxxx | H16: xxxxxxxxxx
C17: School Tax Payable # | G17: =+H10+H12+H13+H14-G15-G19 -> 0 | H17: xxxxxxxxxx
C18: School Tax Deferred
C19: ='13-Other Taxes'!C18 -> (Not in excess of 50% of Levy - 2022 - 2023) | H19: xxxxxxxxxx
B20: # Must include unpaid requisitions. | G20: =SUM(G15:G19) -> 0 | H20: =SUM(H9:H19) -> 0
B27: REGIONAL HIGH SCHOOL TAX
G29: Debit | H29: Credit
B30: ='13-Other Taxes'!B8 -> Balance - January 1, 2022 | G30: xxxxxxxxxxx | H30: xxxxxxxxxx
C31: School Tax Payable # | G31: xxxxxxxxxxx
C32: School Tax Deferred
C33: =C12 -> (Not in excess of 50% of Levy - 2021 - 2022) | G33: xxxxxxxxxxx
B34: =B13 -> Levy School Year July 1, 2022 - June 30, 2023 | G34: xxxxxxxxxxx
B35: =B14 -> Levy Calendar Year 2022 | G35: xxxxxxxxxxx | L35: MUST PICK BETWEEN SCHOOL YEAR AND CALENDAR YEAR
B36: Paid | H36: xxxxxxxxxx
B37: ='13-Other Taxes'!B15 -> Balance - December 31, 2022 | G37: xxxxxxxxxxx | H37: xxxxxxxxxx
C38: School Tax Payable # | G38: =+H31+H33+H34+H35-G36-G40 -> 0 | H38: xxxxxxxxxx
C39: School Tax Deferred
C40: =C19 -> (Not in excess of 50% of Levy - 2022 - 2023) | H40: xxxxxxxxxx
B41: # Must include unpaid requisitions. | G41: =SUM(G34:G40) -> 0 | H41: =SUM(H30:H40) -> 0
B52: Sheet 14

Sheet 15-Other Taxes
B3: COUNTY TAXES PAYABLE
I5: Debit | J5: Credit
B6: ='13-Other Taxes'!B8 -> Balance - January 1, 2022 | I6: xxxxxxxxxxx | J6: xxxxxxxxxx
C7: County Taxes | I7: xxxxxxxxxxx
C8: Due County for Added and Omitted Taxes | I8: xxxxxxxxxxx | J8: 80142.14
B10: =IF('KEY INPUTS'!C42 = "State Fiscal Year", "FY "&'KEY INPUTS'!D33&"", 'KEY INPUTS'!D34)&" Levy:" -> 2022 Levy: | I10: xxxxxxxxxxx | J10: xxxxxxxxxx
C11: General County | I11: xxxxxxxxxxx | J11: 9989191.17
C12: County Library | I12: xxxxxxxxxxx
C13: County Health | I13: xxxxxxxxxxx | J13: 205931.83
C14: County Open Space Preservation | I14: xxxxxxxxxxx | J14: 1295264.54
C15: Due County for Added and Omitted Taxes | I15: xxxxxxxxxxx | J15: 70090.62
B16: Paid | I16: 11570529.52 | J16: xxxxxxxxxx
B17: ='13-Other Taxes'!B15 -> Balance - December 31, 2022 | I17: xxxxxxxxxxx | J17: xxxxxxxxxx
C18: County Taxes | J18: xxxxxxxxxx
C19: Due County for Added and Omitted Taxes | I19: =+J7+J8+J11+J12+J13+J14+J15-I16-I18 -> 70090.78 | J19: xxxxxxxxxx
I20: =SUM(I6:I19) -> 11640620.3 | J20: =SUM(J6:J19) -> 11640620.3
B24: SPECIAL DISTRICT TAXES
I26: Debit | J26: Credit
B27: =B6 -> Balance - January 1, 2022 | I27: xxxxxxxxxxx
B28: =TEXT('KEY INPUTS'!D34,"0")&" Levy: (List Each Type of District Tax Separately - See Footnote)" -> 2022 Levy: (List Each Type of District Tax Separately - See Footnote) | I28: xxxxxxxxxxx | J28: xxxxxxxxxx
C29: Fire - | H29: 3871867 | I29: xxxxxxxxxxx | J29: xxxxxxxxxx
C30: Sewer - | I30: xxxxxxxxxxx | J30: xxxxxxxxxx
C31: Water - | I31: xxxxxxxxxxx | J31: xxxxxxxxxx
C32: Garbage - | I32: xxxxxxxxxxx | J32: xxxxxxxxxx
I33: xxxxxxxxxxx | J33: xxxxxxxxxx
I34: xxxxxxxxxxx | J34: xxxxxxxxxx
I35: xxxxxxxxxxx | J35: xxxxxxxxxx
B36: ="Total "&TEXT('KEY INPUTS'!D34,"0")&" Levy" -> Total 2022 Levy | I36: xxxxxxxxxxx | J36: =SUM(H29:H35) -> 3871867
B37: Paid | I37: 3871867 | J37: xxxxxxxxxx
B38: =B17 -> Balance - December 31, 2022 | I38: =+J27+J36-I37 -> 0 | J38: xxxxxxxxxx
I39: =SUM(I36:I38) -> 3871867 | J39: =SUM(J27:J38) -> 3871867
B41: Footnote: Please state the number of districts in each instance.
B47: Sheet 15

Sheet 17-Budget Revenues
B2: ="STATEMENT OF GENERAL BUDGET REVENUES "&IF('KEY INPUTS'!C42 = "State Fiscal Year", "FY "&'KEY INPUTS'!D33&"", 'KEY INPUTS'!D34)&"" -> STATEMENT OF GENERAL BUDGET REVENUES 2022 | V2: ='KEY INPUTS'!F7 -> Municipality
B4: Source | H4: Budget | I4: Realized | J4: Excess or Deficit*
H5: -01 | I5: -02 | J5: -03 | L5: Counties Only: Prior to entering data on this
B6: Surplus Anticipated | H6: 3335961.15 | I6: =+H6 -> 3335961.15 | J6: =+I6-H6 -> 0 | L6: page, enter "X" in this box:
B7: Surplus Anticipated with Prior Written Consent of
B8: Director of Local Government Services | J8: =+I8-H8 -> 0
B9: Miscellaneous Revenue Anticipated: | H9: xxxxxxxxx | I9: xxxxxxxxx | J9: xxxxxxxxx
D10: Adopted Budget | H10: 10820749.65 | I10: =11600339.72-522324.03 -> 11078015.69 | J10: =+I10-H10 -> 257266.04
D11: Added by N.J.S.A. 40A:4-87 (List on 17a) | H11: =+'17a Totals-Budget Revenues'!H43 -> 522324.03 | I11: =+H11 -> 522324.03 | J11: =+I11-H11 -> 0
J12: =+I12-H12 -> 0
J13: 0
B14: Total Miscellaneous Revenue Anticipated | H14: =SUM(H10:H13) -> 11343073.68 | I14: =SUM(I10:I13) -> 11600339.72 | J14: =SUM(J10:J13) -> 257266.04
B15: Receipts from Delinquent Taxes | H15: 914444.74 | I15: =+'26-Delinquent Taxes and Liens'!M22 -> 883660.14 | J15: =+I15-H15 -> -30784.6
B17: Amount to be Raised by Taxation: | H17: xxxxxxxxx | I17: xxxxxxxxx | J17: xxxxxxxxx
C18: (a) Local Tax for Municipal Purposes | H18: 32569000 | I18: xxxxxxxxx | J18: xxxxxxxxx
C19: (b) Addition to Local District School Tax | I19: xxxxxxxxx | J19: xxxxxxxxx
C20: (c) Minimum Library Tax | H20: 1553955 | I20: xxxxxxxxx | J20: xxxxxxxxx
D21: Total Amount to be Raised by Taxation | H21: =+H19+H18+H20 -> 34122955 | I21: =+I41 -> 36067911.37 | J21: =+I21-H21 -> 1944956.37
H22: =+H21+H15+H14+H8+H6 -> 49716434.57 | I22: =+I21+I15+I14+I8+I6 -> 51887872.38 | J22: =+J21+J15+J14+J8+J6 -> 2171437.81
B26: ALLOCATION OF CURRENT TAX COLLECTIONS
I28: Debit | J28: Credit
B29: Current Taxes Realized in Cash (Total of Item 10 or 14 on Sheet 22) | I29: xxxxxxxxx | J29: =+'22-CY Levy'!L48 -> 96092613.53
B30: Amount to be Raised by Taxation | I30: xxxxxxxxx | J30: xxxxxxxxx
D31: Local District School Tax | I31: =+'13-Other Taxes'!H12+'13-Other Taxes'!H13 -> 46992357 | J31: xxxxxxxxx
D32: Regional School Tax | I32: =+'14-Other Taxes'!H13+'14-Other Taxes'!H14 -> 0 | J32: xxxxxxxxx
D33: Regional High School Tax | I33: =+'14-Other Taxes'!H34+'14-Other Taxes'!H35 -> 0 | J33: xxxxxxxxx
D34: County Taxes | I34: =+'15-Other Taxes'!J11+'15-Other Taxes'!J12+'15-Other Taxes'!J13+'15-Other Taxes'!J14 -> 11490387.54 | J34: xxxxxxxxx
D35: Due County for Added and Omitted Taxes | I35: =+'15-Other Taxes'!J15 -> 70090.62 | J35: xxxxxxxxx
D36: Special District Taxes | I36: =+'15-Other Taxes'!J36 -> 3871867 | J36: xxxxxxxxx
D37: Municipal Open Space Tax | J37: xxxxxxxxx
D38: Municipal Arts and Culture Tax | J38: xxxxxxxxx
B39: Reserve for Uncollected Taxes | I39: xxxxxxxxx | J39: =+'18-Budget Appropriations'!I15 -> 2400000
B40: Deficit in Required Collection of Current Taxes (or) | I40: xxxxxxxxx | J40: =IF(I52<0,-I52,0) -> 0
B41: Balance for Support of Municipal Budget (or) | I41: =+J29+J39-I31-I32-I33-I34-I35-I36-I37-I38 -> 36067911.37 | J41: xxxxxxxxx
B42: *Excess Non-Budget Revenue (see footnote) | J42: xxxxxxxxx
B43: *Deficit Non-Budget Revenue (see footnote) | I43: xxxxxxxxx
B44: *These items are applicable only when there is no "Amount to be Raised by Taxation" in the "Budget" column of the statement at the top of this sheet. In such instances, any excess or deficit in the above allocation would apply to "Non-Budget Revenue" only. | I44: =SUM(I29:I43) -> 98492613.53 | J44: =SUM(J29:J43) -> 98492613.53
B49: Sheet 17
G52: Posting Calculation do not | I52: =+J29-SUM(I31:I37)+J39 -> 36067911.37
G53: Remove

Sheet 17a-Budget Revenues
B4: ='17-Budget Revenues'!B2:J2 -> STATEMENT OF GENERAL BUDGET REVENUES 2022
B5: (Continued)
B7: Miscellaneous Revenues Anticipated: Added By N.J.S.A. 40A:4-87
B9: Source | H9: Budget | I9: Realized | J9: Excess or Deficit
B11: Edward Byrne Memorial Justice Assistance Grant | H11: 53600 | I11: =H11 -> 53600 | J11: =H11-I11 -> 0 | L11: Column I formula will be overridden if revenue is not realized
B12: It Pays to Plug In - NJ Electric Vehicle Charging Grant | I12: =+H12 -> 0 | J12: 0
C13: Program | H13: 75000 | I13: =+H13 -> 75000 | J13: =H13-I13 -> 0
B14: Title III Older Americans Act - Funding for Senior Ctr | H14: 10578 | I14: 10578 | J14: 0
B15: Clean Energy Vehicle Tourism Grant | H15: 150000 | I15: 150000 | J15: 0
B16: Bulletproof Vest Partnership Grant | H16: 11157.3 | I16: 11157.3 | J16: 0
B17: Assistance to Firefighters Grant Program | H17: 84425.69 | I17: 84425.69 | J17: 0
B18: Hazaradous Discharges Site Remedetion Fund | H18: 49405 | I18: 49405 | J18: 0
B19: Municipal Alliance on Alcoholism and Drug Abuse - | I19: 0 | J19: 0
C20: State | H20: 7251.05 | I20: 7251.05 | J20: 0
B21: Municipal Alcohol Education Rehabilitation and | I21: 0 | J21: 0
C22: Enforcement Program | H22: 4737.97 | I22: 4737.97 | J22: 0
B23: Clean Communities Program | H23: 69169.02 | I23: 69169.02 | J23: 0
B24: Click it or Ticket | H24: 7000 | I24: 7000 | J24: 0
I25: 0 | J25: 0
I26: 0 | J26: 0
I27: 0 | J27: 0
I28: 0 | J28: 0
I29: 0 | J29: 0
I30: 0 | J30: 0
I31: 0 | J31: 0
I32: 0 | J32: 0
I33: 0 | J33: 0
I34: 0 | J34: 0
I35: 0 | J35: 0
I36: 0 | J36: 0
I37: 0 | J37: 0
I38: 0 | J38: 0
I39: 0 | J39: 0
I40: 0 | J40: 0
I41: 0 | J41: 0
I42: 0 | J42: 0
C43: PAGE TOTALS | H43: =SUM(H10:H42) -> 522324.03 | I43: =SUM(I10:I42) -> 522324.03 | J43: =SUM(J10:J42) -> 0
B44: I hereby certify that the above list of Chapter 159 insertions of revenue have been realized in cash or I have received
B45: written notification of the award of public or private revenue. These insertions meet the statutory requirements of
B46: N.J.S.A. 40A:4-87 and matching funds have been provided if applicable.
B48: CFO Signature: | E48: mbascom@neptunetownship.org
B49: Sheet 17a

Sheet 17a.1-Budget Revenues (hidden)
B4: ='17-Budget Revenues'!B2:J2 -> STATEMENT OF GENERAL BUDGET REVENUES 2022
B5: (Continued)
B7: Miscellaneous Revenues Anticipated: Added By N.J.S.A. 40A:4-87
B9: Source | H9: Budget | I9: Realized | J9: Excess or Deficit
B10: PREVIOUS PAGE TOTALS | H10: =+'17a-Budget Revenues'!H43 -> 522324.03 | I10: =+'17a-Budget Revenues'!I43 -> 522324.03 | J10: =+'17a-Budget Revenues'!J43 -> 0
I11: =+H11 -> 0 | J11: =H11-I11 -> 0 | L11: Column I formula will be overridden if revenue is not realized
I12: 0 | J12: 0
I13: 0 | J13: 0
I14: 0 | J14: 0
I15: 0 | J15: 0
I16: 0 | J16: 0
I17: 0 | J17: 0
I18: 0 | J18: 0
I19: 0 | J19: 0
I20: 0 | J20: 0
I21: 0 | J21: 0
I22: 0 | J22: 0
I23: 0 | J23: 0
I24: 0 | J24: 0
I25: 0 | J25: 0
I26: 0 | J26: 0
I27: 0 | J27: 0
I28: 0 | J28: 0
I29: 0 | J29: 0
I30: 0 | J30: 0
I31: 0 | J31: 0
I32: 0 | J32: 0
I33: 0 | J33: 0
I34: 0 | J34: 0
I35: 0 | J35: 0
I36: 0 | J36: 0
I37: 0 | J37: 0
I38: 0 | J38: 0
I39: 0 | J39: 0
I40: 0 | J40: 0
I41: 0 | J41: 0
I42: 0 | J42: 0
C43: PAGE TOTALS | H43: =SUM(H10:H42) -> 522324.03 | I43: =SUM(I10:I42) -> 522324.03 | J43: =SUM(J10:J42) -> 0
B44: I hereby certify that the above list of Chapter 159 insertions of revenue have been realized in cash or I have received
B45: written notification of the award of public or private revenue. These insertions meet the statutory requirements of
B46: N.J.S.A. 40A:4-87 and matching funds have been provided if applicable.
B48: CFO Signature:
B49: Sheet 17a.1

Sheet 17a.2-Budget Revenues (hidden)
B4: ='17-Budget Revenues'!B2:J2 -> STATEMENT OF GENERAL BUDGET REVENUES 2022
B5: (Continued)
B7: Miscellaneous Revenues Anticipated: Added By N.J.S.A. 40A:4-87
B9: Source | H9: Budget | I9: Realized | J9: Excess or Deficit
B10: PREVIOUS PAGE TOTALS | H10: =+'17a.1-Budget Revenues '!H43 -> 522324.03 | I10: =+'17a.1-Budget Revenues '!I43 -> 522324.03 | J10: =+'17a.1-Budget Revenues '!J43 -> 0
I11: =+H11 -> 0 | J11: =H11-I11 -> 0 | L11: Column I formula will be overridden if revenue is not realized
I12: 0 | J12: 0
I13: 0 | J13: 0
I14: 0 | J14: 0
I15: 0 | J15: 0
I16: 0 | J16: 0
I17: 0 | J17: 0
I18: 0 | J18: 0
I19: 0 | J19: 0
I20: 0 | J20: 0
I21: 0 | J21: 0
I22: 0 | J22: 0
I23: 0 | J23: 0
I24: 0 | J24: 0
I25: 0 | J25: 0
I26: 0 | J26: 0
I27: 0 | J27: 0
I28: 0 | J28: 0
I29: 0 | J29: 0
I30: 0 | J30: 0
I31: 0 | J31: 0
I32: 0 | J32: 0
I33: 0 | J33: 0
I34: 0 | J34: 0
I35: 0 | J35: 0
I36: 0 | J36: 0
I37: 0 | J37: 0
I38: 0 | J38: 0
I39: 0 | J39: 0
I40: 0 | J40: 0
I41: 0 | J41: 0
I42: 0 | J42: 0
C43: PAGE TOTALS | H43: =SUM(H10:H42) -> 522324.03 | I43: =SUM(I10:I42) -> 522324.03 | J43: =SUM(J10:J42) -> 0
B44: I hereby certify that the above list of Chapter 159 insertions of revenue have been realized in cash or I have received
B45: written notification of the award of public or private revenue. These insertions meet the statutory requirements of
B46: N.J.S.A. 40A:4-87 and matching funds have been provided if applicable.
B48: CFO Signature:
B49: Sheet 17a.2

Sheet 17a.3-Budget Revenues (hidden)
B4: ='17-Budget Revenues'!B2:J2 -> STATEMENT OF GENERAL BUDGET REVENUES 2022
B5: (Continued)
B7: Miscellaneous Revenues Anticipated: Added By N.J.S.A. 40A:4-87
B9: Source | H9: Budget | I9: Realized | J9: Excess or Deficit
B10: PREVIOUS PAGE TOTALS | H10: =+'17a.2-Budget Revenues'!H43 -> 522324.03 | I10: =+'17a.2-Budget Revenues'!I43 -> 522324.03 | J10: =+'17a.2-Budget Revenues'!J43 -> 0
I11: =+H11 -> 0 | J11: =H11-I11 -> 0 | L11: Column I formula will be overridden if revenue is not realized
I12: 0 | J12: 0
I13: 0 | J13: 0
I14: 0 | J14: 0
I15: 0 | J15: 0
I16: 0 | J16: 0
I17: 0 | J17: 0
I18: 0 | J18: 0
I19: 0 | J19: 0
I20: 0 | J20: 0
I21: 0 | J21: 0
I22: 0 | J22: 0
I23: 0 | J23: 0
I24: 0 | J24: 0
I25: 0 | J25: 0
I26: 0 | J26: 0
I27: 0 | J27: 0
I28: 0 | J28: 0
I29: 0 | J29: 0
I30: 0 | J30: 0
I31: 0 | J31: 0
I32: 0 | J32: 0
I33: 0 | J33: 0
I34: 0 | J34: 0
I35: 0 | J35: 0
I36: 0 | J36: 0
I37: 0 | J37: 0
I38: 0 | J38: 0
I39: 0 | J39: 0
I40: 0 | J40: 0
I41: 0 | J41: 0
I42: 0 | J42: 0
C43: PAGE TOTALS | H43: =SUM(H10:H42) -> 522324.03 | I43: =SUM(I10:I42) -> 522324.03 | J43: =SUM(J10:J42) -> 0
B44: I hereby certify that the above list of Chapter 159 insertions of revenue have been realized in cash or I have received
B45: written notification of the award of public or private revenue. These insertions meet the statutory requirements of
B46: N.J.S.A. 40A:4-87 and matching funds have been provided if applicable.
B48: CFO Signature:
B49: Sheet 17a.3

Sheet 17a Totals-Budget Revenues
B4: ='17-Budget Revenues'!B2:J2 -> STATEMENT OF GENERAL BUDGET REVENUES 2022
B5: (Continued)
B7: Miscellaneous Revenues Anticipated: Added By N.J.S.A. 40A:4-87
B9: Source | H9: Budget | I9: Realized | J9: Excess or Deficit
B10: PREVIOUS PAGE TOTALS | H10: =+'17a.3-Budget Revenues'!H43 -> 522324.03 | I10: =+'17a.3-Budget Revenues'!I43 -> 522324.03 | J10: =+'17a.3-Budget Revenues'!J43 -> 0
I11: =+H11 -> 0 | J11: =H11-I11 -> 0 | L11: Column I formula will be overridden if revenue is not realized
I12: 0 | J12: 0
I13: 0 | J13: 0
I14: 0 | J14: 0
I15: 0 | J15: 0
I16: 0 | J16: 0
I17: 0 | J17: 0
I18: 0 | J18: 0
I19: 0 | J19: 0
I20: 0 | J20: 0
I21: 0 | J21: 0
I22: 0 | J22: 0
I23: 0 | J23: 0
I24: 0 | J24: 0
I25: 0 | J25: 0
I26: 0 | J26: 0
I27: 0 | J27: 0
I28: 0 | J28: 0
I29: 0 | J29: 0
I30: 0 | J30: 0
I31: 0 | J31: 0
I32: 0 | J32: 0
I33: 0 | J33: 0
I34: 0 | J34: 0
I35: 0 | J35: 0
I36: 0 | J36: 0
I37: 0 | J37: 0
I38: 0 | J38: 0
I39: 0 | J39: 0
I40: 0 | J40: 0
I41: 0 | J41: 0
I42: 0 | J42: 0
C43: TOTALS | H43: =SUM(H10:H42) -> 522324.03 | I43: =SUM(I10:I42) -> 522324.03 | J43: =SUM(J10:J42) -> 0
B44: I hereby certify that the above list of Chapter 159 insertions of revenue have been realized in cash or I have received
B45: written notification of the award of public or private revenue. These insertions meet the statutory requirements of
B46: N.J.S.A. 40A:4-87 and matching funds have been provided if applicable.
B48: CFO Signature:
B49: Sheet 17a Totals

Sheet 18-Budget Appropriations
B4: ="STATEMENT OF GENERAL BUDGET APPROPRIATIONS "&IF('KEY INPUTS'!C42 = "State Fiscal Year", "FY "&'KEY INPUTS'!D33&"", 'KEY INPUTS'!D34) -> STATEMENT OF GENERAL BUDGET APPROPRIATIONS 2022
B6: =IF('KEY INPUTS'!C42="State Fiscal Year","Fiscal Year "&'KEY INPUTS'!D33&"",'KEY INPUTS'!D34)&" Budget As Adopted" -> 2022 Budget As Adopted | J6: =+'17-Budget Revenues'!H22-J7 -> 49194110.54
B7: =IF('KEY INPUTS'!C42="State Fiscal Year","Fiscal Year "&'KEY INPUTS'!D33&"",'KEY INPUTS'!D34)&" Budget - Added by N.J.S.A. 40A:4-87" -> 2022 Budget - Added by N.J.S.A. 40A:4-87 | J7: =+'17a Totals-Budget Revenues'!H43 -> 522324.03
B8: ="Appropriated for "&IF('KEY INPUTS'!C42="State Fiscal Year","Fiscal Year "&'KEY INPUTS'!D33&"",'KEY INPUTS'!D34)&" (Budget Statement Item 9)" -> Appropriated for 2022 (Budget Statement Item 9) | J8: =+J7+J6 -> 49716434.57
B9: ="Appropriated for "&IF('KEY INPUTS'!C42="State Fiscal Year","Fiscal Year "&'KEY INPUTS'!D33&"",'KEY INPUTS'!D34)&" by Emergency Appropriation (Budget Statement Item 9)" -> Appropriated for 2022 by Emergency Appropriation (Budget Statement Item 9)
B10: Total General Appropriations (Budget Statement Item 9) | J10: =+J9+J8 -> 49716434.57
B11: Add: Overexpenditures (see footnote)
C12: Total Appropriations and Overexpenditures | J12: =+J10+J11 -> 49716434.57
B13: Deduct Expenditures:
C14: Paid or Charged [Budget Statement Item (L)] | I14: 45094875.2
C15: Paid or Charged - Reserve for Uncollected Taxes | I15: 2400000
C16: Reserved | I16: 2149942.79
D17: Total Expenditures | J17: =SUM(I14:I16) -> 49644817.99
B18: Unexpended Balances Canceled (see footnote) | J18: =+J12-J17 -> 71616.58
B20: FOOTNOTES - RE: OVEREXPENDITURES
C21: Every appropriation overexpended in the budget document must be marked with an * and must agree in the aggregate with this item.
C22: RE: UNEXPENDED BALANCES CANCELED
C23: Are not to be shown as "Paid or Charged" in the budget document. In all instances "Total Appropriations" and "Overexpenditures"
D24: must equal the sum of "Total Expenditures" and "Unexpended Balances Canceled".
B32: SCHEDULE OF EMERGENCY APPROPRIATIONS FOR LOCAL
B33: DISTRICT SCHOOL PURPOSES
B35: (EXCEPT FOR TYPE I SCHOOL DEBT SERVICE)
B37: =IF('KEY INPUTS'!C42="State Fiscal Year","Fiscal Year "&'KEY INPUTS'!D33&"",'KEY INPUTS'!D34)&" Authorizations" -> 2022 Authorizations
C38: N.J.S.A. 40A:4-46 (After adoption of Budget)
C39: N.J.S.A. 40A:4-20 (Prior to adoption of Budget)
D40: Total Authorizations | J40: =SUM(I38:I39) -> 0
B41: Deduct Expenditures:
C42: Paid or Charged
C43: Reserved
D44: Total Expenditures | J44: =SUM(I42:I43) -> 0
B54: Sheet 18

Sheet 19-Results of Op-Cur Fnd
B3: =" RESULTS OF "&IF('KEY INPUTS'!C42 = "State Fiscal Year", "FISCAL YEAR "&'KEY INPUTS'!D33&"",'KEY INPUTS'!D34)&" OPERATIONS" -> RESULTS OF 2022 OPERATIONS
B6: CURRENT FUND
H9: Debit | I9: Credit
B10: Excess of Anticipated Revenues: | H10: xxxxxxxxx | I10: xxxxxxxxx
C11: Miscellaneous Revenues anticipated | H11: xxxxxxxxx | I11: =IF(+'17-Budget Revenues'!J14>0, +'17-Budget Revenues'!J14,0) -> 257266.04
C12: Delinquent Tax Collections | H12: xxxxxxxxx | I12: =IF(+'17-Budget Revenues'!J15>0, +'17-Budget Revenues'!J15,0) -> 0
H13: xxxxxxxxx
C14: Required Collection of Current Taxes | H14: xxxxxxxxx | I14: =IF(+'17-Budget Revenues'!J21>0, +'17-Budget Revenues'!J21,0) -> 1944956.37
B15: ="Unexpended Balances of "&IF('KEY INPUTS'!C42 = "State Fiscal Year", "Fiscal Year "&'KEY INPUTS'!D33&"",'KEY INPUTS'!D34)&" Budget Appropriations" -> Unexpended Balances of 2022 Budget Appropriations | H15: xxxxxxxxx | I15: =+'18-Budget Appropriations'!J18 -> 71616.58
B16: Miscellaneous Revenue Not Anticipated | H16: xxxxxxxxx | I16: ='20 Total-Misc Rev Not Ant'!H41 -> 1586490.22
B17: Miscellaneous Revenue Not Anticipated: | H17: xxxxxxxxx | I17: ='27-Foreclosed Property'!I47 -> 0
C18: Proceeds of Sale of Foreclosed Property (Sheet 27)
C19: Payments in Lieu of Taxes on Real Property | H19: xxxxxxxxx
B20: Sale of Municipal Assets | H20: xxxxxxxxx
B21: ="Unexpended Balances of "&IF('KEY INPUTS'!C42 = "State Fiscal Year", "Fiscal Year "&'KEY INPUTS'!D33-1&"",'KEY INPUTS'!D34-1)&" Appropriation Reserves" -> Unexpended Balances of 2021 Appropriation Reserves | H21: xxxxxxxxx | I21: 1924091.25
B22: ="Prior Years Interfunds Returned in "&IF('KEY INPUTS'!C42 = "State Fiscal Year", "Fiscal Year "&'KEY INPUTS'!D33&"",'KEY INPUTS'!D34) -> Prior Years Interfunds Returned in 2022 | H22: xxxxxxxxx | I22: =23202.65+48061.2+1505.96 -> 72769.81
B23: Appropriated Grant Reserves Canceled | I23: 119391
B24: Accounts Payable Canceled | I24: 51142.91
B25: Cancel Prior Year Checks | I25: 5537.98
B27: Deferred School Tax Revenue: (See School Taxes, Sheets 13 & 14) | H27: xxxxxxxxx | I27: xxxxxxxxx
C28: =IF('KEY INPUTS'!C42 = "State Fiscal Year", 'KEY INPUTS'!F25,'KEY INPUTS'!D25) -> Balance - January 1, 2022 | H28: =+'13-Other Taxes'!H11+'14-Other Taxes'!H12+'14-Other Taxes'!H33 -> 17265725 | I28: xxxxxxxxx
C29: =IF('KEY INPUTS'!C42 = "State Fiscal Year", 'KEY INPUTS'!F26,'KEY INPUTS'!D26) -> Balance - December 31, 2022 | H29: xxxxxxxxx | I29: ='13-Other Taxes'!G18+'14-Other Taxes'!G40+'14-Other Taxes'!G19 -> 17265725
B30: Deficit in Anticipated Revenues: | H30: xxxxxxxxx | I30: xxxxxxxxx
C31: Miscellaneous Revenues Anticipated | H31: =IF(+'17-Budget Revenues'!J14<0, -'17-Budget Revenues'!J14,0) -> 0 | I31: xxxxxxxxx
C32: Delinquent Tax Collections | H32: =IF(+'17-Budget Revenues'!J15<0, -'17-Budget Revenues'!J15,0) -> 30784.6 | I32: xxxxxxxxx
I33: xxxxxxxxx
C34: Required Collection on Current Taxes | H34: =IF(+'17-Budget Revenues'!J21<0, -'17-Budget Revenues'!J21,0) -> 0 | I34: xxxxxxxxx
B35: ="Interfund Advances Originating in "&IF('KEY INPUTS'!C42 = "State Fiscal Year", "Fiscal Year "&'KEY INPUTS'!D33&"",'KEY INPUTS'!D34) -> Interfund Advances Originating in 2022 | H35: 42875 | I35: xxxxxxxxx
B36: Prior Year Deductions Disallowed | H36: 7000
B37: Grants Receivable Canceled | H37: 101366
B38: Refund of Prior Year Tax Revenue | H38: 487638.06
B39: Refund of Prior Year Revenue | H39: 654.9
B43: Deficit Balance - To Trial Balance (Sheet 3) | H43: xxxxxxxxx | I43: =IF(+J44>0,0,J44*-1) -> 0
B44: Surplus Balance - To Surplus (Sheet 21) | H44: =+IF(+J44>0,J44,0) -> 5362943.6 | I44: xxxxxxxxx | J44: =SUM(I10:I42)-SUM(H10:H42) -> 5362943.6 | K44: DO NOT REMOVE formula in K40 to calculate H40 &I39 - hide formula from user
H45: =SUM(H10:H44) -> 23298987.16 | I45: =SUM(I10:I44) -> 23298987.16
B48: Sheet 19

Sheet 20-Misc Rev Not Ant (hidden)
B3: SCHEDULE OF MISCELLANEOUS REVENUES
B4: NOT ANTICIPATED
B7: Source | H7: Amount Realized
B41: Page Total Amount of Miscellaneous Revenues Not Anticipated (Sheet 19) | H41: =SUM(H8:H40) -> 0
B47: Sheet 20

Sheet 20.1-Misc Rev Not Ant (hidden)
B3: SCHEDULE OF MISCELLANEOUS REVENUES
B4: NOT ANTICIPATED
B7: Source | H7: Amount Realized
C8: PREVIOUS PAGE TOTALS | H8: =+'20-Misc Rev Not Ant'!H41 -> 0
B41: Page Total Amount of Miscellaneous Revenues Not Anticipated (Sheet 19) | H41: =SUM(H8:H40) -> 0
B47: Sheet 20.1

Sheet 20 Total-Misc Rev Not Ant
B3: SCHEDULE OF MISCELLANEOUS REVENUES
B4: NOT ANTICIPATED
B7: Source | H7: Amount Realized
C8: PREVIOUS PAGE TOTALS | H8: =+'20.1-Misc Rev Not Ant'!H41 -> 0
B9: Recycling | H9: =680.15+3887.27+1818.89+3277.84+2202.12+1688.09+498.6+759.45+1310.2 -> 16122.61
B10: Planning Board | H10: =1610+500+8963+1250+1610 -> 13933
B11: Workman's Compensation Refunds | H11: =4588.22+9601.64+9579.57+1799.59+1369.26+3286.17+1642.3+1642.3+1642.3+3195+4837.3+3195+821.15+3042.8+4107.82+1977.95 -> 56328.37
B12: State Administration Fee - Senior Citizen and Veterans | H12: 2828.12
B13: Other Unanticipated | H13: =401856.44-3225-218037.89 -> 180593.55
B14: Tax Search | H14: 20
B15: Attorney Fees | H15: 55209.23
B16: Vending Revenue | H16: 10653.82
B17: Vacant Property Registration Fee | H17: =3000+500+500+500+500+500+500+500+1000+500+500+500+500+500+500+500+500+500+500+500+209+1500+500+500+1000 -> 16709
B18: Abating Costs | H18: 7972.56
B19: Payments in Lieu of Taxes on Real Property | H19: 453029.41
B20: Neptune City-Brush Pickup | H20: 24190
B21: Sale of Municipal Assets | H21: 120499.08
B22: Township of Shrewsbury - Municipal Clerk | H22: 3762.78
B23: Hotel Tax | H23: 361842.15
B24: Cannabis Fee | H24: =10000+10000+1000+217571.54+10000+10000+100+900 -> 259571.54
B25: Tax Map | H25: 3225
B41: Total Amount of Miscellaneous Revenues Not Anticipated (Sheet 19) | H41: =SUM(H8:H40) -> 1586490.22
B47: Sheet 20 Totals

Sheet 21-Current Fund Surplus
B3: SURPLUS - CURRENT FUND
B4: =IF('KEY INPUTS'!C42 = "State Fiscal Year", "FISCAL YEAR "&'KEY INPUTS'!D33&"", "YEAR "&'KEY INPUTS'!D34&"") -> YEAR 2022
K6: Debit | L6: Credit
B7: 1. | C7: =IF('KEY INPUTS'!C42 = "State Fiscal Year", 'KEY INPUTS'!F25,'KEY INPUTS'!D25) -> Balance - January 1, 2022 | K7: xxxxxxxxx | L7: 8999316.69
B8: 2. | K8: xxxxxxxxx
B9: 3. | C9: ="Excess Resulting from "&IF('KEY INPUTS'!C42="State Fiscal Year","Fiscal Year "&'KEY INPUTS'!D33&"",'KEY INPUTS'!D34)&" Operations" -> Excess Resulting from 2022 Operations | K9: xxxxxxxxx | L9: =+'19-Results of Op-Cur Fnd'!H44 -> 5362943.6
B10: 4. | C10: ="Amount Appropriated in the "&IF('KEY INPUTS'!C42="State Fiscal Year","Fiscal Year "&'KEY INPUTS'!D33&"",'KEY INPUTS'!D34)&" Budget - Cash" -> Amount Appropriated in the 2022 Budget - Cash | K10: =+'17-Budget Revenues'!H6 -> 3335961.15 | L10: xxxxxxxxx
B11: 5. | C11: ="Amount Appropriated in "&IF('KEY INPUTS'!C42="State Fiscal Year","Fiscal Year "&'KEY INPUTS'!D33&"",'KEY INPUTS'!D34)&" Budget - with Prior" -> Amount Appropriated in 2022 Budget - with Prior
C12: Written Consent of Director of Local Government Services | K12: =+'17-Budget Revenues'!H8 -> 0 | L12: xxxxxxxxx
B13: 6. | L13: xxxxxxxxx
B14: 7. | C14: =IF('KEY INPUTS'!C42 = "State Fiscal Year", 'KEY INPUTS'!F26,'KEY INPUTS'!D26) -> Balance - December 31, 2022 | K14: =+L7+L8+L9-K10-K12-K13 -> 11026299.14 | L14: xxxxxxxxx
K15: =SUM(K10:K14) -> 14362260.29 | L15: =SUM(L7:L14) -> 14362260.29
B19: ="ANALYSIS OF BALANCE "&IF('KEY INPUTS'!C42 = "State Fiscal Year", 'KEY INPUTS'!F45,'KEY INPUTS'!D45) -> ANALYSIS OF BALANCE AS AT DECEMBER 31, 2022
B20: (FROM CURRENT FUND - TRIAL BALANCE)
B23: Cash | L23: =+'3-Trial Bal-Current Fund'!G11 -> 13353384.74
B24: Investments | L24: =+'3-Trial Bal-Current Fund'!G12 -> 9510547.56
B26: Sub Total | L26: =+L23+L24+L25 -> 22863932.3
B27: Deduct Cash Liabilities Marked with "C" on Trial Balance | L27: =+'3a.1-Trial Bal-Current Fund'!H25 -> 11842794.12
B28: Cash Surplus | L28: =+L26-L27 -> 11021138.18
B29: Deficit in Cash Surplus
B30: Other Assets Pledged to Surplus:*
C31: (1) Due from State of N.J. Senior Citizens and Veterans Deduction | K31: =+'3-Trial Bal-Current Fund'!G13 -> 5160.96
C32: Deferred Charges #
C33: Cash Deficit #
D38: Total Other Assets | L38: =SUM(K31:K37) -> 5160.96
B39: * IN THE CASE OF A "DEFICIT IN CASH SURPLUS", "OTHER ASSETS" | L39: =+L28+L38 -> 11026299.14
C40: WOULD ALSO BE PLEDGED TO CASH LIABILITIES.
B41: ="# MAY NOT BE ANTICIPATED AS NON-CASH SURPLUS IN "&TEXT('KEY INPUTS'!D33,"0")&" BUDGET." -> # MAY NOT BE ANTICIPATED AS NON-CASH SURPLUS IN 2023 BUDGET.
B42: (1) MAY BE ALLOWED UNDER CERTAIN CONDITIONS.
B44: NOTE: Deferred charges for authorizations under N.J.S.A. 40A:4-55 (Tax Map, etc.), N.J.S.A. 40A:4-55 (Flood Damage, etc.), N.J.S.A.
B45: 40A:4-55.1 (Roads and Bridges, etc.) and N.J.S.A. 40A:4-55.13 (Public Exigencies, etc.) to the extent of emergency notes issued
B46: and outstanding for such purposes, together with such emergency notes, may be omitted from this analysis.
B50: Sheet 21

Sheet 22-CY Levy
B2: (FOR MUNICIPALITIES ONLY)
B3: ="CURRENT TAXES - "&TEXT('KEY INPUTS'!D34,"0")& " LEVY" -> CURRENT TAXES - 2022 LEVY
B5: 1. | C5: Amount of Levy as per Duplicate (Analysis) # | M5: $ | N5: 92646379.96
G6: or
F7: (Abstract of Ratables) | M7: $
B9: 2. | C9: Amount of Levy - Special District Taxes | M9: $ | N9: 3884489.93
B11: 3. | C11: Amount Levied for Omitted Taxes under
C12: N.J.S.A. 54:4-63.12 et seq. | M12: $ | N12: 477710.09
B14: 4. | C14: Amount Levied for Added Taxes under
C15: N.J.S.A. 54:4-63.1 et seq. | M15: $
B17: 5a. | C17: ="Subtotal "&TEXT('KEY INPUTS'!D34,"0")&" Levy" -> Subtotal 2022 Levy | I17: $ | J17: =SUM(N5:N15) -> 97008579.98
B18: 5b. | C18: Reductions Due to Tax Appeals** | I18: $
B19: 5c. | C19: ="Total "&TEXT('KEY INPUTS'!D34,"0") & " Tax Levy" -> Total 2022 Tax Levy | M19: $ | N19: =+J17-J18 -> 97008579.98
B21: 6. | C21: Transferred to Tax Title Liens | M21: $ | N21: 8892.46
B22: 7. | C22: Transferred to Foreclosed Property | M22: $
B23: 8. | C23: Remitted, Abated or Canceled | M23: $ | N23: 159031.33
B24: 9. | C24: Discount Allowed | M24: $
B25: 10. | C25: ="Collected in Cash: In "&TEXT('KEY INPUTS'!D35,"0") -> Collected in Cash: In 2021 | K25: $ | L25: 1003655
F26: ="In "&TEXT('KEY INPUTS'!D34,"0")&"*" -> In 2022* | K26: $ | L26: =94922676.16-941175.03+12715.25 -> 93994216.38
C27: Homestead Benefit Credit | K27: $ | L27: 941175.03
C29: ="State's Share of "&TEXT('KEY INPUTS'!D34,"0")&" Senior Citizens" -> State's Share of 2022 Senior Citizens
C30: and Veterans Deductions Allowed | K30: $ | L30: =+'23-SCVet Deductions'!G37 -> 153567.12
C32: Total To Line 14 | K32: $ | L32: =SUM(L25:L30) -> 96092613.53
B34: 11. | C34: Total Credits | M34: $ | N34: =+SUM(N21:N24)+L32 -> 96260537.32
B35: 12. | C35: ="Amount Outstanding December 31, "&TEXT('KEY INPUTS'!D34,"0") -> Amount Outstanding December 31, 2022 | M35: $ | N35: =+N19-N34 -> 748042.66
B37: 13. | C37: ="Percentage of Cash Collections to Total "&TEXT('KEY INPUTS'!D34,"0")&" Levy," -> Percentage of Cash Collections to Total 2022 Levy,
C38: (Item 10 divided by Item 5c) is | H38: =TRUNC(+L32/N19, 4) -> 0.9905
B41: Note: If municipality conducted Accelerated Tax Sale or Tax Levy Sale check here ____ and complete sheet 22a.
B43: 14. | C43: Calculation of Current Taxes Realized in Cash:
C45: Total of Line 10 | K45: $ | L45: =+L32 -> 96092613.53
C46: Less: | D46: Reserve for Tax Appeals Pending
D47: State Division of Tax Appeals | K47: $
C48: To Current Taxes Realized in Cash (Sheet 17) | K48: $ | L48: =+L45-L47 -> 96092613.53
B50: Note A: | C50: In showing the above percentage the following should be noted:
C51: Where Item 5 shows $1,500,000.00, and Item 10 shows $1,049,977.50,
C52: the percentage represented by the cash collections would be
C53: $1,049,977.50 divided by $1,500,000, or .699985. The correct percentage to
C54: be shown as Item 13 is 69.99% and not 70.00%, nor 69.999%.
B56: # Note: | C56: On Item 1 if Duplicate (Analysis) Figure is used; be sure to include
C57: Senior Citizens and Veterans Deductions.
B60: ="* Include overpayments applied as part of "&TEXT('KEY INPUTS'!D34,"0")&" collections." -> * Include overpayments applied as part of 2022 collections.
B61: ** Tax appeals pursuant to R.S. 54:3-21 et seq and/or R.S. 54:48-1 et seq approved by resolution of the governing
D62: body prior to introduction of municipal budget
B63: Sheet 22

Sheet 22a-Tax Levy Sale
B4: ACCELERATED TAX SALE / TAX LEVY SALE - CHAPTER 99
B6: ="To Calculate Underlying Tax Collection Rate for "&TEXT('KEY INPUTS'!D34,"0") -> To Calculate Underlying Tax Collection Rate for 2022
B8: Utilize this sheet only if you conducted an Accelerated Tax Sale or Tax Levy Sale pursuant to
B9: Chapter 99, P.L. 1997.
B13: (1) Utilizing Accelerated Tax Sale
B16: Total of Line 10 Collected in Cash (sheet 22) | J16: $ | K16: =+'22-CY Levy'!L32 -> 96092613.53
B17: LESS: Proceeds from Accelerated Tax Sale
D18: Net Cash Collected | J18: $ | K18: =K16-K17 -> 96092613.53
B19: ="Line 5c (sheet 22) Total "&TEXT('KEY INPUTS'!D34,"0")&" Tax Levy" -> Line 5c (sheet 22) Total 2022 Tax Levy | J19: $ | K19: =+'22-CY Levy'!N19 -> 97008579.98
B21: Percentage of Collection Excluding Accelerated Tax Sale Proceeds
B22: (Net Cash Collected divided by Item 5c) is | K22: =+K18/K19 -> 0.9905578821
B34: (2) Utilizing Tax Levy Sale
B37: Total of Line 10 Collected in Cash (sheet 22) | J37: $ | K37: =+'22-CY Levy'!L32 -> 96092613.53
B38: LESS: Proceeds from Tax Levy Sale (excluding premium)
D39: Net Cash Collected | J39: $ | K39: =K37-K38 -> 96092613.53
B40: =B19 -> Line 5c (sheet 22) Total 2022 Tax Levy | J40: $ | K40: =+'22-CY Levy'!N19 -> 97008579.98
B42: Percentage of Collection Excluding Tax Levy Sale Proceeds
B43: (Net Cash Collected divided by Item 5c) is | K43: =IFERROR(K39/K40,"NO ENTRY") -> 0.9905578821
B61: Sheet 22a

Sheet 23-SCVet Deductions
B3: SCHEDULE OF DUE FROM / TO STATE OF NEW JERSEY
B4: FOR SENIOR CITIZENS AND VETERANS DEDUCTIONS
I6: Debit | J6: Credit
B7: 1. | C7: ='21-Current Fund Surplus'!C7 -> Balance - January 1, 2022 | I7: xxxxxxxxx | J7: xxxxxxxxx
D8: Due From State of New Jersey | J8: xxxxxxxxx
D9: Due To State of New Jersey | I9: xxxxxxxxx | J9: 1750
B10: 2. | C10: Senior Citizens Deductions Per Tax Billings | I10: 28500 | J10: xxxxxxxxx
B11: 3. | C11: Veterans Deductions Per Tax Billings | I11: 120000 | J11: xxxxxxxxx
B12: 4. | C12: Deductions Allowed By Tax Collector | I12: 6000 | J12: xxxxxxxxx
B13: 5. | C13: ="Deductions Allowed By Tax Collector - Prior Year Taxes ("&TEXT('KEY INPUTS'!D35,"0")&")" -> Deductions Allowed By Tax Collector - Prior Year Taxes (2021)
B14: 6.
B15: 7. | C15: Deductions Disallowed By Tax Collector | I15: xxxxxxxxx | J15: 932.88
B16: 8. | C16: ="Deductions Disallowed By Tax Collector - Prior Year Taxes ("&TEXT('KEY INPUTS'!D35,"0")&")" -> Deductions Disallowed By Tax Collector - Prior Year Taxes (2021) | I16: xxxxxxxxx | J16: 7000
B17: 9. | C17: Received in Cash from State | I17: xxxxxxxxx | J17: 139656.16
B18: 10.
B19: 11.
B20: 12. | C20: ='21-Current Fund Surplus'!C14 -> Balance - December 31, 2022 | I20: xxxxxxxxx | J20: xxxxxxxxx | K20: =SUM(I7:I20)-SUM(J7:J20) -> 5160.96 | L20: DO NOT REMOVE THIS FORMULA
D21: Due From State of New Jersey | I21: xxxxxxxxx | J21: =IF(K20>0,K20,0) -> 5160.96
D22: Due To State of New Jersey | I22: =IF(K20>0,0,K20)*-1 -> 0 | J22: xxxxxxxxx
I23: =SUM(I7:I22) -> 154500 | J23: =SUM(J7:J22) -> 154500
B29: Calculation of Amount to be included on Sheet 22, Item 10 -
B30: =IF('KEY INPUTS'!C42="State Fiscal Year","Fiscal Year "&'KEY INPUTS'!D33&"",'KEY INPUTS'!D34)&" Senior Citizens and Veterans Deductions Allowed" -> 2022 Senior Citizens and Veterans Deductions Allowed
B32: Line 2 | G32: =+I10 -> 28500
B33: Line 3 | G33: =+I11 -> 120000
B34: Line 4 | G34: =+I12 -> 6000
B35: Sub - Total | G35: =SUM(G32:G34) -> 154500
B36: Less: Line 7 | G36: =+J15 -> 932.88
B37: To Item 10, Sheet 22 | G37: =+G35-G36 -> 153567.12
B54: Sheet 23

Sheet 24-Reserves for Tax Appeals
B3: SCHEDULE OF RESERVE FOR TAX APPEALS PENDING -
B4: N.J. DIVISION OF TAXATION APPEALS (N.J.S.A. 54:3-27)
I6: Debit | J6: Credit
B7: ='23-SCVet Deductions'!C7 -> Balance - January 1, 2022 | I7: xxxxxxxxxx | J7: =H8+H9 -> 0
C8: Taxes Pending Appeals | I8: xxxxxxxxxx | J8: xxxxxxxxx
C9: Interest Earned on Taxes Pending Appeals | I9: xxxxxxxxxx | J9: xxxxxxxxx
B10: ="Contested Amount of "&TEXT('KEY INPUTS'!D34,"0")&" Taxes Collected which are Pending State Appeal (Item 14, Sheet 22)" -> Contested Amount of 2022 Taxes Collected which are Pending State Appeal (Item 14, Sheet 22) | I10: xxxxxxxxxx
B11: Interest Earned on Taxes Pending State Appeals | I11: xxxxxxxxxx
B13: Cash Paid to Appellants (Including 5% Interest from Date of Payment) | J13: xxxxxxxxx
B14: Closed to Results of Operation
B15: (Portion of Appeal won by Municipality, including Interest) | J15: xxxxxxxxx
B17: ='23-SCVet Deductions'!C20 -> Balance - December 31, 2022 | I17: =H18+H19 -> 0 | J17: xxxxxxxxx
C18: Taxes Pending Appeals* | I18: xxxxxxxxx | J18: xxxxxxxxx
C19: Interest Earned on Taxes Pending Appeals | I19: xxxxxxxxx | J19: xxxxxxxxx
B20: *Includes State Tax Court and County Board of Taxation | I20: =SUM(I7:I19) -> 0 | J20: =SUM(J7:J19) -> 0
B21: =" Appeals Not Adjusted by December 31, "&TEXT('KEY INPUTS'!D34,"0") -> Appeals Not Adjusted by December 31, 2022
C26: Signature of Tax Collector
C30: License # | G30: Date
B60: Sheet 24

Sheet 26-Delinquent Taxes and Liens
B2: SCHEDULE OF DELINQUENT TAXES AND TAX TITLE LIENS
J4: Debit | L4: Credit
B5: 1. | C5: ='24-Reserves for Tax Appeals'!B7 -> Balance - January 1, 2022 | K5: =I6+I7 -> 1096982.65 | M5: xxxxxxxxx
D6: A. | E6: Taxes | I6: 1044279.16 | K6: xxxxxxxxx | M6: xxxxxxxxx
D7: B. | E7: Tax Title Liens | I7: 52703.49 | K7: xxxxxxxxx | M7: xxxxxxxxx
B8: 2. | C8: Canceled: | K8: xxxxxxxxx | M8: xxxxxxxxx
D9: A. | E9: Taxes | K9: xxxxxxxxx | M9: 138903.38
D10: B. | E10: Tax Title Liens | K10: xxxxxxxxx
B11: 3. | C11: Transferred to Foreclosed Tax Title Liens: | K11: xxxxxxxxx | M11: xxxxxxxxx
D12: A. | E12: Taxes | K12: xxxxxxxxx
D13: B. | E13: Tax Title Liens | K13: xxxxxxxxx
B14: 4. | C14: Added Taxes | K14: =25382.11+7000 -> 32382.11 | M14: xxxxxxxxx
B15: 5. | C15: Added Tax Title Liens | M15: xxxxxxxxx
B16: 6. | C16: Adjustment between Taxes (Other than Current Year) and Tax Title Liens; | K16: xxxxxxxxx
D17: A. | E17: Taxes - Transfers to Tax Title Liens | K17: xxxxxxxxx | L17: (1)
D18: B. | E18: Tax Title Liens - Transfers from Taxes | J18: (1) | K18: =+M17 -> 0 | M18: xxxxxxxxx
B19: 7. | C19: Balance Before Cash Payments | K19: xxxxxxxxx | M19: =+K5+K14+K15+K18-M17-M16-M13-M12-M10-M9 -> 990461.38
B20: 8. | D20: Totals | K20: =SUM(K5:K19) -> 1129364.76 | M20: =SUM(M5:M19) -> 1129364.76
B21: 9. | C21: Balance Brought Down | K21: =+M19 -> 990461.38 | M21: xxxxxxxxx
B22: 10. | C22: Collected: | K22: xxxxxxxxx | M22: =+I23+I24 -> 883660.14
D23: A. | E23: Taxes | I23: 883660.14 | K23: xxxxxxxxx | M23: xxxxxxxxx
D24: B. | E24: Tax Title Liens | K24: xxxxxxxxx | M24: xxxxxxxxx
B25: 11. | C25: ="Interest and Costs - "&IF('KEY INPUTS'!C42="State Fiscal Year","Fiscal Year "&'KEY INPUTS'!D33&"",'KEY INPUTS'!D34)&" Tax Sale" -> Interest and Costs - 2022 Tax Sale | M25: xxxxxxxxx
B26: 12. | C26: =IF('KEY INPUTS'!C42="State Fiscal Year","Fiscal Year "&'KEY INPUTS'!D33&"",'KEY INPUTS'!D34)&" Taxes Transferred to Liens" -> 2022 Taxes Transferred to Liens | K26: 8892.46 | M26: xxxxxxxxx
B27: 13. | C27: =IF('KEY INPUTS'!C42="State Fiscal Year","Fiscal Year "&'KEY INPUTS'!D33&"",'KEY INPUTS'!D34)&" Taxes" -> 2022 Taxes | K27: =+'22-CY Levy'!N35+'22-CY Levy'!N22 -> 748042.66 | M27: xxxxxxxxx
B28: 14. | C28: ='24-Reserves for Tax Appeals'!B17 -> Balance - December 31, 2022 | K28: xxxxxxxxx | M28: =+I29+I30 -> 863736.36
D29: A. | E29: Taxes | I29: =+I6-M9-M12+K14-M17-I23+K27 -> 802140.41 | K29: xxxxxxxxx | M29: xxxxxxxxx
D30: B. | E30: Tax Title Liens | I30: =+I7-M10-M13+K15+K18-I24+K25+K26 -> 61595.95 | K30: xxxxxxxxx | M30: xxxxxxxxx
B31: 15. | E31: Totals | K31: =SUM(K21:K30) -> 1747396.5 | M31: =SUM(M21:M30) -> 1747396.5
B34: 16. | C34: Percentage of Cash Collections to Adjusted Amount Outstanding
C35: (Item No. 10 divided by Item No. 9) is | H35: =IFERROR(TRUNC(M22/K21,4),"NO ENTRY") -> 0.8921
B37: 17. | C37: Item No.14 multiplied by percentage shown above is | I37: =IFERROR(H35*M28,"NO ENTRY") -> 770539.2068 | J37: and represents the
C38: ="maximum amount that may be anticipated in "&IF('KEY INPUTS'!C42="State Fiscal Year","Fiscal Year "&'KEY INPUTS'!D33+1&"",'KEY INPUTS'!D34+1)&"." -> maximum amount that may be anticipated in 2023.
B40: (See Note A on Sheet 22 - Current Taxes)
B42: (1) These amounts will always be the same.
B49: Sheet 26

Sheet 27-Foreclosed Property
B2: SCHEDULE OF FORECLOSED PROPERTY
B3: (PROPERTY ACQUIRED BY TAX TITLE LIEN LIQUIDATION)
K5: Debit | L5: Credit
B6: 1. | C6: ='26-Delinquent Taxes and Liens'!C5 -> Balance - January 1, 2022 | K6: 5242800 | L6: xxxxxxxxx
B7: 2. | C7: ="Foreclosed or Deeded in "&IF('KEY INPUTS'!C42="State Fiscal Year","Fiscal Year "&'KEY INPUTS'!D33&"",'KEY INPUTS'!D34) -> Foreclosed or Deeded in 2022 | K7: xxxxxxxxx | L7: xxxxxxxxx
B8: 3. | D8: Tax Title Liens | K8: =+'26-Delinquent Taxes and Liens'!M13 -> 0 | L8: xxxxxxxxx
B9: 4. | D9: Taxes Receivable | K9: =+'26-Delinquent Taxes and Liens'!M12 -> 0 | L9: xxxxxxxxx
B10: 5A. | L10: xxxxxxxxx
B11: 5B. | K11: xxxxxxxxx
B12: 6. | D12: Adjustment to Assessed Valuation | L12: xxxxxxxxx
B13: 7. | D13: Adjustment to Assessed Valuation | K13: xxxxxxxxx
B14: 8. | C14: Sales | K14: xxxxxxxxx | L14: xxxxxxxxx
B15: 9. | D15: Cash * | K15: xxxxxxxxx
B16: 10. | D16: Contract | K16: xxxxxxxxx
B17: 11. | D17: Mortgage | K17: xxxxxxxxx
B18: 12. | D18: Loss on Sales | K18: xxxxxxxxx
B19: 13. | D19: Gain on Sales | L19: xxxxxxxxx
B20: 14. | C20: ='26-Delinquent Taxes and Liens'!C28 -> Balance - December 31, 2022 | K20: xxxxxxxxx | L20: =K6+SUM(K8:K10)-L11+K12-L13-SUM(L15:L18)+K19 -> 5242800
K21: =SUM(K6:K20) -> 5242800 | L21: =SUM(L6:L20) -> 5242800
B23: CONTRACT SALES
K25: Debit | L25: Credit
B26: 15. | C26: =C6 -> Balance - January 1, 2022 | L26: xxxxxxxxx
B27: 16. | C27: =IF('KEY INPUTS'!C42="State Fiscal Year","Fiscal Year "&'KEY INPUTS'!D33&"",'KEY INPUTS'!D34)&" Sales from Foreclosed Property" -> 2022 Sales from Foreclosed Property | L27: xxxxxxxxx
B28: 17. | C28: Collected* | K28: xxxxxxxxx
B29: 18. | K29: xxxxxxxxx
B30: 19. | C30: =C20 -> Balance - December 31, 2022 | K30: xxxxxxxxx | L30: =SUM(K26:K27)-SUM(L28:L29) -> 0
K31: =SUM(K26:K30) -> 0 | L31: =SUM(L26:L30) -> 0
B33: MORTGAGE SALES
K35: Debit | L35: Credit
B36: 20. | C36: =C26 -> Balance - January 1, 2022 | L36: xxxxxxxxx
B37: 21. | C37: =C27 -> 2022 Sales from Foreclosed Property | L37: xxxxxxxxx
B38: 22. | C38: Collected* | K38: xxxxxxxxx
B39: 23. | K39: xxxxxxxxx
B40: 24. | C40: =C30 -> Balance - December 31, 2022 | K40: xxxxxxxxx | L40: =SUM(K36:K37)-SUM(L38:L39) -> 0
K41: =SUM(K36:K40) -> 0 | L41: =SUM(L36:L40) -> 0
B42: Analysis of Sale of Property: | H42: $ | I42: =+L15+L28+L38 -> 0
B43: ="*Total Cash Collected in "&IF('KEY INPUTS'!C42="State Fiscal Year","Fiscal Year "&'KEY INPUTS'!D33&"",'KEY INPUTS'!D34) -> *Total Cash Collected in 2022
B45: ="Realized in "&IF('KEY INPUTS'!C42="State Fiscal Year","Fiscal Year "&'KEY INPUTS'!D33&"",'KEY INPUTS'!D34)&" Budget" -> Realized in 2022 Budget
B47: To Results of Operation (Sheet 19) | I47: =+I42-I45 -> 0
B50: Sheet 27

Sheet 28-Deferred Charges
B3: DEFERRED CHARGES
B4: - MANDATORY CHARGES ONLY -
B5: CURRENT, TRUST, AND GENERAL CAPITAL FUNDS
B6: (Do not include the emergency authorizations pursuant to N.J.S.A. 40A:4-55,
B7: N.J.S.A. 40A:4-55.1 or N.J.S.A. 40A:4-55.13 listed on Sheets 29 and 30.)
H9: Amount
C10: Caused By | H10: =IF('KEY INPUTS'!C42 = "State Fiscal Year", 'KEY INPUTS'!F46,'KEY INPUTS'!D46) -> Dec. 31, 2021 | J10: Amount in | L10: Amount | N10: Balance
H11: per Audit | J11: =IF('KEY INPUTS'!C42="State Fiscal Year","Fiscal Year "&'KEY INPUTS'!D33&"",'KEY INPUTS'!D34)&"" -> 2022 | L11: Resulting from | N11: as at
H12: Report | J12: Budget | L12: =IF('KEY INPUTS'!C42="State Fiscal Year","Fiscal Year "&'KEY INPUTS'!D33&"",'KEY INPUTS'!D34)&"" -> 2022 | N12: =IF('KEY INPUTS'!C42 = "State Fiscal Year", 'KEY INPUTS'!F47,'KEY INPUTS'!D47) -> Dec. 31, 2022
C13: Emergency Authorization -
D14: Municipal* | G14: $ | I14: $ | K14: $ | M14: $ | N14: =+H14-J14+L14 -> 0
C16: Emergency Authorization -
D17: Schools | G17: $ | I17: $ | K17: $ | M17: $ | N17: =+H17-J17+L17 -> 0
C18: Overexpenditure of Appropriations | G18: $ | I18: $ | K18: $ | M18: $ | N18: =+H18-J18+L18 -> 0
C19: Overexpenditure of Impr. Author. | G19: $ | H19: 34975.13 | I19: $ | J19: 34975.13 | K19: $ | M19: $ | N19: =+H19-J19+L19 -> 0
G20: $ | I20: $ | K20: $ | M20: $ | N20: 0
G21: $ | I21: $ | K21: $ | M21: $ | N21: 0
G22: $ | I22: $ | K22: $ | M22: $ | N22: 0
G23: $ | I23: $ | K23: $ | M23: $ | N23: 0
G24: $ | I24: $ | K24: $ | M24: $ | N24: 0
C25: TOTAL DEFERRED CHARGES | G25: $ | H25: =SUM(H14:H24) -> 34975.13 | I25: $ | J25: =SUM(J14:J24) -> 34975.13 | K25: $ | L25: =SUM(L14:L24) -> 0 | M25: $ | N25: =SUM(N14:N24) -> 0
C27: *Do not include items funded or refunded as listed below.
B30: EMERGENCY AUTHORIZATIONS UNDER N.J.S.A. 40A:4-47 WHICH HAVE BEEN
B31: FUNDED OR REFUNDED UNDER N.J.S.A. 40A:2-3 OR N.J.S.A. 40A:2-51
D33: Date | G33: Purpose | N33: Amount
C34: 1. | M34: $
C35: 2. | M35: $
C36: 3. | M36: $
C37: 4. | M37: $
C38: 5. | M38: $
B42: JUDGMENTS ENTERED AGAINST MUNICIPALITY AND NOT SATISFIED
N44: Appropriated for
N45: in Budget of
D46: In Favor of | H46: On Account of | J46: Date Entered | L46: Amount | N46: =IF('KEY INPUTS'!C42="State Fiscal Year","Fiscal Year "&'KEY INPUTS'!D33&"","Year "&'KEY INPUTS'!D34&"") -> Year 2022
C48: 1. | K48: $
C49: 2. | K49: $
C50: 3. | K50: $
C51: 4. | K51: $
B58: Sheet 28

Sheet 29-Special Emergency
C2: N.J.S.A. 40A:4-53 SPECIAL EMERGENCY - | F2: TAX MAP; REVALUATION; MASTER PLAN; REVISION AND CODIFICATION OF ORDINANCES; DRAINAGE MAPS
F3: FOR FLOOD CONTROL; PRELIMINARY ENGINEERING STUDIES, ETC. FOR SANITARY SEWER SYSTEM; MUNICIPAL
F4: CONSOLIDATION ACT; FLOOD OR HURRICANE DAMAGE.
J6: REDUCED IN
B7: Date | E7: Purpose | G7: Amount | H7: Not Less Than | I7: Balance | J7: =IF('KEY INPUTS'!C42="State Fiscal Year","Fiscal Year "&'KEY INPUTS'!D33&"",'KEY INPUTS'!D34)&"" -> 2022 | L7: Balance
G8: Authorized | H8: 1/5 of Amount | I8: =IF('KEY INPUTS'!C42 = "State Fiscal Year", 'KEY INPUTS'!F46,'KEY INPUTS'!D46) -> Dec. 31, 2021 | J8: ="By "&IF('KEY INPUTS'!C42="State Fiscal Year","FY "&'KEY INPUTS'!D33&"",'KEY INPUTS'!D34)&"" -> By 2022 | K8: Canceled | L8: =IF('KEY INPUTS'!C42 = "State Fiscal Year", 'KEY INPUTS'!F47,'KEY INPUTS'!D47) -> Dec. 31, 2022
H9: Authorized* | J9: Budget | K9: By Resolution
L10: =+I10-J10-K10 -> 0
L11: =+I11-J11-K11 -> 0
L12: =+I12-J12-K12 -> 0
L13: 0
L14: 0
L15: 0
A16: Sheet 29 | L16: 0
L17: 0
L18: 0
L19: 0
L20: 0
L21: 0
L22: 0
L23: 0
F24: Totals | G24: =SUM(G10:G23) -> 0 | H24: 0 | I24: 0 | J24: 0 | K24: 0 | L24: 0
B26: It is hereby certified that all outstanding "Special Emergency" appropriations have been adopted by the governing body in full compliance with N.J.S.A. 40A:4-53 et seq. and
B27: are recorded on this page
J29: Chief Financial Officer
B30: ="* Not less than one-fifth (1/5) of amount authorized but not more than the amount in the column 'Balance "&IF('KEY INPUTS'!C42 = "State Fiscal Year", 'KEY INPUTS'!F47,'KEY INPUTS'!D47)&"' must be entered here and then raised in the "&IF('KEY INPUTS'!C42="State Fiscal Year","Fiscal Year "&'KEY INPUTS'!D33+1&"",'KEY INPUTS'!D34+1)&" budget." -> * Not less than one-fifth (1/5) of amount authorized but not more than the amount in the column 'Balance Dec. 31, 2022' must be entered here and then raised in the 2023 budget.
L35: =+I24-J24-L24 -> 0

Sheet 30-Special Emergency
C2: N.J.S.A. 40A:4-55.1, ET SEQ., SPECIAL EMERGENCY - DAMAGE CAUSED TO ROADS OR BRIDGES BY SNOW, ICE, FROST OR FLOODS
C3: N.J.S.A. 40A:4-55.13, ET SEQ., SPECIAL EMERGENCY - PUBLIC EXIGENCIES CAUSED BY CIVIL DISTURBANCES
J6: REDUCED IN
B7: Date | E7: Purpose | G7: Amount | H7: Not Less Than | I7: Balance | J7: ='29-Special Emergency'!J7:K7 -> 2022 | L7: Balance
G8: Authorized | H8: 1/3 of Amount | I8: ='29-Special Emergency'!I8 -> Dec. 31, 2021 | J8: ='29-Special Emergency'!J8 -> By 2022 | K8: Canceled | L8: ='29-Special Emergency'!L8 -> Dec. 31, 2022
H9: Authorized* | J9: Budget | K9: By Resolution
L10: =+I10-J10-K10 -> 0
L11: =+I11-J11-K11 -> 0
L12: =+I12-J12-K12 -> 0
L13: 0
L14: 0
L15: 0
A16: Sheet 30 | L16: 0
L17: 0
L18: 0
L19: 0
L20: 0
L21: 0
L22: 0
L23: 0
F24: Totals | G24: =SUM(G10:G23) -> 0 | H24: 0 | I24: 0 | J24: 0 | K24: 0 | L24: 0
B26: It is hereby certified that all outstanding "Special Emergency" appropriations have been adopted by the governing body in full compliance with N.J.S.A. 40A:4-55.1 et seq. and
B27: N.J.S.A. 40A:4-55.13 et seq. and are recorded on this page
J29: Chief Financial Officer
B30: ="* Not less than one-third (1/3) of amount authorized but not more than the amount in the column 'Balance "&IF('KEY INPUTS'!C42 = "State Fiscal Year", 'KEY INPUTS'!F47,'KEY INPUTS'!D47)&"' must be entered here and then raised in the "&IF('KEY INPUTS'!C42="State Fiscal Year","Fiscal Year "&'KEY INPUTS'!D33+1&"",'KEY INPUTS'!D34+1)&" budget." -> * Not less than one-third (1/3) of amount authorized but not more than the amount in the column 'Balance Dec. 31, 2022' must be entered here and then raised in the 2023 budget.

Sheet 31-Capital Bond Schedule
B2: SCHEDULE OF BONDS ISSUED AND OUTSTANDING
B3: =" AND "&IF('KEY INPUTS'!C42="State Fiscal Year","FISCAL YEAR "&'KEY INPUTS'!D33+1&"",'KEY INPUTS'!D34+1)&" DEBT SERVICE FOR BONDS" -> AND 2023 DEBT SERVICE FOR BONDS
B4: GENERAL CAPITAL BONDS
G6: Debit | H6: Credit | J6: =IF('KEY INPUTS'!C42="State Fiscal Year","Fiscal Year "&'KEY INPUTS'!D33+1&"",'KEY INPUTS'!D34+1)&" Debt Service" -> 2023 Debt Service
B7: =IF('KEY INPUTS'!C42 = "State Fiscal Year", 'KEY INPUTS'!F27,'KEY INPUTS'!D27) -> Outstanding - January 1, 2022 | G7: xxxxxxxxx | H7: 22250000
B8: Issued | G8: xxxxxxxxx | H8: 5160000
B9: Paid | G9: 2420000 | H9: xxxxxxxxx
B12: =IF('KEY INPUTS'!C42 = "State Fiscal Year", 'KEY INPUTS'!F28,'KEY INPUTS'!D28) -> Outstanding - December 31, 2022 | G12: =+H7+H8-G9-G10-G11+H10+H11 -> 24990000 | H12: xxxxxxxxx
G13: =SUM(G7:G12) -> 27410000 | H13: =SUM(H7:I12) -> 27410000
B14: =IF('KEY INPUTS'!C42="State Fiscal Year","Fiscal Year "&'KEY INPUTS'!D33+1&"",'KEY INPUTS'!D34+1)&" Bond Maturities - General Capital Bonds" -> 2023 Bond Maturities - General Capital Bonds | J14: $ | K14: 2305000
B15: =IF('KEY INPUTS'!C42="State Fiscal Year","Fiscal Year "&'KEY INPUTS'!D33+1&"",'KEY INPUTS'!D34+1)&" Interest on Bonds*" -> 2023 Interest on Bonds* | H15: $ | I15: 1118036.67
B17: ASSESSMENT SERIAL BONDS
B18: =B7 -> Outstanding - January 1, 2022 | G18: xxxxxxxxx
B19: Issued | G19: xxxxxxxxx
B20: Paid | H20: xxxxxxxxx
B23: =B12 -> Outstanding - December 31, 2022 | G23: =+H18+H19-G20-G21-G22+H21+H22 -> 0 | H23: xxxxxxxxx
G24: =SUM(G18:G23) -> 0 | H24: =SUM(H18:I23) -> 0
B25: =IF('KEY INPUTS'!C42="State Fiscal Year","Fiscal Year "&'KEY INPUTS'!D33+1&"",'KEY INPUTS'!D34+1)&" Bond Maturities - Assessment Bonds" -> 2023 Bond Maturities - Assessment Bonds | J25: $
B26: =B15 -> 2023 Interest on Bonds* | H26: $
B27: Total "Interest on Bonds - Debt Service" (*Items) | J27: $ | K27: =+I26+I15 -> 1118036.67
B29: ="LIST OF BONDS ISSUED DURING "&IF('KEY INPUTS'!C42="State Fiscal Year","FISCAL YEAR "&'KEY INPUTS'!D33&"",'KEY INPUTS'!D34)&"" -> LIST OF BONDS ISSUED DURING 2022
B30: Purpose | G30: =IF('KEY INPUTS'!C42="State Fiscal Year","FY "&'KEY INPUTS'!D33+1&"",'KEY INPUTS'!D34+1)&" Maturity" -> 2023 Maturity | H30: Amount Issued | J30: Date of Issue | L30: Interest Rate
B31: 2022 Equipment Lease Series 2022B | G31: 340000 | H31: 5160000 | J31: 2022-12-22 | L31: Various
F39: Total | G39: =SUM(G31:G38) -> 340000 | H39: =SUM(H31:I38) -> 5160000
B47: Sheet 31

Sheet 31A-Loan Schedule
B2: SCHEDULE OF LOANS ISSUED AND OUTSTANDING
B3: =" AND "&IF('KEY INPUTS'!C42="State Fiscal Year","FISCAL YEAR "&'KEY INPUTS'!D33+1&"",'KEY INPUTS'!D34+1)&" DEBT SERVICE FOR LOANS" -> AND 2023 DEBT SERVICE FOR LOANS
B4: =IF(R4<>"",(UPPER(R4)),"")&" LOAN" -> GREEN TRUST LOAN | Q4: Loan Type: | R4: green trust
G6: Debit | H6: Credit | J6: ='31-Capital Bond Schedule'!J6:L6 -> 2023 Debt Service
B7: ='31-Capital Bond Schedule'!B7 -> Outstanding - January 1, 2022 | G7: xxxxxxxxx | H7: 452720.48
B8: Issued | G8: xxxxxxxxx
B9: Paid | G9: 81619.92 | H9: xxxxxxxxx
B10: Refunded
B12: ='31-Capital Bond Schedule'!B12 -> Outstanding - December 31, 2022 | G12: =+H7+H8-G9-G10-G11+H10+H11 -> 371100.56 | H12: xxxxxxxxx
G13: =SUM(G7:G12) -> 452720.48 | H13: =SUM(H7:I12) -> 452720.48
B14: =IF('KEY INPUTS'!C42="State Fiscal Year","Fiscal Year "&'KEY INPUTS'!D33+1&"",'KEY INPUTS'!D34+1)&" Loan Maturities" -> 2023 Loan Maturities | J14: $ | K14: 81991.45
B15: =IF('KEY INPUTS'!C42="State Fiscal Year","Fiscal Year "&'KEY INPUTS'!D33+1&"",'KEY INPUTS'!D34+1)&" Interest on Loans " -> 2023 Interest on Loans | J15: $ | K15: 1976.12
B16: ="Total "&IF('KEY INPUTS'!C42="State Fiscal Year","Fiscal Year "&'KEY INPUTS'!D33+1&"",'KEY INPUTS'!D34+1)&" Debt Service for "&IF(R4<>"",R4,"")&" Loan" -> Total 2023 Debt Service for green trust Loan | J16: $ | K16: =+K14+K15 -> 83967.57
B17: =IF(R17<>"",(UPPER(R17)),"")&" LOAN" -> LOAN | Q17: Loan Type:
B18: =B7 -> Outstanding - January 1, 2022 | G18: xxxxxxxxx
B19: Issued | G19: xxxxxxxxx
B20: Paid | H20: xxxxxxxxx
B23: =B12 -> Outstanding - December 31, 2022 | G23: =+H18+H19-G20-G21-G22+H21+H22 -> 0 | H23: xxxxxxxxx
G24: =SUM(G18:G23) -> 0 | H24: =SUM(H18:I23) -> 0
B25: =B14 -> 2023 Loan Maturities | J25: $
B26: =B15 -> 2023 Interest on Loans | J26: $
B27: ="Total "&IF('KEY INPUTS'!C42="State Fiscal Year","Fiscal Year "&'KEY INPUTS'!D33+1&"",'KEY INPUTS'!D34+1)&" Debt Service for "&IF(R17<>"",R17,"")&" Loan" -> Total 2023 Debt Service for Loan | J27: $ | K27: =+K25+K26 -> 0
B29: ="LIST OF LOANS ISSUED DURING "&IF('KEY INPUTS'!C42="State Fiscal Year","FISCAL YEAR "&'KEY INPUTS'!D33&"",'KEY INPUTS'!D34) -> LIST OF LOANS ISSUED DURING 2022
B30: Purpose | G30: ='31-Capital Bond Schedule'!G30 -> 2023 Maturity | H30: Amount Issued | J30: Date of Issue | L30: Interest Rate
F39: Total | G39: =SUM(G31:G38) -> 0 | H39: =SUM(H31:I38) -> 0
B47: Sheet 31a

Sheet 31A.1-Loan Schedule
B2: SCHEDULE OF LOANS ISSUED AND OUTSTANDING
B3: =" AND "&IF('KEY INPUTS'!C42="State Fiscal Year","FISCAL YEAR "&'KEY INPUTS'!D33+1&"",'KEY INPUTS'!D34+1)&" DEBT SERVICE FOR LOANS" -> AND 2023 DEBT SERVICE FOR LOANS
B4: =IF(R4<>"",(UPPER(R4)),"")&" LOAN" -> LOAN | Q4: Loan Type:
G6: Debit | H6: Credit | J6: ='31-Capital Bond Schedule'!J6:L6 -> 2023 Debt Service
B7: ='31-Capital Bond Schedule'!B7 -> Outstanding - January 1, 2022 | G7: xxxxxxxxx
B8: Issued | G8: xxxxxxxxx
B9: Paid | H9: xxxxxxxxx
B10: Refunded
B12: ='31-Capital Bond Schedule'!B12 -> Outstanding - December 31, 2022 | G12: =+H7+H8-G9-G10-G11+H10+H11 -> 0 | H12: xxxxxxxxx
G13: =SUM(G7:G12) -> 0 | H13: =SUM(H7:I12) -> 0
B14: ='31A-Loan Schedule'!B14 -> 2023 Loan Maturities | J14: $
B15: ='31A-Loan Schedule'!B15 -> 2023 Interest on Loans | J15: $
B16: ="Total "&IF('KEY INPUTS'!C42="State Fiscal Year","Fiscal Year "&'KEY INPUTS'!D33+1&"",'KEY INPUTS'!D34+1)&" Debt Service for "&IF(R4<>"",R4,"")&" Loan" -> Total 2023 Debt Service for Loan | J16: $ | K16: =+K14+K15 -> 0
B17: =IF(R17<>"",(UPPER(R17)),"")&" LOAN" -> LOAN | Q17: Loan Type:
B18: =B7 -> Outstanding - January 1, 2022 | G18: xxxxxxxxx
B19: Issued | G19: xxxxxxxxx
B20: Paid | H20: xxxxxxxxx
B23: =B12 -> Outstanding - December 31, 2022 | G23: =+H18+H19-G20-G21-G22+H21+H22 -> 0 | H23: xxxxxxxxx
G24: =SUM(G18:G23) -> 0 | H24: =SUM(H18:I23) -> 0
B25: =B14 -> 2023 Loan Maturities | J25: $
B26: =B15 -> 2023 Interest on Loans | J26: $
B27: ="Total "&IF('KEY INPUTS'!C42="State Fiscal Year","Fiscal Year "&'KEY INPUTS'!D33+1&"",'KEY INPUTS'!D34+1)&" Debt Service for "&IF(R17<>"",R17,"")&" Loan" -> Total 2023 Debt Service for Loan | J27: $ | K27: =+K25+K26 -> 0
B29: ="LIST OF LOANS ISSUED DURING "&IF('KEY INPUTS'!C42="State Fiscal Year","FISCAL YEAR "&'KEY INPUTS'!D33&"",'KEY INPUTS'!D34) -> LIST OF LOANS ISSUED DURING 2022
B30: Purpose | G30: ='31-Capital Bond Schedule'!G30 -> 2023 Maturity | H30: Amount Issued | J30: Date of Issue | L30: Interest Rate
F39: Total | G39: =SUM(G31:G38) -> 0 | H39: =SUM(H31:I38) -> 0
B47: Sheet 31a.1

Sheet 31A.2-Loan Schedule
B2: SCHEDULE OF LOANS ISSUED AND OUTSTANDING
B3: =" AND "&IF('KEY INPUTS'!C42="State Fiscal Year","FISCAL YEAR "&'KEY INPUTS'!D33+1&"",'KEY INPUTS'!D34+1)&" DEBT SERVICE FOR LOANS" -> AND 2023 DEBT SERVICE FOR LOANS
B4: =IF(R4<>"",(UPPER(R4)),"")&" LOAN" -> LOAN | Q4: Loan Type:
G6: Debit | H6: Credit | J6: ='31-Capital Bond Schedule'!J6:L6 -> 2023 Debt Service
B7: ='31-Capital Bond Schedule'!B7 -> Outstanding - January 1, 2022 | G7: xxxxxxxxx
B8: Issued | G8: xxxxxxxxx
B9: Paid | H9: xxxxxxxxx
B10: Refunded
B12: ='31-Capital Bond Schedule'!B12 -> Outstanding - December 31, 2022 | G12: =+H7+H8-G9-G10-G11+H10+H11 -> 0 | H12: xxxxxxxxx
G13: =SUM(G7:G12) -> 0 | H13: =SUM(H7:I12) -> 0
B14: ='31A.1-Loan Schedule'!B14 -> 2023 Loan Maturities | J14: $
B15: ='31A.1-Loan Schedule'!B15 -> 2023 Interest on Loans | J15: $
B16: ="Total "&IF('KEY INPUTS'!C42="State Fiscal Year","Fiscal Year "&'KEY INPUTS'!D33+1&"",'KEY INPUTS'!D34+1)&" Debt Service for "&IF(R4<>"",R4,"")&" Loan" -> Total 2023 Debt Service for Loan | J16: $ | K16: =+K14+K15 -> 0
B17: =IF(R17<>"",(UPPER(R17)),"")&" LOAN" -> LOAN | Q17: Loan Type:
B18: =B7 -> Outstanding - January 1, 2022 | G18: xxxxxxxxx
B19: Issued | G19: xxxxxxxxx
B20: Paid | H20: xxxxxxxxx
B23: =B12 -> Outstanding - December 31, 2022 | G23: =+H18+H19-G20-G21-G22+H21+H22 -> 0 | H23: xxxxxxxxx
G24: =SUM(G18:G23) -> 0 | H24: =SUM(H18:I23) -> 0
B25: =B14 -> 2023 Loan Maturities | J25: $
B26: =B15 -> 2023 Interest on Loans | J26: $
B27: ="Total "&IF('KEY INPUTS'!C42="State Fiscal Year","Fiscal Year "&'KEY INPUTS'!D33+1&"",'KEY INPUTS'!D34+1)&" Debt Service for "&IF(R17<>"",R17,"")&" Loan" -> Total 2023 Debt Service for Loan | J27: $ | K27: =+K25+K26 -> 0
B29: ="LIST OF LOANS ISSUED DURING "&IF('KEY INPUTS'!C42="State Fiscal Year","FISCAL YEAR "&'KEY INPUTS'!D33&"",'KEY INPUTS'!D34) -> LIST OF LOANS ISSUED DURING 2022
B30: Purpose | G30: ='31-Capital Bond Schedule'!G30 -> 2023 Maturity | H30: Amount Issued | J30: Date of Issue | L30: Interest Rate
F39: Total | G39: =SUM(G31:G38) -> 0 | H39: =SUM(H31:I38) -> 0
B47: Sheet 31a.2

Sheet 32-Bond Schedule
B2: SCHEDULE OF BONDS ISSUED AND OUTSTANDING
B3: =" AND "&IF('KEY INPUTS'!C42="State Fiscal Year","FISCAL YEAR "&'KEY INPUTS'!D33+1&"",'KEY INPUTS'!D34+1)&" DEBT SERVICE FOR BONDS" -> AND 2023 DEBT SERVICE FOR BONDS
B4: TYPE I SCHOOL TERM BONDS
G6: Debit | H6: Credit | J6: ='31A-Loan Schedule'!J6:L6 -> 2023 Debt Service
B7: ='31-Capital Bond Schedule'!B7 -> Outstanding - January 1, 2022 | G7: xxxxxxxxx
B8: Paid | H8: xxxxxxxxx
B11: ='31-Capital Bond Schedule'!B12 -> Outstanding - December 31, 2022 | G11: =+H7-G8-G9-G10+H9+H10 -> 0 | H11: xxxxxxxxx
G12: =SUM(G7:G11) -> 0 | H12: =SUM(H7:I11) -> 0
B13: =IF('KEY INPUTS'!C42="State Fiscal Year","Fiscal Year "&'KEY INPUTS'!D33+1&"",'KEY INPUTS'!D34+1)&" Bond Maturities - Term Bonds" -> 2023 Bond Maturities - Term Bonds | H13: $
B14: =IF('KEY INPUTS'!C42="State Fiscal Year","Fiscal Year "&'KEY INPUTS'!D33+1&"",'KEY INPUTS'!D34+1)&" Interest on Bonds" -> 2023 Interest on Bonds | H14: $
B16: TYPE I SCHOOL SERIAL BONDS
B17: =B7 -> Outstanding - January 1, 2022 | G17: xxxxxxxxx
B18: Issued | G18: xxxxxxxxx
B19: Paid | H19: xxxxxxxxx
B22: =B11 -> Outstanding - December 31, 2022 | G22: =+H17+H18-G19-G20-G21+H20+H21 -> 0 | H22: xxxxxxxxx
G23: =SUM(G17:G22) -> 0 | H23: =SUM(H17:I22) -> 0
B24: =B14 -> 2023 Interest on Bonds | H24: $
B25: =B13 -> 2023 Bond Maturities - Term Bonds | J25: $
B26: Total "Interest on Bonds - Type I School Debt Service" (*Items) | J26: $ | K26: =+I24+I14 -> 0
B28: ="LIST OF BONDS ISSUED DURING "&IF('KEY INPUTS'!C42="State Fiscal Year","FISCAL YEAR "&'KEY INPUTS'!D33&"",'KEY INPUTS'!D34)&"" -> LIST OF BONDS ISSUED DURING 2022
B29: Purpose | G29: =IF('KEY INPUTS'!C42="State Fiscal Year","FY "&'KEY INPUTS'!D33+1&"",'KEY INPUTS'!D34+1)&" Maturity -01" -> 2023 Maturity -01 | H29: Amount Issued -02 | J29: Date of Issue | L29: Interest Rate
E33: Total | G33: =SUM(G30:G32) -> 0 | H33: =SUM(H30:I32) -> 0
B36: =IF('KEY INPUTS'!C42="State Fiscal Year","FISCAL YEAR "&'KEY INPUTS'!D33+1&"",'KEY INPUTS'!D34+1)&" INTEREST REQUIREMENT - CURRENT FUND DEBT ONLY" -> 2023 INTEREST REQUIREMENT - CURRENT FUND DEBT ONLY
I37: Outstanding | K37: =IF('KEY INPUTS'!C42="State Fiscal Year","FY "&'KEY INPUTS'!D33+1&"",'KEY INPUTS'!D34+1)&" Interest" -> 2023 Interest
I38: =IF('KEY INPUTS'!C42 = "State Fiscal Year", 'KEY INPUTS'!F47,'KEY INPUTS'!D47) -> Dec. 31, 2022 | K38: Requirement
C40: 1. | D40: Emergency Notes | H40: $ | J40: $
C41: 2. | D41: Special Emergency Notes | H41: $ | J41: $
C42: 3. | D42: Tax Anticipation Notes | H42: $ | J42: $
C43: 4. | D43: Interest on Unpaid State & County Taxes | H43: $ | J43: $
C44: 5. | H44: $ | J44: $
C45: 6. | H45: $ | J45: $
B48: Sheet 32

Sheet 33-Note Debt Service
B2: DEBT SERVICE FOR NOTES (OTHER THAN ASSESSMENT NOTES)
E5: Original | F5: Original | G5: Amount | H5: Date | I5: Rate | J5: =IF('KEY INPUTS'!C42="State Fiscal Year","FY "&'KEY INPUTS'!D33+1&"",'KEY INPUTS'!D34+1)&" Budget Requirements" -> 2023 Budget Requirements | L5: Interest
C6: Title or Purpose of Issue | E6: Amount | F6: Date of | G6: of Note | H6: of | I6: of | L6: Computed to
E7: Issued | F7: Issue* | G7: Outstanding | H7: Maturity | I7: Interest | J7: For Principal | K7: For Interest** | L7: (Insert Date)
G8: =IF('KEY INPUTS'!C42 = "State Fiscal Year", 'KEY INPUTS'!F47,'KEY INPUTS'!D47) -> Dec. 31, 2022
B9: 18-06/21-14 Improvement to Jumping Brook Rd | E9: 313000 | F9: 2020-07-13 | G9: 240000 | H9: 2023-12-27 | I9: 0 | J9: 10793.1
B10: 19-27 Improvements to Oxonia Avenue | E10: 93000 | F10: 2020-07-21 | G10: 93000 | H10: 2023-12-27 | I10: 0 | J10: 3206.9
B11: 19-28 Improvements to the Township Municipal
B12: Complex | E12: 190000 | F12: 2020-07-21 | G12: 110000 | H12: 2023-12-27 | I12: 0 | J12: 6551.72
B13: 19-29 Various Drainage Improvements | E13: 142500 | F13: 2020-07-21 | G13: 142500 | H13: 2023-12-27 | I13: 0 | J13: 4913.79
B14: 19-38 Improvements to Embury Ave/Ridge Ave
A15: Sheet 33 | B15: Corridor | E15: 175500 | F15: 2020-07-21 | G15: 175500 | H15: 2023-12-27 | I15: 0 | J15: 6051.72
B16: 21-13 Acquisition of Body Worn Cameras,
B17: Vehicle Mounted Cameras and Related
B18: Computer Hardware and Software | E18: 200000 | F18: 2022-01-01 | G18: 10466 | H18: 2023-12-27 | I18: 0
B19: 21-29 Acquisition of a Telephone System,
B20: Video Surveillance Systems, Computers,
B21: Servers and Other Technology Improve | E21: 95000 | F21: 2021-12-30 | G21: 95000 | H21: 2023-12-27 | I21: 0
D23: Page Totals | E23: =SUM(E9:E22) -> 1209000 | G23: =SUM(G9:G22) -> 866466 | J23: =SUM(J9:J22) -> 31517.23 | K23: =SUM(K9:K22) -> 0
B24: Memo: Designate all "Capital Notes" issued under N.J.S.A. 40A:2-8(b) with "C". Such notes must be retired at the rate of 20% of the original amount issued annually.
B25: Memo: Type 1 School Notes should be separately listed and totaled.
B26: *"Original Date of Issue" refers to the date when the first money was borrowed for a particular improvement, not the renewal date of subsequent notes which were issued.
D27: ="All notes with an original date of issue of "&IF('KEY INPUTS'!C42="State Fiscal Year","FY "&'KEY INPUTS'!D33-2&"",'KEY INPUTS'!D34-2)&" or prior require one legally payable installment to be budgeted if it is contemplated that such notes will be renewed in "&IF('KEY INPUTS'!C42="State Fiscal Year","FY "&'KEY INPUTS'!D33+1&"",'KEY INPUTS'!D34+1)&" or" -> All notes with an original date of issue of 2020 or prior require one legally payable installment to be budgeted if it is contemplated that such notes will be renewed in 2023 or
D28: written intent of permanent financing submitted with statement. | J28: (Do not crowd - add additional sheets)
B29: ** If interest on notes is financed by ordinance, designate same, otherwise an amount must be included in this column.

Sheet 33.1-Note Debt Service
B2: DEBT SERVICE FOR NOTES (OTHER THAN ASSESSMENT NOTES)
E5: Original | F5: Original | G5: Amount | H5: Date | I5: Rate | J5: =IF('KEY INPUTS'!C42="State Fiscal Year","FY "&'KEY INPUTS'!D33+1&"",'KEY INPUTS'!D34+1)&" Budget Requirements" -> 2023 Budget Requirements | L5: Interest
C6: Title or Purpose of Issue | E6: Amount | F6: Date of | G6: of Note | H6: of | I6: of | L6: Computed to
E7: Issued | F7: Issue* | G7: Outstanding | H7: Maturity | I7: Interest | J7: For Principal | K7: For Interest** | L7: (Insert Date)
G8: ='33-Note Debt Service'!G8 -> Dec. 31, 2022
C9: PREVIOUS PAGE TOTALS | E9: =+'33-Note Debt Service'!E23 -> 1209000 | G9: =+'33-Note Debt Service'!G23 -> 866466 | J9: =+'33-Note Debt Service'!J23 -> 31517.23 | K9: =+'33-Note Debt Service'!K23 -> 0
A15: Sheet 33.1
D23: PAGE TOTALS | E23: =SUM(E9:E22) -> 1209000 | G23: =SUM(G9:G22) -> 866466 | J23: =SUM(J9:J22) -> 31517.23 | K23: =SUM(K9:K22) -> 0
B24: Memo: Designate all "Capital Notes" issued under N.J.S.A. 40A:2-8(b) with "C". Such notes must be retired at the rate of 20% of the original amount issued annually.
B25: Memo: Type 1 School Notes should be separately listed and totaled.
B26: *"Original Date of Issue" refers to the date when the first money was borrowed for a particular improvement, not the renewal date of subsequent notes which were issued.
D27: ="All notes with an original date of issue of "&IF('KEY INPUTS'!C42="State Fiscal Year","FY "&'KEY INPUTS'!D33-2&"",'KEY INPUTS'!D34-2)&" or prior require one legally payable installment to be budgeted if it is contemplated that such notes will be renewed in "&IF('KEY INPUTS'!C42="State Fiscal Year","FY "&'KEY INPUTS'!D33+1&"",'KEY INPUTS'!D34+1)&" or" -> All notes with an original date of issue of 2020 or prior require one legally payable installment to be budgeted if it is contemplated that such notes will be renewed in 2023 or
D28: written intent of permanent financing submitted with statement. | J28: (Do not crowd - add additional sheets)
B29: ** If interest on notes is financed by ordinance, designate same, otherwise an amount must be included in this column.

Sheet 33 Totals-Note Debt Service
B2: DEBT SERVICE FOR NOTES (OTHER THAN ASSESSMENT NOTES)
E5: Original | F5: Original | G5: Amount | H5: Date | I5: Rate | J5: =IF('KEY INPUTS'!C42="State Fiscal Year","FY "&'KEY INPUTS'!D33+1&"",'KEY INPUTS'!D34+1)&" Budget Requirements" -> 2023 Budget Requirements | L5: Interest
C6: Title or Purpose of Issue | E6: Amount | F6: Date of | G6: of Note | H6: of | I6: of | L6: Computed to
E7: Issued | F7: Issue* | G7: Outstanding | H7: Maturity | I7: Interest | J7: For Principal | K7: For Interest** | L7: (Insert Date)
G8: ='33.1-Note Debt Service'!G8 -> Dec. 31, 2022
C9: PREVIOUS PAGE TOTALS | E9: =+'33.1-Note Debt Service'!E23 -> 1209000 | G9: =+'33.1-Note Debt Service'!G23 -> 866466 | J9: =+'33.1-Note Debt Service'!J23 -> 31517.23 | K9: =+'33.1-Note Debt Service'!K23 -> 0
A15: Sheet 33 Totals
D23: PAGE TOTALS | E23: =SUM(E9:E22) -> 1209000 | G23: =SUM(G9:G22) -> 866466 | J23: =SUM(J9:J22) -> 31517.23 | K23: =SUM(K9:K22) -> 0
B24: Memo: Designate all "Capital Notes" issued under N.J.S.A. 40A:2-8(b) with "C". Such notes must be retired at the rate of 20% of the original amount issued annually.
B25: Memo: Type 1 School Notes should be separately listed and totaled.
B26: *"Original Date of Issue" refers to the date when the first money was borrowed for a particular improvement, not the renewal date of subsequent notes which were issued.
D27: ="All notes with an original date of issue of "&IF('KEY INPUTS'!C42="State Fiscal Year","FY "&'KEY INPUTS'!D33-2&"",'KEY INPUTS'!D34-2)&" or prior require one legally payable installment to be budgeted if it is contemplated that such notes will be renewed in "&IF('KEY INPUTS'!C42="State Fiscal Year","FY "&'KEY INPUTS'!D33+1&"",'KEY INPUTS'!D34+1)&" or" -> All notes with an original date of issue of 2020 or prior require one legally payable installment to be budgeted if it is contemplated that such notes will be renewed in 2023 or
D28: written intent of permanent financing submitted with statement. | J28: (Do not crowd - add additional sheets)
B29: ** If interest on notes is financed by ordinance, designate same, otherwise an amount must be included in this column.

Sheet 34-Assmt Note Debt Service
B2: DEBT SERVICE SCHEDULE FOR ASSESSMENT NOTES
E5: Original | F5: Original | G5: Amount | H5: Date | I5: Rate | J5: ='33-Note Debt Service'!J5:K6 -> 2023 Budget Requirements | L5: Interest
C6: Title or Purpose of Issue | E6: Amount | F6: Date of | G6: of Note | H6: of | I6: of | L6: Computed to
E7: Issued | F7: Issue* | G7: Outstanding | H7: Maturity | I7: Interest | J7: For Principal | K7: For Interest** | L7: (Insert Date)
G8: ='33 Totals-Note Debt Service'!G8 -> Dec. 31, 2022
B9: 1.
B10: 2.
B11: 3.
B12: 4.
B13: 5.
B14: 6.
A15: Sheet 34 | B15: 7.
B16: 8.
B17: 9.
B18: 10.
B19: 11.
B20: 12.
B21: 13.
B22: 14.
D23: Total | G23: =SUM(G9:G22) -> 0 | H23: =SUM(H9:H22) -> 0 | J23: =SUM(J9:J22) -> 0 | K23: =SUM(K9:K22) -> 0
B24: MEMO: *See Sheet 33 for clarification of "Original Date of Issue"
C25: ="Assessment Notes with an original date of issue of "&IF('KEY INPUTS'!C42="State Fiscal Year","FY "&'KEY INPUTS'!D33-2&"",'KEY INPUTS'!D34-2)&" or prior must be appropriated in full in the "&IF('KEY INPUTS'!C42="State Fiscal Year","FY "&'KEY INPUTS'!D33+1&"",'KEY INPUTS'!D34+1)&" Dedicated Assessment Budget or written intent of permanent financing" -> Assessment Notes with an original date of issue of 2020 or prior must be appropriated in full in the 2023 Dedicated Assessment Budget or written intent of permanent financing
D26: submitted with statement.
C27: **Interest on Assessment Notes must be included in the Current Fund Budget appropriation "Interest on Notes".
J28: (Do not crowd - add additional sheets)

Sheet 34a-Cap Lease Program Oblg
B2: SCHEDULE OF CAPITAL LEASE PROGRAM OBLIGATIONS
G5: Amount | H5: ='34-Assmt Note Debt Service'!J5 -> 2023 Budget Requirements
C6: Purpose | G6: Lease Obligation Outstanding
G7: ='34-Assmt Note Debt Service'!G8 -> Dec. 31, 2022 | H7: For Principal | I7: For Interest/Fees
B9: 1. | C9: MCIA Capital Equipment Lease | G9: 2884080.9 | H9: 942095.32 | I9: 131293.88
B10: 2.
B11: 3.
B12: 4.
B13: 5.
B14: 6.
A15: Sheet 34a | B15: 7.
B16: 8.
B17: 9.
B18: 10.
B19: 11.
B20: 12.
B21: 13.
B22: 14.
D23: Total | G23: =SUM(G9:G22) -> 2884080.9 | H23: =SUM(H9:H22) -> 942095.32 | I23: =SUM(I9:I22) -> 131293.88
H26: (Do not crowd - add additional sheets)

Sheet 35- Cap Fund Imprv Auth
B2: SCHEDULE OF IMPROVEMENT AUTHORIZATIONS (GENERAL CAPITAL FUND)
E4: =IF('KEY INPUTS'!C42 = "State Fiscal Year", 'KEY INPUTS'!F25,'KEY INPUTS'!D25) -> Balance - January 1, 2022 | K4: =IF('KEY INPUTS'!C42 = "State Fiscal Year", 'KEY INPUTS'!F26,'KEY INPUTS'!D26) -> Balance - December 31, 2022
B5: IMPROVEMENTS
B6: Specify each authorization by purpose. Do | G6: =IF('KEY INPUTS'!C42="State Fiscal Year","Fiscal Year "&'KEY INPUTS'!D33&"",'KEY INPUTS'!D34)&"" -> 2022 | H6: Other | I6: Expended | J6: Authorizations
B7: not merely designate by a code number. | E7: Funded | F7: Unfunded | G7: Authorizations | J7: Canceled | K7: Funded | L7: Unfunded
B9: 13-28 Pedestrian/Bicycle Lane Transportation | E9: 46714.07 | H9: 588.96 | J9: 47303.03 | K9: =+E9+H9-J9 -> 0
B10: 14-13/14-29 Development of Veterans Park | E10: 47485.42 | I10: 9030 | K10: =+E10-I10 -> 38455.42
B11: 15-40 Sunshine Village Park Improvements | H11: 10775.54 | I11: 4495 | J11: 6280.54 | K11: =+E11+H11-I11-J11 -> 0
B12: 16-08 Loffredo Field Improvements | E12: 41036.17 | H12: -845 | I12: 18555 | K12: =+E12+H12-I12 -> 21636.17
B13: 16-27 (ii) Acquisition of computer and communications
C14: equipment | E14: 1179.76 | J14: 1179.76
B15: (iii) Improvement to various parks, lakes and
C16: streetscape | E16: 448198.84 | H16: =2905-202210.66 -> -199305.66 | I16: 16021.05 | K16: =+E16+H16-I16-J16 -> 232872.13
A17: Sheet 35 | B17: (iv) Improvements to the Department of Public
C18: Works Complex, Senior Center, Municipal
C19: Complex and other municipal facilities | E19: 251.81 | H19: 919.42 | J19: 251.81 | K19: =+E19+H19-J19 -> 919.42
B20: (v) Implementation of the 2016 Community
C21: Development Block Grant Program Tenth
C22: Avenue Rehabilition Project | E22: 25335.46 | J22: 25335.46 | K22: =+E22-J22 -> 0
B23: 17-20/18-23 Fletcher Lake Bulkhead, Bridge and
C24: Roadway Improvements | E24: 29659.9 | H24: -17057.48 | I24: 12602.42 | K24: =+E24+H24-I24 -> 0
B25: 17-21 2018 Roadway Improvements | E25: 525.06 | J25: 525.06 | K25: =+E25-J25 -> 0
B26: 17-23 Replacement of the Municipal Complex Roof
C27: and other Facilities Improvements | E27: 428.96 | I27: 428.96 | K27: =+E27-J27-I27 -> 0
D28: Page Total | E28: =SUM(E9:E27) -> 640815.45 | F28: =SUM(F9:F27) -> 0 | G28: 0 | H28: -204924.22 | I28: 61132.43 | J28: 80875.66 | K28: 293883.14 | L28: 0
C29: Place an * before each item of "Improvement" which represents a funding or refunding of an emergency authorization.

Sheet 35.1- Cap Fund Imprv Auth
B2: SCHEDULE OF IMPROVEMENT AUTHORIZATIONS (GENERAL CAPITAL FUND) (cont.)
E4: ='35- Cap Fund Imprv Auth'!E4:F6 -> Balance - January 1, 2022 | K4: ='35- Cap Fund Imprv Auth'!K4:L6 -> Balance - December 31, 2022
B5: IMPROVEMENTS
B6: Specify each authorization by purpose. Do | G6: =IF('KEY INPUTS'!C42="State Fiscal Year","Fiscal Year "&'KEY INPUTS'!D33&"",'KEY INPUTS'!D34)&"" -> 2022 | H6: Other | I6: Expended | J6: Authorizations
B7: not merely designate by a code number. | E7: Funded | F7: Unfunded | G7: Authorizations | J7: Canceled | K7: Funded | L7: Unfunded
B9: PREVIOUS PAGE TOTALS | E9: ='35- Cap Fund Imprv Auth'!E28 -> 640815.45 | F9: ='35- Cap Fund Imprv Auth'!F28 -> 0 | G9: =+'35- Cap Fund Imprv Auth'!G28 -> 0 | H9: =+'35- Cap Fund Imprv Auth'!H28 -> -204924.22 | I9: =+'35- Cap Fund Imprv Auth'!I28 -> 61132.43 | J9: =+'35- Cap Fund Imprv Auth'!J28 -> 80875.66 | K9: =+'35- Cap Fund Imprv Auth'!K28 -> 293883.14 | L9: =+'35- Cap Fund Imprv Auth'!L28 -> 0
B10: 17-36 Acquisition of Green Acres Property Located
C11: on South Riverside Drive | E11: 19516.61 | H11: 912.5 | J11: 20429.11 | K11: =+E11+H11-J11 -> 0
A12: Sheet 35.1 | B12: 18-05 Construction of a Skate Park at the Sunshine
C13: Village Fields | F13: 13967.87 | I13: 13967.87 | L13: =+F13-I13 -> 0
B14: 18-06/21-14 Improvements to Jumping Brook Road | E14: 1164755.4 | H14: =92644.9-112066.58 -> -19421.68 | I14: 6320 | K14: =+E14+H14-I14 -> 1139013.72
B15: 18-11 Roadway Improvements to Heck Road | E15: 34702.66 | H15: 267.5 | J15: 34970.16 | K15: =+E15+H15-J15 -> 0
B16: 18-18 Acquisition of Office Equipment and Furniture
C17: for Various Departments | E17: 1000 | H17: 3840 | I17: 4840 | K17: =+E17+H17-I17 -> 0
B18: 18-19/19-10 Various 2019 Road Improvements | F18: 66994.68 | H18: =298550.89-3913.13 -> 294637.76 | I18: 361632.44 | K18: =+F18+H18-I18 -> 0
B19: 19-02 Construction of a Living Shoreline Flood
C20: Mitigation Project | E20: 825296.76 | F20: 488000 | H20: =16817-777458.8 -> -760641.8 | I20: 470250.96 | K20: =+E20+F20+H20-I20 -> 82404
B21: 19-27 Improvements to Oxonia Avenue | E21: 27696.86 | H21: 331.25 | J21: 28028.11 | K21: =+E21+H21-J21 -> 0
B22: 19-28 Improvements to the Township Municipal
C23: Complex | E23: 49526.21 | F23: 80000 | H23: =30876-41172.94 -> -10296.94 | I23: 23405.6 | K23: =+E23+F23+H23-I23 -> 95823.67
B24: 19-29 Various Drainage Improvements | F24: 65.88 | H24: 24146.15 | I24: 21743.65 | J24: 2468.38 | L24: =+F24+H24-I24-J24 -> 0
B25: 19-30 Improvements to Public Works Facility (Phase II) | F25: 2.76 | I25: 2.76 | L25: =+F25-I25 -> 0
B26: 19-38 Improvements to Embury Avenue/Ridge Avenue
C27: Corridor | E27: 104518.51 | F27: 17817 | H27: =377052.15-59042.47 -> 318009.68 | I27: 351307.18 | L27: =+E27+F27+H27-I27 -> 89038.01
D28: PAGE TOTALS | E28: =SUM(E9:E27) -> 2867828.46 | F28: =SUM(F9:F27) -> 666848.19 | G28: =SUM(G9:G27) -> 0 | H28: -353139.8 | I28: 1314602.89 | J28: 166771.42 | K28: 1611124.53 | L28: =SUM(L9:L27) -> 89038.01
C29: Place an * before each item of "Improvement" which represents a funding or refunding of an emergency authorization.

Sheet 35.2- Cap Fund Imprv Auth
B2: SCHEDULE OF IMPROVEMENT AUTHORIZATIONS (GENERAL CAPITAL FUND) (cont.)
E4: ='35- Cap Fund Imprv Auth'!E4:F6 -> Balance - January 1, 2022 | K4: ='35- Cap Fund Imprv Auth'!K4:L6 -> Balance - December 31, 2022
B5: IMPROVEMENTS
B6: Specify each authorization by purpose. Do | G6: =IF('KEY INPUTS'!C42="State Fiscal Year","Fiscal Year "&'KEY INPUTS'!D33&"",'KEY INPUTS'!D34)&"" -> 2022 | H6: Other | I6: Expended | J6: Authorizations
B7: not merely designate by a code number. | E7: Funded | F7: Unfunded | G7: Authorizations | J7: Canceled | K7: Funded | L7: Unfunded
B9: PREVIOUS PAGE TOTALS | E9: =+'35.1- Cap Fund Imprv Auth '!E28 -> 2867828.46 | F9: =+'35.1- Cap Fund Imprv Auth '!F28 -> 666848.19 | G9: =+'35.1- Cap Fund Imprv Auth '!G28 -> 0 | H9: =+'35.1- Cap Fund Imprv Auth '!H28 -> -353139.8 | I9: =+'35.1- Cap Fund Imprv Auth '!I28 -> 1314602.89 | J9: =+'35.1- Cap Fund Imprv Auth '!J28 -> 166771.42 | K9: =+'35.1- Cap Fund Imprv Auth '!K28 -> 1611124.53 | L9: =+'35.1- Cap Fund Imprv Auth '!L28 -> 89038.01
B10: 19-39 Improvements to the Police Department and
C11: Municipal Complex | F11: 2889.5 | H11: 205 | I11: 3094.5 | L11: =+F11+H11-I11 -> 0
A12: Sheet 35.2 | B12: 20-12 Acquisition of Real Property in the West Lake
C13: Avenue Redevelopment Zone and Demolition
C14: of Improvements Thereon | E14: 17468.11 | H14: 7764.24 | I14: 11387.57 | K14: =+E14+H14-I14 -> 13844.78
B15: 20-13 COVID Related Improvements and Acquisitions | E15: 118747.1 | H15: =107463.78-60331.7 -> 47132.08 | I15: 144936.26 | K15: =+E15+H15-I15 -> 20942.92
B16: 20-19 Various 2020 Roadway and Drainage
C17: Improvements | F17: 106773.59 | H17: =1637044.87-9254.83 -> 1627790.04 | I17: 1733497.3 | K17: =+E17+F17+H17-I17 -> 1066.33
B18: 20-20 Acquisition of Vehicles, Equipment, Office
C19: Equipment and Furniture | E19: 38592.76 | H19: 12797.53 | I19: 51390.29 | K19: =+E19+H19-I19 -> 0
B20: 21-13 Acquisition of Body Worn Cameras, Vehicle
C21: Mounted Camers and Related Equipment | F21: 11049 | H21: =28420-6700 -> 21720 | I21: 32769 | L21: =+F21+H21-I21 -> 0
B22: 21-23 Improvements to Various Parks | E22: 92907.96 | F22: 90000 | H22: =8366.65-13024.55 -> -4657.9 | I22: 178250.06 | K22: =+E22+F22+H22-I22 -> 0
B23: 21-24 Roadway Reconstruction and Drainage
C24: Improvement to Myrtle Ave | E24: 357000 | H24: =43000-72084.13 -> -29084.13 | I24: 327915.87 | K24: =+E24+H24-I24 -> 0
B25: 21-26 Construction of a Pump Track Bicycle and
C26: Skateboard Recreationaol Facility within
C27: Sunshine Village Park | E27: 256500 | F27: 123500 | I27: 261348.76 | L27: =+E27+F27-I27 -> 118651.24
D28: PAGE TOTALS | E28: =SUM(E9:E27) -> 3749044.39 | F28: =SUM(F9:F27) -> 1001060.28 | G28: 0 | H28: 1330527.06 | I28: 4059192.5 | J28: 166771.42 | K28: 1646978.56 | L28: =SUM(L9:L27) -> 207689.25
C29: Place an * before each item of "Improvement" which represents a funding or refunding of an emergency authorization.

Sheet 35.3- Cap Fund Imprv Auth
B2: SCHEDULE OF IMPROVEMENT AUTHORIZATIONS (GENERAL CAPITAL FUND) (cont.)
E4: ='35- Cap Fund Imprv Auth'!E4:F6 -> Balance - January 1, 2022 | K4: ='35- Cap Fund Imprv Auth'!K4:L6 -> Balance - December 31, 2022
B5: IMPROVEMENTS
B6: Specify each authorization by purpose. Do | G6: =IF('KEY INPUTS'!C42="State Fiscal Year","Fiscal Year "&'KEY INPUTS'!D33&"",'KEY INPUTS'!D34)&"" -> 2022 | H6: Other | I6: Expended | J6: Authorizations
B7: not merely designate by a code number. | E7: Funded | F7: Unfunded | G7: Authorizations | J7: Canceled | K7: Funded | L7: Unfunded
B9: PREVIOUS PAGE TOTALS | E9: =+'35.2- Cap Fund Imprv Auth'!E28 -> 3749044.39 | F9: =+'35.2- Cap Fund Imprv Auth'!F28 -> 1001060.28 | G9: =+'35.2- Cap Fund Imprv Auth'!G28 -> 0 | H9: =+'35.2- Cap Fund Imprv Auth'!H28 -> 1330527.06 | I9: =+'35.2- Cap Fund Imprv Auth'!I28 -> 4059192.5 | J9: =+'35.2- Cap Fund Imprv Auth'!J28 -> 166771.42 | K9: =+'35.2- Cap Fund Imprv Auth'!K28 -> 1646978.56 | L9: =+'35.2- Cap Fund Imprv Auth'!L28 -> 207689.25
B10: 21-29 Acquisition of a Telephone System, Video
C11: Surveillance Systems, Computers, Servers and
A12: Sheet 35.3 | C12: Other Technology Improvements | E12: 73 | F12: 95000 | H12: 4927 | I12: 27141.36 | L12: =+E12+F12+H12-I12 -> 72858.64
B13: 21-30 Construction and Reconstruction of Sidewalks
C14: and Municipal Facilities | F14: 276500 | H14: =23500-6040.79 -> 17459.21 | I14: 293959.21 | L14: =+F14+H14-I14 -> 0
B15: 21-31 Phase II of the Public Works Facility
C16: Improvement Program, Including the Construction
C17: and Reconstruction of the Municipal Facilities | E17: 148145 | F17: 1220000 | H17: =221010-67292.7 -> 153717.3 | I17: 453458.14 | K17: 111387.78 | L17: =+E17+F17+H17-I17-K17 -> 957016.38
B18: 21-52 Construction & Installation of Improvements to
C19: the Muncipal Complex | E19: 360000 | K19: =+E19 -> 360000
B20: 22-07 Neptune Boulevard Roadwy Reconstruction | G20: 600000 | H20: -306319.3 | I20: 193310.22 | K20: =+G20+H20-I20 -> 100370.48
B21: 22-23 Acquisition of an Electric Powered Garbage
C22: Truck and installation of Electric Charging
C23: Station at the Department of Public Works | G23: 500000 | H23: -460728 | K23: =+G23+H23 -> 39272
B24: 22-30 2022 Road Program | G24: 1500000 | H24: -83012.5 | I24: 9059.02 | K24: 982928.48 | L24: =+G24+H24-I24-K24 -> 425000
B25: 22-31 Acquisition of Vehicles and Electronics | G25: 1600000 | H25: -1172276.58 | I25: 53747.28 | K25: 53976.14 | L25: =+G25+H25-I25-K25 -> 320000
B26: 22-32 Improvement to Various Municipal Facilities | G26: 300000 | H26: -157380 | I26: 23935.1 | K26: =+G26+H26-I26 -> 118684.9
D28: PAGE TOTALS | E28: =SUM(E9:E27) -> 4257262.39 | F28: =SUM(F9:F27) -> 2592560.28 | G28: 4500000 | H28: -673085.81 | I28: 5113802.83 | J28: 166771.42 | K28: 3413598.34 | L28: =SUM(L9:L27) -> 1982564.27
C29: Place an * before each item of "Improvement" which represents a funding or refunding of an emergency authorization.

Sheet 35.4- Cap Fund Imprv Auth
B2: SCHEDULE OF IMPROVEMENT AUTHORIZATIONS (GENERAL CAPITAL FUND) (cont.)
E4: ='35- Cap Fund Imprv Auth'!E4:F6 -> Balance - January 1, 2022 | K4: ='35- Cap Fund Imprv Auth'!K4:L6 -> Balance - December 31, 2022
B5: IMPROVEMENTS
B6: Specify each authorization by purpose. Do | G6: =IF('KEY INPUTS'!C42="State Fiscal Year","Fiscal Year "&'KEY INPUTS'!D33&"",'KEY INPUTS'!D34)&"" -> 2022 | H6: Other | I6: Expended | J6: Authorizations
B7: not merely designate by a code number. | E7: Funded | F7: Unfunded | G7: Authorizations | J7: Canceled | K7: Funded | L7: Unfunded
B9: PREVIOUS PAGE TOTALS | E9: =+'35.3- Cap Fund Imprv Auth'!E28 -> 4257262.39 | F9: =+'35.3- Cap Fund Imprv Auth'!F28 -> 2592560.28 | G9: =+'35.3- Cap Fund Imprv Auth'!G28 -> 4500000 | H9: =+'35.3- Cap Fund Imprv Auth'!H28 -> -673085.81 | I9: =+'35.3- Cap Fund Imprv Auth'!I28 -> 5113802.83 | J9: =+'35.3- Cap Fund Imprv Auth'!J28 -> 166771.42 | K9: =+'35.3- Cap Fund Imprv Auth'!K28 -> 3413598.34 | L9: =+'35.3- Cap Fund Imprv Auth'!L28 -> 1982564.27
B10: 22-33 Replacement of the Bulkhead Along Fletcher
C11: Lake | G11: 900000 | H11: -35000 | I11: 24000 | K11: 486000 | L11: =+G11+H11-I11-K11 -> 355000
A12: Sheet 35.4 | B12: 22-47 Environmental Site Remediation at the Welsh
C13: Farms Property | G13: 430000 | H13: -425779.65 | L13: =+G13+H13 -> 4220.35
B14: 15-38 Various Facilities Improvements (Senior Center/
C15: Municipal Complex/Public Works Facility/
C16: OEM Facility) | I16: 5 | J16: -5
D28: PAGE TOTALS | E28: =SUM(E9:E27) -> 4257262.39 | F28: =SUM(F9:F27) -> 2592560.28 | G28: 5830000 | H28: -1133865.46 | I28: 5137807.83 | J28: 166766.42 | K28: 3899598.34 | L28: =SUM(L9:L27) -> 2341784.62
C29: Place an * before each item of "Improvement" which represents a funding or refunding of an emergency authorization.

Sheet 35.5- Cap Fund Imprv Auth
B2: SCHEDULE OF IMPROVEMENT AUTHORIZATIONS (GENERAL CAPITAL FUND) (cont.)
E4: ='35- Cap Fund Imprv Auth'!E4:F6 -> Balance - January 1, 2022 | K4: ='35- Cap Fund Imprv Auth'!K4:L6 -> Balance - December 31, 2022
B5: IMPROVEMENTS
B6: Specify each authorization by purpose. Do | G6: =IF('KEY INPUTS'!C42="State Fiscal Year","Fiscal Year "&'KEY INPUTS'!D33&"",'KEY INPUTS'!D34)&"" -> 2022 | H6: Other | I6: Expended | J6: Authorizations
B7: not merely designate by a code number. | E7: Funded | F7: Unfunded | G7: Authorizations | J7: Canceled | K7: Funded | L7: Unfunded
B9: PREVIOUS PAGE TOTALS | E9: =+'35.4- Cap Fund Imprv Auth'!E28 -> 4257262.39 | F9: =+'35.4- Cap Fund Imprv Auth'!F28 -> 2592560.28 | G9: =+'35.4- Cap Fund Imprv Auth'!G28 -> 5830000 | H9: =+'35.4- Cap Fund Imprv Auth'!H28 -> -1133865.46 | I9: =+'35.4- Cap Fund Imprv Auth'!I28 -> 5137807.83 | J9: =+'35.4- Cap Fund Imprv Auth'!J28 -> 166766.42 | K9: =+'35.4- Cap Fund Imprv Auth'!K28 -> 3899598.34 | L9: =+'35.4- Cap Fund Imprv Auth'!L28 -> 2341784.62
A12: Sheet 35.5
D28: PAGE TOTALS | E28: =SUM(E9:E27) -> 4257262.39 | F28: =SUM(F9:F27) -> 2592560.28 | G28: 5830000 | H28: -1133865.46 | I28: 5137807.83 | J28: 166766.42 | K28: 3899598.34 | L28: =SUM(L9:L27) -> 2341784.62
C29: Place an * before each item of "Improvement" which represents a funding or refunding of an emergency authorization.

Sheet 35.6- Cap Fund Imprv Auth
B2: SCHEDULE OF IMPROVEMENT AUTHORIZATIONS (GENERAL CAPITAL FUND) (cont.)
E4: ='35- Cap Fund Imprv Auth'!E4:F6 -> Balance - January 1, 2022 | K4: ='35- Cap Fund Imprv Auth'!K4:L6 -> Balance - December 31, 2022
B5: IMPROVEMENTS
B6: Specify each authorization by purpose. Do | G6: =IF('KEY INPUTS'!C42="State Fiscal Year","Fiscal Year "&'KEY INPUTS'!D33&"",'KEY INPUTS'!D34)&"" -> 2022 | H6: Other | I6: Expended | J6: Authorizations
B7: not merely designate by a code number. | E7: Funded | F7: Unfunded | G7: Authorizations | J7: Canceled | K7: Funded | L7: Unfunded
B9: PREVIOUS PAGE TOTALS | E9: =+'35.5- Cap Fund Imprv Auth'!E28 -> 4257262.39 | F9: =+'35.5- Cap Fund Imprv Auth'!F28 -> 2592560.28 | G9: =+'35.5- Cap Fund Imprv Auth'!G28 -> 5830000 | H9: =+'35.5- Cap Fund Imprv Auth'!H28 -> -1133865.46 | I9: =+'35.5- Cap Fund Imprv Auth'!I28 -> 5137807.83 | J9: =+'35.5- Cap Fund Imprv Auth'!J28 -> 166766.42 | K9: =+'35.5- Cap Fund Imprv Auth'!K28 -> 3899598.34 | L9: =+'35.5- Cap Fund Imprv Auth'!L28 -> 2341784.62
A12: Sheet 35.6
D28: PAGE TOTALS | E28: =SUM(E9:E27) -> 4257262.39 | F28: =SUM(F9:F27) -> 2592560.28 | G28: 5830000 | H28: -1133865.46 | I28: 5137807.83 | J28: 166766.42 | K28: 3899598.34 | L28: =SUM(L9:L27) -> 2341784.62
C29: Place an * before each item of "Improvement" which represents a funding or refunding of an emergency authorization.

Sheet 35.7- Cap Fund Imprv Auth
B2: SCHEDULE OF IMPROVEMENT AUTHORIZATIONS (GENERAL CAPITAL FUND) (cont.)
E4: ='35- Cap Fund Imprv Auth'!E4:F6 -> Balance - January 1, 2022 | K4: ='35- Cap Fund Imprv Auth'!K4:L6 -> Balance - December 31, 2022
B5: IMPROVEMENTS
B6: Specify each authorization by purpose. Do | G6: =IF('KEY INPUTS'!C42="State Fiscal Year","Fiscal Year "&'KEY INPUTS'!D33&"",'KEY INPUTS'!D34)&"" -> 2022 | H6: Other | I6: Expended | J6: Authorizations
B7: not merely designate by a code number. | E7: Funded | F7: Unfunded | G7: Authorizations | J7: Canceled | K7: Funded | L7: Unfunded
B9: PREVIOUS PAGE TOTALS | E9: =+'35.6- Cap Fund Imprv Auth'!E28 -> 4257262.39 | F9: =+'35.6- Cap Fund Imprv Auth'!F28 -> 2592560.28 | G9: =+'35.6- Cap Fund Imprv Auth'!G28 -> 5830000 | H9: =+'35.6- Cap Fund Imprv Auth'!H28 -> -1133865.46 | I9: =+'35.6- Cap Fund Imprv Auth'!I28 -> 5137807.83 | J9: =+'35.6- Cap Fund Imprv Auth'!J28 -> 166766.42 | K9: =+'35.6- Cap Fund Imprv Auth'!K28 -> 3899598.34 | L9: =+'35.6- Cap Fund Imprv Auth'!L28 -> 2341784.62
A12: Sheet 35.7
D28: PAGE TOTALS | E28: =SUM(E9:E27) -> 4257262.39 | F28: =SUM(F9:F27) -> 2592560.28 | G28: 5830000 | H28: -1133865.46 | I28: 5137807.83 | J28: 166766.42 | K28: 3899598.34 | L28: =SUM(L9:L27) -> 2341784.62
C29: Place an * before each item of "Improvement" which represents a funding or refunding of an emergency authorization.

Sheet 35.8- Cap Fund Imprv Auth
B2: SCHEDULE OF IMPROVEMENT AUTHORIZATIONS (GENERAL CAPITAL FUND) (cont.)
E4: ='35- Cap Fund Imprv Auth'!E4:F6 -> Balance - January 1, 2022 | K4: ='35- Cap Fund Imprv Auth'!K4:L6 -> Balance - December 31, 2022
B5: IMPROVEMENTS
B6: Specify each authorization by purpose. Do | G6: =IF('KEY INPUTS'!C42="State Fiscal Year","Fiscal Year "&'KEY INPUTS'!D33&"",'KEY INPUTS'!D34)&"" -> 2022 | H6: Other | I6: Expended | J6: Authorizations
B7: not merely designate by a code number. | E7: Funded | F7: Unfunded | G7: Authorizations | J7: Canceled | K7: Funded | L7: Unfunded
B9: PREVIOUS PAGE TOTALS | E9: =+'35.7- Cap Fund Imprv Auth'!E28 -> 4257262.39 | F9: =+'35.7- Cap Fund Imprv Auth'!F28 -> 2592560.28 | G9: =+'35.7- Cap Fund Imprv Auth'!G28 -> 5830000 | H9: =+'35.7- Cap Fund Imprv Auth'!H28 -> -1133865.46 | I9: =+'35.7- Cap Fund Imprv Auth'!I28 -> 5137807.83 | J9: =+'35.7- Cap Fund Imprv Auth'!J28 -> 166766.42 | K9: =+'35.7- Cap Fund Imprv Auth'!K28 -> 3899598.34 | L9: =+'35.7- Cap Fund Imprv Auth'!L28 -> 2341784.62
A12: Sheet 35.8
D28: PAGE TOTALS | E28: =SUM(E9:E27) -> 4257262.39 | F28: =SUM(F9:F27) -> 2592560.28 | G28: 5830000 | H28: -1133865.46 | I28: 5137807.83 | J28: 166766.42 | K28: 3899598.34 | L28: =SUM(L9:L27) -> 2341784.62
C29: Place an * before each item of "Improvement" which represents a funding or refunding of an emergency authorization.

Sheet 35.9- Cap Fund Imprv Auth
B2: SCHEDULE OF IMPROVEMENT AUTHORIZATIONS (GENERAL CAPITAL FUND) (cont.)
E4: ='35- Cap Fund Imprv Auth'!E4:F6 -> Balance - January 1, 2022 | K4: ='35- Cap Fund Imprv Auth'!K4:L6 -> Balance - December 31, 2022
B5: IMPROVEMENTS
B6: Specify each authorization by purpose. Do | G6: =IF('KEY INPUTS'!C42="State Fiscal Year","Fiscal Year "&'KEY INPUTS'!D33&"",'KEY INPUTS'!D34)&"" -> 2022 | H6: Other | I6: Expended | J6: Authorizations
B7: not merely designate by a code number. | E7: Funded | F7: Unfunded | G7: Authorizations | J7: Canceled | K7: Funded | L7: Unfunded
B9: PREVIOUS PAGE TOTALS | E9: =+'35.8- Cap Fund Imprv Auth'!E28 -> 4257262.39 | F9: =+'35.8- Cap Fund Imprv Auth'!F28 -> 2592560.28 | G9: =+'35.8- Cap Fund Imprv Auth'!G28 -> 5830000 | H9: =+'35.8- Cap Fund Imprv Auth'!H28 -> -1133865.46 | I9: =+'35.8- Cap Fund Imprv Auth'!I28 -> 5137807.83 | J9: =+'35.8- Cap Fund Imprv Auth'!J28 -> 166766.42 | K9: =+'35.8- Cap Fund Imprv Auth'!K28 -> 3899598.34 | L9: =+'35.8- Cap Fund Imprv Auth'!L28 -> 2341784.62
A12: Sheet 35.9
D28: PAGE TOTALS | E28: =SUM(E9:E27) -> 4257262.39 | F28: =SUM(F9:F27) -> 2592560.28 | G28: 5830000 | H28: -1133865.46 | I28: 5137807.83 | J28: 166766.42 | K28: 3899598.34 | L28: =SUM(L9:L27) -> 2341784.62
C29: Place an * before each item of "Improvement" which represents a funding or refunding of an emergency authorization.

Sheet 35 Totals- Cap Fund Imprv Auth
B2: SCHEDULE OF IMPROVEMENT AUTHORIZATIONS (GENERAL CAPITAL FUND) (cont.)
E4: ='35- Cap Fund Imprv Auth'!E4:F6 -> Balance - January 1, 2022 | K4: ='35- Cap Fund Imprv Auth'!K4:L6 -> Balance - December 31, 2022
B5: IMPROVEMENTS
B6: Specify each authorization by purpose. Do | G6: =IF('KEY INPUTS'!C42="State Fiscal Year","Fiscal Year "&'KEY INPUTS'!D33&"",'KEY INPUTS'!D34)&"" -> 2022 | H6: Other | I6: Expended | J6: Authorizations
B7: not merely designate by a code number. | E7: Funded | F7: Unfunded | G7: Authorizations | J7: Canceled | K7: Funded | L7: Unfunded
B9: PREVIOUS PAGE TOTALS | E9: =+'35.9- Cap Fund Imprv Auth'!E28 -> 4257262.39 | F9: =+'35.9- Cap Fund Imprv Auth'!F28 -> 2592560.28 | G9: =+'35.9- Cap Fund Imprv Auth'!G28 -> 5830000 | H9: =+'35.9- Cap Fund Imprv Auth'!H28 -> -1133865.46 | I9: =+'35.9- Cap Fund Imprv Auth'!I28 -> 5137807.83 | J9: =+'35.9- Cap Fund Imprv Auth'!J28 -> 166766.42 | K9: =+'35.9- Cap Fund Imprv Auth'!K28 -> 3899598.34 | L9: =+'35.9- Cap Fund Imprv Auth'!L28 -> 2341784.62
A12: Sheet 35 Totals
D28: GRAND TOTALS | E28: =SUM(E9:E27) -> 4257262.39 | F28: =SUM(F9:F27) -> 2592560.28 | G28: 5830000 | H28: -1133865.46 | I28: 5137807.83 | J28: 166766.42 | K28: 3899598.34 | L28: =SUM(L9:L27) -> 2341784.62
C29: Place an * before each item of "Improvement" which represents a funding or refunding of an emergency authorization.

Sheet 36- Capital Improvement Fund
B3: GENERAL CAPITAL FUND
B5: SCHEDULE OF CAPITAL IMPROVEMENT FUND
I7: Debit | J7: Credit
B8: =IF('KEY INPUTS'!C42 = "State Fiscal Year", 'KEY INPUTS'!F25,'KEY INPUTS'!D25) -> Balance - January 1, 2022 | I8: xxxxxxxxx | J8: 196565.2
B9: ="Received from "&IF('KEY INPUTS'!C42="State Fiscal Year","Fiscal Year "&'KEY INPUTS'!D33&"",'KEY INPUTS'!D34)&" Budget Appropriation*" -> Received from 2022 Budget Appropriation* | I9: xxxxxxxxx | J9: 300000
I10: xxxxxxxxx
B11: Improvement Authorizations Canceled | I11: xxxxxxxxx
C12: (financed in whole by the Capital Improvement Fund)
B14: List by Improvements - Direct Charges Made for Preliminary Costs: | I14: xxxxxxxxx | J14: xxxxxxxxx
J15: xxxxxxxxx
J16: xxxxxxxxx
J17: xxxxxxxxx
J18: xxxxxxxxx
J19: xxxxxxxxx
J20: xxxxxxxxx
J21: xxxxxxxxx
J22: xxxxxxxxx
J23: xxxxxxxxx
J24: xxxxxxxxx
J25: xxxxxxxxx
J26: xxxxxxxxx
J27: xxxxxxxxx
J28: xxxxxxxxx
B29: Appropriated to Finance Improvement Authorizations | I29: 215000 | J29: xxxxxxxxx
J30: xxxxxxxxx
B31: =IF('KEY INPUTS'!C42 = "State Fiscal Year", 'KEY INPUTS'!F26,'KEY INPUTS'!D26) -> Balance - December 31, 2022 | I31: =+SUM(J8:J13)-SUM(I13:I30) -> 281565.2 | J31: xxxxxxxxx
I32: =SUM(I8:I31) -> 496565.2 | J32: =SUM(J8:J31) -> 496565.2
B37: ="*The full amount of the "&IF('KEY INPUTS'!C42="State Fiscal Year","Fiscal Year "&'KEY INPUTS'!D33&"",'KEY INPUTS'!D34)&" budget appropriation should be transferred to this account unless the" -> *The full amount of the 2022 budget appropriation should be transferred to this account unless the
B38: balance of the appropriation is to be permitted to lapse.
B54: Sheet 36

Sheet 37- Cap Fund Down Pymts
B3: GENERAL CAPITAL FUND
B5: SCHEDULE OF DOWN PAYMENTS ON IMPROVEMENTS
I7: Debit | J7: Credit
B8: ='36- Capital Improvement Fund'!B8 -> Balance - January 1, 2022 | I8: xxxxxxxxx
B9: ="Received from "&IF('KEY INPUTS'!C42="State Fiscal Year","Fiscal Year "&'KEY INPUTS'!D33&"",'KEY INPUTS'!D34)&" Budget Appropriation*" -> Received from 2022 Budget Appropriation* | I9: xxxxxxxxx
B10: ="Received from "&IF('KEY INPUTS'!C42="State Fiscal Year","Fiscal Year "&'KEY INPUTS'!D33&"",'KEY INPUTS'!D34)&" Emergency Appropriation*" -> Received from 2022 Emergency Appropriation* | I10: xxxxxxxxx
J12: xxxxxxxxx
B13: Appropriated to Finance Improvement Authorizations | J13: xxxxxxxxx
J14: xxxxxxxxx
B15: ='36- Capital Improvement Fund'!B31 -> Balance - December 31, 2022 | I15: =+SUM(J8:J11)-SUM(I11:I14) -> 0 | J15: xxxxxxxxx
I16: =SUM(I8:I15) -> 0 | J16: =SUM(J8:J15) -> 0
C18: ="*The full amount of the "&IF('KEY INPUTS'!C42="State Fiscal Year","Fiscal Year "&'KEY INPUTS'!D33&"",'KEY INPUTS'!D34)&" budget appropriation should be transferred to this account unless the" -> *The full amount of the 2022 budget appropriation should be transferred to this account unless the
D19: balance of the appropriation is to be permitted to lapse.
B21: ="CAPITAL IMPROVEMENTS AUTHORIZED IN "&IF('KEY INPUTS'!C42="State Fiscal Year","FISCAL YEAR "&'KEY INPUTS'!D33&"",'KEY INPUTS'!D34)&"" -> CAPITAL IMPROVEMENTS AUTHORIZED IN 2022
B22: AND DOWN PAYMENTS (N.J.S.A. 40A:2-11)
C25: Purpose | G25: Amount | H25: Total | I25: Down Payment | J25: Additional Funding
G26: Appropriated | H26: Obligations | I26: Provided by | J26: Sources
H27: Authorized | I27: Ordinance
B28: 22-07 Neptune Blvd Roadway
C29: Reconstruction | G29: 600000 | H29: 151400 | J29: 448600
J30: Grant
B31: 22-23 Acquisition of an Electric Powered
C32: Garbage Truck | G32: 500000 | I32: 23033.84 | J32: 476966.16
J33: Grant
B34: 22-30 2022 Road Program | G34: 1500000 | H34: 1425000 | I34: 75000
B35: 22-31 Acquisition of Vehicles and
C36: Equipment | G36: 1600000 | H36: 1520000 | I36: 80000
B37: 22-32 Improvement to Various
C38: Municipal Facilities | G38: 300000 | H38: 285000 | I38: 15000
B39: 22-33 Replacement of the Bulkhead
C40: along Fletcher Lake | G40: 900000 | H40: 855000 | I40: 45000
B41: 22-47 Environmental Site Remediation
C42: at Welsh Farms Property | G42: 430000 | H42: 108426.25 | J42: 321573.75
J43: Grant
E48: Total | G48: =SUM(G28:G47) -> 5830000 | H48: =SUM(H28:H47) -> 4344826.25 | I48: =SUM(I28:I47) -> 238033.84 | J48: =SUM(J28:J47) -> 1247139.91
C50: NOTE - | D50: Where amount in column "Down Payment Provided by Ordinance" is LESS than 5% of amount in
D51: column "Total Obligations Authorized", explanation must be made part of or attached to this sheet.
B53: Sheet 37

Sheet 37- Cap Fund Down Pymts (2) (hidden)
B3: GENERAL CAPITAL FUND
B5: ="CAPITAL IMPROVEMENTS AUTHORIZED IN "&IF('KEY INPUTS'!C42="State Fiscal Year","FISCAL YEAR "&'KEY INPUTS'!D33&"",'KEY INPUTS'!D34)&"" -> CAPITAL IMPROVEMENTS AUTHORIZED IN 2022
B6: AND DOWN PAYMENTS (N.J.S.A. 40A:2-11) (Continued)
C9: Purpose | G9: Amount | H9: Total | I9: Down Payment | J9: Additional Funding
G10: Appropriated | H10: Obligations | I10: Provided by | J10: Sources
H11: Authorized | I11: Ordinance
